Workbook

Sheet Info
B2: Synapse 111(d) Cost Estimate Tool
H4: www.synapse-energy.com
F5: For more information, please contact eastanton@synapse-energy.com or pknight@synapse-energy.com
B9: In its proposed “111(d)”Carbon Pollution Guidelines for Existing Power Plants, the U.S. Environmental Protection Agency (EPA) presents estimates equivalent to a national net benefit of implementing its four “building blocks” of $13 billion to the electric sector in 2030. This national electric-sector benefit does not include additional costs to energy efficiency program participants ($21 billion) or climate-damage reduction and health benefits ($34 to $160 billion). EPA does not provide state-level compliance cost or benefit estimates in its regulatory impact analysis.
B16: Synapse has estimated state-level 111(d) electric-sector compliance costs and benefits based on EPA’s national estimates using the following assumptions:
B18: • EPA’s national costs (and our state estimates) assume that states follow the 111(d) building blocks exactly. A more likely course of events is that each state would achieve its 111(d) emission rate by following a least-cost compliance strategy. The purpose of EPA’s building blocks is target setting: States can design their own compliance plans.
B22: • The purpose of EPA’s building blocks is to establish targets for each state. Each state or group of states may then determine its least-cost compliance strategy. EPA’s national costs do not reflect least-cost strategies for states. EPA considers these costs to be “reasonable.”
B25: • EPA asserts that states complying jointly will have lower costs (and greater net benefits) than states complying singly.
B27: • We estimate state costs by assuming EPA’s average national costs by building block, and matching EPA’s national costs by adjusting the avoided cost of energy. Synapse has not assessed or revised EPA’s costs based on its own research and expertise.

Sheet CostData
B2: State: | C2: Alabama | F2: ←Dropdown
B3: Year: | C3: 2030 | F3: ←Dropdown
B4: EE cost: | C4: EPA 111(d) cost | F4: ←Dropdown
B5: Display as: | C5: Dollars | F5: ←Dropdown
B6: Option: | C6: Proposed - Option 1 | F6: ←Dropdown | K6: www.synapse-energy.com
B8: =C3&" "&CostData!$C$2&" Electric Sector Costs and Benefits of 111(d) Compliance "&IF($C$5="Dollars","(millions of 2011 $)","(percent of costs)") -> 2030 Alabama Electric Sector Costs and Benefits of 111(d) Compliance (millions of 2011 $)
L11: Costs =
L12: =TEXT(-SUM(D32:J32),"$#,#")&" million" -> $1,406 million
L15: =IF(M32<0,"Net Cost =","Net Benefit =") -> Net Benefit =
L16: =TEXT(MROUND(ABS(M32),1),"$#,#")&" million" -> $329 million
L19: Benefits =
L20: =TEXT(SUM(K32:L32),"$#,#")&" million" -> $1,735 million
B29: Note: Values estimated by Synapse. Does not include energy efficiency participant costs or climate and health benefits.
D31: BB1 | E31: BB2a | F31: BB2b | G31: BB3ai | H31: BB3aii | I31: BB3b | J31: BB4 | K31: BB3b | L31: BB4 | M31: Net
B32: (Costs) and Savings | D32: =-INDEX(Cost_Summary!AB5:AB54,MATCH(CostData!$C$2,Cost_Summary!$B$5:$B$54,0)) -> -21.84170915 | E32: =-INDEX(Cost_Summary!AC5:AC54,MATCH(CostData!$C$2,Cost_Summary!$B$5:$B$54,0)) -> -188.1200529 | F32: =-INDEX(Cost_Summary!AD5:AD54,MATCH(CostData!$C$2,Cost_Summary!$B$5:$B$54,0)) -> 0 | G32: =-INDEX(Cost_Summary!AE5:AE54,MATCH(CostData!$C$2,Cost_Summary!$B$5:$B$54,0)) -> -13.9771697 | H32: =-INDEX(Cost_Summary!AF5:AF54,MATCH(CostData!$C$2,Cost_Summary!$B$5:$B$54,0)) -> 0 | I32: =-INDEX(Cost_Summary!AG5:AG54,MATCH(CostData!$C$2,Cost_Summary!$B$5:$B$54,0)) -> -725.5235763 | J32: =-INDEX(Cost_Summary!AH5:AH54,MATCH(CostData!$C$2,Cost_Summary!$B$5:$B$54,0)) -> -456.852375 | K32: =-INDEX(Cost_Summary!AI5:AI54,MATCH(CostData!$C$2,Cost_Summary!$B$5:$B$54,0)) -> 909.2755877 | L32: =-INDEX(Cost_Summary!AJ5:AJ54,MATCH(CostData!$C$2,Cost_Summary!$B$5:$B$54,0)) -> 825.6912236 | M32: =SUM(D32:L32) -> 328.6519283
B33: Percent of Costs | D33: =D32/SUM($D$32:$J$32) -> 0.01553116547 | E33: =E32/SUM($D$32:$J$32) -> 0.1337680879 | F33: 0 | G33: 0.009938862105 | H33: 0 | I33: 0.5159040732 | J33: 0.3248578114 | K33: -0.6465661416 | L33: -0.5871311138
B53: For Charts
D55: BB1 | E55: BB2a | F55: BB2b | G55: BB3ai | H55: BB3aii | I55: BB3b | J55: BB4 | K55: BB3b | L55: BB4 | M55: Net
B56: Savings | K56: =IF($C$5="Dollars",ABS(K$32),IF($C$5="Percent",ABS(K$33))) -> 909.2755877 | L56: 825.6912236
M57: =SUM(K56:L56)-SUM(D58:J58) -> 328.6519283
B58: Costs | D58: =IF($C$5="Dollars",ABS(D$32),IF($C$5="Percent",ABS(D$33))) -> 21.84170915 | E58: =IF($C$5="Dollars",ABS(E$32),IF($C$5="Percent",ABS(E$33))) -> 188.1200529 | F58: 0 | G58: 13.9771697 | H58: 0 | I58: 725.5235763 | J58: 456.852375
D59: BB1 Lower Average Coal Emission Rate Cost | E59: BB2a Redispatch to Existing NG Cost | F59: BB2b Redispatch to Under-Construction NG Cost | G59: BB3ai At-Risk Nuclear Cost | H59: BB3aii Under-Construction Nuclear Cost | I59: BB3b Renewables Cost | J59: BB4 EE Program Administration Cost | K59: BB3b RE Displaced Energy Savings | L59: BB4 EE Displaced Energy Savings

Sheet StateData
B2: =CostData!C2 -> Alabama
B4: 2012 Generation | E4: GWh | F4: =INDEX(GWh_Summary!$J$5:$J$54,MATCH(CostData!$C$2,GWh_Summary!$B$5:$B$54,0)) -> 152878.6877 | H4: 2012 generation by resource type
B5: 2012 CO2 Emissions | E5: 000 metric tons | F5: =INDEX(Emission_Summary!$G$5:$G$54,MATCH(CostData!$C$2,Emission_Summary!$B$5:$B$54,0)) -> 68543.60485
B6: 2012 111(d) CO₂ Emissions Rate | E6: lbs/MWh | F6: =INDEX(preBB!$Q$5:$Q$54,MATCH(CostData!$C$2,preBB!$B$5:$B$54,0)) -> 1477.25451
B7: =CostData!C3&" CO2 Emissions" -> 2030 CO2 Emissions | E7: 000 metric tons | F7: =INDEX('BB4'!$E$5:$E$54,MATCH(CostData!C2,'BB4'!$B$5:$B$54,0)) -> 60006.41158
B8: =CostData!$C$3&" 111(d) CO₂ Emissions Rate" -> 2030 111(d) CO₂ Emissions Rate | E8: lbs/MWh | F8: =K70 -> 1059.014866
B9: =CostData!$C$3&" 111(d) CO₂ Emissions Rate Reduction" -> 2030 111(d) CO₂ Emissions Rate Reduction | E9: lbs/MWh | F9: =K68 -> 418.2396439
B10: =CostData!C3&" % in-state generation" -> 2030 % in-state generation | E10: % | F10: =IF(CostData!C2="U.S. Total","N/A",INDEX(Apdx_1!$AP$5:$AP$53,MATCH(CostData!$C$2,Apdx_1!$B$5:$B$53,0))) -> 1.506272935
B12: Emission rate reduction by building block. Reductions are shown as a percent of the total reduction, and in lbs/MWh in parantheses.
B13: ="100%"&CHAR(10)&"("&TEXT(K68,"#,#")&" lbs/MWh)" -> 100% (418 lbs/MWh) | D13: =IF(D69=0,NA(),D69) -> 0.146170281 | E13: =IF(E69=0,NA(),E69) -> 0.2937543724 | G13: =IF(F69=0,NA(),F69) ->  | H13: =IF(G69=0,NA(),G69) -> 0.06883624621 | I13: =IF(H69=0,NA(),H69) ->  | J13: =IF(I69=0,NA(),I69) -> 0.2997363287 | K13: =IF(J69=0,NA(),J69) -> 0.1915027717
D14: =D67&" "&D66 -> (1) Lower Average Coal Emission Rate | E14: =E67&" "&E66 -> (2a) Redispatch to Existing NG | G14: =F67&" "&F66 -> (2b) Redispatch to Under-Cons. NG | H14: =G67&" "&G66 -> (3a-i) At-Risk Nuclear | I14: =H67&" "&H66 -> (3a-ii) Under-Cons. Nuclear | J14: =I67&" "&I66 -> (3b) Incremental Renewables | K14: =J67&" "&J66 -> (4) Incremental Energy Efficiency
D15: =IF(D69=0,NA(),TEXT(D69,"#%")&CHAR(10)&"("&TEXT(D68,"#,#")&")") -> 15% (61) | E15: =IF(E69=0,NA(),TEXT(E69,"#%")&CHAR(10)&"("&TEXT(E68,"#,#")&")") -> 29% (123) | G15: =IF(F69=0,NA(),TEXT(F69,"#%")&CHAR(10)&"("&TEXT(F68,"#,#")&")") ->  | H15: =IF(G69=0,NA(),TEXT(G69,"#%")&CHAR(10)&"("&TEXT(G68,"#,#")&")") -> 7% (29) | I15: =IF(H69=0,NA(),TEXT(H69,"#%")&CHAR(10)&"("&TEXT(H68,"#,#")&")") ->  | J15: =IF(I69=0,NA(),TEXT(I69,"#%")&CHAR(10)&"("&TEXT(I68,"#,#")&")") -> 30% (125) | K15: =IF(J69=0,NA(),TEXT(J69,"#%")&CHAR(10)&"("&TEXT(J68,"#,#")&")") -> 19% (80)
B28: Building Block 1. Lower Average Coal Emission Rate | H28: Building Block 2. Redispatch to NGCC
B41: Histogram of coal unit age. Generally, the older a state's coal fleet, the more opportunity there is to lower the coal emission rate. | H41: Generation from increased NGCC capacity factors displace coal and other fossil generation.
B44: Building Block 3a. Nuclear
B45: =IF(D88=0,"This state does not have any nuclear units.","This state has "&TEXT(D88,"#")&" nuclear unit(s), totaling "&TEXT(D89,"#")&" GW of capacity. Of this, 5.3 percent, ("&TEXT(D92,"0.0")&" GW) is 'at-risk'. "&IF(D91<>0,"This state has "&TEXT(D91,"#")&" GW of nuclear units under construction.","")) -> This state has 5 nuclear unit(s), totaling 5 GW of capacity. Of this, 5.3 percent, (0.3 GW) is 'at-risk'.
B47: Building Block 3b. Incremental Renewable Energy | H47: Building Block 4. Incremental Energy Efficiency
B60: 2013 - 2016 values are interpolated. | H60: An "EPA Adj" line is shown if this state is a net energy importer. Building Block 4 is then pro-rated by the percent by which the state is a net importer.
B63: For Figures
B65: Horizontal Figure: Source of CO2 Reductions
D66: Lower Average Coal Emission Rate | E66: Redispatch to Existing NG | F66: Redispatch to Under-Cons. NG | G66: At-Risk Nuclear | H66: Under-Cons. Nuclear | I66: Incremental Renewables | J66: Incremental Energy Efficiency | K66: Total
D67: (1) | E67: (2a) | F67: (2b) | G67: (3a-i) | H67: (3a-ii) | I67: (3b) | J67: (4)
B68: =CostData!$C$3&" 111(d) CO₂ Emissions Rate Reduction" -> 2030 111(d) CO₂ Emissions Rate Reduction | C68: lbs/MWh | D68: =INDEX('BB1'!$N$5:$N$54,MATCH(CostData!$C$2,preBB!$B$5:$B$54,0)) -> 61.13420626 | E68: =INDEX(BB2a!$V$5:$V$54,MATCH(CostData!$C$2,preBB!$B$5:$B$54,0)) -> 122.8597241 | F68: =INDEX(BB2b!$V$5:$V$54,MATCH(CostData!$C$2,preBB!$B$5:$B$54,0)) -> 0 | G68: =INDEX(BB3ai!$H$5:$H$54,MATCH(CostData!$C$2,preBB!$B$5:$B$54,0)) -> 28.7900471 | H68: =INDEX(BB3aii!$H$5:$H$54,MATCH(CostData!$C$2,preBB!$B$5:$B$54,0)) -> 0 | I68: =INDEX(BB3b!$I$5:$I$54,MATCH(CostData!$C$2,preBB!$B$5:$B$54,0)) -> 125.3616154 | J68: =INDEX('BB4'!$H$5:$H$54,MATCH(CostData!$C$2,preBB!$B$5:$B$54,0)) -> 80.09405105 | K68: =SUM(D68:J68) -> 418.2396439
B69: Share of Reduction | C69: % | D69: =D68/$K$68 -> 0.146170281 | E69: 0.2937543724 | F69: 0 | G69: 0.06883624621 | H69: 0 | I69: 0.2997363287 | J69: 0.1915027717 | K69: 1
B70: =CostData!$C$3&" 111(d) CO₂ Emissions Rate" -> 2030 111(d) CO₂ Emissions Rate | C70: lbs/MWh | K70: =F6-K68 -> 1059.014866
B72: State | C72: =IF(CostData!C2="U.S. Total",CostData!C2,INDEX(EIA_Generation!$H$5:$H$56,MATCH(CostData!C2,EIA_Generation!$I$5:$I$56,0))) -> AL
B73: YearCol | C73: =MATCH(CostData!C3,RefTables!$D$13:$F$13,0) -> 3
B74: OptionRow | C74: =IF(CostData!C6="Proposed - Option 1",1,2) -> 1
B76: Top Figure | E76: Building Block 1 | I76: Building Block 2
C77: Gen. (TWh) | F77: Cap. (GW) | G77: Label | I77: Gen. (TWh) | J77: 2012 | K77: =CostData!C3 -> 2030
B78: Coal | C78: =INDEX(GWh_Summary!$C$4:$J$54,MATCH(CostData!$C$2,GWh_Summary!$B$4:$B$54,0),MATCH($B78,GWh_Summary!$C$3:$J$3,0))/1000 -> 46.045176 | E78: 10 | F78: =IF(CostData!$C$2="U.S. Total", SUMIFS(Apdx_7_UnitLevelInventory!$I$6:$I$22659,Apdx_7_UnitLevelInventory!$B$6:$B$22659,"CoalST",Apdx_7_UnitLevelInventory!$Q$6:$Q$22659,">="&E77,Apdx_7_UnitLevelInventory!$Q$6:$Q$22659,"<"&E78), SUMIFS(Apdx_7_UnitLevelInventory!$I$6:$I$22659,Apdx_7_UnitLevelInventory!$B$6:$B$22659,"CoalST",Apdx_7_UnitLevelInventory!$C$6:$C$22659,$C$72,Apdx_7_UnitLevelInventory!$Q$6:$Q$22659,">="&E77,Apdx_7_UnitLevelInventory!$Q$6:$Q$22659,"<"&E78))/1000 -> 0 | G78: =E77+1&"-"&E78 -> 1-10 | I78: Coal | J78: =INDEX(Apdx_1!$G$5:$G$55,MATCH(CostData!$C$2,Apdx_1!$B$5:$B$55,0))/1000000 -> 46.045176 | K78: =INDEX(Apdx_1!$N$5:$N$55,MATCH(CostData!$C$2,Apdx_1!$B$5:$B$55,0))/1000000 -> 36.00110668
B79: NGCC | C79: =INDEX(GWh_Summary!$C$4:$J$54,MATCH(CostData!$C$2,GWh_Summary!$B$4:$B$54,0),MATCH($B79,GWh_Summary!$C$3:$J$3,0))/1000 -> 53.49209596 | E79: =E78+10 -> 20 | F79: =IF(CostData!$C$2="U.S. Total", SUMIFS(Apdx_7_UnitLevelInventory!$I$6:$I$22659,Apdx_7_UnitLevelInventory!$B$6:$B$22659,"CoalST",Apdx_7_UnitLevelInventory!$Q$6:$Q$22659,">="&E78,Apdx_7_UnitLevelInventory!$Q$6:$Q$22659,"<"&E79), SUMIFS(Apdx_7_UnitLevelInventory!$I$6:$I$22659,Apdx_7_UnitLevelInventory!$B$6:$B$22659,"CoalST",Apdx_7_UnitLevelInventory!$C$6:$C$22659,$C$72,Apdx_7_UnitLevelInventory!$Q$6:$Q$22659,">="&E78,Apdx_7_UnitLevelInventory!$Q$6:$Q$22659,"<"&E79))/1000 -> 0 | G79: =E78+1&"-"&E79 -> 11-20 | I79: NGCC | J79: =INDEX(Apdx_1!$H$5:$H$55,MATCH(CostData!$C$2,Apdx_1!$B$5:$B$55,0))/1000000 -> 53.49209596 | K79: =INDEX(Apdx_1!$P$5:$P$55,MATCH(CostData!$C$2,Apdx_1!$B$5:$B$55,0))/1000000 -> 63.53616528
B80: O/G | C80: =INDEX(GWh_Summary!$C$4:$J$54,MATCH(CostData!$C$2,GWh_Summary!$B$4:$B$54,0),MATCH($B80,GWh_Summary!$C$3:$J$3,0))/1000 -> 0 | E80: =E79+10 -> 30 | F80: =IF(CostData!$C$2="U.S. Total", SUMIFS(Apdx_7_UnitLevelInventory!$I$6:$I$22659,Apdx_7_UnitLevelInventory!$B$6:$B$22659,"CoalST",Apdx_7_UnitLevelInventory!$Q$6:$Q$22659,">="&E79,Apdx_7_UnitLevelInventory!$Q$6:$Q$22659,"<"&E80), SUMIFS(Apdx_7_UnitLevelInventory!$I$6:$I$22659,Apdx_7_UnitLevelInventory!$B$6:$B$22659,"CoalST",Apdx_7_UnitLevelInventory!$C$6:$C$22659,$C$72,Apdx_7_UnitLevelInventory!$Q$6:$Q$22659,">="&E79,Apdx_7_UnitLevelInventory!$Q$6:$Q$22659,"<"&E80))/1000 -> 2.1165 | G80: 21-30 | I80: O/G | J80: =INDEX(Apdx_1!$I$5:$I$55,MATCH(CostData!$C$2,Apdx_1!$B$5:$B$55,0))/1000000 -> 0 | K80: =INDEX(Apdx_1!$O$5:$O$55,MATCH(CostData!$C$2,Apdx_1!$B$5:$B$55,0))/1000000 -> 0
B81: Other | C81: =INDEX(GWh_Summary!$C$4:$J$54,MATCH(CostData!$C$2,GWh_Summary!$B$4:$B$54,0),MATCH($B81,GWh_Summary!$C$3:$J$3,0))/1000 -> 0 | E81: 40 | F81: =IF(CostData!$C$2="U.S. Total", SUMIFS(Apdx_7_UnitLevelInventory!$I$6:$I$22659,Apdx_7_UnitLevelInventory!$B$6:$B$22659,"CoalST",Apdx_7_UnitLevelInventory!$Q$6:$Q$22659,">="&E80,Apdx_7_UnitLevelInventory!$Q$6:$Q$22659,"<"&E81), SUMIFS(Apdx_7_UnitLevelInventory!$I$6:$I$22659,Apdx_7_UnitLevelInventory!$B$6:$B$22659,"CoalST",Apdx_7_UnitLevelInventory!$C$6:$C$22659,$C$72,Apdx_7_UnitLevelInventory!$Q$6:$Q$22659,">="&E80,Apdx_7_UnitLevelInventory!$Q$6:$Q$22659,"<"&E81))/1000 -> 1.1775 | G81: 31-40 | I81: Other | J81: =INDEX(Apdx_1!$J$5:$J$55,MATCH(CostData!$C$2,Apdx_1!$B$5:$B$55,0))/1000000 -> 0 | K81: =INDEX(Apdx_1!$R$5:$R$55,MATCH(CostData!$C$2,Apdx_1!$B$5:$B$55,0))/1000000 -> 0
B82: Nuclear | C82: =INDEX(GWh_Summary!$C$4:$J$54,MATCH(CostData!$C$2,GWh_Summary!$B$4:$B$54,0),MATCH($B82,GWh_Summary!$C$3:$J$3,0))/1000 -> 40.841212 | E82: 50 | F82: =IF(CostData!$C$2="U.S. Total", SUMIFS(Apdx_7_UnitLevelInventory!$I$6:$I$22659,Apdx_7_UnitLevelInventory!$B$6:$B$22659,"CoalST",Apdx_7_UnitLevelInventory!$Q$6:$Q$22659,">="&E81,Apdx_7_UnitLevelInventory!$Q$6:$Q$22659,"<"&E82), SUMIFS(Apdx_7_UnitLevelInventory!$I$6:$I$22659,Apdx_7_UnitLevelInventory!$B$6:$B$22659,"CoalST",Apdx_7_UnitLevelInventory!$C$6:$C$22659,$C$72,Apdx_7_UnitLevelInventory!$Q$6:$Q$22659,">="&E81,Apdx_7_UnitLevelInventory!$Q$6:$Q$22659,"<"&E82))/1000 -> 4.6677 | G82: 41-50
B83: RE | C83: =INDEX(GWh_Summary!$C$4:$J$54,MATCH(CostData!$C$2,GWh_Summary!$B$4:$B$54,0),MATCH($B83,GWh_Summary!$C$3:$J$3,0))/1000 -> 2.776554 | E83: 60 | F83: =IF(CostData!$C$2="U.S. Total", SUMIFS(Apdx_7_UnitLevelInventory!$I$6:$I$22659,Apdx_7_UnitLevelInventory!$B$6:$B$22659,"CoalST",Apdx_7_UnitLevelInventory!$Q$6:$Q$22659,">="&E82,Apdx_7_UnitLevelInventory!$Q$6:$Q$22659,"<"&E83), SUMIFS(Apdx_7_UnitLevelInventory!$I$6:$I$22659,Apdx_7_UnitLevelInventory!$B$6:$B$22659,"CoalST",Apdx_7_UnitLevelInventory!$C$6:$C$22659,$C$72,Apdx_7_UnitLevelInventory!$Q$6:$Q$22659,">="&E82,Apdx_7_UnitLevelInventory!$Q$6:$Q$22659,"<"&E83))/1000 -> 3.0857 | G83: 51-60 | I83: NGCC CF | J83: =IF(CostData!$C$2="U.S. Total",Apdx_1!$S$55,INDEX(Apdx_1!$S$5:$S$53,MATCH(CostData!$C$2,Apdx_1!$B$5:$B$53,0))) -> 0.5893409999 | K83: =IF(CostData!$C$2="U.S. Total",Apdx_1!$T$55,INDEX(Apdx_1!$T$5:$T$53,MATCH(CostData!$C$2,Apdx_1!$B$5:$B$53,0))) -> 0.7
B84: All Else | C84: =INDEX(GWh_Summary!$C$4:$J$54,MATCH(CostData!$C$2,GWh_Summary!$B$4:$B$54,0),MATCH($B84,GWh_Summary!$C$3:$J$3,0))/1000 -> 9.723649726 | E84: 70 | F84: =IF(CostData!$C$2="U.S. Total", SUMIFS(Apdx_7_UnitLevelInventory!$I$6:$I$22659,Apdx_7_UnitLevelInventory!$B$6:$B$22659,"CoalST",Apdx_7_UnitLevelInventory!$Q$6:$Q$22659,">="&E83,Apdx_7_UnitLevelInventory!$Q$6:$Q$22659,"<"&E84), SUMIFS(Apdx_7_UnitLevelInventory!$I$6:$I$22659,Apdx_7_UnitLevelInventory!$B$6:$B$22659,"CoalST",Apdx_7_UnitLevelInventory!$C$6:$C$22659,$C$72,Apdx_7_UnitLevelInventory!$Q$6:$Q$22659,">="&E83,Apdx_7_UnitLevelInventory!$Q$6:$Q$22659,"<"&E84))/1000 -> 1.5378 | G84: 61-70
B85: Total | C85: =INDEX(GWh_Summary!$C$4:$J$54,MATCH(CostData!$C$2,GWh_Summary!$B$4:$B$54,0),MATCH($B85,GWh_Summary!$C$3:$J$3,0))/1000 -> 152.8786877 | E85: 80 | F85: =IF(CostData!$C$2="U.S. Total", SUMIFS(Apdx_7_UnitLevelInventory!$I$6:$I$22659,Apdx_7_UnitLevelInventory!$B$6:$B$22659,"CoalST",Apdx_7_UnitLevelInventory!$Q$6:$Q$22659,">="&E84,Apdx_7_UnitLevelInventory!$Q$6:$Q$22659,"<"&E85), SUMIFS(Apdx_7_UnitLevelInventory!$I$6:$I$22659,Apdx_7_UnitLevelInventory!$B$6:$B$22659,"CoalST",Apdx_7_UnitLevelInventory!$C$6:$C$22659,$C$72,Apdx_7_UnitLevelInventory!$Q$6:$Q$22659,">="&E84,Apdx_7_UnitLevelInventory!$Q$6:$Q$22659,"<"&E85))/1000 -> 0 | G85: 71-80
B87: Building Block 3
B88: # of nuclear units | D88: =IF(CostData!$C$2="U.S. Total",COUNTIFS(EIA_Units!$J$6:$J$22655,"OP",EIA_Units!$Q$6:$Q$22655,"NUC"), COUNTIFS(EIA_Units!$F$6:$F$22655,$C$72,EIA_Units!$J$6:$J$22655,"OP",EIA_Units!$Q$6:$Q$22655,"NUC")) -> 5
B89: Nuclear Cap. (GW) | D89: =IF(CostData!$C$2="U.S. Total",SUMIFS(EIA_Units!$K$6:$K$22655,EIA_Units!$J$6:$J$22655,"OP",EIA_Units!$Q$6:$Q$22655,"NUC"), SUMIFS(EIA_Units!$K$6:$K$22655,EIA_Units!$F$6:$F$22655,$C$72,EIA_Units!$J$6:$J$22655,"OP",EIA_Units!$Q$6:$Q$22655,"NUC"))/1000 -> 5.2704
B90: New Nuc. Cap (GW) | D90: =IF(CostData!$C$2="U.S. Total",SUM(RefTables!$D$43:$D$45), INDEX(RefTables!$D$43:$D$45,MATCH(CostData!$C$2,RefTables!$C$43:$C$45,0)))/1000 -> 
B91: New nuclear units (final) | D91: =IF(ISNA(D90),0,D90) -> 0
B92: At-risk Cap. (GW) | D92: =D89*5.3% -> 0.2793312
B94: Building Block 4
C95: =C72 -> AL | D95: U.S. Avg
B96: 2012 | C96: =INDEX(Apdx_RE_Gen!$J$19:$J$69,MATCH(CostData!$C$2,Apdx_RE_Gen!$B$19:$B$69,0)) -> 0.0181618121 | D96: =Apdx_RE_Gen!J71 -> 0.06512857406
B97: =B96+1 -> 2013 | C97: =($C$101-$C$96)/5+C96 -> 0.01864974646 | D97: =($D$101-$D$96)/5+D96 -> 0.0650969958
B98: =B97+1 -> 2014 | C98: =($C$101-$C$96)/5+C97 -> 0.01913768083 | D98: =($D$101-$D$96)/5+D97 -> 0.06506541753
B99: 2015 | C99: 0.01962561519 | D99: 0.06503383927
B100: 2016 | C100: 0.02011354955 | D100: 0.065002261
B101: 2017 | C101: =INDEX(Apdx_RE_Gen!$K$19:$W$69,MATCH(CostData!$C$2,Apdx_RE_Gen!$B$19:$B$69,0),MATCH($B101,Apdx_RE_Gen!$K$18:$W$18,0)) -> 0.02060148392 | D101: =Apdx_RE_Gen!$K$71 -> 0.06497068274
B102: 2018 | C102: =INDEX(Apdx_RE_Gen!$K$19:$W$69,MATCH(CostData!$C$2,Apdx_RE_Gen!$B$19:$B$69,0),MATCH($B102,Apdx_RE_Gen!$K$18:$W$18,0)) -> 0.02336887626 | D102: =Apdx_RE_Gen!$L$71 -> 0.06895690081
B103: 2019 | C103: =INDEX(Apdx_RE_Gen!$K$19:$W$69,MATCH(CostData!$C$2,Apdx_RE_Gen!$B$19:$B$69,0),MATCH($B103,Apdx_RE_Gen!$K$18:$W$18,0)) -> 0.02650801175 | D103: =Apdx_RE_Gen!$M$71 -> 0.07325294455
B104: 2020 | C104: =INDEX(Apdx_RE_Gen!$K$19:$W$69,MATCH(CostData!$C$2,Apdx_RE_Gen!$B$19:$B$69,0),MATCH($B104,Apdx_RE_Gen!$K$18:$W$18,0)) -> 0.03006882654 | D104: =Apdx_RE_Gen!$N$71 -> 0.07798664426
B105: 2021 | C105: =INDEX(Apdx_RE_Gen!$K$19:$W$69,MATCH(CostData!$C$2,Apdx_RE_Gen!$B$19:$B$69,0),MATCH($B105,Apdx_RE_Gen!$K$18:$W$18,0)) -> 0.03410796472 | D105: =Apdx_RE_Gen!$O$71 -> 0.08296855674
B106: 2022 | C106: =INDEX(Apdx_RE_Gen!$K$19:$W$69,MATCH(CostData!$C$2,Apdx_RE_Gen!$B$19:$B$69,0),MATCH($B106,Apdx_RE_Gen!$K$18:$W$18,0)) -> 0.03868967936 | D106: =Apdx_RE_Gen!$P$71 -> 0.08830699358
B107: 2023 | C107: =INDEX(Apdx_RE_Gen!$K$19:$W$69,MATCH(CostData!$C$2,Apdx_RE_Gen!$B$19:$B$69,0),MATCH($B107,Apdx_RE_Gen!$K$18:$W$18,0)) -> 0.04388685462 | D107: =Apdx_RE_Gen!$Q$71 -> 0.09399211192
B108: 2024 | C108: =INDEX(Apdx_RE_Gen!$K$19:$W$69,MATCH(CostData!$C$2,Apdx_RE_Gen!$B$19:$B$69,0),MATCH($B108,Apdx_RE_Gen!$K$18:$W$18,0)) -> 0.04978216516 | D108: =Apdx_RE_Gen!$R$71 -> 0.09997194013
B109: 2025 | C109: =INDEX(Apdx_RE_Gen!$K$19:$W$69,MATCH(CostData!$C$2,Apdx_RE_Gen!$B$19:$B$69,0),MATCH($B109,Apdx_RE_Gen!$K$18:$W$18,0)) -> 0.05646939135 | D109: =Apdx_RE_Gen!$S$71 -> 0.1064689003
B110: 2026 | C110: =INDEX(Apdx_RE_Gen!$K$19:$W$69,MATCH(CostData!$C$2,Apdx_RE_Gen!$B$19:$B$69,0),MATCH($B110,Apdx_RE_Gen!$K$18:$W$18,0)) -> 0.064054911 | D110: =Apdx_RE_Gen!$T$71 -> 0.1133401597
B111: 2027 | C111: =INDEX(Apdx_RE_Gen!$K$19:$W$69,MATCH(CostData!$C$2,Apdx_RE_Gen!$B$19:$B$69,0),MATCH($B111,Apdx_RE_Gen!$K$18:$W$18,0)) -> 0.07265939168 | D111: =Apdx_RE_Gen!$U$71 -> 0.1195502041
B112: 2028 | C112: =INDEX(Apdx_RE_Gen!$K$19:$W$69,MATCH(CostData!$C$2,Apdx_RE_Gen!$B$19:$B$69,0),MATCH($B112,Apdx_RE_Gen!$K$18:$W$18,0)) -> 0.08241971015 | D112: =Apdx_RE_Gen!$V$71 -> 0.1256158806
B113: 2029 | C113: =INDEX(Apdx_RE_Gen!$K$19:$W$69,MATCH(CostData!$C$2,Apdx_RE_Gen!$B$19:$B$69,0),MATCH($B113,Apdx_RE_Gen!$K$18:$W$18,0)) -> 0.09349112985 | D113: =Apdx_RE_Gen!$W$71 -> 0.1312070636
B114: 2030 | C114: =C113 -> 0.09349112985 | D114: =D113 -> 0.1312070636
B116: Building Block 5
C117: EPA Total Goal | E117: State Target (User-entered) | G117: EPA In-state Goal
C118: Incremental | D118: Cumulative | E118: Incremental | F118: Cumulative | G118: Incremental | H118: Cumulative
B119: 2014
B120: 2015
B121: 2016
B122: 2017 | C122: =IF(CostData!$C$6="Proposed - Option 1", INDEX(Apdx_5_5_Opt_1_IncSavingsPcnt!$D$7:$Q$59,MATCH(CostData!$C$2,Apdx_5_5_Opt_1_IncSavingsPcnt!$C$7:$C$59,0),MATCH($B122,Apdx_5_5_Opt_1_IncSavingsPcnt!$D$6:$Q$6,0)), INDEX(Apdx_5_5_Opt_2_IncSavingsPcnt!$D$7:$Q$59,MATCH(CostData!$C$2,Apdx_5_5_Opt_2_IncSavingsPcnt!$C$7:$C$59,0),MATCH($B122,Apdx_5_5_Opt_2_IncSavingsPcnt!$D$6:$Q$6,0))) -> 0.0006 | D122: =IF(CostData!$C$6="Proposed - Option 1", INDEX(Apdx_5_5_Opt_1_CumSavingsPcnt!$D$7:$Q$59,MATCH(CostData!$C$2,Apdx_5_5_Opt_1_CumSavingsPcnt!$C$7:$C$59,0),MATCH($B122,Apdx_5_5_Opt_1_CumSavingsPcnt!$D$6:$Q$6,0)), INDEX(Apdx_5_5_Opt_2_CumSavingsPcnt!$D$7:$Q$59,MATCH(CostData!$C$2,Apdx_5_5_Opt_2_CumSavingsPcnt!$C$7:$C$59,0),MATCH($B122,Apdx_5_5_Opt_2_CumSavingsPcnt!$D$6:$Q$6,0))) -> 0.0006 | H122: =IF($F$10>=1,NA(),IF(CostData!$C$6="Proposed - Option 1", INDEX(Apdx_5_5_Opt_1_CumSavingsPcnt!$D$7:$Q$59,MATCH(CostData!$C$2,Apdx_5_5_Opt_1_CumSavingsPcnt!$C$7:$C$59,0),MATCH($B122,Apdx_5_5_Opt_1_CumSavingsPcnt!$D$6:$Q$6,0)), INDEX(Apdx_5_5_Opt_2_CumSavingsPcnt!$D$7:$Q$59,MATCH(CostData!$C$2,Apdx_5_5_Opt_2_CumSavingsPcnt!$C$7:$C$59,0),MATCH($B122,Apdx_5_5_Opt_2_CumSavingsPcnt!$D$6:$Q$6,0)))*$F$10) -> 
B123: 2018 | C123: =IF(CostData!$C$6="Proposed - Option 1", INDEX(Apdx_5_5_Opt_1_IncSavingsPcnt!$D$7:$Q$59,MATCH(CostData!$C$2,Apdx_5_5_Opt_1_IncSavingsPcnt!$C$7:$C$59,0),MATCH($B123,Apdx_5_5_Opt_1_IncSavingsPcnt!$D$6:$Q$6,0)), INDEX(Apdx_5_5_Opt_2_IncSavingsPcnt!$D$7:$Q$59,MATCH(CostData!$C$2,Apdx_5_5_Opt_2_IncSavingsPcnt!$C$7:$C$59,0),MATCH($B123,Apdx_5_5_Opt_2_IncSavingsPcnt!$D$6:$Q$6,0))) -> 0.0026 | D123: =IF(CostData!$C$6="Proposed - Option 1", INDEX(Apdx_5_5_Opt_1_CumSavingsPcnt!$D$7:$Q$59,MATCH(CostData!$C$2,Apdx_5_5_Opt_1_CumSavingsPcnt!$C$7:$C$59,0),MATCH($B123,Apdx_5_5_Opt_1_CumSavingsPcnt!$D$6:$Q$6,0)), INDEX(Apdx_5_5_Opt_2_CumSavingsPcnt!$D$7:$Q$59,MATCH(CostData!$C$2,Apdx_5_5_Opt_2_CumSavingsPcnt!$C$7:$C$59,0),MATCH($B123,Apdx_5_5_Opt_2_CumSavingsPcnt!$D$6:$Q$6,0))) -> 0.0032 | H123: =IF($F$10>=1,NA(),IF(CostData!$C$6="Proposed - Option 1", INDEX(Apdx_5_5_Opt_1_CumSavingsPcnt!$D$7:$Q$59,MATCH(CostData!$C$2,Apdx_5_5_Opt_1_CumSavingsPcnt!$C$7:$C$59,0),MATCH($B123,Apdx_5_5_Opt_1_CumSavingsPcnt!$D$6:$Q$6,0)), INDEX(Apdx_5_5_Opt_2_CumSavingsPcnt!$D$7:$Q$59,MATCH(CostData!$C$2,Apdx_5_5_Opt_2_CumSavingsPcnt!$C$7:$C$59,0),MATCH($B123,Apdx_5_5_Opt_2_CumSavingsPcnt!$D$6:$Q$6,0)))*$F$10) -> 
B124: 2019 | C124: =IF(CostData!$C$6="Proposed - Option 1", INDEX(Apdx_5_5_Opt_1_IncSavingsPcnt!$D$7:$Q$59,MATCH(CostData!$C$2,Apdx_5_5_Opt_1_IncSavingsPcnt!$C$7:$C$59,0),MATCH($B124,Apdx_5_5_Opt_1_IncSavingsPcnt!$D$6:$Q$6,0)), INDEX(Apdx_5_5_Opt_2_IncSavingsPcnt!$D$7:$Q$59,MATCH(CostData!$C$2,Apdx_5_5_Opt_2_IncSavingsPcnt!$C$7:$C$59,0),MATCH($B124,Apdx_5_5_Opt_2_IncSavingsPcnt!$D$6:$Q$6,0))) -> 0.0046 | D124: =IF(CostData!$C$6="Proposed - Option 1", INDEX(Apdx_5_5_Opt_1_CumSavingsPcnt!$D$7:$Q$59,MATCH(CostData!$C$2,Apdx_5_5_Opt_1_CumSavingsPcnt!$C$7:$C$59,0),MATCH($B124,Apdx_5_5_Opt_1_CumSavingsPcnt!$D$6:$Q$6,0)), INDEX(Apdx_5_5_Opt_2_CumSavingsPcnt!$D$7:$Q$59,MATCH(CostData!$C$2,Apdx_5_5_Opt_2_CumSavingsPcnt!$C$7:$C$59,0),MATCH($B124,Apdx_5_5_Opt_2_CumSavingsPcnt!$D$6:$Q$6,0))) -> 0.0075 | H124: =IF($F$10>=1,NA(),IF(CostData!$C$6="Proposed - Option 1", INDEX(Apdx_5_5_Opt_1_CumSavingsPcnt!$D$7:$Q$59,MATCH(CostData!$C$2,Apdx_5_5_Opt_1_CumSavingsPcnt!$C$7:$C$59,0),MATCH($B124,Apdx_5_5_Opt_1_CumSavingsPcnt!$D$6:$Q$6,0)), INDEX(Apdx_5_5_Opt_2_CumSavingsPcnt!$D$7:$Q$59,MATCH(CostData!$C$2,Apdx_5_5_Opt_2_CumSavingsPcnt!$C$7:$C$59,0),MATCH($B124,Apdx_5_5_Opt_2_CumSavingsPcnt!$D$6:$Q$6,0)))*$F$10) -> 
B125: 2020 | C125: =IF(CostData!$C$6="Proposed - Option 1", INDEX(Apdx_5_5_Opt_1_IncSavingsPcnt!$D$7:$Q$59,MATCH(CostData!$C$2,Apdx_5_5_Opt_1_IncSavingsPcnt!$C$7:$C$59,0),MATCH($B125,Apdx_5_5_Opt_1_IncSavingsPcnt!$D$6:$Q$6,0)), INDEX(Apdx_5_5_Opt_2_IncSavingsPcnt!$D$7:$Q$59,MATCH(CostData!$C$2,Apdx_5_5_Opt_2_IncSavingsPcnt!$C$7:$C$59,0),MATCH($B125,Apdx_5_5_Opt_2_IncSavingsPcnt!$D$6:$Q$6,0))) -> 0.0066 | D125: =IF(CostData!$C$6="Proposed - Option 1", INDEX(Apdx_5_5_Opt_1_CumSavingsPcnt!$D$7:$Q$59,MATCH(CostData!$C$2,Apdx_5_5_Opt_1_CumSavingsPcnt!$C$7:$C$59,0),MATCH($B125,Apdx_5_5_Opt_1_CumSavingsPcnt!$D$6:$Q$6,0)), INDEX(Apdx_5_5_Opt_2_CumSavingsPcnt!$D$7:$Q$59,MATCH(CostData!$C$2,Apdx_5_5_Opt_2_CumSavingsPcnt!$C$7:$C$59,0),MATCH($B125,Apdx_5_5_Opt_2_CumSavingsPcnt!$D$6:$Q$6,0))) -> 0.0136 | H125: =IF($F$10>=1,NA(),IF(CostData!$C$6="Proposed - Option 1", INDEX(Apdx_5_5_Opt_1_CumSavingsPcnt!$D$7:$Q$59,MATCH(CostData!$C$2,Apdx_5_5_Opt_1_CumSavingsPcnt!$C$7:$C$59,0),MATCH($B125,Apdx_5_5_Opt_1_CumSavingsPcnt!$D$6:$Q$6,0)), INDEX(Apdx_5_5_Opt_2_CumSavingsPcnt!$D$7:$Q$59,MATCH(CostData!$C$2,Apdx_5_5_Opt_2_CumSavingsPcnt!$C$7:$C$59,0),MATCH($B125,Apdx_5_5_Opt_2_CumSavingsPcnt!$D$6:$Q$6,0)))*$F$10) -> 
B126: 2021 | C126: =IF(CostData!$C$6="Proposed - Option 1", INDEX(Apdx_5_5_Opt_1_IncSavingsPcnt!$D$7:$Q$59,MATCH(CostData!$C$2,Apdx_5_5_Opt_1_IncSavingsPcnt!$C$7:$C$59,0),MATCH($B126,Apdx_5_5_Opt_1_IncSavingsPcnt!$D$6:$Q$6,0)), INDEX(Apdx_5_5_Opt_2_IncSavingsPcnt!$D$7:$Q$59,MATCH(CostData!$C$2,Apdx_5_5_Opt_2_IncSavingsPcnt!$C$7:$C$59,0),MATCH($B126,Apdx_5_5_Opt_2_IncSavingsPcnt!$D$6:$Q$6,0))) -> 0.0086 | D126: =IF(CostData!$C$6="Proposed - Option 1", INDEX(Apdx_5_5_Opt_1_CumSavingsPcnt!$D$7:$Q$59,MATCH(CostData!$C$2,Apdx_5_5_Opt_1_CumSavingsPcnt!$C$7:$C$59,0),MATCH($B126,Apdx_5_5_Opt_1_CumSavingsPcnt!$D$6:$Q$6,0)), INDEX(Apdx_5_5_Opt_2_CumSavingsPcnt!$D$7:$Q$59,MATCH(CostData!$C$2,Apdx_5_5_Opt_2_CumSavingsPcnt!$C$7:$C$59,0),MATCH($B126,Apdx_5_5_Opt_2_CumSavingsPcnt!$D$6:$Q$6,0))) -> 0.0211 | H126: =IF($F$10>=1,NA(),IF(CostData!$C$6="Proposed - Option 1", INDEX(Apdx_5_5_Opt_1_CumSavingsPcnt!$D$7:$Q$59,MATCH(CostData!$C$2,Apdx_5_5_Opt_1_CumSavingsPcnt!$C$7:$C$59,0),MATCH($B126,Apdx_5_5_Opt_1_CumSavingsPcnt!$D$6:$Q$6,0)), INDEX(Apdx_5_5_Opt_2_CumSavingsPcnt!$D$7:$Q$59,MATCH(CostData!$C$2,Apdx_5_5_Opt_2_CumSavingsPcnt!$C$7:$C$59,0),MATCH($B126,Apdx_5_5_Opt_2_CumSavingsPcnt!$D$6:$Q$6,0)))*$F$10) -> 
B127: 2022 | C127: =IF(CostData!$C$6="Proposed - Option 1", INDEX(Apdx_5_5_Opt_1_IncSavingsPcnt!$D$7:$Q$59,MATCH(CostData!$C$2,Apdx_5_5_Opt_1_IncSavingsPcnt!$C$7:$C$59,0),MATCH($B127,Apdx_5_5_Opt_1_IncSavingsPcnt!$D$6:$Q$6,0)), INDEX(Apdx_5_5_Opt_2_IncSavingsPcnt!$D$7:$Q$59,MATCH(CostData!$C$2,Apdx_5_5_Opt_2_IncSavingsPcnt!$C$7:$C$59,0),MATCH($B127,Apdx_5_5_Opt_2_IncSavingsPcnt!$D$6:$Q$6,0))) -> 0.0106 | D127: =IF(CostData!$C$6="Proposed - Option 1", INDEX(Apdx_5_5_Opt_1_CumSavingsPcnt!$D$7:$Q$59,MATCH(CostData!$C$2,Apdx_5_5_Opt_1_CumSavingsPcnt!$C$7:$C$59,0),MATCH($B127,Apdx_5_5_Opt_1_CumSavingsPcnt!$D$6:$Q$6,0)), INDEX(Apdx_5_5_Opt_2_CumSavingsPcnt!$D$7:$Q$59,MATCH(CostData!$C$2,Apdx_5_5_Opt_2_CumSavingsPcnt!$C$7:$C$59,0),MATCH($B127,Apdx_5_5_Opt_2_CumSavingsPcnt!$D$6:$Q$6,0))) -> 0.03 | H127: =IF($F$10>=1,NA(),IF(CostData!$C$6="Proposed - Option 1", INDEX(Apdx_5_5_Opt_1_CumSavingsPcnt!$D$7:$Q$59,MATCH(CostData!$C$2,Apdx_5_5_Opt_1_CumSavingsPcnt!$C$7:$C$59,0),MATCH($B127,Apdx_5_5_Opt_1_CumSavingsPcnt!$D$6:$Q$6,0)), INDEX(Apdx_5_5_Opt_2_CumSavingsPcnt!$D$7:$Q$59,MATCH(CostData!$C$2,Apdx_5_5_Opt_2_CumSavingsPcnt!$C$7:$C$59,0),MATCH($B127,Apdx_5_5_Opt_2_CumSavingsPcnt!$D$6:$Q$6,0)))*$F$10) -> 
B128: 2023 | C128: =IF(CostData!$C$6="Proposed - Option 1", INDEX(Apdx_5_5_Opt_1_IncSavingsPcnt!$D$7:$Q$59,MATCH(CostData!$C$2,Apdx_5_5_Opt_1_IncSavingsPcnt!$C$7:$C$59,0),MATCH($B128,Apdx_5_5_Opt_1_IncSavingsPcnt!$D$6:$Q$6,0)), INDEX(Apdx_5_5_Opt_2_IncSavingsPcnt!$D$7:$Q$59,MATCH(CostData!$C$2,Apdx_5_5_Opt_2_IncSavingsPcnt!$C$7:$C$59,0),MATCH($B128,Apdx_5_5_Opt_2_IncSavingsPcnt!$D$6:$Q$6,0))) -> 0.0126 | D128: =IF(CostData!$C$6="Proposed - Option 1", INDEX(Apdx_5_5_Opt_1_CumSavingsPcnt!$D$7:$Q$59,MATCH(CostData!$C$2,Apdx_5_5_Opt_1_CumSavingsPcnt!$C$7:$C$59,0),MATCH($B128,Apdx_5_5_Opt_1_CumSavingsPcnt!$D$6:$Q$6,0)), INDEX(Apdx_5_5_Opt_2_CumSavingsPcnt!$D$7:$Q$59,MATCH(CostData!$C$2,Apdx_5_5_Opt_2_CumSavingsPcnt!$C$7:$C$59,0),MATCH($B128,Apdx_5_5_Opt_2_CumSavingsPcnt!$D$6:$Q$6,0))) -> 0.0401 | H128: =IF($F$10>=1,NA(),IF(CostData!$C$6="Proposed - Option 1", INDEX(Apdx_5_5_Opt_1_CumSavingsPcnt!$D$7:$Q$59,MATCH(CostData!$C$2,Apdx_5_5_Opt_1_CumSavingsPcnt!$C$7:$C$59,0),MATCH($B128,Apdx_5_5_Opt_1_CumSavingsPcnt!$D$6:$Q$6,0)), INDEX(Apdx_5_5_Opt_2_CumSavingsPcnt!$D$7:$Q$59,MATCH(CostData!$C$2,Apdx_5_5_Opt_2_CumSavingsPcnt!$C$7:$C$59,0),MATCH($B128,Apdx_5_5_Opt_2_CumSavingsPcnt!$D$6:$Q$6,0)))*$F$10) -> 
B129: 2024 | C129: =IF(CostData!$C$6="Proposed - Option 1", INDEX(Apdx_5_5_Opt_1_IncSavingsPcnt!$D$7:$Q$59,MATCH(CostData!$C$2,Apdx_5_5_Opt_1_IncSavingsPcnt!$C$7:$C$59,0),MATCH($B129,Apdx_5_5_Opt_1_IncSavingsPcnt!$D$6:$Q$6,0)), INDEX(Apdx_5_5_Opt_2_IncSavingsPcnt!$D$7:$Q$59,MATCH(CostData!$C$2,Apdx_5_5_Opt_2_IncSavingsPcnt!$C$7:$C$59,0),MATCH($B129,Apdx_5_5_Opt_2_IncSavingsPcnt!$D$6:$Q$6,0))) -> 0.0146 | D129: =IF(CostData!$C$6="Proposed - Option 1", INDEX(Apdx_5_5_Opt_1_CumSavingsPcnt!$D$7:$Q$59,MATCH(CostData!$C$2,Apdx_5_5_Opt_1_CumSavingsPcnt!$C$7:$C$59,0),MATCH($B129,Apdx_5_5_Opt_1_CumSavingsPcnt!$D$6:$Q$6,0)), INDEX(Apdx_5_5_Opt_2_CumSavingsPcnt!$D$7:$Q$59,MATCH(CostData!$C$2,Apdx_5_5_Opt_2_CumSavingsPcnt!$C$7:$C$59,0),MATCH($B129,Apdx_5_5_Opt_2_CumSavingsPcnt!$D$6:$Q$6,0))) -> 0.0513 | H129: =IF($F$10>=1,NA(),IF(CostData!$C$6="Proposed - Option 1", INDEX(Apdx_5_5_Opt_1_CumSavingsPcnt!$D$7:$Q$59,MATCH(CostData!$C$2,Apdx_5_5_Opt_1_CumSavingsPcnt!$C$7:$C$59,0),MATCH($B129,Apdx_5_5_Opt_1_CumSavingsPcnt!$D$6:$Q$6,0)), INDEX(Apdx_5_5_Opt_2_CumSavingsPcnt!$D$7:$Q$59,MATCH(CostData!$C$2,Apdx_5_5_Opt_2_CumSavingsPcnt!$C$7:$C$59,0),MATCH($B129,Apdx_5_5_Opt_2_CumSavingsPcnt!$D$6:$Q$6,0)))*$F$10) -> 
B130: 2025 | C130: =IF(CostData!$C$6="Proposed - Option 1", INDEX(Apdx_5_5_Opt_1_IncSavingsPcnt!$D$7:$Q$59,MATCH(CostData!$C$2,Apdx_5_5_Opt_1_IncSavingsPcnt!$C$7:$C$59,0),MATCH($B130,Apdx_5_5_Opt_1_IncSavingsPcnt!$D$6:$Q$6,0)), INDEX(Apdx_5_5_Opt_2_IncSavingsPcnt!$D$7:$Q$59,MATCH(CostData!$C$2,Apdx_5_5_Opt_2_IncSavingsPcnt!$C$7:$C$59,0),MATCH($B130,Apdx_5_5_Opt_2_IncSavingsPcnt!$D$6:$Q$6,0))) -> 0.015 | D130: =IF(CostData!$C$6="Proposed - Option 1", INDEX(Apdx_5_5_Opt_1_CumSavingsPcnt!$D$7:$Q$59,MATCH(CostData!$C$2,Apdx_5_5_Opt_1_CumSavingsPcnt!$C$7:$C$59,0),MATCH($B130,Apdx_5_5_Opt_1_CumSavingsPcnt!$D$6:$Q$6,0)), INDEX(Apdx_5_5_Opt_2_CumSavingsPcnt!$D$7:$Q$59,MATCH(CostData!$C$2,Apdx_5_5_Opt_2_CumSavingsPcnt!$C$7:$C$59,0),MATCH($B130,Apdx_5_5_Opt_2_CumSavingsPcnt!$D$6:$Q$6,0))) -> 0.0619 | H130: =IF($F$10>=1,NA(),IF(CostData!$C$6="Proposed - Option 1", INDEX(Apdx_5_5_Opt_1_CumSavingsPcnt!$D$7:$Q$59,MATCH(CostData!$C$2,Apdx_5_5_Opt_1_CumSavingsPcnt!$C$7:$C$59,0),MATCH($B130,Apdx_5_5_Opt_1_CumSavingsPcnt!$D$6:$Q$6,0)), INDEX(Apdx_5_5_Opt_2_CumSavingsPcnt!$D$7:$Q$59,MATCH(CostData!$C$2,Apdx_5_5_Opt_2_CumSavingsPcnt!$C$7:$C$59,0),MATCH($B130,Apdx_5_5_Opt_2_CumSavingsPcnt!$D$6:$Q$6,0)))*$F$10) -> 
B131: 2026 | C131: =IF(CostData!$C$6="Proposed - Option 1", INDEX(Apdx_5_5_Opt_1_IncSavingsPcnt!$D$7:$Q$59,MATCH(CostData!$C$2,Apdx_5_5_Opt_1_IncSavingsPcnt!$C$7:$C$59,0),MATCH($B131,Apdx_5_5_Opt_1_IncSavingsPcnt!$D$6:$Q$6,0)), INDEX(Apdx_5_5_Opt_2_IncSavingsPcnt!$D$7:$Q$59,MATCH(CostData!$C$2,Apdx_5_5_Opt_2_IncSavingsPcnt!$C$7:$C$59,0),MATCH($B131,Apdx_5_5_Opt_2_IncSavingsPcnt!$D$6:$Q$6,0))) -> 0.015 | D131: =IF(CostData!$C$6="Proposed - Option 1", INDEX(Apdx_5_5_Opt_1_CumSavingsPcnt!$D$7:$Q$59,MATCH(CostData!$C$2,Apdx_5_5_Opt_1_CumSavingsPcnt!$C$7:$C$59,0),MATCH($B131,Apdx_5_5_Opt_1_CumSavingsPcnt!$D$6:$Q$6,0)), INDEX(Apdx_5_5_Opt_2_CumSavingsPcnt!$D$7:$Q$59,MATCH(CostData!$C$2,Apdx_5_5_Opt_2_CumSavingsPcnt!$C$7:$C$59,0),MATCH($B131,Apdx_5_5_Opt_2_CumSavingsPcnt!$D$6:$Q$6,0))) -> 0.0715 | H131: =IF($F$10>=1,NA(),IF(CostData!$C$6="Proposed - Option 1", INDEX(Apdx_5_5_Opt_1_CumSavingsPcnt!$D$7:$Q$59,MATCH(CostData!$C$2,Apdx_5_5_Opt_1_CumSavingsPcnt!$C$7:$C$59,0),MATCH($B131,Apdx_5_5_Opt_1_CumSavingsPcnt!$D$6:$Q$6,0)), INDEX(Apdx_5_5_Opt_2_CumSavingsPcnt!$D$7:$Q$59,MATCH(CostData!$C$2,Apdx_5_5_Opt_2_CumSavingsPcnt!$C$7:$C$59,0),MATCH($B131,Apdx_5_5_Opt_2_CumSavingsPcnt!$D$6:$Q$6,0)))*$F$10) -> 
B132: 2027 | C132: =IF(CostData!$C$6="Proposed - Option 1", INDEX(Apdx_5_5_Opt_1_IncSavingsPcnt!$D$7:$Q$59,MATCH(CostData!$C$2,Apdx_5_5_Opt_1_IncSavingsPcnt!$C$7:$C$59,0),MATCH($B132,Apdx_5_5_Opt_1_IncSavingsPcnt!$D$6:$Q$6,0)), INDEX(Apdx_5_5_Opt_2_IncSavingsPcnt!$D$7:$Q$59,MATCH(CostData!$C$2,Apdx_5_5_Opt_2_IncSavingsPcnt!$C$7:$C$59,0),MATCH($B132,Apdx_5_5_Opt_2_IncSavingsPcnt!$D$6:$Q$6,0))) -> 0.015 | D132: =IF(CostData!$C$6="Proposed - Option 1", INDEX(Apdx_5_5_Opt_1_CumSavingsPcnt!$D$7:$Q$59,MATCH(CostData!$C$2,Apdx_5_5_Opt_1_CumSavingsPcnt!$C$7:$C$59,0),MATCH($B132,Apdx_5_5_Opt_1_CumSavingsPcnt!$D$6:$Q$6,0)), INDEX(Apdx_5_5_Opt_2_CumSavingsPcnt!$D$7:$Q$59,MATCH(CostData!$C$2,Apdx_5_5_Opt_2_CumSavingsPcnt!$C$7:$C$59,0),MATCH($B132,Apdx_5_5_Opt_2_CumSavingsPcnt!$D$6:$Q$6,0))) -> 0.0801 | H132: =IF($F$10>=1,NA(),IF(CostData!$C$6="Proposed - Option 1", INDEX(Apdx_5_5_Opt_1_CumSavingsPcnt!$D$7:$Q$59,MATCH(CostData!$C$2,Apdx_5_5_Opt_1_CumSavingsPcnt!$C$7:$C$59,0),MATCH($B132,Apdx_5_5_Opt_1_CumSavingsPcnt!$D$6:$Q$6,0)), INDEX(Apdx_5_5_Opt_2_CumSavingsPcnt!$D$7:$Q$59,MATCH(CostData!$C$2,Apdx_5_5_Opt_2_CumSavingsPcnt!$C$7:$C$59,0),MATCH($B132,Apdx_5_5_Opt_2_CumSavingsPcnt!$D$6:$Q$6,0)))*$F$10) -> 
B133: 2028 | C133: =IF(CostData!$C$6="Proposed - Option 1", INDEX(Apdx_5_5_Opt_1_IncSavingsPcnt!$D$7:$Q$59,MATCH(CostData!$C$2,Apdx_5_5_Opt_1_IncSavingsPcnt!$C$7:$C$59,0),MATCH($B133,Apdx_5_5_Opt_1_IncSavingsPcnt!$D$6:$Q$6,0)), INDEX(Apdx_5_5_Opt_2_IncSavingsPcnt!$D$7:$Q$59,MATCH(CostData!$C$2,Apdx_5_5_Opt_2_IncSavingsPcnt!$C$7:$C$59,0),MATCH($B133,Apdx_5_5_Opt_2_IncSavingsPcnt!$D$6:$Q$6,0))) -> 0.015 | D133: =IF(CostData!$C$6="Proposed - Option 1", INDEX(Apdx_5_5_Opt_1_CumSavingsPcnt!$D$7:$Q$59,MATCH(CostData!$C$2,Apdx_5_5_Opt_1_CumSavingsPcnt!$C$7:$C$59,0),MATCH($B133,Apdx_5_5_Opt_1_CumSavingsPcnt!$D$6:$Q$6,0)), INDEX(Apdx_5_5_Opt_2_CumSavingsPcnt!$D$7:$Q$59,MATCH(CostData!$C$2,Apdx_5_5_Opt_2_CumSavingsPcnt!$C$7:$C$59,0),MATCH($B133,Apdx_5_5_Opt_2_CumSavingsPcnt!$D$6:$Q$6,0))) -> 0.0879 | H133: =IF($F$10>=1,NA(),IF(CostData!$C$6="Proposed - Option 1", INDEX(Apdx_5_5_Opt_1_CumSavingsPcnt!$D$7:$Q$59,MATCH(CostData!$C$2,Apdx_5_5_Opt_1_CumSavingsPcnt!$C$7:$C$59,0),MATCH($B133,Apdx_5_5_Opt_1_CumSavingsPcnt!$D$6:$Q$6,0)), INDEX(Apdx_5_5_Opt_2_CumSavingsPcnt!$D$7:$Q$59,MATCH(CostData!$C$2,Apdx_5_5_Opt_2_CumSavingsPcnt!$C$7:$C$59,0),MATCH($B133,Apdx_5_5_Opt_2_CumSavingsPcnt!$D$6:$Q$6,0)))*$F$10) -> 
B134: 2029 | C134: =IF(CostData!$C$6="Proposed - Option 1", INDEX(Apdx_5_5_Opt_1_IncSavingsPcnt!$D$7:$Q$59,MATCH(CostData!$C$2,Apdx_5_5_Opt_1_IncSavingsPcnt!$C$7:$C$59,0),MATCH($B134,Apdx_5_5_Opt_1_IncSavingsPcnt!$D$6:$Q$6,0)), INDEX(Apdx_5_5_Opt_2_IncSavingsPcnt!$D$7:$Q$59,MATCH(CostData!$C$2,Apdx_5_5_Opt_2_IncSavingsPcnt!$C$7:$C$59,0),MATCH($B134,Apdx_5_5_Opt_2_IncSavingsPcnt!$D$6:$Q$6,0))) -> 0.015 | D134: =IF(CostData!$C$6="Proposed - Option 1", INDEX(Apdx_5_5_Opt_1_CumSavingsPcnt!$D$7:$Q$59,MATCH(CostData!$C$2,Apdx_5_5_Opt_1_CumSavingsPcnt!$C$7:$C$59,0),MATCH($B134,Apdx_5_5_Opt_1_CumSavingsPcnt!$D$6:$Q$6,0)), INDEX(Apdx_5_5_Opt_2_CumSavingsPcnt!$D$7:$Q$59,MATCH(CostData!$C$2,Apdx_5_5_Opt_2_CumSavingsPcnt!$C$7:$C$59,0),MATCH($B134,Apdx_5_5_Opt_2_CumSavingsPcnt!$D$6:$Q$6,0))) -> 0.0948 | H134: =IF($F$10>=1,NA(),IF(CostData!$C$6="Proposed - Option 1", INDEX(Apdx_5_5_Opt_1_CumSavingsPcnt!$D$7:$Q$59,MATCH(CostData!$C$2,Apdx_5_5_Opt_1_CumSavingsPcnt!$C$7:$C$59,0),MATCH($B134,Apdx_5_5_Opt_1_CumSavingsPcnt!$D$6:$Q$6,0)), INDEX(Apdx_5_5_Opt_2_CumSavingsPcnt!$D$7:$Q$59,MATCH(CostData!$C$2,Apdx_5_5_Opt_2_CumSavingsPcnt!$C$7:$C$59,0),MATCH($B134,Apdx_5_5_Opt_2_CumSavingsPcnt!$D$6:$Q$6,0)))*$F$10) -> 
B135: 2030 | C135: =IF(CostData!$C$6="Proposed - Option 1", INDEX(Apdx_5_5_Opt_1_IncSavingsPcnt!$D$7:$Q$59,MATCH(CostData!$C$2,Apdx_5_5_Opt_1_IncSavingsPcnt!$C$7:$C$59,0),MATCH($B135,Apdx_5_5_Opt_1_IncSavingsPcnt!$D$6:$Q$6,0)), INDEX(Apdx_5_5_Opt_2_IncSavingsPcnt!$D$7:$Q$59,MATCH(CostData!$C$2,Apdx_5_5_Opt_2_IncSavingsPcnt!$C$7:$C$59,0),MATCH($B135,Apdx_5_5_Opt_2_IncSavingsPcnt!$D$6:$Q$6,0))) -> 0.015 | D135: =IF(CostData!$C$6="Proposed - Option 1", INDEX(Apdx_5_5_Opt_1_CumSavingsPcnt!$D$7:$Q$59,MATCH(CostData!$C$2,Apdx_5_5_Opt_1_CumSavingsPcnt!$C$7:$C$59,0),MATCH($B135,Apdx_5_5_Opt_1_CumSavingsPcnt!$D$6:$Q$6,0)), INDEX(Apdx_5_5_Opt_2_CumSavingsPcnt!$D$7:$Q$59,MATCH(CostData!$C$2,Apdx_5_5_Opt_2_CumSavingsPcnt!$C$7:$C$59,0),MATCH($B135,Apdx_5_5_Opt_2_CumSavingsPcnt!$D$6:$Q$6,0))) -> 0.1009 | H135: =IF($F$10>=1,NA(),IF(CostData!$C$6="Proposed - Option 1", INDEX(Apdx_5_5_Opt_1_CumSavingsPcnt!$D$7:$Q$59,MATCH(CostData!$C$2,Apdx_5_5_Opt_1_CumSavingsPcnt!$C$7:$C$59,0),MATCH($B135,Apdx_5_5_Opt_1_CumSavingsPcnt!$D$6:$Q$6,0)), INDEX(Apdx_5_5_Opt_2_CumSavingsPcnt!$D$7:$Q$59,MATCH(CostData!$C$2,Apdx_5_5_Opt_2_CumSavingsPcnt!$C$7:$C$59,0),MATCH($B135,Apdx_5_5_Opt_2_CumSavingsPcnt!$D$6:$Q$6,0)))*$F$10) -> 

Sheet GWh_Summary (hidden)
C2: 2012 Generation (GWh) | K2: =CostData!$C$3&" Generation + Incremental EE (GWh)" -> 2030 Generation + Incremental EE (GWh) | U2: ="Change from 2012 to "&CostData!$C$3&" CO2 Generation (GWh)" -> Change from 2012 to 2030 CO2 Generation (GWh) | AD2: Percentage change from 2012 | AE2: EE share of 2012 | AF2: Difference | AH2: Initial Rate Fossil Rate | AI2: Initial Fossil, RE, Nuclear* Rate | AJ2: Final Rate
B3: State | C3: Coal | D3: NGCC | E3: O/G | F3: Other | G3: Nuclear | H3: RE | I3: All Else | J3: Total | K3: Coal | L3: NGCC | M3: O/G | N3: Other | O3: Nuclear | P3: Nuclear* | Q3: RE | R3: EE* | S3: All Else | T3: Total | U3: Coal | V3: NGCC | W3: O/G | X3: Other | Y3: Nuclear | Z3: RE | AA3: EE* | AB3: All Else | AC3: Total | AD3: Total | AH3: (lbs/MWh) | AI3: (lbs/MWh) | AJ3: (lbs/MWh)
B4: U.S. Total | C4: =SUM(C5:C53) -> 1474059.032 | D4: =SUM(D5:D53) -> 959171.7336 | E4: 100063.8811 | F4: 80160.96602 | G4: 764341.911 | H4: 217867.8012 | I4: =SUM(I5:I53) -> 445458.4769 | J4: 4041123.802 | K4: =SUM(K5:K53) -> 1097840.229 | L4: =SUM(L5:L53) -> 1399839.259 | M4: 35615.15891 | N4: 129180.1659 | O4: 720010.0802 | P4: =SUM(P5:P53) -> 88597.368 | Q4: =SUM(Q5:Q53) -> 522722.657 | R4: =SUM(R5:R53) -> 380569.4926 | S4: =SUM(S5:S53) -> 445458.4769 | T4: 4819832.888 | U4: -376218.8033 | V4: 440667.5255 | W4: -64448.72222 | X4: 49019.19984 | Y4: 44265.53716 | Z4: 304854.8558 | AA4: 380569.4926 | AB4: =SUM(AB5:AB53) -> 0 | AC4: =SUM(AC5:AC53) -> 778709.0854 | AD4: =AC5/J5 -> 0.1325378913 | AE4: =R5/J5 -> 0.05746539165 | AF4: =AD4-AE4 -> 0.07507249966
B5: Alabama | C5: =Apdx_1!G5*1/1000 -> 46045.176 | D5: =Apdx_1!H5*1/1000 -> 53492.09596 | E5: =Apdx_1!I5*1/1000 -> 0 | F5: =Apdx_1!J5*1/1000 -> 0 | G5: =INDEX(EIA_Generation!$N$5:$N$56,MATCH(B5,EIA_Generation!$I$5:$I$56,0)) -> 40841.212 | H5: =INDEX(EIA_Generation!$Y$5:$Y$56,MATCH(GWh_Summary!B5,EIA_Generation!$I$5:$I$56,0)) -> 2776.554 | I5: =J5-SUM(C5:H5) -> 9723.649726 | J5: =INDEX(EIA_Generation!$U$5:$U$56,MATCH(GWh_Summary!B5,EIA_Generation!$I$5:$I$56,0)) -> 152878.6877 | K5: =Apdx_1!N5*1/1000 -> 36001.10668 | L5: =Apdx_1!P5*1/1000 -> 63536.16528 | M5: =Apdx_1!O5*1/1000 -> 0 | N5: =Apdx_1!R5*1/1000 -> 0 | O5: =G5*(1-0.058) -> 38472.4217 | P5: =Apdx_1!U5*1/1000 -> 2329.528283 | Q5: =IF(CostData!$C$3=2020,Apdx_1!V5,IF(CostData!$C$3=2020,Apdx_1!AA5,Apdx_1!AE5))/1000 -> 14292.80124 | R5: =IF(CostData!$C$3=2020,MIN(Apdx_1!AF5*Apdx_1!AQ5,Apdx_1!AF5*Apdx_1!AP5*Apdx_1!AQ5), IF(CostData!$C$3=2025,MIN(Apdx_1!AK5*Apdx_1!AQ5,Apdx_1!AK5*Apdx_1!AP5*Apdx_1!AQ5), MIN(Apdx_1!AO5*Apdx_1!AQ5,Apdx_1!AO5*Apdx_1!AP5*Apdx_1!AQ5)))/1000 -> 8785.233663 | S5: =I5 -> 9723.649726 | T5: =SUM(K5:S5) -> 173140.9066 | U5: =K5-C5 -> -10044.06932 | V5: =L5-D5 -> 10044.06932 | W5: =M5-E5 -> 0 | X5: =N5-F5 -> 0 | Y5: =O5+P5-G5 -> -39.26201299 | Z5: =Q5-H5 -> 11516.24724 | AA5: =R5 -> 8785.233663 | AB5: =S5-I5 -> 0 | AC5: =T5-J5 -> 20262.21889 | AD5: =AC5/J5 -> 0.1325378913 | AE5: =R5/J5 -> 0.05746539165 | AF5: =AD5-AE5 -> 0.07507249966 | AH5: =(Emission_Summary!$G5*2000)/SUM(GWh_Summary!$C5:$F5) -> 1377.244996 | AI5: =(Emission_Summary!$G5*2000)/(SUM(GWh_Summary!$C5:$F5,H5)+G5*0.058) -> 1309.550856 | AJ5: =Apdx_1!BC5 -> 1059.014866
B6: Alaska | C6: =Apdx_1!G6*1/1000 -> 215.407 | D6: =Apdx_1!H6*1/1000 -> 2204.942001 | E6: =Apdx_1!I6*1/1000 -> 0 | F6: =Apdx_1!J6*1/1000 -> 741.8528306 | G6: =INDEX(EIA_Generation!$N$5:$N$56,MATCH(B6,EIA_Generation!$I$5:$I$56,0)) -> 0 | H6: =INDEX(EIA_Generation!$Y$5:$Y$56,MATCH(GWh_Summary!B6,EIA_Generation!$I$5:$I$56,0)) -> 39.95799 | I6: =J6-SUM(C6:H6) -> 3744.259288 | J6: =INDEX(EIA_Generation!$U$5:$U$56,MATCH(GWh_Summary!B6,EIA_Generation!$I$5:$I$56,0)) -> 6946.41911 | K6: =Apdx_1!N6*1/1000 -> 0 | L6: =Apdx_1!P6*1/1000 -> 2420.349001 | M6: =Apdx_1!O6*1/1000 -> 0 | N6: =Apdx_1!R6*1/1000 -> 741.8528306 | O6: =G6*(1-0.058) -> 0 | P6: =Apdx_1!U6*1/1000 -> 0 | Q6: =IF(CostData!$C$3=2020,Apdx_1!V6,IF(CostData!$C$3=2020,Apdx_1!AA6,Apdx_1!AE6))/1000 -> 163.089 | R6: =IF(CostData!$C$3=2020,MIN(Apdx_1!AF6*Apdx_1!AQ6,Apdx_1!AF6*Apdx_1!AP6*Apdx_1!AQ6), IF(CostData!$C$3=2025,MIN(Apdx_1!AK6*Apdx_1!AQ6,Apdx_1!AK6*Apdx_1!AP6*Apdx_1!AQ6), MIN(Apdx_1!AO6*Apdx_1!AQ6,Apdx_1!AO6*Apdx_1!AP6*Apdx_1!AQ6)))/1000 -> 622.8171508 | S6: =I6 -> 3744.259288 | T6: =SUM(K6:S6) -> 7692.367271 | U6: =K6-C6 -> -215.407 | V6: 215.407 | W6: 0 | X6: 0 | Y6: =O6+P6-G6 -> 0 | Z6: =Q6-H6 -> 123.13101 | AA6: =R6 -> 622.8171508 | AB6: =S6-I6 -> 0 | AC6: 745.9481608 | AD6: 0.1073859998 | AE6: 0.08966017469 | AF6: =AD6-AE6 -> 0.01772582507 | AH6: =(Emission_Summary!$G6*2000)/SUM(GWh_Summary!$C6:$F6) -> 1241.05719 | AI6: =(Emission_Summary!$G6*2000)/(SUM(GWh_Summary!$C6:$F6,H6)+G6*0.058) -> 1225.57072 | AJ6: =Apdx_1!BC6 -> 1003.030071
B7: Arizona | C7: =Apdx_1!G7*1/1000 -> 24335.93 | D7: =Apdx_1!H7*1/1000 -> 26782.3254 | E7: =Apdx_1!I7*1/1000 -> 1033.871403 | F7: =Apdx_1!J7*1/1000 -> 19.36138426 | G7: =INDEX(EIA_Generation!$N$5:$N$56,MATCH(B7,EIA_Generation!$I$5:$I$56,0)) -> 31933.916 | H7: =INDEX(EIA_Generation!$Y$5:$Y$56,MATCH(GWh_Summary!B7,EIA_Generation!$I$5:$I$56,0)) -> 1697.65248 | I7: 25101.93692 | J7: =INDEX(EIA_Generation!$U$5:$U$56,MATCH(GWh_Summary!B7,EIA_Generation!$I$5:$I$56,0)) -> 110904.9936 | K7: =Apdx_1!N7*1/1000 -> 0 | L7: =Apdx_1!P7*1/1000 -> 52152.12681 | M7: =Apdx_1!O7*1/1000 -> 0 | N7: =Apdx_1!R7*1/1000 -> 19.36138426 | O7: 30081.74887 | P7: =Apdx_1!U7*1/1000 -> 1818.486111 | Q7: =IF(CostData!$C$3=2020,Apdx_1!V7,IF(CostData!$C$3=2020,Apdx_1!AA7,Apdx_1!AE7))/1000 -> 3663.325286 | R7: =IF(CostData!$C$3=2020,MIN(Apdx_1!AF7*Apdx_1!AQ7,Apdx_1!AF7*Apdx_1!AP7*Apdx_1!AQ7), IF(CostData!$C$3=2025,MIN(Apdx_1!AK7*Apdx_1!AQ7,Apdx_1!AK7*Apdx_1!AP7*Apdx_1!AQ7), MIN(Apdx_1!AO7*Apdx_1!AQ7,Apdx_1!AO7*Apdx_1!AP7*Apdx_1!AQ7)))/1000 -> 9215.884059 | S7: 25101.93692 | T7: 122052.8694 | U7: -24335.93 | V7: 25369.8014 | W7: -1033.871403 | X7: 0 | Y7: -33.68101739 | Z7: 1965.672806 | AA7: 9215.884059 | AB7: =S7-I7 -> 0 | AC7: 11147.87585 | AD7: 0.1005173481 | AE7: 0.08309710646 | AF7: 0.01742024165 | AH7: =(Emission_Summary!$G7*2000)/SUM(GWh_Summary!$C7:$F7) -> 1406.963827 | AI7: =(Emission_Summary!$G7*2000)/(SUM(GWh_Summary!$C7:$F7,H7)+G7*0.058) -> 1317.33083 | AJ7: =Apdx_1!BC7 -> 702.0706057
B8: Arkansas | C8: =Apdx_1!G8*1/1000 -> 28378.831 | D8: =Apdx_1!H8*1/1000 -> 15651.185 | E8: =Apdx_1!I8*1/1000 -> 860.4697734 | F8: =Apdx_1!J8*1/1000 -> 1310.917188 | G8: =INDEX(EIA_Generation!$N$5:$N$56,MATCH(B8,EIA_Generation!$I$5:$I$56,0)) -> 15493.131 | H8: =INDEX(EIA_Generation!$Y$5:$Y$56,MATCH(GWh_Summary!B8,EIA_Generation!$I$5:$I$56,0)) -> 1660.37007 | I8: 1650.77395 | J8: =INDEX(EIA_Generation!$U$5:$U$56,MATCH(GWh_Summary!B8,EIA_Generation!$I$5:$I$56,0)) -> 65005.67798 | K8: =Apdx_1!N8*1/1000 -> 10218.69259 | L8: =Apdx_1!P8*1/1000 -> 34361.95392 | M8: =Apdx_1!O8*1/1000 -> 309.8392635 | N8: =Apdx_1!R8*1/1000 -> 1310.917188 | O8: 14594.5294 | P8: =Apdx_1!U8*1/1000 -> 842.0371297 | Q8: =IF(CostData!$C$3=2020,Apdx_1!V8,IF(CostData!$C$3=2020,Apdx_1!AA8,Apdx_1!AE8))/1000 -> 4708.822547 | R8: =IF(CostData!$C$3=2020,MIN(Apdx_1!AF8*Apdx_1!AQ8,Apdx_1!AF8*Apdx_1!AP8*Apdx_1!AQ8), IF(CostData!$C$3=2025,MIN(Apdx_1!AK8*Apdx_1!AQ8,Apdx_1!AK8*Apdx_1!AP8*Apdx_1!AQ8), MIN(Apdx_1!AO8*Apdx_1!AQ8,Apdx_1!AO8*Apdx_1!AP8*Apdx_1!AQ8)))/1000 -> 4890.534051 | S8: 1650.77395 | T8: 72888.10004 | U8: -18160.13841 | V8: 18710.76892 | W8: -550.6305099 | X8: 0 | Y8: -56.5644683 | Z8: 3048.452477 | AA8: 4890.534051 | AB8: 0 | AC8: 7882.42206 | AD8: 0.1212574394 | AE8: 0.07523241359 | AF8: 0.04602502584 | AH8: =(Emission_Summary!$G8*2000)/SUM(GWh_Summary!$C8:$F8) -> 1562.178619 | AI8: =(Emission_Summary!$G8*2000)/(SUM(GWh_Summary!$C8:$F8,H8)+G8*0.058) -> 1480.194613 | AJ8: =Apdx_1!BC8 -> 909.6571459
B9: California | C9: =Apdx_1!G9*1/1000 -> 933.157 | D9: =Apdx_1!H9*1/1000 -> 81298.98927 | E9: =Apdx_1!I9*1/1000 -> 10403.921 | F9: =Apdx_1!J9*1/1000 -> 14405.89925 | G9: =INDEX(EIA_Generation!$N$5:$N$56,MATCH(B9,EIA_Generation!$I$5:$I$56,0)) -> 18507.408 | H9: =INDEX(EIA_Generation!$Y$5:$Y$56,MATCH(GWh_Summary!B9,EIA_Generation!$I$5:$I$56,0)) -> 29966.84564 | I9: 44002.34654 | J9: =INDEX(EIA_Generation!$U$5:$U$56,MATCH(GWh_Summary!B9,EIA_Generation!$I$5:$I$56,0)) -> 199518.5667 | K9: =Apdx_1!N9*1/1000 -> 0 | L9: =Apdx_1!P9*1/1000 -> 92636.06727 | M9: =Apdx_1!O9*1/1000 -> 0 | N9: =Apdx_1!R9*1/1000 -> 23368.74149 | O9: 17433.97834 | P9: =Apdx_1!U9*1/1000 -> 1034.647927 | Q9: =IF(CostData!$C$3=2020,Apdx_1!V9,IF(CostData!$C$3=2020,Apdx_1!AA9,Apdx_1!AE9))/1000 -> 41150.70438 | R9: =IF(CostData!$C$3=2020,MIN(Apdx_1!AF9*Apdx_1!AQ9,Apdx_1!AF9*Apdx_1!AP9*Apdx_1!AQ9), IF(CostData!$C$3=2025,MIN(Apdx_1!AK9*Apdx_1!AQ9,Apdx_1!AK9*Apdx_1!AP9*Apdx_1!AQ9), MIN(Apdx_1!AO9*Apdx_1!AQ9,Apdx_1!AO9*Apdx_1!AP9*Apdx_1!AQ9)))/1000 -> 22924.77084 | S9: 44002.34654 | T9: 242551.2568 | U9: -933.157 | V9: 11337.078 | W9: -10403.921 | X9: 8962.84224 | Y9: -38.78173721 | Z9: 11183.85874 | AA9: 22924.77084 | AB9: 0 | AC9: 43032.69008 | AD9: 0.2156826344 | AE9: 0.1149004387 | AF9: 0.1007821958 | AH9: =(Emission_Summary!$G9*2000)/SUM(GWh_Summary!$C9:$F9) -> 816.1176703 | AI9: =(Emission_Summary!$G9*2000)/(SUM(GWh_Summary!$C9:$F9,H9)+G9*0.058) -> 632.6580391 | AJ9: =Apdx_1!BC9 -> 536.9622367
B10: Colorado | C10: =Apdx_1!G10*1/1000 -> 34385.542 | D10: =Apdx_1!H10*1/1000 -> 8811.705995 | E10: =Apdx_1!I10*1/1000 -> 0.618 | F10: =Apdx_1!J10*1/1000 -> 62.20151327 | G10: =INDEX(EIA_Generation!$N$5:$N$56,MATCH(B10,EIA_Generation!$I$5:$I$56,0)) -> 0 | H10: =INDEX(EIA_Generation!$Y$5:$Y$56,MATCH(GWh_Summary!B10,EIA_Generation!$I$5:$I$56,0)) -> 6192.0818 | I10: 3104.551792 | J10: =INDEX(EIA_Generation!$U$5:$U$56,MATCH(GWh_Summary!B10,EIA_Generation!$I$5:$I$56,0)) -> 52556.7011 | K10: =Apdx_1!N10*1/1000 -> 22548.82409 | L10: =Apdx_1!P10*1/1000 -> 20648.63664 | M10: =Apdx_1!O10*1/1000 -> 0.4052625749 | N10: =Apdx_1!R10*1/1000 -> 1028.441513 | O10: 0 | P10: =Apdx_1!U10*1/1000 -> 0 | Q10: =IF(CostData!$C$3=2020,Apdx_1!V10,IF(CostData!$C$3=2020,Apdx_1!AA10,Apdx_1!AE10))/1000 -> 10839.8196 | R10: =IF(CostData!$C$3=2020,MIN(Apdx_1!AF10*Apdx_1!AQ10,Apdx_1!AF10*Apdx_1!AP10*Apdx_1!AQ10), IF(CostData!$C$3=2025,MIN(Apdx_1!AK10*Apdx_1!AQ10,Apdx_1!AK10*Apdx_1!AP10*Apdx_1!AQ10), MIN(Apdx_1!AO10*Apdx_1!AQ10,Apdx_1!AO10*Apdx_1!AP10*Apdx_1!AQ10)))/1000 -> 5658.359756 | S10: 3104.551792 | T10: 63829.03866 | U10: -11836.71791 | V10: 11836.93065 | W10: -0.2127374251 | X10: 966.24 | Y10: 0 | Z10: 4647.737804 | AA10: 5658.359756 | AB10: 0 | AC10: 11272.33756 | AD10: 0.2144795492 | AE10: 0.1076620039 | AF10: 0.1068175454 | AH10: =(Emission_Summary!$G10*2000)/SUM(GWh_Summary!$C10:$F10) -> 1776.883278 | AI10: =(Emission_Summary!$G10*2000)/(SUM(GWh_Summary!$C10:$F10,H10)+G10*0.058) -> 1554.39332 | AJ10: =Apdx_1!BC10 -> 1107.831853
B11: Connecticut | C11: =Apdx_1!G11*1/1000 -> 99.461 | D11: =Apdx_1!H11*1/1000 -> 15299.7044 | E11: =Apdx_1!I11*1/1000 -> 335.267 | F11: =Apdx_1!J11*1/1000 -> 30.04116559 | G11: =INDEX(EIA_Generation!$N$5:$N$56,MATCH(B11,EIA_Generation!$I$5:$I$56,0)) -> 17077.887 | H11: =INDEX(EIA_Generation!$Y$5:$Y$56,MATCH(GWh_Summary!B11,EIA_Generation!$I$5:$I$56,0)) -> 666.52491 | I11: 2608.65847 | J11: =INDEX(EIA_Generation!$U$5:$U$56,MATCH(GWh_Summary!B11,EIA_Generation!$I$5:$I$56,0)) -> 36117.54395 | K11: =Apdx_1!N11*1/1000 -> 0 | L11: =Apdx_1!P11*1/1000 -> 15734.4324 | M11: =Apdx_1!O11*1/1000 -> 0 | N11: =Apdx_1!R11*1/1000 -> 30.04116559 | O11: 16087.36955 | P11: =Apdx_1!U11*1/1000 -> 971.1371724 | Q11: =IF(CostData!$C$3=2020,Apdx_1!V11,IF(CostData!$C$3=2020,Apdx_1!AA11,Apdx_1!AE11))/1000 -> 3114.374591 | R11: =IF(CostData!$C$3=2020,MIN(Apdx_1!AF11*Apdx_1!AQ11,Apdx_1!AF11*Apdx_1!AP11*Apdx_1!AQ11), IF(CostData!$C$3=2025,MIN(Apdx_1!AK11*Apdx_1!AQ11,Apdx_1!AK11*Apdx_1!AP11*Apdx_1!AQ11), MIN(Apdx_1!AO11*Apdx_1!AQ11,Apdx_1!AO11*Apdx_1!AP11*Apdx_1!AQ11)))/1000 -> 3767.58324 | S11: 2608.65847 | T11: 42313.5966 | U11: -99.461 | V11: 434.728 | W11: -335.267 | X11: 0 | Y11: -19.38027365 | Z11: 2447.849681 | AA11: 3767.58324 | AB11: 0 | AC11: 6196.052648 | AD11: 0.171552436 | AE11: 0.1043144917 | AF11: 0.06723794427 | AH11: =(Emission_Summary!$G11*2000)/SUM(GWh_Summary!$C11:$F11) -> 765.8829797 | AI11: =(Emission_Summary!$G11*2000)/(SUM(GWh_Summary!$C11:$F11,H11)+G11*0.058) -> 693.0362456 | AJ11: =Apdx_1!BC11 -> 540.2605353
B12: Delaware | C12: =Apdx_1!G12*1/1000 -> 1406.502 | D12: =Apdx_1!H12*1/1000 -> 5179.27 | E12: =Apdx_1!I12*1/1000 -> 1076.07 | F12: =Apdx_1!J12*1/1000 -> 1.432357275 | G12: =INDEX(EIA_Generation!$N$5:$N$56,MATCH(B12,EIA_Generation!$I$5:$I$56,0)) -> 0 | H12: =INDEX(EIA_Generation!$Y$5:$Y$56,MATCH(GWh_Summary!B12,EIA_Generation!$I$5:$I$56,0)) -> 131.05062 | I12: 839.3690226 | J12: =INDEX(EIA_Generation!$U$5:$U$56,MATCH(GWh_Summary!B12,EIA_Generation!$I$5:$I$56,0)) -> 8633.694 | K12: =Apdx_1!N12*1/1000 -> 184.8787452 | L12: =Apdx_1!P12*1/1000 -> 7335.5184 | M12: =Apdx_1!O12*1/1000 -> 141.4448549 | N12: =Apdx_1!R12*1/1000 -> 1.432357275 | O12: 0 | P12: =Apdx_1!U12*1/1000 -> 0 | Q12: =IF(CostData!$C$3=2020,Apdx_1!V12,IF(CostData!$C$3=2020,Apdx_1!AA12,Apdx_1!AE12))/1000 -> 1038.351271 | R12: =IF(CostData!$C$3=2020,MIN(Apdx_1!AF12*Apdx_1!AQ12,Apdx_1!AF12*Apdx_1!AP12*Apdx_1!AQ12), IF(CostData!$C$3=2025,MIN(Apdx_1!AK12*Apdx_1!AQ12,Apdx_1!AK12*Apdx_1!AP12*Apdx_1!AQ12), MIN(Apdx_1!AO12*Apdx_1!AQ12,Apdx_1!AO12*Apdx_1!AP12*Apdx_1!AQ12)))/1000 -> 529.0682291 | S12: 839.3690226 | T12: 10070.06288 | U12: -1221.623255 | V12: 2156.2484 | W12: -934.6251451 | X12: 0 | Y12: 0 | Z12: 907.300651 | AA12: 529.0682291 | AB12: 0 | AC12: 1436.36888 | AD12: 0.1663678236 | AE12: 0.06127947425 | AF12: 0.1050883493 | AH12: =(Emission_Summary!$G12*2000)/SUM(GWh_Summary!$C12:$F12) -> 1138.416844 | AI12: =(Emission_Summary!$G12*2000)/(SUM(GWh_Summary!$C12:$F12,H12)+G12*0.058) -> 1119.275965 | AJ12: =Apdx_1!BC12 -> 840.640596
B13: Florida | C13: =Apdx_1!G13*1/1000 -> 44537.196 | D13: =Apdx_1!H13*1/1000 -> 133320.4193 | E13: =Apdx_1!I13*1/1000 -> 10025.973 | F13: =Apdx_1!J13*1/1000 -> 3567.382708 | G13: =INDEX(EIA_Generation!$N$5:$N$56,MATCH(B13,EIA_Generation!$I$5:$I$56,0)) -> 17869.935 | H13: =INDEX(EIA_Generation!$Y$5:$Y$56,MATCH(GWh_Summary!B13,EIA_Generation!$I$5:$I$56,0)) -> 4523.79799 | I13: 7251.432015 | J13: =INDEX(EIA_Generation!$U$5:$U$56,MATCH(GWh_Summary!B13,EIA_Generation!$I$5:$I$56,0)) -> 221096.136 | K13: =Apdx_1!N13*1/1000 -> 4131.158166 | L13: =Apdx_1!P13*1/1000 -> 182822.4461 | M13: =Apdx_1!O13*1/1000 -> 929.9840122 | N13: =Apdx_1!R13*1/1000 -> 9157.081108 | O13: 16833.47877 | P13: =Apdx_1!U13*1/1000 -> 1623.103935 | Q13: =IF(CostData!$C$3=2020,Apdx_1!V13,IF(CostData!$C$3=2020,Apdx_1!AA13,Apdx_1!AE13))/1000 -> 22109.6136 | R13: =IF(CostData!$C$3=2020,MIN(Apdx_1!AF13*Apdx_1!AQ13,Apdx_1!AF13*Apdx_1!AP13*Apdx_1!AQ13), IF(CostData!$C$3=2025,MIN(Apdx_1!AK13*Apdx_1!AQ13,Apdx_1!AK13*Apdx_1!AP13*Apdx_1!AQ13), MIN(Apdx_1!AO13*Apdx_1!AQ13,Apdx_1!AO13*Apdx_1!AP13*Apdx_1!AQ13)))/1000 -> 21348.68248 | S13: 7251.432015 | T13: 266206.9802 | U13: -40406.03783 | V13: 49502.02682 | W13: -9095.988988 | X13: 5589.6984 | Y13: 586.6477051 | Z13: 17585.81561 | AA13: 21348.68248 | AB13: 0 | AC13: 45110.84419 | AD13: 0.2040327118 | AE13: 0.09655836989 | AF13: 0.1074743419 | AH13: =(Emission_Summary!$G13*2000)/SUM(GWh_Summary!$C13:$F13) -> 1122.861718 | AI13: =(Emission_Summary!$G13*2000)/(SUM(GWh_Summary!$C13:$F13,H13)+G13*0.058) -> 1091.171155 | AJ13: =Apdx_1!BC13 -> 740.2090815
B14: Georgia | C14: =Apdx_1!G14*1/1000 -> 40972.09 | D14: =Apdx_1!H14*1/1000 -> 37591.123 | E14: =Apdx_1!I14*1/1000 -> 0 | F14: =Apdx_1!J14*1/1000 -> 83.81536127 | G14: =INDEX(EIA_Generation!$N$5:$N$56,MATCH(B14,EIA_Generation!$I$5:$I$56,0)) -> 33941.634 | H14: =INDEX(EIA_Generation!$Y$5:$Y$56,MATCH(GWh_Summary!B14,EIA_Generation!$I$5:$I$56,0)) -> 3278.53621 | I14: 6439.165277 | J14: =INDEX(EIA_Generation!$U$5:$U$56,MATCH(GWh_Summary!B14,EIA_Generation!$I$5:$I$56,0)) -> 122306.3638 | K14: =Apdx_1!N14*1/1000 -> 27190.60388 | L14: =Apdx_1!P14*1/1000 -> 51372.60912 | M14: =Apdx_1!O14*1/1000 -> 0 | N14: =Apdx_1!R14*1/1000 -> 83.81536127 | O14: 31973.01923 | P14: =Apdx_1!U14*1/1000 -> 19220.56126 | Q14: =IF(CostData!$C$3=2020,Apdx_1!V14,IF(CostData!$C$3=2020,Apdx_1!AA14,Apdx_1!AE14))/1000 -> 12230.63638 | R14: =IF(CostData!$C$3=2020,MIN(Apdx_1!AF14*Apdx_1!AQ14,Apdx_1!AF14*Apdx_1!AP14*Apdx_1!AQ14), IF(CostData!$C$3=2025,MIN(Apdx_1!AK14*Apdx_1!AQ14,Apdx_1!AK14*Apdx_1!AP14*Apdx_1!AQ14), MIN(Apdx_1!AO14*Apdx_1!AQ14,Apdx_1!AO14*Apdx_1!AP14*Apdx_1!AQ14)))/1000 -> 12149.39653 | S14: 6439.165277 | T14: 160659.807 | U14: -13781.48612 | V14: 13781.48612 | W14: 0 | X14: 0 | Y14: 17251.94649 | Z14: 8952.100175 | AA14: 12149.39653 | AB14: 0 | AC14: 38353.44319 | AD14: 0.313585017 | AE14: 0.09933576752 | AF14: 0.2142492495 | AH14: =(Emission_Summary!$G14*2000)/SUM(GWh_Summary!$C14:$F14) -> 1449.655807 | AI14: =(Emission_Summary!$G14*2000)/(SUM(GWh_Summary!$C14:$F14,H14)+G14*0.058) -> 1358.987265 | AJ14: =Apdx_1!BC14 -> 833.7845838
B15: Hawaii | C15: =Apdx_1!G15*1/1000 -> 1502.308 | D15: =Apdx_1!H15*1/1000 -> 0 | E15: =Apdx_1!I15*1/1000 -> 4093.831 | F15: =Apdx_1!J15*1/1000 -> 250.0895878 | G15: =INDEX(EIA_Generation!$N$5:$N$56,MATCH(B15,EIA_Generation!$I$5:$I$56,0)) -> 0 | H15: =INDEX(EIA_Generation!$Y$5:$Y$56,MATCH(GWh_Summary!B15,EIA_Generation!$I$5:$I$56,0)) -> 924.8151 | I15: 3698.224982 | J15: =INDEX(EIA_Generation!$U$5:$U$56,MATCH(GWh_Summary!B15,EIA_Generation!$I$5:$I$56,0)) -> 10469.26867 | K15: =Apdx_1!N15*1/1000 -> 1502.308 | L15: =Apdx_1!P15*1/1000 -> 0 | M15: =Apdx_1!O15*1/1000 -> 4093.831 | N15: =Apdx_1!R15*1/1000 -> 250.0895878 | O15: 0 | P15: =Apdx_1!U15*1/1000 -> 0 | Q15: =IF(CostData!$C$3=2020,Apdx_1!V15,IF(CostData!$C$3=2020,Apdx_1!AA15,Apdx_1!AE15))/1000 -> 1046.926868 | R15: =IF(CostData!$C$3=2020,MIN(Apdx_1!AF15*Apdx_1!AQ15,Apdx_1!AF15*Apdx_1!AP15*Apdx_1!AQ15), IF(CostData!$C$3=2025,MIN(Apdx_1!AK15*Apdx_1!AQ15,Apdx_1!AK15*Apdx_1!AP15*Apdx_1!AQ15), MIN(Apdx_1!AO15*Apdx_1!AQ15,Apdx_1!AO15*Apdx_1!AP15*Apdx_1!AQ15)))/1000 -> 949.3295712 | S15: 3698.224982 | T15: 11540.71001 | U15: 0 | V15: 0 | W15: 0 | X15: 0 | Y15: 0 | Z15: 122.111768 | AA15: 949.3295712 | AB15: 0 | AC15: 1071.441339 | AD15: 0.1023415649 | AE15: 0.09067773511 | AF15: 0.01166382981 | AH15: =(Emission_Summary!$G15*2000)/SUM(GWh_Summary!$C15:$F15) -> 1617.499728 | AI15: =(Emission_Summary!$G15*2000)/(SUM(GWh_Summary!$C15:$F15,H15)+G15*0.058) -> 1396.575415 | AJ15: =Apdx_1!BC15 -> 1305.537819
B16: Idaho | C16: =Apdx_1!G16*1/1000 -> 0 | D16: =Apdx_1!H16*1/1000 -> 1639.922 | E16: =Apdx_1!I16*1/1000 -> 0 | F16: =Apdx_1!J16*1/1000 -> 0 | G16: =INDEX(EIA_Generation!$N$5:$N$56,MATCH(B16,EIA_Generation!$I$5:$I$56,0)) -> 0 | H16: =INDEX(EIA_Generation!$Y$5:$Y$56,MATCH(GWh_Summary!B16,EIA_Generation!$I$5:$I$56,0)) -> 2514.50217 | I16: 11344.66514 | J16: =INDEX(EIA_Generation!$U$5:$U$56,MATCH(GWh_Summary!B16,EIA_Generation!$I$5:$I$56,0)) -> 15499.08931 | K16: =Apdx_1!N16*1/1000 -> 0 | L16: =Apdx_1!P16*1/1000 -> 1639.922 | M16: =Apdx_1!O16*1/1000 -> 0 | N16: =Apdx_1!R16*1/1000 -> 0 | O16: 0 | P16: =Apdx_1!U16*1/1000 -> 0 | Q16: =IF(CostData!$C$3=2020,Apdx_1!V16,IF(CostData!$C$3=2020,Apdx_1!AA16,Apdx_1!AE16))/1000 -> 3196.68717 | R16: =IF(CostData!$C$3=2020,MIN(Apdx_1!AF16*Apdx_1!AQ16,Apdx_1!AF16*Apdx_1!AP16*Apdx_1!AQ16), IF(CostData!$C$3=2025,MIN(Apdx_1!AK16*Apdx_1!AQ16,Apdx_1!AK16*Apdx_1!AP16*Apdx_1!AQ16), MIN(Apdx_1!AO16*Apdx_1!AQ16,Apdx_1!AO16*Apdx_1!AP16*Apdx_1!AQ16)))/1000 -> 1324.480883 | S16: 11344.66514 | T16: 17505.75519 | U16: 0 | V16: 0 | W16: 0 | X16: 0 | Y16: 0 | Z16: 682.1850002 | AA16: 1324.480883 | AB16: 0 | AC16: 2006.665883 | AD16: 0.1294699219 | AE16: 0.0854554004 | AF16: 0.04401452153 | AH16: =(Emission_Summary!$G16*2000)/SUM(GWh_Summary!$C16:$F16) -> 778.1958754 | AI16: =(Emission_Summary!$G16*2000)/(SUM(GWh_Summary!$C16:$F16,H16)+G16*0.058) -> 307.1859021 | AJ16: =Apdx_1!BC16 -> 228.374323
B17: Illinois | C17: =Apdx_1!G17*1/1000 -> 79166.165 | D17: =Apdx_1!H17*1/1000 -> 7870.423005 | E17: =Apdx_1!I17*1/1000 -> 0 | F17: =Apdx_1!J17*1/1000 -> 727.3832205 | G17: =INDEX(EIA_Generation!$N$5:$N$56,MATCH(B17,EIA_Generation!$I$5:$I$56,0)) -> 96401.309 | H17: =INDEX(EIA_Generation!$Y$5:$Y$56,MATCH(GWh_Summary!B17,EIA_Generation!$I$5:$I$56,0)) -> 8372.6599 | I17: 5027.422544 | J17: =INDEX(EIA_Generation!$U$5:$U$56,MATCH(GWh_Summary!B17,EIA_Generation!$I$5:$I$56,0)) -> 197565.3627 | K17: =Apdx_1!N17*1/1000 -> 66157.72272 | L17: =Apdx_1!P17*1/1000 -> 20878.86528 | M17: =Apdx_1!O17*1/1000 -> 0 | N17: =Apdx_1!R17*1/1000 -> 727.3832205 | O17: 90810.03308 | P17: =Apdx_1!U17*1/1000 -> 5305.342003 | Q17: =IF(CostData!$C$3=2020,Apdx_1!V17,IF(CostData!$C$3=2020,Apdx_1!AA17,Apdx_1!AE17))/1000 -> 17818.00395 | R17: =IF(CostData!$C$3=2020,MIN(Apdx_1!AF17*Apdx_1!AQ17,Apdx_1!AF17*Apdx_1!AP17*Apdx_1!AQ17), IF(CostData!$C$3=2025,MIN(Apdx_1!AK17*Apdx_1!AQ17,Apdx_1!AK17*Apdx_1!AP17*Apdx_1!AQ17), MIN(Apdx_1!AO17*Apdx_1!AQ17,Apdx_1!AO17*Apdx_1!AP17*Apdx_1!AQ17)))/1000 -> 17952.52976 | S17: 5027.422544 | T17: 224677.3026 | U17: -13008.44227 | V17: 13008.44227 | W17: 0 | X17: 0 | Y17: -285.9339188 | Z17: 9445.344054 | AA17: 17952.52976 | AB17: 0 | AC17: 27111.9399 | AD17: 0.1372302287 | AE17: 0.09086881182 | AF17: 0.04636141686 | AH17: =(Emission_Summary!$G17*2000)/SUM(GWh_Summary!$C17:$F17) -> 1985.220486 | AI17: =(Emission_Summary!$G17*2000)/(SUM(GWh_Summary!$C17:$F17,H17)+G17*0.058) -> 1712.714226 | AJ17: =Apdx_1!BC17 -> 1270.731199
B18: Indiana | C18: =Apdx_1!G18*1/1000 -> 87213.268 | D18: =Apdx_1!H18*1/1000 -> 12839.309 | E18: =Apdx_1!I18*1/1000 -> 0 | F18: =Apdx_1!J18*1/1000 -> 1631.176695 | G18: =INDEX(EIA_Generation!$N$5:$N$56,MATCH(B18,EIA_Generation!$I$5:$I$56,0)) -> 0 | H18: =INDEX(EIA_Generation!$Y$5:$Y$56,MATCH(GWh_Summary!B18,EIA_Generation!$I$5:$I$56,0)) -> 3546.3674 | I18: 9465.608175 | J18: =INDEX(EIA_Generation!$U$5:$U$56,MATCH(GWh_Summary!B18,EIA_Generation!$I$5:$I$56,0)) -> 114695.7293 | K18: =Apdx_1!N18*1/1000 -> 83034.54324 | L18: =Apdx_1!P18*1/1000 -> 17018.03376 | M18: =Apdx_1!O18*1/1000 -> 0 | N18: =Apdx_1!R18*1/1000 -> 1631.176695 | O18: 0 | P18: =Apdx_1!U18*1/1000 -> 0 | Q18: =IF(CostData!$C$3=2020,Apdx_1!V18,IF(CostData!$C$3=2020,Apdx_1!AA18,Apdx_1!AE18))/1000 -> 7547.086483 | R18: =IF(CostData!$C$3=2020,MIN(Apdx_1!AF18*Apdx_1!AQ18,Apdx_1!AF18*Apdx_1!AP18*Apdx_1!AQ18), IF(CostData!$C$3=2025,MIN(Apdx_1!AK18*Apdx_1!AQ18,Apdx_1!AK18*Apdx_1!AP18*Apdx_1!AQ18), MIN(Apdx_1!AO18*Apdx_1!AQ18,Apdx_1!AO18*Apdx_1!AP18*Apdx_1!AQ18)))/1000 -> 12564.1285 | S18: 9465.608175 | T18: 131260.5769 | U18: -4178.72476 | V18: 4178.72476 | W18: 0 | X18: 0 | Y18: 0 | Z18: 4000.719083 | AA18: 12564.1285 | AB18: 0 | AC18: 16564.84758 | AD18: 0.1444242753 | AE18: 0.1095431241 | AF18: 0.03488115127 | AH18: =(Emission_Summary!$G18*2000)/SUM(GWh_Summary!$C18:$F18) -> 1805.835299 | AI18: =(Emission_Summary!$G18*2000)/(SUM(GWh_Summary!$C18:$F18,H18)+G18*0.058) -> 1744.976722 | AJ18: =Apdx_1!BC18 -> 1531.270287
B19: Iowa | C19: =Apdx_1!G19*1/1000 -> 33055.156 | D19: =Apdx_1!H19*1/1000 -> 1437.496 | E19: =Apdx_1!I19*1/1000 -> 305.111 | F19: =Apdx_1!J19*1/1000 -> 0 | G19: =INDEX(EIA_Generation!$N$5:$N$56,MATCH(B19,EIA_Generation!$I$5:$I$56,0)) -> 4346.995 | H19: =INDEX(EIA_Generation!$Y$5:$Y$56,MATCH(GWh_Summary!B19,EIA_Generation!$I$5:$I$56,0)) -> 14183.42414 | I19: 3347.22178 | J19: =INDEX(EIA_Generation!$U$5:$U$56,MATCH(GWh_Summary!B19,EIA_Generation!$I$5:$I$56,0)) -> 56675.40392 | K19: =Apdx_1!N19*1/1000 -> 26779.11381 | L19: =Apdx_1!P19*1/1000 -> 7771.46832 | M19: =Apdx_1!O19*1/1000 -> 247.1808693 | N19: =Apdx_1!R19*1/1000 -> 0 | O19: 4094.86929 | P19: =Apdx_1!U19*1/1000 -> 277.7844925 | Q19: =IF(CostData!$C$3=2020,Apdx_1!V19,IF(CostData!$C$3=2020,Apdx_1!AA19,Apdx_1!AE19))/1000 -> 8565.920548 | R19: =IF(CostData!$C$3=2020,MIN(Apdx_1!AF19*Apdx_1!AQ19,Apdx_1!AF19*Apdx_1!AP19*Apdx_1!AQ19), IF(CostData!$C$3=2025,MIN(Apdx_1!AK19*Apdx_1!AQ19,Apdx_1!AK19*Apdx_1!AP19*Apdx_1!AQ19), MIN(Apdx_1!AO19*Apdx_1!AQ19,Apdx_1!AO19*Apdx_1!AP19*Apdx_1!AQ19)))/1000 -> 5730.306353 | S19: 3347.22178 | T19: 56813.86546 | U19: -6276.042189 | V19: 6333.97232 | W19: -57.93013073 | X19: 0 | Y19: 25.65878249 | Z19: -5617.503592 | AA19: 5730.306353 | AB19: 0 | AC19: 138.4615443 | AD19: 0.002443062329 | AE19: 0.1011074639 | AF19: -0.09866440153 | AH19: =(Emission_Summary!$G19*2000)/SUM(GWh_Summary!$C19:$F19) -> 1992.465505 | AI19: =(Emission_Summary!$G19*2000)/(SUM(GWh_Summary!$C19:$F19,H19)+G19*0.058) -> 1408.260757 | AJ19: =Apdx_1!BC19 -> 1300.732194
B20: Kansas | C20: =Apdx_1!G20*1/1000 -> 27979.593 | D20: =Apdx_1!H20*1/1000 -> 0 | E20: =Apdx_1!I20*1/1000 -> 1632.997 | F20: =Apdx_1!J20*1/1000 -> 0 | G20: =INDEX(EIA_Generation!$N$5:$N$56,MATCH(B20,EIA_Generation!$I$5:$I$56,0)) -> 8284.924 | H20: =INDEX(EIA_Generation!$Y$5:$Y$56,MATCH(GWh_Summary!B20,EIA_Generation!$I$5:$I$56,0)) -> 5252.65335 | I20: 1274.52342 | J20: =INDEX(EIA_Generation!$U$5:$U$56,MATCH(GWh_Summary!B20,EIA_Generation!$I$5:$I$56,0)) -> 44424.69077 | K20: =Apdx_1!N20*1/1000 -> 27979.593 | L20: =Apdx_1!P20*1/1000 -> 0 | M20: =Apdx_1!O20*1/1000 -> 1632.997 | N20: =Apdx_1!R20*1/1000 -> 0 | O20: 7804.398408 | P20: =Apdx_1!U20*1/1000 -> 542.7282652 | Q20: =IF(CostData!$C$3=2020,Apdx_1!V20,IF(CostData!$C$3=2020,Apdx_1!AA20,Apdx_1!AE20))/1000 -> 8884.938154 | R20: =IF(CostData!$C$3=2020,MIN(Apdx_1!AF20*Apdx_1!AQ20,Apdx_1!AF20*Apdx_1!AP20*Apdx_1!AQ20), IF(CostData!$C$3=2025,MIN(Apdx_1!AK20*Apdx_1!AQ20,Apdx_1!AK20*Apdx_1!AP20*Apdx_1!AQ20), MIN(Apdx_1!AO20*Apdx_1!AQ20,Apdx_1!AO20*Apdx_1!AP20*Apdx_1!AQ20)))/1000 -> 4123.416864 | S20: 1274.52342 | T20: 52242.59511 | U20: 0 | V20: 0 | W20: 0 | X20: 0 | Y20: 62.20267317 | Z20: 3632.284804 | AA20: 4123.416864 | AB20: 0 | AC20: 7817.904341 | AD20: 0.1759810638 | AE20: 0.09281813317 | AF20: 0.08316293064 | AH20: =(Emission_Summary!$G20*2000)/SUM(GWh_Summary!$C20:$F20) -> 2103.826898 | AI20: =(Emission_Summary!$G20*2000)/(SUM(GWh_Summary!$C20:$F20,H20)+G20*0.058) -> 1762.580507 | AJ20: =Apdx_1!BC20 -> 1499.393901
B21: Kentucky | C21: =Apdx_1!G21*1/1000 -> 84358.283 | D21: =Apdx_1!H21*1/1000 -> 0 | E21: =Apdx_1!I21*1/1000 -> 0 | F21: =Apdx_1!J21*1/1000 -> 0 | G21: =INDEX(EIA_Generation!$N$5:$N$56,MATCH(B21,EIA_Generation!$I$5:$I$56,0)) -> 0 | H21: =INDEX(EIA_Generation!$Y$5:$Y$56,MATCH(GWh_Summary!B21,EIA_Generation!$I$5:$I$56,0)) -> 332.87945 | I21: 5258.52625 | J21: =INDEX(EIA_Generation!$U$5:$U$56,MATCH(GWh_Summary!B21,EIA_Generation!$I$5:$I$56,0)) -> 89949.6887 | K21: =Apdx_1!N21*1/1000 -> 83515.019 | L21: =Apdx_1!P21*1/1000 -> 843.264 | M21: =Apdx_1!O21*1/1000 -> 0 | N21: =Apdx_1!R21*1/1000 -> 3091.968 | O21: 0 | P21: =Apdx_1!U21*1/1000 -> 0 | Q21: =IF(CostData!$C$3=2020,Apdx_1!V21,IF(CostData!$C$3=2020,Apdx_1!AA21,Apdx_1!AE21))/1000 -> 1713.555658 | R21: =IF(CostData!$C$3=2020,MIN(Apdx_1!AF21*Apdx_1!AQ21,Apdx_1!AF21*Apdx_1!AP21*Apdx_1!AQ21), IF(CostData!$C$3=2025,MIN(Apdx_1!AK21*Apdx_1!AQ21,Apdx_1!AK21*Apdx_1!AP21*Apdx_1!AQ21), MIN(Apdx_1!AO21*Apdx_1!AQ21,Apdx_1!AO21*Apdx_1!AP21*Apdx_1!AQ21)))/1000 -> 9317.877215 | S21: 5258.52625 | T21: 103740.2101 | U21: -843.264 | V21: 843.264 | W21: 0 | X21: 3091.968 | Y21: 0 | Z21: 1380.676208 | AA21: 9317.877215 | AB21: 0 | AC21: 13790.52142 | AD21: 0.1533137204 | AE21: 0.1035898773 | AF21: 0.0497238431 | AH21: =(Emission_Summary!$G21*2000)/SUM(GWh_Summary!$C21:$F21) -> 1964.858049 | AI21: =(Emission_Summary!$G21*2000)/(SUM(GWh_Summary!$C21:$F21,H21)+G21*0.058) -> 1957.135155 | AJ21: =Apdx_1!BC21 -> 1763.117688
B22: Louisiana | C22: =Apdx_1!G22*1/1000 -> 24300.393 | D22: =Apdx_1!H22*1/1000 -> 19771.18201 | E22: =Apdx_1!I22*1/1000 -> 14254.748 | F22: =Apdx_1!J22*1/1000 -> 5223.728374 | G22: =INDEX(EIA_Generation!$N$5:$N$56,MATCH(B22,EIA_Generation!$I$5:$I$56,0)) -> 15659.132 | H22: =INDEX(EIA_Generation!$Y$5:$Y$56,MATCH(GWh_Summary!B22,EIA_Generation!$I$5:$I$56,0)) -> 2430.04223 | I22: 21768.4802 | J22: =INDEX(EIA_Generation!$U$5:$U$56,MATCH(GWh_Summary!B22,EIA_Generation!$I$5:$I$56,0)) -> 103407.7058 | K22: =Apdx_1!N22*1/1000 -> 11538.76706 | L22: =Apdx_1!P22*1/1000 -> 40018.84992 | M22: =Apdx_1!O22*1/1000 -> 6768.706031 | N22: =Apdx_1!R22*1/1000 -> 5223.728374 | O22: 14750.90234 | P22: =Apdx_1!U22*1/1000 -> 985.2250124 | Q22: =IF(CostData!$C$3=2020,Apdx_1!V22,IF(CostData!$C$3=2020,Apdx_1!AA22,Apdx_1!AE22))/1000 -> 6891.618832 | R22: =IF(CostData!$C$3=2020,MIN(Apdx_1!AF22*Apdx_1!AQ22,Apdx_1!AF22*Apdx_1!AP22*Apdx_1!AQ22), IF(CostData!$C$3=2025,MIN(Apdx_1!AK22*Apdx_1!AQ22,Apdx_1!AK22*Apdx_1!AP22*Apdx_1!AQ22), MIN(Apdx_1!AO22*Apdx_1!AQ22,Apdx_1!AO22*Apdx_1!AP22*Apdx_1!AQ22)))/1000 -> 7654.779001 | S22: 21768.4802 | T22: 115601.0568 | U22: -12761.62594 | V22: 20247.66791 | W22: -7486.041969 | X22: 0 | Y22: 76.99535643 | Z22: 4461.576602 | AA22: 7654.779001 | AB22: 0 | AC22: 12193.35096 | AD22: 0.117915303 | AE22: 0.07402522801 | AF22: 0.04389007495 | AH22: =(Emission_Summary!$G22*2000)/SUM(GWh_Summary!$C22:$F22) -> 1390.293898 | AI22: =(Emission_Summary!$G22*2000)/(SUM(GWh_Summary!$C22:$F22,H22)+G22*0.058) -> 1320.906913 | AJ22: =Apdx_1!BC22 -> 883.0733173
B23: Maine | C23: =Apdx_1!G23*1/1000 -> 0 | D23: =Apdx_1!H23*1/1000 -> 4053.378 | E23: =Apdx_1!I23*1/1000 -> 59.067 | F23: =Apdx_1!J23*1/1000 -> 0 | G23: =INDEX(EIA_Generation!$N$5:$N$56,MATCH(B23,EIA_Generation!$I$5:$I$56,0)) -> 0 | H23: =INDEX(EIA_Generation!$Y$5:$Y$56,MATCH(GWh_Summary!B23,EIA_Generation!$I$5:$I$56,0)) -> 4098.79534 | I23: 6217.35557 | J23: =INDEX(EIA_Generation!$U$5:$U$56,MATCH(GWh_Summary!B23,EIA_Generation!$I$5:$I$56,0)) -> 14428.59591 | K23: =Apdx_1!N23*1/1000 -> 0 | L23: =Apdx_1!P23*1/1000 -> 4112.445 | M23: =Apdx_1!O23*1/1000 -> 0 | N23: =Apdx_1!R23*1/1000 -> 0 | O23: 0 | P23: =Apdx_1!U23*1/1000 -> 0 | Q23: =IF(CostData!$C$3=2020,Apdx_1!V23,IF(CostData!$C$3=2020,Apdx_1!AA23,Apdx_1!AE23))/1000 -> 3611.728432 | R23: =IF(CostData!$C$3=2020,MIN(Apdx_1!AF23*Apdx_1!AQ23,Apdx_1!AF23*Apdx_1!AP23*Apdx_1!AQ23), IF(CostData!$C$3=2025,MIN(Apdx_1!AK23*Apdx_1!AQ23,Apdx_1!AK23*Apdx_1!AP23*Apdx_1!AQ23), MIN(Apdx_1!AO23*Apdx_1!AQ23,Apdx_1!AO23*Apdx_1!AP23*Apdx_1!AQ23)))/1000 -> 1507.396469 | S23: 6217.35557 | T23: 15448.92547 | U23: 0 | V23: 59.067 | W23: -59.067 | X23: 0 | Y23: 0 | Z23: -487.066908 | AA23: 1507.396469 | AB23: 0 | AC23: 1020.329561 | AD23: 0.07071579021 | AE23: 0.1044728454 | AF23: -0.03375705516 | AH23: =(Emission_Summary!$G23*2000)/SUM(GWh_Summary!$C23:$F23) -> 792.0526574 | AI23: =(Emission_Summary!$G23*2000)/(SUM(GWh_Summary!$C23:$F23,H23)+G23*0.058) -> 396.6846488 | AJ23: =Apdx_1!BC23 -> 377.582131
B24: Maryland | C24: =Apdx_1!G24*1/1000 -> 16297.835 | D24: =Apdx_1!H24*1/1000 -> 676.555594 | E24: =Apdx_1!I24*1/1000 -> 2892.354 | F24: =Apdx_1!J24*1/1000 -> 20.91747184 | G24: =INDEX(EIA_Generation!$N$5:$N$56,MATCH(B24,EIA_Generation!$I$5:$I$56,0)) -> 13579.266 | H24: =INDEX(EIA_Generation!$Y$5:$Y$56,MATCH(GWh_Summary!B24,EIA_Generation!$I$5:$I$56,0)) -> 898.15246 | I24: 3444.663024 | J24: =INDEX(EIA_Generation!$U$5:$U$56,MATCH(GWh_Summary!B24,EIA_Generation!$I$5:$I$56,0)) -> 37809.74355 | K24: =Apdx_1!N24*1/1000 -> 15364.29177 | L24: =Apdx_1!P24*1/1000 -> 1775.77344 | M24: =Apdx_1!O24*1/1000 -> 2726.679387 | N24: =Apdx_1!R24*1/1000 -> 20.91747184 | O24: 12791.66857 | P24: =Apdx_1!U24*1/1000 -> 787.533355 | Q24: =IF(CostData!$C$3=2020,Apdx_1!V24,IF(CostData!$C$3=2020,Apdx_1!AA24,Apdx_1!AE24))/1000 -> 5982.068576 | R24: =IF(CostData!$C$3=2020,MIN(Apdx_1!AF24*Apdx_1!AQ24,Apdx_1!AF24*Apdx_1!AP24*Apdx_1!AQ24), IF(CostData!$C$3=2025,MIN(Apdx_1!AK24*Apdx_1!AQ24,Apdx_1!AK24*Apdx_1!AP24*Apdx_1!AQ24), MIN(Apdx_1!AO24*Apdx_1!AQ24,Apdx_1!AO24*Apdx_1!AP24*Apdx_1!AQ24)))/1000 -> 4653.836841 | S24: 3444.663024 | T24: 47547.43243 | U24: -933.5432331 | V24: 1099.217846 | W24: -165.6746129 | X24: 0 | Y24: -0.06407301333 | Z24: 5083.916116 | AA24: 4653.836841 | AB24: 0 | AC24: 9737.688884 | AD24: 0.2575444309 | AE24: 0.1230856495 | AF24: 0.1344587814 | AH24: =(Emission_Summary!$G24*2000)/SUM(GWh_Summary!$C24:$F24) -> 1839.986611 | AI24: =(Emission_Summary!$G24*2000)/(SUM(GWh_Summary!$C24:$F24,H24)+G24*0.058) -> 1696.209761 | AJ24: =Apdx_1!BC24 -> 1186.712434
B25: Massachusetts | C25: =Apdx_1!G25*1/1000 -> 2268.133 | D25: =Apdx_1!H25*1/1000 -> 23603.15982 | E25: =Apdx_1!I25*1/1000 -> 329.883237 | F25: =Apdx_1!J25*1/1000 -> 34.98396913 | G25: =INDEX(EIA_Generation!$N$5:$N$56,MATCH(B25,EIA_Generation!$I$5:$I$56,0)) -> 5859.54 | H25: =INDEX(EIA_Generation!$Y$5:$Y$56,MATCH(GWh_Summary!B25,EIA_Generation!$I$5:$I$56,0)) -> 1843.41899 | I25: 2259.002478 | J25: =INDEX(EIA_Generation!$U$5:$U$56,MATCH(GWh_Summary!B25,EIA_Generation!$I$5:$I$56,0)) -> 36198.12149 | K25: =Apdx_1!N25*1/1000 -> 4.656612873e-13 | L25: =Apdx_1!P25*1/1000 -> 26201.17605 | M25: =Apdx_1!O25*1/1000 -> 5.820766091e-14 | N25: =Apdx_1!R25*1/1000 -> 34.98396913 | O25: 5519.68668 | P25: =Apdx_1!U25*1/1000 -> 316.2604623 | Q25: =IF(CostData!$C$3=2020,Apdx_1!V25,IF(CostData!$C$3=2020,Apdx_1!AA25,Apdx_1!AE25))/1000 -> 8613.477421 | R25: =IF(CostData!$C$3=2020,MIN(Apdx_1!AF25*Apdx_1!AQ25,Apdx_1!AF25*Apdx_1!AP25*Apdx_1!AQ25), IF(CostData!$C$3=2025,MIN(Apdx_1!AK25*Apdx_1!AQ25,Apdx_1!AK25*Apdx_1!AP25*Apdx_1!AQ25), MIN(Apdx_1!AO25*Apdx_1!AQ25,Apdx_1!AO25*Apdx_1!AP25*Apdx_1!AQ25)))/1000 -> 5234.816792 | S25: 2259.002478 | T25: 48179.40386 | U25: -2268.133 | V25: 2598.016237 | W25: -329.883237 | X25: 0 | Y25: -23.59285774 | Z25: 6770.058431 | AA25: 5234.816792 | AB25: 0 | AC25: 11981.28237 | AD25: 0.330991827 | AE25: 0.1446157031 | AF25: 0.1863761238 | AH25: =(Emission_Summary!$G25*2000)/SUM(GWh_Summary!$C25:$F25) -> 907.7084469 | AI25: =(Emission_Summary!$G25*2000)/(SUM(GWh_Summary!$C25:$F25,H25)+G25*0.058) -> 837.975361 | AJ25: =Apdx_1!BC25 -> 575.6449097
B26: Michigan | C26: =Apdx_1!G26*1/1000 -> 53210.78 | D26: =Apdx_1!H26*1/1000 -> 18499.95061 | E26: =Apdx_1!I26*1/1000 -> 774.872 | F26: =Apdx_1!J26*1/1000 -> 4299.172876 | G26: =INDEX(EIA_Generation!$N$5:$N$56,MATCH(B26,EIA_Generation!$I$5:$I$56,0)) -> 28019.714 | H26: =INDEX(EIA_Generation!$Y$5:$Y$56,MATCH(GWh_Summary!B26,EIA_Generation!$I$5:$I$56,0)) -> 3785.43913 | I26: -423.8509454 | J26: =INDEX(EIA_Generation!$U$5:$U$56,MATCH(GWh_Summary!B26,EIA_Generation!$I$5:$I$56,0)) -> 108166.0777 | K26: =Apdx_1!N26*1/1000 -> 41091.56449 | L26: =Apdx_1!P26*1/1000 -> 30795.64992 | M26: =Apdx_1!O26*1/1000 -> 598.388198 | N26: =Apdx_1!R26*1/1000 -> 4299.172876 | O26: 26394.57059 | P26: =Apdx_1!U26*1/1000 -> 1827.908797 | Q26: =IF(CostData!$C$3=2020,Apdx_1!V26,IF(CostData!$C$3=2020,Apdx_1!AA26,Apdx_1!AE26))/1000 -> 8055.859212 | R26: =IF(CostData!$C$3=2020,MIN(Apdx_1!AF26*Apdx_1!AQ26,Apdx_1!AF26*Apdx_1!AP26*Apdx_1!AQ26), IF(CostData!$C$3=2025,MIN(Apdx_1!AK26*Apdx_1!AQ26,Apdx_1!AK26*Apdx_1!AP26*Apdx_1!AQ26), MIN(Apdx_1!AO26*Apdx_1!AQ26,Apdx_1!AO26*Apdx_1!AP26*Apdx_1!AQ26)))/1000 -> 13262.54101 | S26: -423.8509454 | T26: 125901.8041 | U26: -12119.21551 | V26: 12295.69931 | W26: -176.483802 | X26: 0 | Y26: 202.7653851 | Z26: 4270.420082 | AA26: 13262.54101 | AB26: 0 | AC26: 17735.72648 | AD26: 0.1639675475 | AE26: 0.1226127571 | AF26: 0.04135479037 | AH26: =(Emission_Summary!$G26*2000)/SUM(GWh_Summary!$C26:$F26) -> 1644.876922 | AI26: =(Emission_Summary!$G26*2000)/(SUM(GWh_Summary!$C26:$F26,H26)+G26*0.058) -> 1536.601436 | AJ26: =Apdx_1!BC26 -> 1161.272665
B27: Minnesota | C27: =Apdx_1!G27*1/1000 -> 21989.584 | D27: =Apdx_1!H27*1/1000 -> 5715.510022 | E27: =Apdx_1!I27*1/1000 -> 29.243 | F27: =Apdx_1!J27*1/1000 -> 97.92444774 | G27: =INDEX(EIA_Generation!$N$5:$N$56,MATCH(B27,EIA_Generation!$I$5:$I$56,0)) -> 11943.79 | H27: =INDEX(EIA_Generation!$Y$5:$Y$56,MATCH(GWh_Summary!B27,EIA_Generation!$I$5:$I$56,0)) -> 9453.87051 | I27: 2963.7022 | J27: =INDEX(EIA_Generation!$U$5:$U$56,MATCH(GWh_Summary!B27,EIA_Generation!$I$5:$I$56,0)) -> 52193.62418 | K27: =Apdx_1!N27*1/1000 -> 10699.00072 | L27: =Apdx_1!P27*1/1000 -> 17021.10816 | M27: =Apdx_1!O27*1/1000 -> 14.22813993 | N27: =Apdx_1!R27*1/1000 -> 97.92444774 | O27: 11251.05018 | P27: =Apdx_1!U27*1/1000 -> 840.1895441 | Q27: =IF(CostData!$C$3=2020,Apdx_1!V27,IF(CostData!$C$3=2020,Apdx_1!AA27,Apdx_1!AE27))/1000 -> 7888.544359 | R27: =IF(CostData!$C$3=2020,MIN(Apdx_1!AF27*Apdx_1!AQ27,Apdx_1!AF27*Apdx_1!AP27*Apdx_1!AQ27), IF(CostData!$C$3=2025,MIN(Apdx_1!AK27*Apdx_1!AQ27,Apdx_1!AK27*Apdx_1!AP27*Apdx_1!AQ27), MIN(Apdx_1!AO27*Apdx_1!AQ27,Apdx_1!AO27*Apdx_1!AP27*Apdx_1!AQ27)))/1000 -> 7095.830403 | S27: 2963.7022 | T27: 57871.57816 | U27: -11290.58328 | V27: 11305.59814 | W27: -15.01486007 | X27: 0 | Y27: 147.4497241 | Z27: -1565.326151 | AA27: 7095.830403 | AB27: 0 | AC27: 5677.953975 | AD27: 0.1087863521 | AE27: 0.1359520538 | AF27: -0.02716570174 | AH27: =(Emission_Summary!$G27*2000)/SUM(GWh_Summary!$C27:$F27) -> 1825.988142 | AI27: =(Emission_Summary!$G27*2000)/(SUM(GWh_Summary!$C27:$F27,H27)+G27*0.058) -> 1338.148739 | AJ27: =Apdx_1!BC27 -> 872.7592324
B28: Mississippi | C28: =Apdx_1!G28*1/1000 -> 7503.114 | D28: =Apdx_1!H28*1/1000 -> 31813.67674 | E28: =Apdx_1!I28*1/1000 -> 4402.778 | F28: =Apdx_1!J28*1/1000 -> 0 | G28: =INDEX(EIA_Generation!$N$5:$N$56,MATCH(B28,EIA_Generation!$I$5:$I$56,0)) -> 7296.134 | H28: =INDEX(EIA_Generation!$Y$5:$Y$56,MATCH(GWh_Summary!B28,EIA_Generation!$I$5:$I$56,0)) -> 1509.18994 | I28: 2059.402317 | J28: =INDEX(EIA_Generation!$U$5:$U$56,MATCH(GWh_Summary!B28,EIA_Generation!$I$5:$I$56,0)) -> 54584.295 | K28: =Apdx_1!N28*1/1000 -> 0 | L28: =Apdx_1!P28*1/1000 -> 43719.56874 | M28: =Apdx_1!O28*1/1000 -> 0 | N28: =Apdx_1!R28*1/1000 -> 6561.648 | O28: 6872.958228 | P28: =Apdx_1!U28*1/1000 -> 631.8742696 | Q28: =IF(CostData!$C$3=2020,Apdx_1!V28,IF(CostData!$C$3=2020,Apdx_1!AA28,Apdx_1!AE28))/1000 -> 5458.429501 | R28: =IF(CostData!$C$3=2020,MIN(Apdx_1!AF28*Apdx_1!AQ28,Apdx_1!AF28*Apdx_1!AP28*Apdx_1!AQ28), IF(CostData!$C$3=2025,MIN(Apdx_1!AK28*Apdx_1!AQ28,Apdx_1!AK28*Apdx_1!AP28*Apdx_1!AQ28), MIN(Apdx_1!AO28*Apdx_1!AQ28,Apdx_1!AO28*Apdx_1!AP28*Apdx_1!AQ28)))/1000 -> 4920.527076 | S28: 2059.402317 | T28: 70224.40813 | U28: -7503.114 | V28: 11905.892 | W28: -4402.778 | X28: 6561.648 | Y28: 208.6984976 | Z28: 3949.239561 | AA28: 4920.527076 | AB28: 0 | AC28: 15640.11313 | AD28: 0.2865313756 | AE28: 0.09014547272 | AF28: 0.1963859029 | AH28: =(Emission_Summary!$G28*2000)/SUM(GWh_Summary!$C28:$F28) -> 1074.796702 | AI28: =(Emission_Summary!$G28*2000)/(SUM(GWh_Summary!$C28:$F28,H28)+G28*0.058) -> 1029.302457 | AJ28: =Apdx_1!BC28 -> 691.7741594
B29: Missouri | C29: =Apdx_1!G29*1/1000 -> 72939.512 | D29: =Apdx_1!H29*1/1000 -> 4854.569 | E29: =Apdx_1!I29*1/1000 -> 0 | F29: =Apdx_1!J29*1/1000 -> 0 | G29: =INDEX(EIA_Generation!$N$5:$N$56,MATCH(B29,EIA_Generation!$I$5:$I$56,0)) -> 10718.329 | H29: =INDEX(EIA_Generation!$Y$5:$Y$56,MATCH(GWh_Summary!B29,EIA_Generation!$I$5:$I$56,0)) -> 1298.5789 | I29: 1993.3317 | J29: =INDEX(EIA_Generation!$U$5:$U$56,MATCH(GWh_Summary!B29,EIA_Generation!$I$5:$I$56,0)) -> 91804.3206 | K29: =Apdx_1!N29*1/1000 -> 65012.57044 | L29: =Apdx_1!P29*1/1000 -> 12781.51056 | M29: =Apdx_1!O29*1/1000 -> 0 | N29: =Apdx_1!R29*1/1000 -> 0 | O29: 10096.66592 | P29: =Apdx_1!U29*1/1000 -> 549.6567111 | Q29: =IF(CostData!$C$3=2020,Apdx_1!V29,IF(CostData!$C$3=2020,Apdx_1!AA29,Apdx_1!AE29))/1000 -> 2763.528467 | R29: =IF(CostData!$C$3=2020,MIN(Apdx_1!AF29*Apdx_1!AQ29,Apdx_1!AF29*Apdx_1!AP29*Apdx_1!AQ29), IF(CostData!$C$3=2025,MIN(Apdx_1!AK29*Apdx_1!AQ29,Apdx_1!AK29*Apdx_1!AP29*Apdx_1!AQ29), MIN(Apdx_1!AO29*Apdx_1!AQ29,Apdx_1!AO29*Apdx_1!AP29*Apdx_1!AQ29)))/1000 -> 8741.141077 | S29: 1993.3317 | T29: 101938.4049 | U29: -7926.94156 | V29: 7926.94156 | W29: 0 | X29: 0 | Y29: -72.00637089 | Z29: 1464.949567 | AA29: 8741.141077 | AB29: 0 | AC29: 10134.08427 | AD29: 0.1103878794 | AE29: 0.09521492039 | AF29: 0.01517295903 | AH29: =(Emission_Summary!$G29*2000)/SUM(GWh_Summary!$C29:$F29) -> 1823.067825 | AI29: =(Emission_Summary!$G29*2000)/(SUM(GWh_Summary!$C29:$F29,H29)+G29*0.058) -> 1779.15186 | AJ29: =Apdx_1!BC29 -> 1544.414249
B30: Montana | C30: =Apdx_1!G30*1/1000 -> 14447.406 | D30: =Apdx_1!H30*1/1000 -> 0 | E30: =Apdx_1!I30*1/1000 -> 0 | F30: =Apdx_1!J30*1/1000 -> 257.5167019 | G30: =INDEX(EIA_Generation!$N$5:$N$56,MATCH(B30,EIA_Generation!$I$5:$I$56,0)) -> 0 | H30: =INDEX(EIA_Generation!$Y$5:$Y$56,MATCH(GWh_Summary!B30,EIA_Generation!$I$5:$I$56,0)) -> 1261.75222 | I30: 11838.1087 | J30: =INDEX(EIA_Generation!$U$5:$U$56,MATCH(GWh_Summary!B30,EIA_Generation!$I$5:$I$56,0)) -> 27804.78362 | K30: =Apdx_1!N30*1/1000 -> 14447.406 | L30: =Apdx_1!P30*1/1000 -> 0 | M30: =Apdx_1!O30*1/1000 -> 0 | N30: =Apdx_1!R30*1/1000 -> 257.5167019 | O30: 0 | P30: =Apdx_1!U30*1/1000 -> 0 | Q30: =IF(CostData!$C$3=2020,Apdx_1!V30,IF(CostData!$C$3=2020,Apdx_1!AA30,Apdx_1!AE30))/1000 -> 2722.706129 | R30: =IF(CostData!$C$3=2020,MIN(Apdx_1!AF30*Apdx_1!AQ30,Apdx_1!AF30*Apdx_1!AP30*Apdx_1!AQ30), IF(CostData!$C$3=2025,MIN(Apdx_1!AK30*Apdx_1!AQ30,Apdx_1!AK30*Apdx_1!AP30*Apdx_1!AQ30), MIN(Apdx_1!AO30*Apdx_1!AQ30,Apdx_1!AO30*Apdx_1!AP30*Apdx_1!AQ30)))/1000 -> 1624.320787 | S30: 11838.1087 | T30: 30890.05832 | U30: 0 | V30: 0 | W30: 0 | X30: 0 | Y30: 0 | Z30: 1460.953909 | AA30: 1624.320787 | AB30: 0 | AC30: 3085.274696 | AD30: 0.1109620106 | AE30: 0.058418753 | AF30: 0.05254325764 | AH30: =(Emission_Summary!$G30*2000)/SUM(GWh_Summary!$C30:$F30) -> 2211.813242 | AI30: =(Emission_Summary!$G30*2000)/(SUM(GWh_Summary!$C30:$F30,H30)+G30*0.058) -> 2037.026677 | AJ30: =Apdx_1!BC30 -> 1771.271429
B31: Nebraska | C31: =Apdx_1!G31*1/1000 -> 24660.983 | D31: =Apdx_1!H31*1/1000 -> 423.637999 | E31: =Apdx_1!I31*1/1000 -> 37.524 | F31: =Apdx_1!J31*1/1000 -> 0 | G31: =INDEX(EIA_Generation!$N$5:$N$56,MATCH(B31,EIA_Generation!$I$5:$I$56,0)) -> 5801.578 | H31: =INDEX(EIA_Generation!$Y$5:$Y$56,MATCH(GWh_Summary!B31,EIA_Generation!$I$5:$I$56,0)) -> 1346.76178 | I31: 1946.807791 | J31: =INDEX(EIA_Generation!$U$5:$U$56,MATCH(GWh_Summary!B31,EIA_Generation!$I$5:$I$56,0)) -> 34217.29257 | K31: =Apdx_1!N31*1/1000 -> 22208.86908 | L31: =Apdx_1!P31*1/1000 -> 2879.48304 | M31: =Apdx_1!O31*1/1000 -> 33.79287855 | N31: =Apdx_1!R31*1/1000 -> 0 | O31: 5465.086476 | P31: =Apdx_1!U31*1/1000 -> 574.8300647 | Q31: =IF(CostData!$C$3=2020,Apdx_1!V31,IF(CostData!$C$3=2020,Apdx_1!AA31,Apdx_1!AE31))/1000 -> 3819.426976 | R31: =IF(CostData!$C$3=2020,MIN(Apdx_1!AF31*Apdx_1!AQ31,Apdx_1!AF31*Apdx_1!AP31*Apdx_1!AQ31), IF(CostData!$C$3=2025,MIN(Apdx_1!AK31*Apdx_1!AQ31,Apdx_1!AK31*Apdx_1!AP31*Apdx_1!AQ31), MIN(Apdx_1!AO31*Apdx_1!AQ31,Apdx_1!AO31*Apdx_1!AP31*Apdx_1!AQ31)))/1000 -> 3448.297289 | S31: 1946.807791 | T31: 40376.5936 | U31: -2452.11392 | V31: 2455.845041 | W31: -3.731121453 | X31: 0 | Y31: 238.3385407 | Z31: 2472.665196 | AA31: 3448.297289 | AB31: 0 | AC31: 6159.301025 | AD31: 0.1800055049 | AE31: 0.1007764504 | AF31: 0.07922905445 | AH31: =(Emission_Summary!$G31*2000)/SUM(GWh_Summary!$C31:$F31) -> 1961.148332 | AI31: =(Emission_Summary!$G31*2000)/(SUM(GWh_Summary!$C31:$F31,H31)+G31*0.058) -> 1837.997414 | AJ31: =Apdx_1!BC31 -> 1478.940223
B32: Nevada | C32: =Apdx_1!G32*1/1000 -> 4133.662 | D32: =Apdx_1!H32*1/1000 -> 23783.25567 | E32: =Apdx_1!I32*1/1000 -> 279.983 | F32: =Apdx_1!J32*1/1000 -> 198.0366677 | G32: =INDEX(EIA_Generation!$N$5:$N$56,MATCH(B32,EIA_Generation!$I$5:$I$56,0)) -> 0 | H32: =INDEX(EIA_Generation!$Y$5:$Y$56,MATCH(GWh_Summary!B32,EIA_Generation!$I$5:$I$56,0)) -> 2968.63035 | I32: 3809.695514 | J32: =INDEX(EIA_Generation!$U$5:$U$56,MATCH(GWh_Summary!B32,EIA_Generation!$I$5:$I$56,0)) -> 35173.2632 | K32: =Apdx_1!N32*1/1000 -> 0 | L32: =Apdx_1!P32*1/1000 -> 28196.90067 | M32: =Apdx_1!O32*1/1000 -> 0 | N32: =Apdx_1!R32*1/1000 -> 198.0366677 | O32: 0 | P32: =Apdx_1!U32*1/1000 -> 0 | Q32: =IF(CostData!$C$3=2020,Apdx_1!V32,IF(CostData!$C$3=2020,Apdx_1!AA32,Apdx_1!AE32))/1000 -> 6405.939234 | R32: =IF(CostData!$C$3=2020,MIN(Apdx_1!AF32*Apdx_1!AQ32,Apdx_1!AF32*Apdx_1!AP32*Apdx_1!AQ32), IF(CostData!$C$3=2025,MIN(Apdx_1!AK32*Apdx_1!AQ32,Apdx_1!AK32*Apdx_1!AP32*Apdx_1!AQ32), MIN(Apdx_1!AO32*Apdx_1!AQ32,Apdx_1!AO32*Apdx_1!AP32*Apdx_1!AQ32)))/1000 -> 3908.760853 | S32: 3809.695514 | T32: 42519.33294 | U32: -4133.662 | V32: 4413.645 | W32: -279.983 | X32: 0 | Y32: 0 | Z32: 3437.308884 | AA32: 3908.760853 | AB32: 0 | AC32: 7346.069737 | AD32: 0.2088538017 | AE32: 0.1111287523 | AF32: 0.0977250494 | AH32: =(Emission_Summary!$G32*2000)/SUM(GWh_Summary!$C32:$F32) -> 989.3493316 | AI32: =(Emission_Summary!$G32*2000)/(SUM(GWh_Summary!$C32:$F32,H32)+G32*0.058) -> 895.7052512 | AJ32: =Apdx_1!BC32 -> 647.3120539
B33: New Hampshire | C33: =Apdx_1!G33*1/1000 -> 1281.341 | D33: =Apdx_1!H33*1/1000 -> 6946.869 | E33: =Apdx_1!I33*1/1000 -> 72.614 | F33: =Apdx_1!J33*1/1000 -> 0 | G33: =INDEX(EIA_Generation!$N$5:$N$56,MATCH(B33,EIA_Generation!$I$5:$I$56,0)) -> 8189.181 | H33: =INDEX(EIA_Generation!$Y$5:$Y$56,MATCH(GWh_Summary!B33,EIA_Generation!$I$5:$I$56,0)) -> 1381.28506 | I33: 1393.14486 | J33: =INDEX(EIA_Generation!$U$5:$U$56,MATCH(GWh_Summary!B33,EIA_Generation!$I$5:$I$56,0)) -> 19264.43492 | K33: =Apdx_1!N33*1/1000 -> 0 | L33: =Apdx_1!P33*1/1000 -> 8300.824 | M33: =Apdx_1!O33*1/1000 -> 0 | N33: =Apdx_1!R33*1/1000 -> 0 | O33: 7714.208502 | P33: =Apdx_1!U33*1/1000 -> 575.6152886 | Q33: =IF(CostData!$C$3=2020,Apdx_1!V33,IF(CostData!$C$3=2020,Apdx_1!AA33,Apdx_1!AE33))/1000 -> 4822.223016 | R33: =IF(CostData!$C$3=2020,MIN(Apdx_1!AF33*Apdx_1!AQ33,Apdx_1!AF33*Apdx_1!AP33*Apdx_1!AQ33), IF(CostData!$C$3=2025,MIN(Apdx_1!AK33*Apdx_1!AQ33,Apdx_1!AK33*Apdx_1!AP33*Apdx_1!AQ33), MIN(Apdx_1!AO33*Apdx_1!AQ33,Apdx_1!AO33*Apdx_1!AP33*Apdx_1!AQ33)))/1000 -> 1286.054281 | S33: 1393.14486 | T33: 24092.06995 | U33: -1281.341 | V33: 1353.955 | W33: -72.614 | X33: 0 | Y33: 100.6427906 | Z33: 3440.937956 | AA33: 1286.054281 | AB33: 0 | AC33: 4827.635028 | AD33: 0.2505983201 | AE33: 0.06675795507 | AF33: 0.183840365 | AH33: =(Emission_Summary!$G33*2000)/SUM(GWh_Summary!$C33:$F33) -> 1014.624268 | AI33: =(Emission_Summary!$G33*2000)/(SUM(GWh_Summary!$C33:$F33,H33)+G33*0.058) -> 829.1965978 | AJ33: =Apdx_1!BC33 -> 486.1362571
B34: New Jersey | C34: =Apdx_1!G34*1/1000 -> 2602.99 | D34: =Apdx_1!H34*1/1000 -> 20015.72951 | E34: =Apdx_1!I34*1/1000 -> 173.972 | F34: =Apdx_1!J34*1/1000 -> 2295.215174 | G34: =INDEX(EIA_Generation!$N$5:$N$56,MATCH(B34,EIA_Generation!$I$5:$I$56,0)) -> 33110.224 | H34: =INDEX(EIA_Generation!$Y$5:$Y$56,MATCH(GWh_Summary!B34,EIA_Generation!$I$5:$I$56,0)) -> 1280.71464 | I34: 5784.562624 | J34: =INDEX(EIA_Generation!$U$5:$U$56,MATCH(GWh_Summary!B34,EIA_Generation!$I$5:$I$56,0)) -> 65263.40795 | K34: =Apdx_1!N34*1/1000 -> 0 | L34: =Apdx_1!P34*1/1000 -> 22792.69151 | M34: =Apdx_1!O34*1/1000 -> 0 | N34: =Apdx_1!R34*1/1000 -> 2295.215174 | O34: 31189.83101 | P34: =Apdx_1!U34*1/1000 -> 1616.03692 | Q34: =IF(CostData!$C$3=2020,Apdx_1!V34,IF(CostData!$C$3=2020,Apdx_1!AA34,Apdx_1!AE34))/1000 -> 10147.46572 | R34: =IF(CostData!$C$3=2020,MIN(Apdx_1!AF34*Apdx_1!AQ34,Apdx_1!AF34*Apdx_1!AP34*Apdx_1!AQ34), IF(CostData!$C$3=2025,MIN(Apdx_1!AK34*Apdx_1!AQ34,Apdx_1!AK34*Apdx_1!AP34*Apdx_1!AQ34), MIN(Apdx_1!AO34*Apdx_1!AQ34,Apdx_1!AO34*Apdx_1!AP34*Apdx_1!AQ34)))/1000 -> 5889.351061 | S34: 5784.562624 | T34: 79715.15402 | U34: -2602.99 | V34: 2776.962 | W34: -173.972 | X34: 0 | Y34: -304.3560717 | Z34: 8866.751081 | AA34: 5889.351061 | AB34: 0 | AC34: 14451.74607 | AD34: 0.2214371962 | AE34: 0.09023971082 | AF34: 0.1311974854 | AH34: =(Emission_Summary!$G34*2000)/SUM(GWh_Summary!$C34:$F34) -> 938.4107233 | AI34: =(Emission_Summary!$G34*2000)/(SUM(GWh_Summary!$C34:$F34,H34)+G34*0.058) -> 832.2227277 | AJ34: =Apdx_1!BC34 -> 531.0863861
B35: New Mexico | C35: =Apdx_1!G35*1/1000 -> 11353.987 | D35: =Apdx_1!H35*1/1000 -> 5730.957 | E35: =Apdx_1!I35*1/1000 -> 2208.001 | F35: =Apdx_1!J35*1/1000 -> 0 | G35: =INDEX(EIA_Generation!$N$5:$N$56,MATCH(B35,EIA_Generation!$I$5:$I$56,0)) -> 0 | H35: =INDEX(EIA_Generation!$Y$5:$Y$56,MATCH(GWh_Summary!B35,EIA_Generation!$I$5:$I$56,0)) -> 2573.85131 | I35: 14769.11313 | J35: =INDEX(EIA_Generation!$U$5:$U$56,MATCH(GWh_Summary!B35,EIA_Generation!$I$5:$I$56,0)) -> 36635.90944 | K35: =Apdx_1!N35*1/1000 -> 7594.318652 | L35: =Apdx_1!P35*1/1000 -> 10221.76512 | M35: =Apdx_1!O35*1/1000 -> 1476.861228 | N35: =Apdx_1!R35*1/1000 -> 0 | O35: 0 | P35: =Apdx_1!U35*1/1000 -> 0 | Q35: =IF(CostData!$C$3=2020,Apdx_1!V35,IF(CostData!$C$3=2020,Apdx_1!AA35,Apdx_1!AE35))/1000 -> 4721.995633 | R35: =IF(CostData!$C$3=2020,MIN(Apdx_1!AF35*Apdx_1!AQ35,Apdx_1!AF35*Apdx_1!AP35*Apdx_1!AQ35), IF(CostData!$C$3=2025,MIN(Apdx_1!AK35*Apdx_1!AQ35,Apdx_1!AK35*Apdx_1!AP35*Apdx_1!AQ35), MIN(Apdx_1!AO35*Apdx_1!AQ35,Apdx_1!AO35*Apdx_1!AP35*Apdx_1!AQ35)))/1000 -> 2641.866369 | S35: 14769.11313 | T35: 41425.92013 | U35: -3759.668348 | V35: 4490.80812 | W35: -731.1397724 | X35: 0 | Y35: 0 | Z35: 2148.144323 | AA35: 2641.866369 | AB35: 0 | AC35: 4790.010692 | AD35: 0.1307463296 | AE35: 0.07211139041 | AF35: 0.05863493921 | AH35: =(Emission_Summary!$G35*2000)/SUM(GWh_Summary!$C35:$F35) -> 1630.346496 | AI35: =(Emission_Summary!$G35*2000)/(SUM(GWh_Summary!$C35:$F35,H35)+G35*0.058) -> 1438.445067 | AJ35: =Apdx_1!BC35 -> 1047.621349
B36: New York | C36: =Apdx_1!G36*1/1000 -> 4156.143408 | D36: =Apdx_1!H36*1/1000 -> 44002.77677 | E36: =Apdx_1!I36*1/1000 -> 12502.558 | F36: =Apdx_1!J36*1/1000 -> 2590.211482 | G36: =INDEX(EIA_Generation!$N$5:$N$56,MATCH(B36,EIA_Generation!$I$5:$I$56,0)) -> 40774.56 | H36: =INDEX(EIA_Generation!$Y$5:$Y$56,MATCH(GWh_Summary!B36,EIA_Generation!$I$5:$I$56,0)) -> 5192.42744 | I36: 26549.57397 | J36: =INDEX(EIA_Generation!$U$5:$U$56,MATCH(GWh_Summary!B36,EIA_Generation!$I$5:$I$56,0)) -> 135768.2511 | K36: =Apdx_1!N36*1/1000 -> 27.58220307 | L36: =Apdx_1!P36*1/1000 -> 60550.92288 | M36: =Apdx_1!O36*1/1000 -> 82.97309783 | N36: =Apdx_1!R36*1/1000 -> 2590.211482 | O36: 38409.63552 | P36: =Apdx_1!U36*1/1000 -> 2410.63729 | Q36: =IF(CostData!$C$3=2020,Apdx_1!V36,IF(CostData!$C$3=2020,Apdx_1!AA36,Apdx_1!AE36))/1000 -> 24261.90506 | R36: =IF(CostData!$C$3=2020,MIN(Apdx_1!AF36*Apdx_1!AQ36,Apdx_1!AF36*Apdx_1!AP36*Apdx_1!AQ36), IF(CostData!$C$3=2025,MIN(Apdx_1!AK36*Apdx_1!AQ36,Apdx_1!AK36*Apdx_1!AP36*Apdx_1!AQ36), MIN(Apdx_1!AO36*Apdx_1!AQ36,Apdx_1!AO36*Apdx_1!AP36*Apdx_1!AQ36)))/1000 -> 16847.62386 | S36: 26549.57397 | T36: 171731.0654 | U36: -4128.561205 | V36: 16548.14611 | W36: -12419.5849 | X36: 0 | Y36: 45.71281013 | Z36: 19069.47762 | AA36: 16847.62386 | AB36: 0 | AC36: 35962.81429 | AD36: 0.2648838297 | AE36: 0.1240910429 | AF36: 0.1407927868 | AH36: =(Emission_Summary!$G36*2000)/SUM(GWh_Summary!$C36:$F36) -> 993.9471656 | AI36: =(Emission_Summary!$G36*2000)/(SUM(GWh_Summary!$C36:$F36,H36)+G36*0.058) -> 887.8645475 | AJ36: =Apdx_1!BC36 -> 549.1366073
B37: North Carolina | C37: =Apdx_1!G37*1/1000 -> 50607.838 | D37: =Apdx_1!H37*1/1000 -> 15195.335 | E37: =Apdx_1!I37*1/1000 -> 0 | F37: =Apdx_1!J37*1/1000 -> 362.5312586 | G37: =INDEX(EIA_Generation!$N$5:$N$56,MATCH(B37,EIA_Generation!$I$5:$I$56,0)) -> 39385.592 | H37: =INDEX(EIA_Generation!$Y$5:$Y$56,MATCH(GWh_Summary!B37,EIA_Generation!$I$5:$I$56,0)) -> 2703.91932 | I37: 8426.54752 | J37: =INDEX(EIA_Generation!$U$5:$U$56,MATCH(GWh_Summary!B37,EIA_Generation!$I$5:$I$56,0)) -> 116681.7631 | K37: =Apdx_1!N37*1/1000 -> 33884.57652 | L37: =Apdx_1!P37*1/1000 -> 31918.59648 | M37: =Apdx_1!O37*1/1000 -> 0 | N37: =Apdx_1!R37*1/1000 -> 11227.90006 | O37: 37101.22766 | P37: =Apdx_1!U37*1/1000 -> 2295.625088 | Q37: =IF(CostData!$C$3=2020,Apdx_1!V37,IF(CostData!$C$3=2020,Apdx_1!AA37,Apdx_1!AE37))/1000 -> 11668.17631 | R37: =IF(CostData!$C$3=2020,MIN(Apdx_1!AF37*Apdx_1!AQ37,Apdx_1!AF37*Apdx_1!AP37*Apdx_1!AQ37), IF(CostData!$C$3=2025,MIN(Apdx_1!AK37*Apdx_1!AQ37,Apdx_1!AK37*Apdx_1!AP37*Apdx_1!AQ37), MIN(Apdx_1!AO37*Apdx_1!AQ37,Apdx_1!AO37*Apdx_1!AP37*Apdx_1!AQ37)))/1000 -> 12169.41448 | S37: 8426.54752 | T37: 148692.0641 | U37: -16723.26148 | V37: 16723.26148 | W37: 0 | X37: 10865.3688 | Y37: 11.26075156 | Z37: 8964.256991 | AA37: 12169.41448 | AB37: 0 | AC37: 32010.30102 | AD37: 0.2743385099 | AE37: 0.1042957713 | AF37: 0.1700427386 | AH37: =(Emission_Summary!$G37*2000)/SUM(GWh_Summary!$C37:$F37) -> 1606.831235 | AI37: =(Emission_Summary!$G37*2000)/(SUM(GWh_Summary!$C37:$F37,H37)+G37*0.058) -> 1494.183579 | AJ37: =Apdx_1!BC37 -> 992.1980349
B38: North Dakota | C38: =Apdx_1!G38*1/1000 -> 28186.691 | D38: =Apdx_1!H38*1/1000 -> 0 | E38: =Apdx_1!I38*1/1000 -> 0 | F38: =Apdx_1!J38*1/1000 -> 0 | G38: =INDEX(EIA_Generation!$N$5:$N$56,MATCH(B38,EIA_Generation!$I$5:$I$56,0)) -> 0 | H38: =INDEX(EIA_Generation!$Y$5:$Y$56,MATCH(GWh_Summary!B38,EIA_Generation!$I$5:$I$56,0)) -> 5280.052 | I38: 2658.41586 | J38: =INDEX(EIA_Generation!$U$5:$U$56,MATCH(GWh_Summary!B38,EIA_Generation!$I$5:$I$56,0)) -> 36125.15886 | K38: =Apdx_1!N38*1/1000 -> 28186.691 | L38: =Apdx_1!P38*1/1000 -> 0 | M38: =Apdx_1!O38*1/1000 -> 0 | N38: =Apdx_1!R38*1/1000 -> 0 | O38: 0 | P38: =Apdx_1!U38*1/1000 -> 0 | Q38: =IF(CostData!$C$3=2020,Apdx_1!V38,IF(CostData!$C$3=2020,Apdx_1!AA38,Apdx_1!AE38))/1000 -> 5459.95651 | R38: =IF(CostData!$C$3=2020,MIN(Apdx_1!AF38*Apdx_1!AQ38,Apdx_1!AF38*Apdx_1!AP38*Apdx_1!AQ38), IF(CostData!$C$3=2025,MIN(Apdx_1!AK38*Apdx_1!AQ38,Apdx_1!AK38*Apdx_1!AP38*Apdx_1!AQ38), MIN(Apdx_1!AO38*Apdx_1!AQ38,Apdx_1!AO38*Apdx_1!AP38*Apdx_1!AQ38)))/1000 -> 1536.491072 | S38: 2658.41586 | T38: 37841.55444 | U38: 0 | V38: 0 | W38: 0 | X38: 0 | Y38: 0 | Z38: 179.9045101 | AA38: 1536.491072 | AB38: 0 | AC38: 1716.395582 | AD38: 0.04751247153 | AE38: 0.04253243778 | AF38: 0.004980033743 | AH38: =(Emission_Summary!$G38*2000)/SUM(GWh_Summary!$C38:$F38) -> 2147.637253 | AI38: =(Emission_Summary!$G38*2000)/(SUM(GWh_Summary!$C38:$F38,H38)+G38*0.058) -> 1808.80427 | AJ38: =Apdx_1!BC38 -> 1783.162863
B39: Ohio | C39: =Apdx_1!G39*1/1000 -> 86473.075 | D39: =Apdx_1!H39*1/1000 -> 20907.18312 | E39: =Apdx_1!I39*1/1000 -> 321.602 | F39: =Apdx_1!J39*1/1000 -> 214.1783423 | G39: =INDEX(EIA_Generation!$N$5:$N$56,MATCH(B39,EIA_Generation!$I$5:$I$56,0)) -> 17086.998 | H39: =INDEX(EIA_Generation!$Y$5:$Y$56,MATCH(GWh_Summary!B39,EIA_Generation!$I$5:$I$56,0)) -> 1738.62175 | I39: 3004.072398 | J39: =INDEX(EIA_Generation!$U$5:$U$56,MATCH(GWh_Summary!B39,EIA_Generation!$I$5:$I$56,0)) -> 129745.7306 | K39: =Apdx_1!N39*1/1000 -> 79993.00774 | L39: =Apdx_1!P39*1/1000 -> 27411.3504 | M39: =Apdx_1!O39*1/1000 -> 297.5019828 | N39: =Apdx_1!R39*1/1000 -> 2818.195142 | O39: 16095.95212 | P39: =Apdx_1!U39*1/1000 -> 993.0772512 | Q39: =IF(CostData!$C$3=2020,Apdx_1!V39,IF(CostData!$C$3=2020,Apdx_1!AA39,Apdx_1!AE39))/1000 -> 13775.59377 | R39: =IF(CostData!$C$3=2020,MIN(Apdx_1!AF39*Apdx_1!AQ39,Apdx_1!AF39*Apdx_1!AP39*Apdx_1!AQ39), IF(CostData!$C$3=2025,MIN(Apdx_1!AK39*Apdx_1!AQ39,Apdx_1!AK39*Apdx_1!AP39*Apdx_1!AQ39), MIN(Apdx_1!AO39*Apdx_1!AQ39,Apdx_1!AO39*Apdx_1!AP39*Apdx_1!AQ39)))/1000 -> 16284.58382 | S39: 3004.072398 | T39: 160673.3346 | U39: -6480.067263 | V39: 6504.16728 | W39: -24.10001717 | X39: 2604.0168 | Y39: 2.031367156 | Z39: 12036.97202 | AA39: 16284.58382 | AB39: 0 | AC39: 30927.60401 | AD39: 0.2383708802 | AE39: 0.1255115197 | AF39: 0.1128593605 | AH39: =(Emission_Summary!$G39*2000)/SUM(GWh_Summary!$C39:$F39) -> 1720.636249 | AI39: =(Emission_Summary!$G39*2000)/(SUM(GWh_Summary!$C39:$F39,H39)+G39*0.058) -> 1678.187561 | AJ39: =Apdx_1!BC39 -> 1338.34053
B40: Oklahoma | C40: =Apdx_1!G40*1/1000 -> 29102.16 | D40: =Apdx_1!H40*1/1000 -> 29943.376 | E40: =Apdx_1!I40*1/1000 -> 8488.757723 | F40: =Apdx_1!J40*1/1000 -> 13.84675772 | G40: =INDEX(EIA_Generation!$N$5:$N$56,MATCH(B40,EIA_Generation!$I$5:$I$56,0)) -> 0 | H40: =INDEX(EIA_Generation!$Y$5:$Y$56,MATCH(GWh_Summary!B40,EIA_Generation!$I$5:$I$56,0)) -> 8520.72405 | I40: 1827.723579 | J40: =INDEX(EIA_Generation!$U$5:$U$56,MATCH(GWh_Summary!B40,EIA_Generation!$I$5:$I$56,0)) -> 77896.58811 | K40: =Apdx_1!N40*1/1000 -> 14034.40113 | L40: =Apdx_1!P40*1/1000 -> 49406.22288 | M40: =Apdx_1!O40*1/1000 -> 4093.669713 | N40: =Apdx_1!R40*1/1000 -> 13.84675772 | O40: 0 | P40: =Apdx_1!U40*1/1000 -> 0 | Q40: =IF(CostData!$C$3=2020,Apdx_1!V40,IF(CostData!$C$3=2020,Apdx_1!AA40,Apdx_1!AE40))/1000 -> 15579.31763 | R40: =IF(CostData!$C$3=2020,MIN(Apdx_1!AF40*Apdx_1!AQ40,Apdx_1!AF40*Apdx_1!AP40*Apdx_1!AQ40), IF(CostData!$C$3=2025,MIN(Apdx_1!AK40*Apdx_1!AQ40,Apdx_1!AK40*Apdx_1!AP40*Apdx_1!AQ40), MIN(Apdx_1!AO40*Apdx_1!AQ40,Apdx_1!AO40*Apdx_1!AP40*Apdx_1!AQ40)))/1000 -> 6362.32295 | S40: 1827.723579 | T40: 91317.50464 | U40: -15067.75887 | V40: 19462.84688 | W40: -4395.08801 | X40: 0 | Y40: 0 | Z40: 7058.593576 | AA40: 6362.32295 | AB40: 0 | AC40: 13420.91653 | AD40: 0.1722914553 | AE40: 0.08167652916 | AF40: 0.09061492611 | AH40: =(Emission_Summary!$G40*2000)/SUM(GWh_Summary!$C40:$F40) -> 1416.751631 | AI40: =(Emission_Summary!$G40*2000)/(SUM(GWh_Summary!$C40:$F40,H40)+G40*0.058) -> 1258.056614 | AJ40: =Apdx_1!BC40 -> 895.3037934
B41: Oregon | C41: =Apdx_1!G41*1/1000 -> 2640.259 | D41: =Apdx_1!H41*1/1000 -> 11424.291 | E41: =Apdx_1!I41*1/1000 -> 0 | F41: =Apdx_1!J41*1/1000 -> 123.8163049 | G41: =INDEX(EIA_Generation!$N$5:$N$56,MATCH(B41,EIA_Generation!$I$5:$I$56,0)) -> 0 | H41: =INDEX(EIA_Generation!$Y$5:$Y$56,MATCH(GWh_Summary!B41,EIA_Generation!$I$5:$I$56,0)) -> 7207.22937 | I41: 39537.11885 | J41: =INDEX(EIA_Generation!$U$5:$U$56,MATCH(GWh_Summary!B41,EIA_Generation!$I$5:$I$56,0)) -> 60932.71452 | K41: =Apdx_1!N41*1/1000 -> 0 | L41: =Apdx_1!P41*1/1000 -> 14064.55 | M41: =Apdx_1!O41*1/1000 -> 0 | N41: =Apdx_1!R41*1/1000 -> 123.8163049 | O41: 0 | P41: =Apdx_1!U41*1/1000 -> 0 | Q41: =IF(CostData!$C$3=2020,Apdx_1!V41,IF(CostData!$C$3=2020,Apdx_1!AA41,Apdx_1!AE41))/1000 -> 12567.37237 | R41: =IF(CostData!$C$3=2020,MIN(Apdx_1!AF41*Apdx_1!AQ41,Apdx_1!AF41*Apdx_1!AP41*Apdx_1!AQ41), IF(CostData!$C$3=2025,MIN(Apdx_1!AK41*Apdx_1!AQ41,Apdx_1!AK41*Apdx_1!AP41*Apdx_1!AQ41), MIN(Apdx_1!AO41*Apdx_1!AQ41,Apdx_1!AO41*Apdx_1!AP41*Apdx_1!AQ41)))/1000 -> 5727.909967 | S41: 39537.11885 | T41: 72020.76749 | U41: -2640.259 | V41: 2640.259 | W41: 0 | X41: 0 | Y41: 0 | Z41: 5360.143002 | AA41: 5727.909967 | AB41: 0 | AC41: 11088.05297 | AD41: 0.1819720827 | AE41: 0.09400385346 | AF41: 0.08796822928 | AH41: =(Emission_Summary!$G41*2000)/SUM(GWh_Summary!$C41:$F41) -> 980.2809137 | AI41: =(Emission_Summary!$G41*2000)/(SUM(GWh_Summary!$C41:$F41,H41)+G41*0.058) -> 650.0676539 | AJ41: =Apdx_1!BC41 -> 372.353164
B42: Pennsylvania | C42: =Apdx_1!G42*1/1000 -> 87052.562 | D42: =Apdx_1!H42*1/1000 -> 50028.71911 | E42: =Apdx_1!I42*1/1000 -> 1638.387 | F42: =Apdx_1!J42*1/1000 -> 3804.205325 | G42: =INDEX(EIA_Generation!$N$5:$N$56,MATCH(B42,EIA_Generation!$I$5:$I$56,0)) -> 75174.408 | H42: =INDEX(EIA_Generation!$Y$5:$Y$56,MATCH(GWh_Summary!B42,EIA_Generation!$I$5:$I$56,0)) -> 4459.11761 | I42: 1262.316423 | J42: =INDEX(EIA_Generation!$U$5:$U$56,MATCH(GWh_Summary!B42,EIA_Generation!$I$5:$I$56,0)) -> 223419.7155 | K42: =Apdx_1!N42*1/1000 -> 78328.89449 | L42: =Apdx_1!P42*1/1000 -> 58916.57184 | M42: =Apdx_1!O42*1/1000 -> 1474.201787 | N42: =Apdx_1!R42*1/1000 -> 3804.205325 | O42: 70814.29234 | P42: =Apdx_1!U42*1/1000 -> 4480.39504 | Q42: =IF(CostData!$C$3=2020,Apdx_1!V42,IF(CostData!$C$3=2020,Apdx_1!AA42,Apdx_1!AE42))/1000 -> 35330.85488 | R42: =IF(CostData!$C$3=2020,MIN(Apdx_1!AF42*Apdx_1!AQ42,Apdx_1!AF42*Apdx_1!AP42*Apdx_1!AQ42), IF(CostData!$C$3=2025,MIN(Apdx_1!AK42*Apdx_1!AQ42,Apdx_1!AK42*Apdx_1!AP42*Apdx_1!AQ42), MIN(Apdx_1!AO42*Apdx_1!AQ42,Apdx_1!AO42*Apdx_1!AP42*Apdx_1!AQ42)))/1000 -> 18188.84519 | S42: 1262.316423 | T42: 272600.5773 | U42: -8723.667514 | V42: 8887.852727 | W42: -164.1852132 | X42: 0 | Y42: 120.2793761 | Z42: 30871.73727 | AA42: 18188.84519 | AB42: 0 | AC42: 49180.86184 | AD42: 0.220127672 | AE42: 0.08141110174 | AF42: 0.1387165702 | AH42: =(Emission_Summary!$G42*2000)/SUM(GWh_Summary!$C42:$F42) -> 1475.722525 | AI42: =(Emission_Summary!$G42*2000)/(SUM(GWh_Summary!$C42:$F42,H42)+G42*0.058) -> 1389.727587 | AJ42: =Apdx_1!BC42 -> 1051.957069
B43: Rhode Island | C43: =Apdx_1!G43*1/1000 -> 0 | D43: =Apdx_1!H43*1/1000 -> 8140.017283 | E43: =Apdx_1!I43*1/1000 -> 0 | F43: =Apdx_1!J43*1/1000 -> 0 | G43: =INDEX(EIA_Generation!$N$5:$N$56,MATCH(B43,EIA_Generation!$I$5:$I$56,0)) -> 0 | H43: =INDEX(EIA_Generation!$Y$5:$Y$56,MATCH(GWh_Summary!B43,EIA_Generation!$I$5:$I$56,0)) -> 101.895 | I43: 67.1235469 | J43: =INDEX(EIA_Generation!$U$5:$U$56,MATCH(GWh_Summary!B43,EIA_Generation!$I$5:$I$56,0)) -> 8309.03583 | K43: =Apdx_1!N43*1/1000 -> 0 | L43: =Apdx_1!P43*1/1000 -> 8140.017283 | M43: =Apdx_1!O43*1/1000 -> 0 | N43: =Apdx_1!R43*1/1000 -> 0 | O43: 0 | P43: =Apdx_1!U43*1/1000 -> 0 | Q43: =IF(CostData!$C$3=2020,Apdx_1!V43,IF(CostData!$C$3=2020,Apdx_1!AA43,Apdx_1!AE43))/1000 -> 476.1100361 | R43: =IF(CostData!$C$3=2020,MIN(Apdx_1!AF43*Apdx_1!AQ43,Apdx_1!AF43*Apdx_1!AP43*Apdx_1!AQ43), IF(CostData!$C$3=2025,MIN(Apdx_1!AK43*Apdx_1!AQ43,Apdx_1!AK43*Apdx_1!AP43*Apdx_1!AQ43), MIN(Apdx_1!AO43*Apdx_1!AQ43,Apdx_1!AO43*Apdx_1!AP43*Apdx_1!AQ43)))/1000 -> 935.1179073 | S43: 67.1235469 | T43: 9618.368773 | U43: 0 | V43: 0 | W43: 0 | X43: 0 | Y43: 0 | Z43: 374.2150361 | AA43: 935.1179073 | AB43: 0 | AC43: 1309.332943 | AD43: 0.1575794075 | AE43: 0.1125422885 | AF43: 0.04503711907 | AH43: =(Emission_Summary!$G43*2000)/SUM(GWh_Summary!$C43:$F43) -> 832.5184833 | AI43: =(Emission_Summary!$G43*2000)/(SUM(GWh_Summary!$C43:$F43,H43)+G43*0.058) -> 822.2260332 | AJ43: =Apdx_1!BC43 -> 782.26145
B44: South Carolina | C44: =Apdx_1!G44*1/1000 -> 28460.318 | D44: =Apdx_1!H44*1/1000 -> 11209.39361 | E44: =Apdx_1!I44*1/1000 -> 405.616 | F44: =Apdx_1!J44*1/1000 -> 14.67081465 | G44: =INDEX(EIA_Generation!$N$5:$N$56,MATCH(B44,EIA_Generation!$I$5:$I$56,0)) -> 51145.302 | H44: =INDEX(EIA_Generation!$Y$5:$Y$56,MATCH(GWh_Summary!B44,EIA_Generation!$I$5:$I$56,0)) -> 2143.47262 | I44: 3376.908833 | J44: =INDEX(EIA_Generation!$U$5:$U$56,MATCH(GWh_Summary!B44,EIA_Generation!$I$5:$I$56,0)) -> 96755.68188 | K44: =Apdx_1!N44*1/1000 -> 22299.83772 | L44: =Apdx_1!P44*1/1000 -> 17457.67296 | M44: =Apdx_1!O44*1/1000 -> 317.8169329 | N44: =Apdx_1!R44*1/1000 -> 14.67081465 | O44: 48178.87448 | P44: =Apdx_1!U44*1/1000 -> 20340.66049 | Q44: =IF(CostData!$C$3=2020,Apdx_1!V44,IF(CostData!$C$3=2020,Apdx_1!AA44,Apdx_1!AE44))/1000 -> 9675.568188 | R44: =IF(CostData!$C$3=2020,MIN(Apdx_1!AF44*Apdx_1!AQ44,Apdx_1!AF44*Apdx_1!AP44*Apdx_1!AQ44), IF(CostData!$C$3=2025,MIN(Apdx_1!AK44*Apdx_1!AQ44,Apdx_1!AK44*Apdx_1!AP44*Apdx_1!AQ44), MIN(Apdx_1!AO44*Apdx_1!AQ44,Apdx_1!AO44*Apdx_1!AP44*Apdx_1!AQ44)))/1000 -> 8553.402346 | S44: 3376.908833 | T44: 130215.4128 | U44: -6160.480281 | V44: 6248.279348 | W44: -87.79906709 | X44: 0 | Y44: 17374.23297 | Z44: 7532.095568 | AA44: 8553.402346 | AB44: 0 | AC44: 33459.73088 | AD44: 0.3458167028 | AE44: 0.08840206776 | AF44: 0.257414635 | AH44: =(Emission_Summary!$G44*2000)/SUM(GWh_Summary!$C44:$F44) -> 1624.270302 | AI44: =(Emission_Summary!$G44*2000)/(SUM(GWh_Summary!$C44:$F44,H44)+G44*0.058) -> 1440.64469 | AJ44: =Apdx_1!BC44 -> 771.749698
B45: South Dakota | C45: =Apdx_1!G45*1/1000 -> 2923.161 | D45: =Apdx_1!H45*1/1000 -> 27.096 | E45: =Apdx_1!I45*1/1000 -> 0 | F45: =Apdx_1!J45*1/1000 -> 0 | G45: =INDEX(EIA_Generation!$N$5:$N$56,MATCH(B45,EIA_Generation!$I$5:$I$56,0)) -> 0 | H45: =INDEX(EIA_Generation!$Y$5:$Y$56,MATCH(GWh_Summary!B45,EIA_Generation!$I$5:$I$56,0)) -> 2914.666 | I45: 6169.283 | J45: =INDEX(EIA_Generation!$U$5:$U$56,MATCH(GWh_Summary!B45,EIA_Generation!$I$5:$I$56,0)) -> 12034.206 | K45: =Apdx_1!N45*1/1000 -> 958.0458 | L45: =Apdx_1!P45*1/1000 -> 1992.2112 | M45: =Apdx_1!O45*1/1000 -> 0 | N45: =Apdx_1!R45*1/1000 -> 0 | O45: 0 | P45: =Apdx_1!U45*1/1000 -> 0 | Q45: =IF(CostData!$C$3=2020,Apdx_1!V45,IF(CostData!$C$3=2020,Apdx_1!AA45,Apdx_1!AE45))/1000 -> 1818.849895 | R45: =IF(CostData!$C$3=2020,MIN(Apdx_1!AF45*Apdx_1!AQ45,Apdx_1!AF45*Apdx_1!AP45*Apdx_1!AQ45), IF(CostData!$C$3=2025,MIN(Apdx_1!AK45*Apdx_1!AQ45,Apdx_1!AK45*Apdx_1!AP45*Apdx_1!AQ45), MIN(Apdx_1!AO45*Apdx_1!AQ45,Apdx_1!AO45*Apdx_1!AP45*Apdx_1!AQ45)))/1000 -> 1028.767708 | S45: 6169.283 | T45: 11967.1576 | U45: -1965.1152 | V45: 1965.1152 | W45: 0 | X45: 0 | Y45: 0 | Z45: -1095.816105 | AA45: 1028.767708 | AB45: 0 | AC45: -67.04839763 | AD45: -0.005571484951 | AE45: 0.08548696171 | AF45: -0.09105844666 | AH45: =(Emission_Summary!$G45*2000)/SUM(GWh_Summary!$C45:$F45) -> 2045.811236 | AI45: =(Emission_Summary!$G45*2000)/(SUM(GWh_Summary!$C45:$F45,H45)+G45*0.058) -> 1029.113071 | AJ45: =Apdx_1!BC45 -> 740.6736579
B46: Tennessee | C46: =Apdx_1!G46*1/1000 -> 34373.696 | D46: =Apdx_1!H46*1/1000 -> 6548.896957 | E46: =Apdx_1!I46*1/1000 -> 0 | F46: =Apdx_1!J46*1/1000 -> 0 | G46: =INDEX(EIA_Generation!$N$5:$N$56,MATCH(B46,EIA_Generation!$I$5:$I$56,0)) -> 25102.101 | H46: =INDEX(EIA_Generation!$Y$5:$Y$56,MATCH(GWh_Summary!B46,EIA_Generation!$I$5:$I$56,0)) -> 836.45785 | I46: 10863.11199 | J46: =INDEX(EIA_Generation!$U$5:$U$56,MATCH(GWh_Summary!B46,EIA_Generation!$I$5:$I$56,0)) -> 77724.2638 | K46: =Apdx_1!N46*1/1000 -> 31076.51952 | L46: =Apdx_1!P46*1/1000 -> 9846.07344 | M46: =Apdx_1!O46*1/1000 -> 0 | N46: =Apdx_1!R46*1/1000 -> 0 | O46: 23646.17914 | P46: =Apdx_1!U46*1/1000 -> 10416.61907 | Q46: =IF(CostData!$C$3=2020,Apdx_1!V46,IF(CostData!$C$3=2020,Apdx_1!AA46,Apdx_1!AE46))/1000 -> 4305.814257 | R46: =IF(CostData!$C$3=2020,MIN(Apdx_1!AF46*Apdx_1!AQ46,Apdx_1!AF46*Apdx_1!AP46*Apdx_1!AQ46), IF(CostData!$C$3=2025,MIN(Apdx_1!AK46*Apdx_1!AQ46,Apdx_1!AK46*Apdx_1!AP46*Apdx_1!AQ46), MIN(Apdx_1!AO46*Apdx_1!AQ46,Apdx_1!AO46*Apdx_1!AP46*Apdx_1!AQ46)))/1000 -> 7634.031154 | S46: 10863.11199 | T46: 97788.34858 | U46: -3297.176483 | V46: 3297.176483 | W46: 0 | X46: 0 | Y46: 8960.697215 | Z46: 3469.356407 | AA46: 7634.031154 | AB46: 0 | AC46: 20064.08478 | AD46: 0.2581444171 | AE46: 0.0982194077 | AF46: 0.1599250094 | AH46: =(Emission_Summary!$G46*2000)/SUM(GWh_Summary!$C46:$F46) -> 1827.951412 | AI46: =(Emission_Summary!$G46*2000)/(SUM(GWh_Summary!$C46:$F46,H46)+G46*0.058) -> 1730.985975 | AJ46: =Apdx_1!BC46 -> 1162.616553
B47: Texas | C47: =Apdx_1!G47*1/1000 -> 138705.1379 | D47: =Apdx_1!H47*1/1000 -> 148010.2777 | E47: =Apdx_1!I47*1/1000 -> 20911.868 | F47: =Apdx_1!J47*1/1000 -> 35025.95308 | G47: =INDEX(EIA_Generation!$N$5:$N$56,MATCH(B47,EIA_Generation!$I$5:$I$56,0)) -> 38441.017 | H47: =INDEX(EIA_Generation!$Y$5:$Y$56,MATCH(GWh_Summary!B47,EIA_Generation!$I$5:$I$56,0)) -> 34016.69653 | I47: 14701.55954 | J47: =INDEX(EIA_Generation!$U$5:$U$56,MATCH(GWh_Summary!B47,EIA_Generation!$I$5:$I$56,0)) -> 429812.5098 | K47: =Apdx_1!N47*1/1000 -> 66698.23267 | L47: =Apdx_1!P47*1/1000 -> 230873.2978 | M47: =Apdx_1!O47*1/1000 -> 10055.75322 | N47: =Apdx_1!R47*1/1000 -> 35025.95308 | O47: 36211.43801 | P47: =Apdx_1!U47*1/1000 -> 2291.006124 | Q47: =IF(CostData!$C$3=2020,Apdx_1!V47,IF(CostData!$C$3=2020,Apdx_1!AA47,Apdx_1!AE47))/1000 -> 85962.50196 | R47: =IF(CostData!$C$3=2020,MIN(Apdx_1!AF47*Apdx_1!AQ47,Apdx_1!AF47*Apdx_1!AP47*Apdx_1!AQ47), IF(CostData!$C$3=2025,MIN(Apdx_1!AK47*Apdx_1!AQ47,Apdx_1!AK47*Apdx_1!AP47*Apdx_1!AQ47), MIN(Apdx_1!AO47*Apdx_1!AQ47,Apdx_1!AO47*Apdx_1!AP47*Apdx_1!AQ47)))/1000 -> 38157.02959 | S47: 14701.55954 | T47: 519976.7719 | U47: -72006.90528 | V47: 82863.02006 | W47: -10856.11478 | X47: 0 | Y47: 61.4271376 | Z47: 51945.80543 | AA47: 38157.02959 | AB47: 0 | AC47: 90164.26216 | AD47: 0.2097757978 | AE47: 0.08877598655 | AF47: 0.1209998113 | AH47: =(Emission_Summary!$G47*2000)/SUM(GWh_Summary!$C47:$F47) -> 1288.152421 | AI47: =(Emission_Summary!$G47*2000)/(SUM(GWh_Summary!$C47:$F47,H47)+G47*0.058) -> 1164.925217 | AJ47: =Apdx_1!BC47 -> 790.8191461
B48: Utah | C48: =Apdx_1!G48*1/1000 -> 27332.14 | D48: =Apdx_1!H48*1/1000 -> 5447.362 | E48: =Apdx_1!I48*1/1000 -> 120.348 | F48: =Apdx_1!J48*1/1000 -> 0 | G48: =INDEX(EIA_Generation!$N$5:$N$56,MATCH(B48,EIA_Generation!$I$5:$I$56,0)) -> 0 | H48: =INDEX(EIA_Generation!$Y$5:$Y$56,MATCH(GWh_Summary!B48,EIA_Generation!$I$5:$I$56,0)) -> 1099.72394 | I48: 5403.38681 | J48: =INDEX(EIA_Generation!$U$5:$U$56,MATCH(GWh_Summary!B48,EIA_Generation!$I$5:$I$56,0)) -> 39402.96075 | K48: =Apdx_1!N48*1/1000 -> 20797.21047 | L48: =Apdx_1!P48*1/1000 -> 12011.06592 | M48: =Apdx_1!O48*1/1000 -> 91.57360843 | N48: =Apdx_1!R48*1/1000 -> 0 | O48: 0 | P48: =Apdx_1!U48*1/1000 -> 0 | Q48: =IF(CostData!$C$3=2020,Apdx_1!V48,IF(CostData!$C$3=2020,Apdx_1!AA48,Apdx_1!AE48))/1000 -> 2373.069026 | R48: =IF(CostData!$C$3=2020,MIN(Apdx_1!AF48*Apdx_1!AQ48,Apdx_1!AF48*Apdx_1!AP48*Apdx_1!AQ48), IF(CostData!$C$3=2025,MIN(Apdx_1!AK48*Apdx_1!AQ48,Apdx_1!AK48*Apdx_1!AP48*Apdx_1!AQ48), MIN(Apdx_1!AO48*Apdx_1!AQ48,Apdx_1!AO48*Apdx_1!AP48*Apdx_1!AQ48)))/1000 -> 3524.028412 | S48: 5403.38681 | T48: 44200.33425 | U48: -6534.929528 | V48: 6563.70392 | W48: -28.77439157 | X48: 0 | Y48: 0 | Z48: 1273.345086 | AA48: 3524.028412 | AB48: 0 | AC48: 4797.373498 | AD48: 0.1217515996 | AE48: 0.08943562477 | AF48: 0.03231597479 | AH48: =(Emission_Summary!$G48*2000)/SUM(GWh_Summary!$C48:$F48) -> 1699.440909 | AI48: =(Emission_Summary!$G48*2000)/(SUM(GWh_Summary!$C48:$F48,H48)+G48*0.058) -> 1644.472107 | AJ48: =Apdx_1!BC48 -> 1321.725772
B49: Virginia | C49: =Apdx_1!G49*1/1000 -> 13641.552 | D49: =Apdx_1!H49*1/1000 -> 23070.34985 | E49: =Apdx_1!I49*1/1000 -> 343.908 | F49: =Apdx_1!J49*1/1000 -> 1140.287982 | G49: =INDEX(EIA_Generation!$N$5:$N$56,MATCH(B49,EIA_Generation!$I$5:$I$56,0)) -> 28723.39 | H49: =INDEX(EIA_Generation!$Y$5:$Y$56,MATCH(GWh_Summary!B49,EIA_Generation!$I$5:$I$56,0)) -> 2358.4436 | I49: 1461.303511 | J49: =INDEX(EIA_Generation!$U$5:$U$56,MATCH(GWh_Summary!B49,EIA_Generation!$I$5:$I$56,0)) -> 70739.23494 | K49: =Apdx_1!N49*1/1000 -> 7600.56464 | L49: =Apdx_1!P49*1/1000 -> 29263.63248 | M49: =Apdx_1!O49*1/1000 -> 191.6127274 | N49: =Apdx_1!R49*1/1000 -> 10454.84158 | O49: 27057.43338 | P49: =Apdx_1!U49*1/1000 -> 1645.274962 | Q49: =IF(CostData!$C$3=2020,Apdx_1!V49,IF(CostData!$C$3=2020,Apdx_1!AA49,Apdx_1!AE49))/1000 -> 11192.00806 | R49: =IF(CostData!$C$3=2020,MIN(Apdx_1!AF49*Apdx_1!AQ49,Apdx_1!AF49*Apdx_1!AP49*Apdx_1!AQ49), IF(CostData!$C$3=2025,MIN(Apdx_1!AK49*Apdx_1!AQ49,Apdx_1!AK49*Apdx_1!AP49*Apdx_1!AQ49), MIN(Apdx_1!AO49*Apdx_1!AQ49,Apdx_1!AO49*Apdx_1!AP49*Apdx_1!AQ49)))/1000 -> 6269.111895 | S49: 1461.303511 | T49: 95135.78323 | U49: -6040.98736 | V49: 6193.282633 | W49: -152.2952726 | X49: 9314.5536 | Y49: -20.68165785 | Z49: 8833.564456 | AA49: 6269.111895 | AB49: 0 | AC49: 24396.54829 | AD49: 0.3448800134 | AE49: 0.08862283993 | AF49: 0.2562571735 | AH49: =(Emission_Summary!$G49*2000)/SUM(GWh_Summary!$C49:$F49) -> 1304.255641 | AI49: =(Emission_Summary!$G49*2000)/(SUM(GWh_Summary!$C49:$F49,H49)+G49*0.058) -> 1179.935775 | AJ49: =Apdx_1!BC49 -> 809.8120326
B50: Washington | C50: =Apdx_1!G50*1/1000 -> 3735.73 | D50: =Apdx_1!H50*1/1000 -> 5665.045 | E50: =Apdx_1!I50*1/1000 -> 0 | F50: =Apdx_1!J50*1/1000 -> 1181.813684 | G50: =INDEX(EIA_Generation!$N$5:$N$56,MATCH(B50,EIA_Generation!$I$5:$I$56,0)) -> 9333.709 | H50: =INDEX(EIA_Generation!$Y$5:$Y$56,MATCH(GWh_Summary!B50,EIA_Generation!$I$5:$I$56,0)) -> 8214.35017 | I50: 88704.8257 | J50: =INDEX(EIA_Generation!$U$5:$U$56,MATCH(GWh_Summary!B50,EIA_Generation!$I$5:$I$56,0)) -> 116835.4735 | K50: =Apdx_1!N50*1/1000 -> 0 | L50: =Apdx_1!P50*1/1000 -> 9400.775 | M50: =Apdx_1!O50*1/1000 -> 0 | N50: =Apdx_1!R50*1/1000 -> 1181.813684 | O50: 8792.353878 | P50: =Apdx_1!U50*1/1000 -> 506.7003463 | Q50: =IF(CostData!$C$3=2020,Apdx_1!V50,IF(CostData!$C$3=2020,Apdx_1!AA50,Apdx_1!AE50))/1000 -> 17725.55752 | R50: =IF(CostData!$C$3=2020,MIN(Apdx_1!AF50*Apdx_1!AQ50,Apdx_1!AF50*Apdx_1!AP50*Apdx_1!AQ50), IF(CostData!$C$3=2025,MIN(Apdx_1!AK50*Apdx_1!AQ50,Apdx_1!AK50*Apdx_1!AP50*Apdx_1!AQ50), MIN(Apdx_1!AO50*Apdx_1!AQ50,Apdx_1!AO50*Apdx_1!AP50*Apdx_1!AQ50)))/1000 -> 11178.87441 | S50: 88704.8257 | T50: 137490.9005 | U50: -3735.73 | V50: 3735.73 | W50: 0 | X50: 0 | Y50: -34.65477571 | Z50: 9511.207353 | AA50: 11178.87441 | AB50: 0 | AC50: 20655.42698 | AD50: 0.1767907157 | AE50: 0.09568048184 | AF50: 0.08111023381 | AH50: =(Emission_Summary!$G50*2000)/SUM(GWh_Summary!$C50:$F50) -> 1250.352316 | AI50: =(Emission_Summary!$G50*2000)/(SUM(GWh_Summary!$C50:$F50,H50)+G50*0.058) -> 684.2363801 | AJ50: =Apdx_1!BC50 -> 214.5012094
B51: West Virginia | C51: =Apdx_1!G51*1/1000 -> 70074.636 | D51: =Apdx_1!H51*1/1000 -> 0 | E51: =Apdx_1!I51*1/1000 -> 0 | F51: =Apdx_1!J51*1/1000 -> 270.2128326 | G51: =INDEX(EIA_Generation!$N$5:$N$56,MATCH(B51,EIA_Generation!$I$5:$I$56,0)) -> 0 | H51: =INDEX(EIA_Generation!$Y$5:$Y$56,MATCH(GWh_Summary!B51,EIA_Generation!$I$5:$I$56,0)) -> 1296.56295 | I51: 1771.992917 | J51: =INDEX(EIA_Generation!$U$5:$U$56,MATCH(GWh_Summary!B51,EIA_Generation!$I$5:$I$56,0)) -> 73413.4047 | K51: =Apdx_1!N51*1/1000 -> 70074.636 | L51: =Apdx_1!P51*1/1000 -> 0 | M51: =Apdx_1!O51*1/1000 -> 0 | N51: =Apdx_1!R51*1/1000 -> 270.2128326 | O51: 0 | P51: =Apdx_1!U51*1/1000 -> 0 | Q51: =IF(CostData!$C$3=2020,Apdx_1!V51,IF(CostData!$C$3=2020,Apdx_1!AA51,Apdx_1!AE51))/1000 -> 10273.03638 | R51: =IF(CostData!$C$3=2020,MIN(Apdx_1!AF51*Apdx_1!AQ51,Apdx_1!AF51*Apdx_1!AP51*Apdx_1!AQ51), IF(CostData!$C$3=2025,MIN(Apdx_1!AK51*Apdx_1!AQ51,Apdx_1!AK51*Apdx_1!AP51*Apdx_1!AQ51), MIN(Apdx_1!AO51*Apdx_1!AQ51,Apdx_1!AO51*Apdx_1!AP51*Apdx_1!AQ51)))/1000 -> 3349.795123 | S51: 1771.992917 | T51: 85739.67325 | U51: 0 | V51: 0 | W51: 0 | X51: 0 | Y51: 0 | Z51: 8976.473431 | AA51: 3349.795123 | AB51: 0 | AC51: 12326.26855 | AD51: 0.1679021509 | AE51: 0.04562920268 | AF51: 0.1222729482 | AH51: =(Emission_Summary!$G51*2000)/SUM(GWh_Summary!$C51:$F51) -> 1865.119267 | AI51: =(Emission_Summary!$G51*2000)/(SUM(GWh_Summary!$C51:$F51,H51)+G51*0.058) -> 1831.364425 | AJ51: =Apdx_1!BC51 -> 1619.781223
B52: Wisconsin | C52: =Apdx_1!G52*1/1000 -> 32112.721 | D52: =Apdx_1!H52*1/1000 -> 10244.27295 | E52: =Apdx_1!I52*1/1000 -> 47.668 | F52: =Apdx_1!J52*1/1000 -> 160.1892098 | G52: =INDEX(EIA_Generation!$N$5:$N$56,MATCH(B52,EIA_Generation!$I$5:$I$56,0)) -> 14299.595 | H52: =INDEX(EIA_Generation!$Y$5:$Y$56,MATCH(GWh_Summary!B52,EIA_Generation!$I$5:$I$56,0)) -> 3223.17789 | I52: 3655.285837 | J52: =INDEX(EIA_Generation!$U$5:$U$56,MATCH(GWh_Summary!B52,EIA_Generation!$I$5:$I$56,0)) -> 63742.90989 | K52: =Apdx_1!N52*1/1000 -> 24062.12199 | L52: =Apdx_1!P52*1/1000 -> 18306.82224 | M52: =Apdx_1!O52*1/1000 -> 35.71772168 | N52: =Apdx_1!R52*1/1000 -> 160.1892098 | O52: 13470.21849 | P52: =Apdx_1!U52*1/1000 -> 546.8853327 | Q52: =IF(CostData!$C$3=2020,Apdx_1!V52,IF(CostData!$C$3=2020,Apdx_1!AA52,Apdx_1!AE52))/1000 -> 6859.301234 | R52: =IF(CostData!$C$3=2020,MIN(Apdx_1!AF52*Apdx_1!AQ52,Apdx_1!AF52*Apdx_1!AP52*Apdx_1!AQ52), IF(CostData!$C$3=2025,MIN(Apdx_1!AK52*Apdx_1!AQ52,Apdx_1!AK52*Apdx_1!AP52*Apdx_1!AQ52), MIN(Apdx_1!AO52*Apdx_1!AQ52,Apdx_1!AO52*Apdx_1!AP52*Apdx_1!AQ52)))/1000 -> 7322.473433 | S52: 3655.285837 | T52: 74419.01549 | U52: -8050.599008 | V52: 8062.549286 | W52: -11.95027832 | X52: 0 | Y52: -282.4911773 | Z52: 3636.123344 | AA52: 7322.473433 | AB52: 0 | AC52: 10676.1056 | AD52: 0.1674869506 | AE52: 0.1148751045 | AF52: 0.05261184613 | AH52: =(Emission_Summary!$G52*2000)/SUM(GWh_Summary!$C52:$F52) -> 1803.465285 | AI52: =(Emission_Summary!$G52*2000)/(SUM(GWh_Summary!$C52:$F52,H52)+G52*0.058) -> 1646.68605 | AJ52: =Apdx_1!BC52 -> 1202.57523
B53: Wyoming | C53: =Apdx_1!G53*1/1000 -> 42907.427 | D53: =Apdx_1!H53*1/1000 -> 0 | E53: =Apdx_1!I53*1/1000 -> 0 | F53: =Apdx_1!J53*1/1000 -> 0 | G53: =INDEX(EIA_Generation!$N$5:$N$56,MATCH(B53,EIA_Generation!$I$5:$I$56,0)) -> 0 | H53: =INDEX(EIA_Generation!$Y$5:$Y$56,MATCH(GWh_Summary!B53,EIA_Generation!$I$5:$I$56,0)) -> 4369.107 | I53: 2312.07221 | J53: =INDEX(EIA_Generation!$U$5:$U$56,MATCH(GWh_Summary!B53,EIA_Generation!$I$5:$I$56,0)) -> 49588.60621 | K53: =Apdx_1!N53*1/1000 -> 42617.555 | L53: =Apdx_1!P53*1/1000 -> 289.872 | M53: =Apdx_1!O53*1/1000 -> 0 | N53: =Apdx_1!R53*1/1000 -> 1062.864 | O53: 0 | P53: =Apdx_1!U53*1/1000 -> 0 | Q53: =IF(CostData!$C$3=2020,Apdx_1!V53,IF(CostData!$C$3=2020,Apdx_1!AA53,Apdx_1!AE53))/1000 -> 9427.995624 | R53: =IF(CostData!$C$3=2020,MIN(Apdx_1!AF53*Apdx_1!AQ53,Apdx_1!AF53*Apdx_1!AP53*Apdx_1!AQ53), IF(CostData!$C$3=2025,MIN(Apdx_1!AK53*Apdx_1!AQ53,Apdx_1!AK53*Apdx_1!AP53*Apdx_1!AQ53), MIN(Apdx_1!AO53*Apdx_1!AQ53,Apdx_1!AO53*Apdx_1!AP53*Apdx_1!AQ53)))/1000 -> 1775.750861 | S53: 2312.07221 | T53: 57486.10969 | U53: -289.872 | V53: 289.872 | W53: 0 | X53: 1062.864 | Y53: 0 | Z53: 5058.888624 | AA53: 1775.750861 | AB53: 0 | AC53: 7897.503485 | AD53: 0.1592604449 | AE53: 0.03580965462 | AF53: 0.1234507902 | AH53: =(Emission_Summary!$G53*2000)/SUM(GWh_Summary!$C53:$F53) -> 2113.799724 | AI53: =(Emission_Summary!$G53*2000)/(SUM(GWh_Summary!$C53:$F53,H53)+G53*0.058) -> 1918.450861 | AJ53: =Apdx_1!BC53 -> 1714.384791
B54: U.S. Total | C54: =C4 -> 1474059.032 | D54: =D4 -> 959171.7336 | E54: 100063.8811 | F54: 80160.96602 | G54: 764341.911 | H54: 217867.8012 | I54: 445458.4769 | J54: 4041123.802 | K54: 1097840.229 | L54: 1399839.259 | M54: 35615.15891 | N54: 129180.1659 | O54: 720010.0802 | P54: 88597.368 | Q54: 522722.657 | R54: 380569.4926 | S54: 445458.4769 | T54: 4819832.888 | U54: -376218.8033 | V54: 440667.5255 | W54: -64448.72222 | X54: 49019.19984 | Y54: 44265.53716 | Z54: 304854.8558 | AA54: 380569.4926 | AB54: 0 | AC54: 778709.0854 | AH54: =(Emission_Summary!$G54*2000)/SUM(GWh_Summary!$C54:$F54) -> 1494.158311 | AI54: =(Emission_Summary!$G54*2000)/(SUM(GWh_Summary!$C54:$F54,H54)+G54*0.058) -> 1357.922314 | AJ54: =Apdx_1!BC54 -> 0

Sheet Emission_Summary (hidden)
C2: 2012 CO2 Emissions (thousand metric tons) | H2: =CostData!$C$3&" Target CO2 Emissions (thousand metric tons)" -> 2030 Target CO2 Emissions (thousand metric tons) | M2: ="Change from 2012 to "&CostData!$C$3&" CO2 Emissions (thousand metric tons)" -> Change from 2012 to 2030 CO2 Emissions (thousand metric tons) | R2: Percentage change from 2012
B3: State | C3: Coal | D3: NGCC | E3: O/G | F3: Other | G3: Total | H3: Coal | I3: NGCC | J3: O/G | K3: Other | L3: Total | M3: Coal | N3: NGCC | O3: O/G | P3: Other | Q3: Total | R3: Total
B4: U.S. Total | C4: =SUM(C5:C53) -> 1480055.756 | D4: 376884.3572 | E4: 66282.29365 | F4: 29235.80517 | G4: 1952458.212 | H4: 1031283.061 | I4: 549124.406 | J4: 24212.52492 | K4: 48623.23997 | L4: 1653243.232 | M4: -448772.6951 | N4: 172240.0488 | O4: -42069.76872 | P4: 19387.4348 | Q4: -299214.9802 | R4: =Q5/G5 -> -0.1245512734
B5: Alabama | C5: =Apdx_1!C5*Apdx_1!G5*1/2000*1/1000*metric_tons_per_short_ton -> 47276.42673 | D5: =Apdx_1!D5*Apdx_1!H5*1/2000*1/1000*metric_tons_per_short_ton -> 21267.17812 | E5: =Apdx_1!E5*Apdx_1!I5*1/2000*1/1000*metric_tons_per_short_ton -> 0 | F5: =Apdx_1!F5*1/2000*1/1000*metric_tons_per_short_ton -> 0 | G5: =SUM(C5:F5) -> 68543.60485 | H5: =Apdx_1!M5*Apdx_1!N5*1/2000*1/1000*metric_tons_per_short_ton -> 34745.9517 | I5: =Apdx_1!D5*Apdx_1!P5*1/2000*1/1000*metric_tons_per_short_ton -> 25260.45988 | J5: =Apdx_1!E5*Apdx_1!O5*1/2000*1/1000*metric_tons_per_short_ton -> 0 | K5: =Apdx_1!Q5*1/2000*1/1000*metric_tons_per_short_ton -> 0 | L5: =SUM(H5:K5) -> 60006.41158 | M5: =H5-C5 -> -12530.47503 | N5: =I5-D5 -> 3993.281761 | O5: 0 | P5: 0 | Q5: =SUM(M5:P5) -> -8537.193266 | R5: =Q5/G5 -> -0.1245512734
B6: Alaska | C6: =Apdx_1!C6*Apdx_1!G6*1/2000*1/1000*metric_tons_per_short_ton -> 278.5902489 | D6: =Apdx_1!D6*Apdx_1!H6*1/2000*1/1000*metric_tons_per_short_ton -> 1148.966766 | E6: =Apdx_1!E6*Apdx_1!I6*1/2000*1/1000*metric_tons_per_short_ton -> 0 | F6: =Apdx_1!F6*1/2000*1/1000*metric_tons_per_short_ton -> 534.6796445 | G6: =SUM(C6:F6) -> 1962.236659 | H6: =Apdx_1!M6*Apdx_1!N6*1/2000*1/1000*metric_tons_per_short_ton -> 0 | I6: =Apdx_1!D6*Apdx_1!P6*1/2000*1/1000*metric_tons_per_short_ton -> 1261.212568 | J6: =Apdx_1!E6*Apdx_1!O6*1/2000*1/1000*metric_tons_per_short_ton -> 0 | K6: =Apdx_1!Q6*1/2000*1/1000*metric_tons_per_short_ton -> 534.6796445 | L6: =SUM(H6:K6) -> 1795.892213 | M6: =H6-C6 -> -278.5902489 | N6: 112.2458024 | O6: 0 | P6: 0 | Q6: -166.3444465 | R6: =Q6/G6 -> -0.08477287679
B7: Arizona | C7: =Apdx_1!C7*Apdx_1!G7*1/2000*1/1000*metric_tons_per_short_ton -> 25031.57961 | D7: =Apdx_1!D7*Apdx_1!H7*1/2000*1/1000*metric_tons_per_short_ton -> 10929.51681 | E7: =Apdx_1!E7*Apdx_1!I7*1/2000*1/1000*metric_tons_per_short_ton -> 732.7891333 | F7: =Apdx_1!F7*1/2000*1/1000*metric_tons_per_short_ton -> 7.81279283 | G7: 36701.69834 | H7: =Apdx_1!M7*Apdx_1!N7*1/2000*1/1000*metric_tons_per_short_ton -> 0 | I7: =Apdx_1!D7*Apdx_1!P7*1/2000*1/1000*metric_tons_per_short_ton -> 21282.60103 | J7: =Apdx_1!E7*Apdx_1!O7*1/2000*1/1000*metric_tons_per_short_ton -> 0 | K7: =Apdx_1!Q7*1/2000*1/1000*metric_tons_per_short_ton -> 7.81279283 | L7: 21290.41383 | M7: -25031.57961 | N7: 10353.08423 | O7: -732.7891333 | P7: 0 | Q7: -15411.28451 | R7: -0.4199065768
B8: Arkansas | C8: =Apdx_1!C8*Apdx_1!G8*1/2000*1/1000*metric_tons_per_short_ton -> 29293.81587 | D8: =Apdx_1!D8*Apdx_1!H8*1/2000*1/1000*metric_tons_per_short_ton -> 5871.353836 | E8: =Apdx_1!E8*Apdx_1!I8*1/2000*1/1000*metric_tons_per_short_ton -> 564.4040145 | F8: =Apdx_1!F8*1/2000*1/1000*metric_tons_per_short_ton -> 357.8482132 | G8: 36087.42193 | H8: =Apdx_1!M8*Apdx_1!N8*1/2000*1/1000*metric_tons_per_short_ton -> 9915.272027 | I8: =Apdx_1!D8*Apdx_1!P8*1/2000*1/1000*metric_tons_per_short_ton -> 12890.47379 | J8: =Apdx_1!E8*Apdx_1!O8*1/2000*1/1000*metric_tons_per_short_ton -> 203.2314552 | K8: =Apdx_1!Q8*1/2000*1/1000*metric_tons_per_short_ton -> 357.8482132 | L8: 23366.82548 | M8: -19378.54384 | N8: 7019.119951 | O8: -361.1725594 | P8: 0 | Q8: -12720.59645 | R8: -0.3524939098
B9: California | C9: =Apdx_1!C9*Apdx_1!G9*1/2000*1/1000*metric_tons_per_short_ton -> 924.4016061 | D9: =Apdx_1!D9*Apdx_1!H9*1/2000*1/1000*metric_tons_per_short_ton -> 31951.68862 | E9: =Apdx_1!E9*Apdx_1!I9*1/2000*1/1000*metric_tons_per_short_ton -> 6629.456221 | F9: =Apdx_1!F9*1/2000*1/1000*metric_tons_per_short_ton -> 4173.873731 | G9: 43679.42018 | H9: =Apdx_1!M9*Apdx_1!N9*1/2000*1/1000*metric_tons_per_short_ton -> 0 | I9: =Apdx_1!D9*Apdx_1!P9*1/2000*1/1000*metric_tons_per_short_ton -> 36407.32563 | J9: =Apdx_1!E9*Apdx_1!O9*1/2000*1/1000*metric_tons_per_short_ton -> 0 | K9: =Apdx_1!Q9*1/2000*1/1000*metric_tons_per_short_ton -> 7696.401464 | L9: 44103.7271 | M9: -924.4016061 | N9: 4455.637017 | O9: -6629.456221 | P9: 3522.527733 | Q9: 424.3069233 | R9: 0.009714115288
B10: Colorado | C10: =Apdx_1!C10*Apdx_1!G10*1/2000*1/1000*metric_tons_per_short_ton -> 34704.65826 | D10: =Apdx_1!D10*Apdx_1!H10*1/2000*1/1000*metric_tons_per_short_ton -> 3707.293151 | E10: =Apdx_1!E10*Apdx_1!I10*1/2000*1/1000*metric_tons_per_short_ton -> 1.451008351 | F10: =Apdx_1!F10*1/2000*1/1000*metric_tons_per_short_ton -> 20.64285082 | G10: 38434.04527 | H10: =Apdx_1!M10*Apdx_1!N10*1/2000*1/1000*metric_tons_per_short_ton -> 21392.60391 | I10: =Apdx_1!D10*Apdx_1!P10*1/2000*1/1000*metric_tons_per_short_ton -> 8687.369875 | J10: =Apdx_1!E10*Apdx_1!O10*1/2000*1/1000*metric_tons_per_short_ton -> 0.9515200331 | K10: =Apdx_1!Q10*1/2000*1/1000*metric_tons_per_short_ton -> 427.1628751 | L10: 30508.08818 | M10: -13312.05435 | N10: 4980.076723 | O10: -0.4994883178 | P10: 406.5200242 | Q10: -7925.957092 | R10: -0.2062222968
B11: Connecticut | C11: =Apdx_1!C11*Apdx_1!G11*1/2000*1/1000*metric_tons_per_short_ton -> 141.9039086 | D11: =Apdx_1!D11*Apdx_1!H11*1/2000*1/1000*metric_tons_per_short_ton -> 5619.364373 | E11: =Apdx_1!E11*Apdx_1!I11*1/2000*1/1000*metric_tons_per_short_ton -> 268.1396643 | F11: =Apdx_1!F11*1/2000*1/1000*metric_tons_per_short_ton -> 7.463049679 | G11: 6036.870995 | H11: =Apdx_1!M11*Apdx_1!N11*1/2000*1/1000*metric_tons_per_short_ton -> 0 | I11: =Apdx_1!D11*Apdx_1!P11*1/2000*1/1000*metric_tons_per_short_ton -> 5779.033799 | J11: =Apdx_1!E11*Apdx_1!O11*1/2000*1/1000*metric_tons_per_short_ton -> 0 | K11: =Apdx_1!Q11*1/2000*1/1000*metric_tons_per_short_ton -> 7.463049679 | L11: 5786.496849 | M11: -141.9039086 | N11: 159.669427 | O11: -268.1396643 | P11: 0 | Q11: -250.374146 | R11: -0.04147415874
B12: Delaware | C12: =Apdx_1!C12*Apdx_1!G12*1/2000*1/1000*metric_tons_per_short_ton -> 1363.020326 | D12: =Apdx_1!D12*Apdx_1!H12*1/2000*1/1000*metric_tons_per_short_ton -> 2300.309016 | E12: =Apdx_1!E12*Apdx_1!I12*1/2000*1/1000*metric_tons_per_short_ton -> 697.7601185 | F12: =Apdx_1!F12*1/2000*1/1000*metric_tons_per_short_ton -> 0.91084243 | G12: 4362.000303 | H12: =Apdx_1!M12*Apdx_1!N12*1/2000*1/1000*metric_tons_per_short_ton -> 168.4134671 | I12: =Apdx_1!D12*Apdx_1!P12*1/2000*1/1000*metric_tons_per_short_ton -> 3257.980201 | J12: =Apdx_1!E12*Apdx_1!O12*1/2000*1/1000*metric_tons_per_short_ton -> 91.71761941 | K12: =Apdx_1!Q12*1/2000*1/1000*metric_tons_per_short_ton -> 0.91084243 | L12: 3519.02213 | M12: -1194.606859 | N12: 957.6711845 | O12: -606.0424991 | P12: 0 | Q12: -842.9781737 | R12: -0.1932549553
B13: Florida | C13: =Apdx_1!C13*Apdx_1!G13*1/2000*1/1000*metric_tons_per_short_ton -> 45459.32979 | D13: =Apdx_1!D13*Apdx_1!H13*1/2000*1/1000*metric_tons_per_short_ton -> 52253.3261 | E13: =Apdx_1!E13*Apdx_1!I13*1/2000*1/1000*metric_tons_per_short_ton -> 6951.47897 | F13: =Apdx_1!F13*1/2000*1/1000*metric_tons_per_short_ton -> 2822.348241 | G13: 107486.4831 | H13: =Apdx_1!M13*Apdx_1!N13*1/2000*1/1000*metric_tons_per_short_ton -> 3963.691395 | I13: =Apdx_1!D13*Apdx_1!P13*1/2000*1/1000*metric_tons_per_short_ton -> 71655.04689 | J13: =Apdx_1!E13*Apdx_1!O13*1/2000*1/1000*metric_tons_per_short_ton -> 644.8016869 | K13: =Apdx_1!Q13*1/2000*1/1000*metric_tons_per_short_ton -> 5013.162933 | L13: 81276.7029 | M13: -41495.63839 | N13: 19401.72079 | O13: -6306.677283 | P13: 2190.814692 | Q13: -26209.78019 | R13: -0.2438425692
B14: Georgia | C14: =Apdx_1!C14*Apdx_1!G14*1/2000*1/1000*metric_tons_per_short_ton -> 42634.67478 | D14: =Apdx_1!D14*Apdx_1!H14*1/2000*1/1000*metric_tons_per_short_ton -> 14339.89123 | E14: =Apdx_1!E14*Apdx_1!I14*1/2000*1/1000*metric_tons_per_short_ton -> 0 | F14: =Apdx_1!F14*1/2000*1/1000*metric_tons_per_short_ton -> 30.9946601 | G14: 57005.56067 | H14: =Apdx_1!M14*Apdx_1!N14*1/2000*1/1000*metric_tons_per_short_ton -> 26596.3196 | I14: =Apdx_1!D14*Apdx_1!P14*1/2000*1/1000*metric_tons_per_short_ton -> 19597.11677 | J14: =Apdx_1!E14*Apdx_1!O14*1/2000*1/1000*metric_tons_per_short_ton -> 0 | K14: =Apdx_1!Q14*1/2000*1/1000*metric_tons_per_short_ton -> 30.9946601 | L14: 46224.43103 | M14: -16038.35518 | N14: 5257.225539 | O14: 0 | P14: 0 | Q14: -10781.12964 | R14: -0.1891241751
B15: Hawaii | C15: =Apdx_1!C15*Apdx_1!G15*1/2000*1/1000*metric_tons_per_short_ton -> 1415.065047 | D15: =Apdx_1!D15*Apdx_1!H15*1/2000*1/1000*metric_tons_per_short_ton -> 0 | E15: =Apdx_1!E15*Apdx_1!I15*1/2000*1/1000*metric_tons_per_short_ton -> 3146.712679 | F15: =Apdx_1!F15*1/2000*1/1000*metric_tons_per_short_ton -> 166.3588483 | G15: 4728.136575 | H15: =Apdx_1!M15*Apdx_1!N15*1/2000*1/1000*metric_tons_per_short_ton -> 1330.161144 | I15: =Apdx_1!D15*Apdx_1!P15*1/2000*1/1000*metric_tons_per_short_ton -> 0 | J15: =Apdx_1!E15*Apdx_1!O15*1/2000*1/1000*metric_tons_per_short_ton -> 3146.712679 | K15: =Apdx_1!Q15*1/2000*1/1000*metric_tons_per_short_ton -> 166.3588483 | L15: 4643.232672 | M15: -84.90390282 | N15: 0 | O15: 0 | P15: 0 | Q15: -84.90390282 | R15: -0.01795715954
B16: Idaho | C16: =Apdx_1!C16*Apdx_1!G16*1/2000*1/1000*metric_tons_per_short_ton -> 0 | D16: =Apdx_1!D16*Apdx_1!H16*1/2000*1/1000*metric_tons_per_short_ton -> 638.0902682 | E16: =Apdx_1!E16*Apdx_1!I16*1/2000*1/1000*metric_tons_per_short_ton -> 0 | F16: =Apdx_1!F16*1/2000*1/1000*metric_tons_per_short_ton -> 0 | G16: 638.0902682 | H16: =Apdx_1!M16*Apdx_1!N16*1/2000*1/1000*metric_tons_per_short_ton -> 0 | I16: =Apdx_1!D16*Apdx_1!P16*1/2000*1/1000*metric_tons_per_short_ton -> 638.0902682 | J16: =Apdx_1!E16*Apdx_1!O16*1/2000*1/1000*metric_tons_per_short_ton -> 0 | K16: =Apdx_1!Q16*1/2000*1/1000*metric_tons_per_short_ton -> 0 | L16: 638.0902682 | M16: 0 | N16: =I16-D16 -> 0 | O16: =J16-E16 -> 0 | P16: =K16-F16 -> 0 | Q16: =SUM(M16:P16) -> 0 | R16: =Q16/G16 -> 0
B17: Illinois | C17: =Apdx_1!C17*Apdx_1!G17*1/2000*1/1000*metric_tons_per_short_ton -> 83799.65181 | D17: =Apdx_1!D17*Apdx_1!H17*1/2000*1/1000*metric_tons_per_short_ton -> 3087.784259 | E17: =Apdx_1!E17*Apdx_1!I17*1/2000*1/1000*metric_tons_per_short_ton -> 0 | F17: =Apdx_1!F17*1/2000*1/1000*metric_tons_per_short_ton -> 227.9807132 | G17: 87115.41679 | H17: =Apdx_1!M17*Apdx_1!N17*1/2000*1/1000*metric_tons_per_short_ton -> 65828.0527 | I17: =Apdx_1!D17*Apdx_1!P17*1/2000*1/1000*metric_tons_per_short_ton -> 8191.355347 | J17: =Apdx_1!E17*Apdx_1!O17*1/2000*1/1000*metric_tons_per_short_ton -> 0 | K17: =Apdx_1!Q17*1/2000*1/1000*metric_tons_per_short_ton -> 227.9807132 | L17: 74247.38876 | M17: -17971.59912 | N17: 5103.571087 | O17: 0 | P17: 0 | Q17: -12868.02803 | R17: -0.1477124085
B18: Indiana | C18: =Apdx_1!C18*Apdx_1!G18*1/2000*1/1000*metric_tons_per_short_ton -> 85357.1731 | D18: =Apdx_1!D18*Apdx_1!H18*1/2000*1/1000*metric_tons_per_short_ton -> 5321.613067 | E18: =Apdx_1!E18*Apdx_1!I18*1/2000*1/1000*metric_tons_per_short_ton -> 0 | F18: =Apdx_1!F18*1/2000*1/1000*metric_tons_per_short_ton -> 1133.26972 | G18: 91812.05588 | H18: =Apdx_1!M18*Apdx_1!N18*1/2000*1/1000*metric_tons_per_short_ton -> 76391.33816 | I18: =Apdx_1!D18*Apdx_1!P18*1/2000*1/1000*metric_tons_per_short_ton -> 7053.603184 | J18: =Apdx_1!E18*Apdx_1!O18*1/2000*1/1000*metric_tons_per_short_ton -> 0 | K18: =Apdx_1!Q18*1/2000*1/1000*metric_tons_per_short_ton -> 1133.26972 | L18: 84578.21106 | M18: -8965.83494 | N18: 1731.990116 | O18: 0 | P18: 0 | Q18: -7233.844824 | R18: -0.07878970528
B19: Iowa | C19: =Apdx_1!C19*Apdx_1!G19*1/2000*1/1000*metric_tons_per_short_ton -> 33748.6348 | D19: =Apdx_1!D19*Apdx_1!H19*1/2000*1/1000*metric_tons_per_short_ton -> 582.9529504 | E19: =Apdx_1!E19*Apdx_1!I19*1/2000*1/1000*metric_tons_per_short_ton -> 335.0834668 | F19: =Apdx_1!F19*1/2000*1/1000*metric_tons_per_short_ton -> 0 | G19: 34666.67122 | H19: =Apdx_1!M19*Apdx_1!N19*1/2000*1/1000*metric_tons_per_short_ton -> 25700.46925 | I19: =Apdx_1!D19*Apdx_1!P19*1/2000*1/1000*metric_tons_per_short_ton -> 3151.591647 | J19: =Apdx_1!E19*Apdx_1!O19*1/2000*1/1000*metric_tons_per_short_ton -> 271.462591 | K19: =Apdx_1!Q19*1/2000*1/1000*metric_tons_per_short_ton -> 0 | L19: 29123.52349 | M19: -8048.16555 | N19: 2568.638696 | O19: -63.6208758 | P19: 0 | Q19: -5543.147729 | R19: -0.1598984712
B20: Kansas | C20: =Apdx_1!C20*Apdx_1!G20*1/2000*1/1000*metric_tons_per_short_ton -> 29994.28594 | D20: =Apdx_1!D20*Apdx_1!H20*1/2000*1/1000*metric_tons_per_short_ton -> 0 | E20: =Apdx_1!E20*Apdx_1!I20*1/2000*1/1000*metric_tons_per_short_ton -> 1155.595738 | F20: =Apdx_1!F20*1/2000*1/1000*metric_tons_per_short_ton -> 0 | G20: 31149.88168 | H20: =Apdx_1!M20*Apdx_1!N20*1/2000*1/1000*metric_tons_per_short_ton -> 28194.62878 | I20: =Apdx_1!D20*Apdx_1!P20*1/2000*1/1000*metric_tons_per_short_ton -> 0 | J20: =Apdx_1!E20*Apdx_1!O20*1/2000*1/1000*metric_tons_per_short_ton -> 1155.595738 | K20: =Apdx_1!Q20*1/2000*1/1000*metric_tons_per_short_ton -> 0 | L20: 29350.22452 | M20: -1799.657156 | N20: 0 | O20: 0 | P20: 0 | Q20: -1799.657156 | R20: -0.05777412495
B21: Kentucky | C21: =Apdx_1!C21*Apdx_1!G21*1/2000*1/1000*metric_tons_per_short_ton -> 82876.02567 | D21: =Apdx_1!D21*Apdx_1!H21*1/2000*1/1000*metric_tons_per_short_ton -> 0 | E21: =Apdx_1!E21*Apdx_1!I21*1/2000*1/1000*metric_tons_per_short_ton -> 0 | F21: =Apdx_1!F21*1/2000*1/1000*metric_tons_per_short_ton -> 0 | G21: 82876.02567 | H21: =Apdx_1!M21*Apdx_1!N21*1/2000*1/1000*metric_tons_per_short_ton -> 77124.72392 | I21: =Apdx_1!D21*Apdx_1!P21*1/2000*1/1000*metric_tons_per_short_ton -> 0 | J21: =Apdx_1!E21*Apdx_1!O21*1/2000*1/1000*metric_tons_per_short_ton -> 0 | K21: =Apdx_1!Q21*1/2000*1/1000*metric_tons_per_short_ton -> 1271.802192 | L21: 78396.52612 | M21: -5751.301747 | N21: 0 | O21: 0 | P21: 1271.802192 | Q21: -4479.499556 | R21: -0.05405060775
B22: Louisiana | C22: =Apdx_1!C22*Apdx_1!G22*1/2000*1/1000*metric_tons_per_short_ton -> 25602.40985 | D22: =Apdx_1!D22*Apdx_1!H22*1/2000*1/1000*metric_tons_per_short_ton -> 6870.821568 | E22: =Apdx_1!E22*Apdx_1!I22*1/2000*1/1000*metric_tons_per_short_ton -> 10221.77862 | F22: =Apdx_1!F22*1/2000*1/1000*metric_tons_per_short_ton -> 1481.614272 | G22: 44176.62431 | H22: =Apdx_1!M22*Apdx_1!N22*1/2000*1/1000*metric_tons_per_short_ton -> 11427.59415 | I22: =Apdx_1!D22*Apdx_1!P22*1/2000*1/1000*metric_tons_per_short_ton -> 13907.23008 | J22: =Apdx_1!E22*Apdx_1!O22*1/2000*1/1000*metric_tons_per_short_ton -> 4853.696089 | K22: =Apdx_1!Q22*1/2000*1/1000*metric_tons_per_short_ton -> 1481.614272 | L22: 31670.13459 | M22: -14174.8157 | N22: 7036.408512 | O22: -5368.082535 | P22: 0 | Q22: -12506.48973 | R22: -0.283101978
B23: Maine | C23: =Apdx_1!C23*Apdx_1!G23*1/2000*1/1000*metric_tons_per_short_ton -> 0 | D23: =Apdx_1!D23*Apdx_1!H23*1/2000*1/1000*metric_tons_per_short_ton -> 1558.04964 | E23: =Apdx_1!E23*Apdx_1!I23*1/2000*1/1000*metric_tons_per_short_ton -> 70.58685506 | F23: =Apdx_1!F23*1/2000*1/1000*metric_tons_per_short_ton -> 0 | G23: 1628.636495 | H23: =Apdx_1!M23*Apdx_1!N23*1/2000*1/1000*metric_tons_per_short_ton -> 0 | I23: =Apdx_1!D23*Apdx_1!P23*1/2000*1/1000*metric_tons_per_short_ton -> 1580.753992 | J23: =Apdx_1!E23*Apdx_1!O23*1/2000*1/1000*metric_tons_per_short_ton -> 0 | K23: =Apdx_1!Q23*1/2000*1/1000*metric_tons_per_short_ton -> 0 | L23: 1580.753992 | M23: 0 | N23: 22.70435131 | O23: -70.58685506 | P23: 0 | Q23: -47.88250375 | R23: -0.02940036275
B24: Maryland | C24: =Apdx_1!C24*Apdx_1!G24*1/2000*1/1000*metric_tons_per_short_ton -> 15949.89417 | D24: =Apdx_1!D24*Apdx_1!H24*1/2000*1/1000*metric_tons_per_short_ton -> 299.2019409 | E24: =Apdx_1!E24*Apdx_1!I24*1/2000*1/1000*metric_tons_per_short_ton -> 2025.554458 | F24: =Apdx_1!F24*1/2000*1/1000*metric_tons_per_short_ton -> 21.86539479 | G24: 18296.51596 | H24: =Apdx_1!M24*Apdx_1!N24*1/2000*1/1000*metric_tons_per_short_ton -> 14134.10419 | I24: =Apdx_1!D24*Apdx_1!P24*1/2000*1/1000*metric_tons_per_short_ton -> 785.3232825 | J24: =Apdx_1!E24*Apdx_1!O24*1/2000*1/1000*metric_tons_per_short_ton -> 1909.530296 | K24: =Apdx_1!Q24*1/2000*1/1000*metric_tons_per_short_ton -> 21.86539479 | L24: 16850.82316 | M24: -1815.789976 | N24: 486.1213416 | O24: -116.0241626 | P24: 0 | Q24: -1445.692797 | R24: -0.07901464958
B25: Massachusetts | C25: =Apdx_1!C25*Apdx_1!G25*1/2000*1/1000*metric_tons_per_short_ton -> 2142.060186 | D25: =Apdx_1!D25*Apdx_1!H25*1/2000*1/1000*metric_tons_per_short_ton -> 9487.171115 | E25: =Apdx_1!E25*Apdx_1!I25*1/2000*1/1000*metric_tons_per_short_ton -> 262.7841549 | F25: =Apdx_1!F25*1/2000*1/1000*metric_tons_per_short_ton -> 15.37657759 | G25: 11907.39203 | H25: =Apdx_1!M25*Apdx_1!N25*1/2000*1/1000*metric_tons_per_short_ton -> 4.133911166e-13 | I25: =Apdx_1!D25*Apdx_1!P25*1/2000*1/1000*metric_tons_per_short_ton -> 10531.43065 | J25: =Apdx_1!E25*Apdx_1!O25*1/2000*1/1000*metric_tons_per_short_ton -> 4.636807594e-14 | K25: =Apdx_1!Q25*1/2000*1/1000*metric_tons_per_short_ton -> 15.37657759 | L25: 10546.80722 | M25: -2142.060186 | N25: 1044.259531 | O25: -262.7841549 | P25: 0 | Q25: -1360.58481 | R25: -0.1142638796
B26: Michigan | C26: =Apdx_1!C26*Apdx_1!G26*1/2000*1/1000*metric_tons_per_short_ton -> 54414.42378 | D26: =Apdx_1!D26*Apdx_1!H26*1/2000*1/1000*metric_tons_per_short_ton -> 6798.079891 | E26: =Apdx_1!E26*Apdx_1!I26*1/2000*1/1000*metric_tons_per_short_ton -> 557.3750305 | F26: =Apdx_1!F26*1/2000*1/1000*metric_tons_per_short_ton -> 1380.873878 | G26: 63150.75257 | H26: =Apdx_1!M26*Apdx_1!N26*1/2000*1/1000*metric_tons_per_short_ton -> 39499.8039 | I26: =Apdx_1!D26*Apdx_1!P26*1/2000*1/1000*metric_tons_per_short_ton -> 11316.31607 | J26: =Apdx_1!E26*Apdx_1!O26*1/2000*1/1000*metric_tons_per_short_ton -> 430.4280451 | K26: =Apdx_1!Q26*1/2000*1/1000*metric_tons_per_short_ton -> 1380.873878 | L26: 52627.4219 | M26: -14914.61987 | N26: 4518.236183 | O26: -126.9469854 | P26: 0 | Q26: -10523.33067 | R26: -0.1666382465
B27: Minnesota | C27: =Apdx_1!C27*Apdx_1!G27*1/2000*1/1000*metric_tons_per_short_ton -> 23115.55945 | D27: =Apdx_1!D27*Apdx_1!H27*1/2000*1/1000*metric_tons_per_short_ton -> 2235.973491 | E27: =Apdx_1!E27*Apdx_1!I27*1/2000*1/1000*metric_tons_per_short_ton -> 21.09649348 | F27: =Apdx_1!F27*1/2000*1/1000*metric_tons_per_short_ton -> 38.06026492 | G27: 25410.6897 | H27: =Apdx_1!M27*Apdx_1!N27*1/2000*1/1000*metric_tons_per_short_ton -> 10572.03192 | I27: =Apdx_1!D27*Apdx_1!P27*1/2000*1/1000*metric_tons_per_short_ton -> 6658.853974 | J27: =Apdx_1!E27*Apdx_1!O27*1/2000*1/1000*metric_tons_per_short_ton -> 10.2644688 | K27: =Apdx_1!Q27*1/2000*1/1000*metric_tons_per_short_ton -> 38.06026492 | L27: 17279.21063 | M27: -12543.52753 | N27: 4422.880484 | O27: -10.83202468 | P27: 0 | Q27: -8131.479069 | R27: -0.3200022969
B28: Mississippi | C28: =Apdx_1!C28*Apdx_1!G28*1/2000*1/1000*metric_tons_per_short_ton -> 8485.994026 | D28: =Apdx_1!D28*Apdx_1!H28*1/2000*1/1000*metric_tons_per_short_ton -> 12237.05425 | E28: =Apdx_1!E28*Apdx_1!I28*1/2000*1/1000*metric_tons_per_short_ton -> 2771.77587 | F28: =Apdx_1!F28*1/2000*1/1000*metric_tons_per_short_ton -> 0 | G28: 23494.82414 | H28: =Apdx_1!M28*Apdx_1!N28*1/2000*1/1000*metric_tons_per_short_ton -> 0 | I28: =Apdx_1!D28*Apdx_1!P28*1/2000*1/1000*metric_tons_per_short_ton -> 16816.62697 | J28: =Apdx_1!E28*Apdx_1!O28*1/2000*1/1000*metric_tons_per_short_ton -> 0 | K28: =Apdx_1!Q28*1/2000*1/1000*metric_tons_per_short_ton -> 2411.888532 | L28: 19228.51551 | M28: -8485.994026 | N28: 4579.572725 | O28: -2771.77587 | P28: 2411.888532 | Q28: -4266.308638 | R28: -0.1815850424
B29: Missouri | C29: =Apdx_1!C29*Apdx_1!G29*1/2000*1/1000*metric_tons_per_short_ton -> 68953.17896 | D29: =Apdx_1!D29*Apdx_1!H29*1/2000*1/1000*metric_tons_per_short_ton -> 1958.764051 | E29: =Apdx_1!E29*Apdx_1!I29*1/2000*1/1000*metric_tons_per_short_ton -> 0 | F29: =Apdx_1!F29*1/2000*1/1000*metric_tons_per_short_ton -> 0 | G29: 70911.94301 | H29: =Apdx_1!M29*Apdx_1!N29*1/2000*1/1000*metric_tons_per_short_ton -> 57771.89735 | I29: =Apdx_1!D29*Apdx_1!P29*1/2000*1/1000*metric_tons_per_short_ton -> 5157.195913 | J29: =Apdx_1!E29*Apdx_1!O29*1/2000*1/1000*metric_tons_per_short_ton -> 0 | K29: =Apdx_1!Q29*1/2000*1/1000*metric_tons_per_short_ton -> 0 | L29: 62929.09326 | M29: -11181.28161 | N29: 3198.431862 | O29: 0 | P29: 0 | Q29: -7982.849749 | R29: -0.1125741224
B30: Montana | C30: =Apdx_1!C30*Apdx_1!G30*1/2000*1/1000*metric_tons_per_short_ton -> 15973.02426 | D30: =Apdx_1!D30*Apdx_1!H30*1/2000*1/1000*metric_tons_per_short_ton -> 0 | E30: =Apdx_1!E30*Apdx_1!I30*1/2000*1/1000*metric_tons_per_short_ton -> 0 | F30: =Apdx_1!F30*1/2000*1/1000*metric_tons_per_short_ton -> 289.2471202 | G30: 16262.27138 | H30: =Apdx_1!M30*Apdx_1!N30*1/2000*1/1000*metric_tons_per_short_ton -> 15014.6428 | I30: =Apdx_1!D30*Apdx_1!P30*1/2000*1/1000*metric_tons_per_short_ton -> 0 | J30: =Apdx_1!E30*Apdx_1!O30*1/2000*1/1000*metric_tons_per_short_ton -> 0 | K30: =Apdx_1!Q30*1/2000*1/1000*metric_tons_per_short_ton -> 289.2471202 | L30: 15303.88992 | M30: -958.3814554 | N30: 0 | O30: 0 | P30: 0 | Q30: -958.3814554 | R30: -0.05893281653
B31: Nebraska | C31: =Apdx_1!C31*Apdx_1!G31*1/2000*1/1000*metric_tons_per_short_ton -> 24393.49196 | D31: =Apdx_1!D31*Apdx_1!H31*1/2000*1/1000*metric_tons_per_short_ton -> 210.7700831 | E31: =Apdx_1!E31*Apdx_1!I31*1/2000*1/1000*metric_tons_per_short_ton -> 29.86433096 | F31: =Apdx_1!F31*1/2000*1/1000*metric_tons_per_short_ton -> 0 | G31: 24634.12638 | H31: =Apdx_1!M31*Apdx_1!N31*1/2000*1/1000*metric_tons_per_short_ton -> 20649.89694 | I31: =Apdx_1!D31*Apdx_1!P31*1/2000*1/1000*metric_tons_per_short_ton -> 1432.611997 | J31: =Apdx_1!E31*Apdx_1!O31*1/2000*1/1000*metric_tons_per_short_ton -> 26.89483288 | K31: =Apdx_1!Q31*1/2000*1/1000*metric_tons_per_short_ton -> 0 | L31: 22109.40376 | M31: -3743.595029 | N31: 1221.841913 | O31: -2.969498079 | P31: 0 | Q31: -2524.722613 | R31: -0.1024888228
B32: Nevada | C32: =Apdx_1!C32*Apdx_1!G32*1/2000*1/1000*metric_tons_per_short_ton -> 4263.994475 | D32: =Apdx_1!D32*Apdx_1!H32*1/2000*1/1000*metric_tons_per_short_ton -> 9518.680304 | E32: =Apdx_1!E32*Apdx_1!I32*1/2000*1/1000*metric_tons_per_short_ton -> 185.2707459 | F32: =Apdx_1!F32*1/2000*1/1000*metric_tons_per_short_ton -> 78.31061217 | G32: 14046.25614 | H32: =Apdx_1!M32*Apdx_1!N32*1/2000*1/1000*metric_tons_per_short_ton -> 0 | I32: =Apdx_1!D32*Apdx_1!P32*1/2000*1/1000*metric_tons_per_short_ton -> 11285.13635 | J32: =Apdx_1!E32*Apdx_1!O32*1/2000*1/1000*metric_tons_per_short_ton -> 0 | K32: =Apdx_1!Q32*1/2000*1/1000*metric_tons_per_short_ton -> 78.31061217 | L32: 11363.44696 | M32: -4263.994475 | N32: 1766.456044 | O32: -185.2707459 | P32: 0 | Q32: -2682.809177 | R32: -0.1909981671
B33: New Hampshire | C33: =Apdx_1!C33*Apdx_1!G33*1/2000*1/1000*metric_tons_per_short_ton -> 1384.164658 | D33: =Apdx_1!D33*Apdx_1!H33*1/2000*1/1000*metric_tons_per_short_ton -> 2764.723736 | E33: =Apdx_1!E33*Apdx_1!I33*1/2000*1/1000*metric_tons_per_short_ton -> 62.22034149 | F33: =Apdx_1!F33*1/2000*1/1000*metric_tons_per_short_ton -> 0 | G33: 4211.108735 | H33: =Apdx_1!M33*Apdx_1!N33*1/2000*1/1000*metric_tons_per_short_ton -> 0 | I33: =Apdx_1!D33*Apdx_1!P33*1/2000*1/1000*metric_tons_per_short_ton -> 3303.572465 | J33: =Apdx_1!E33*Apdx_1!O33*1/2000*1/1000*metric_tons_per_short_ton -> 0 | K33: =Apdx_1!Q33*1/2000*1/1000*metric_tons_per_short_ton -> 0 | L33: 3303.572465 | M33: -1384.164658 | N33: 538.8487283 | O33: -62.22034149 | P33: 0 | Q33: -907.5362708 | R33: -0.215510054
B34: New Jersey | C34: =Apdx_1!C34*Apdx_1!G34*1/2000*1/1000*metric_tons_per_short_ton -> 2480.988849 | D34: =Apdx_1!D34*Apdx_1!H34*1/2000*1/1000*metric_tons_per_short_ton -> 8071.352272 | E34: =Apdx_1!E34*Apdx_1!I34*1/2000*1/1000*metric_tons_per_short_ton -> 116.189889 | F34: =Apdx_1!F34*1/2000*1/1000*metric_tons_per_short_ton -> 1102.849319 | G34: 11771.38033 | H34: =Apdx_1!M34*Apdx_1!N34*1/2000*1/1000*metric_tons_per_short_ton -> 0 | I34: =Apdx_1!D34*Apdx_1!P34*1/2000*1/1000*metric_tons_per_short_ton -> 9191.163495 | J34: =Apdx_1!E34*Apdx_1!O34*1/2000*1/1000*metric_tons_per_short_ton -> 0 | K34: =Apdx_1!Q34*1/2000*1/1000*metric_tons_per_short_ton -> 1102.849319 | L34: 10294.01281 | M34: -2480.988849 | N34: 1119.811223 | O34: -116.189889 | P34: 0 | Q34: -1477.367515 | R34: -0.1255050363
B35: New Mexico | C35: =Apdx_1!C35*Apdx_1!G35*1/2000*1/1000*metric_tons_per_short_ton -> 12053.55684 | D35: =Apdx_1!D35*Apdx_1!H35*1/2000*1/1000*metric_tons_per_short_ton -> 2358.345042 | E35: =Apdx_1!E35*Apdx_1!I35*1/2000*1/1000*metric_tons_per_short_ton -> 1315.190758 | F35: =Apdx_1!F35*1/2000*1/1000*metric_tons_per_short_ton -> 0 | G35: 15727.09264 | H35: =Apdx_1!M35*Apdx_1!N35*1/2000*1/1000*metric_tons_per_short_ton -> 7578.504223 | I35: =Apdx_1!D35*Apdx_1!P35*1/2000*1/1000*metric_tons_per_short_ton -> 4206.356651 | J35: =Apdx_1!E35*Apdx_1!O35*1/2000*1/1000*metric_tons_per_short_ton -> 879.6890206 | K35: =Apdx_1!Q35*1/2000*1/1000*metric_tons_per_short_ton -> 0 | L35: 12664.54989 | M35: -4475.052614 | N35: 1848.011609 | O35: -435.5017372 | P35: 0 | Q35: -3062.542743 | R35: -0.1947303811
B36: New York | C36: =Apdx_1!C36*Apdx_1!G36*1/2000*1/1000*metric_tons_per_short_ton -> 4183.154881 | D36: =Apdx_1!D36*Apdx_1!H36*1/2000*1/1000*metric_tons_per_short_ton -> 18633.5505 | E36: =Apdx_1!E36*Apdx_1!I36*1/2000*1/1000*metric_tons_per_short_ton -> 7746.534328 | F36: =Apdx_1!F36*1/2000*1/1000*metric_tons_per_short_ton -> 871.1791232 | G36: 31434.41883 | H36: =Apdx_1!M36*Apdx_1!N36*1/2000*1/1000*metric_tons_per_short_ton -> 26.09577657 | I36: =Apdx_1!D36*Apdx_1!P36*1/2000*1/1000*metric_tons_per_short_ton -> 25641.07909 | J36: =Apdx_1!E36*Apdx_1!O36*1/2000*1/1000*metric_tons_per_short_ton -> 51.40979555 | K36: =Apdx_1!Q36*1/2000*1/1000*metric_tons_per_short_ton -> 871.1791232 | L36: 26589.76378 | M36: -4157.059105 | N36: 7007.528587 | O36: -7695.124532 | P36: 0 | Q36: -4844.65505 | R36: -0.1541194407
B37: North Carolina | C37: =Apdx_1!C37*Apdx_1!G37*1/2000*1/1000*metric_tons_per_short_ton -> 46917.68672 | D37: =Apdx_1!D37*Apdx_1!H37*1/2000*1/1000*metric_tons_per_short_ton -> 5865.898592 | E37: =Apdx_1!E37*Apdx_1!I37*1/2000*1/1000*metric_tons_per_short_ton -> 0 | F37: =Apdx_1!F37*1/2000*1/1000*metric_tons_per_short_ton -> 374.974851 | G37: 53158.56016 | H37: =Apdx_1!M37*Apdx_1!N37*1/2000*1/1000*metric_tons_per_short_ton -> 29528.99883 | I37: =Apdx_1!D37*Apdx_1!P37*1/2000*1/1000*metric_tons_per_short_ton -> 12321.62701 | J37: =Apdx_1!E37*Apdx_1!O37*1/2000*1/1000*metric_tons_per_short_ton -> 0 | K37: =Apdx_1!Q37*1/2000*1/1000*metric_tons_per_short_ton -> 4569.364217 | L37: 46419.99005 | M37: -17388.68789 | N37: 6455.728416 | O37: 0 | P37: 4194.389366 | Q37: -6738.570105 | R37: -0.1267635934
B38: North Dakota | C38: =Apdx_1!C38*Apdx_1!G38*1/2000*1/1000*metric_tons_per_short_ton -> 30267.39382 | D38: =Apdx_1!D38*Apdx_1!H38*1/2000*1/1000*metric_tons_per_short_ton -> 0 | E38: =Apdx_1!E38*Apdx_1!I38*1/2000*1/1000*metric_tons_per_short_ton -> 0 | F38: =Apdx_1!F38*1/2000*1/1000*metric_tons_per_short_ton -> 0 | G38: 30267.39382 | H38: =Apdx_1!M38*Apdx_1!N38*1/2000*1/1000*metric_tons_per_short_ton -> 28451.35019 | I38: =Apdx_1!D38*Apdx_1!P38*1/2000*1/1000*metric_tons_per_short_ton -> 0 | J38: =Apdx_1!E38*Apdx_1!O38*1/2000*1/1000*metric_tons_per_short_ton -> 0 | K38: =Apdx_1!Q38*1/2000*1/1000*metric_tons_per_short_ton -> 0 | L38: 28451.35019 | M38: -1816.043629 | N38: 0 | O38: 0 | P38: 0 | Q38: -1816.043629 | R38: -0.06
B39: Ohio | C39: =Apdx_1!C39*Apdx_1!G39*1/2000*1/1000*metric_tons_per_short_ton -> 83391.52891 | D39: =Apdx_1!D39*Apdx_1!H39*1/2000*1/1000*metric_tons_per_short_ton -> 9127.221649 | E39: =Apdx_1!E39*Apdx_1!I39*1/2000*1/1000*metric_tons_per_short_ton -> 194.2470524 | F39: =Apdx_1!F39*1/2000*1/1000*metric_tons_per_short_ton -> 129.1261913 | G39: 92842.1238 | H39: =Apdx_1!M39*Apdx_1!N39*1/2000*1/1000*metric_tons_per_short_ton -> 72513.84161 | I39: =Apdx_1!D39*Apdx_1!P39*1/2000*1/1000*metric_tons_per_short_ton -> 11966.67525 | J39: =Apdx_1!E39*Apdx_1!O39*1/2000*1/1000*metric_tons_per_short_ton -> 179.6906837 | K39: =Apdx_1!Q39*1/2000*1/1000*metric_tons_per_short_ton -> 1265.933497 | L39: 85926.14104 | M39: -10877.6873 | N39: 2839.453602 | O39: -14.55636873 | P39: 1136.807306 | Q39: -6915.982759 | R39: -0.07449186292
B40: Oklahoma | C40: =Apdx_1!C40*Apdx_1!G40*1/2000*1/1000*metric_tons_per_short_ton -> 30417.19626 | D40: =Apdx_1!D40*Apdx_1!H40*1/2000*1/1000*metric_tons_per_short_ton -> 12105.67519 | E40: =Apdx_1!E40*Apdx_1!I40*1/2000*1/1000*metric_tons_per_short_ton -> 5320.31444 | F40: =Apdx_1!F40*1/2000*1/1000*metric_tons_per_short_ton -> 6.283198517 | G40: 47849.46909 | H40: =Apdx_1!M40*Apdx_1!N40*1/2000*1/1000*metric_tons_per_short_ton -> 13788.45782 | I40: =Apdx_1!D40*Apdx_1!P40*1/2000*1/1000*metric_tons_per_short_ton -> 19974.22356 | J40: =Apdx_1!E40*Apdx_1!O40*1/2000*1/1000*metric_tons_per_short_ton -> 2565.700518 | K40: =Apdx_1!Q40*1/2000*1/1000*metric_tons_per_short_ton -> 6.283198517 | L40: 36334.66509 | M40: -16628.73844 | N40: 7868.548374 | O40: -2754.613922 | P40: 0 | Q40: -11514.80399 | R40: -0.2406464316
B41: Oregon | C41: =Apdx_1!C41*Apdx_1!G41*1/2000*1/1000*metric_tons_per_short_ton -> 2489.935031 | D41: =Apdx_1!D41*Apdx_1!H41*1/2000*1/1000*metric_tons_per_short_ton -> 4417.399499 | E41: =Apdx_1!E41*Apdx_1!I41*1/2000*1/1000*metric_tons_per_short_ton -> 0 | F41: =Apdx_1!F41*1/2000*1/1000*metric_tons_per_short_ton -> 46.95781226 | G41: 6954.292342 | H41: =Apdx_1!M41*Apdx_1!N41*1/2000*1/1000*metric_tons_per_short_ton -> 0 | I41: =Apdx_1!D41*Apdx_1!P41*1/2000*1/1000*metric_tons_per_short_ton -> 5438.301259 | J41: =Apdx_1!E41*Apdx_1!O41*1/2000*1/1000*metric_tons_per_short_ton -> 0 | K41: =Apdx_1!Q41*1/2000*1/1000*metric_tons_per_short_ton -> 46.95781226 | L41: 5485.259071 | M41: -2489.935031 | N41: 1020.90176 | O41: 0 | P41: 0 | Q41: -1469.033271 | R41: -0.2112412304
B42: Pennsylvania | C42: =Apdx_1!C42*Apdx_1!G42*1/2000*1/1000*metric_tons_per_short_ton -> 83218.68272 | D42: =Apdx_1!D42*Apdx_1!H42*1/2000*1/1000*metric_tons_per_short_ton -> 19389.55356 | E42: =Apdx_1!E42*Apdx_1!I42*1/2000*1/1000*metric_tons_per_short_ton -> 1125.650337 | F42: =Apdx_1!F42*1/2000*1/1000*metric_tons_per_short_ton -> 1428.9586 | G42: 105162.8452 | H42: =Apdx_1!M42*Apdx_1!N42*1/2000*1/1000*metric_tons_per_short_ton -> 70386.46115 | I42: =Apdx_1!D42*Apdx_1!P42*1/2000*1/1000*metric_tons_per_short_ton -> 22834.20494 | J42: =Apdx_1!E42*Apdx_1!O42*1/2000*1/1000*metric_tons_per_short_ton -> 1012.847232 | K42: =Apdx_1!Q42*1/2000*1/1000*metric_tons_per_short_ton -> 1428.9586 | L42: 95662.47192 | M42: -12832.22157 | N42: 3444.651383 | O42: -112.8031048 | P42: 0 | Q42: -9500.373295 | R42: -0.0903396373
B43: Rhode Island | C43: =Apdx_1!C43*Apdx_1!G43*1/2000*1/1000*metric_tons_per_short_ton -> 0 | D43: =Apdx_1!D43*Apdx_1!H43*1/2000*1/1000*metric_tons_per_short_ton -> 3388.357421 | E43: =Apdx_1!E43*Apdx_1!I43*1/2000*1/1000*metric_tons_per_short_ton -> 0 | F43: =Apdx_1!F43*1/2000*1/1000*metric_tons_per_short_ton -> 0 | G43: 3388.357421 | H43: =Apdx_1!M43*Apdx_1!N43*1/2000*1/1000*metric_tons_per_short_ton -> 0 | I43: =Apdx_1!D43*Apdx_1!P43*1/2000*1/1000*metric_tons_per_short_ton -> 3388.357421 | J43: =Apdx_1!E43*Apdx_1!O43*1/2000*1/1000*metric_tons_per_short_ton -> 0 | K43: =Apdx_1!Q43*1/2000*1/1000*metric_tons_per_short_ton -> 0 | L43: 3388.357421 | M43: 0 | N43: 0 | O43: 0 | P43: 0 | Q43: 0 | R43: 0
B44: South Carolina | C44: =Apdx_1!C44*Apdx_1!G44*1/2000*1/1000*metric_tons_per_short_ton -> 27930.86445 | D44: =Apdx_1!D44*Apdx_1!H44*1/2000*1/1000*metric_tons_per_short_ton -> 4304.411278 | E44: =Apdx_1!E44*Apdx_1!I44*1/2000*1/1000*metric_tons_per_short_ton -> 318.3004749 | F44: =Apdx_1!F44*1/2000*1/1000*metric_tons_per_short_ton -> 4.920723004 | G44: 32558.49693 | H44: =Apdx_1!M44*Apdx_1!N44*1/2000*1/1000*metric_tons_per_short_ton -> 20571.8896 | I44: =Apdx_1!D44*Apdx_1!P44*1/2000*1/1000*metric_tons_per_short_ton -> 6703.752851 | J44: =Apdx_1!E44*Apdx_1!O44*1/2000*1/1000*metric_tons_per_short_ton -> 249.4016031 | K44: =Apdx_1!Q44*1/2000*1/1000*metric_tons_per_short_ton -> 4.920723004 | L44: 27529.96478 | M44: -7358.974849 | N44: 2399.341573 | O44: -68.89887171 | P44: 0 | Q44: -5028.532148 | R44: -0.1544460778
B45: South Dakota | C45: =Apdx_1!C45*Apdx_1!G45*1/2000*1/1000*metric_tons_per_short_ton -> 3003.933828 | D45: =Apdx_1!D45*Apdx_1!H45*1/2000*1/1000*metric_tons_per_short_ton -> 13.90063211 | E45: =Apdx_1!E45*Apdx_1!I45*1/2000*1/1000*metric_tons_per_short_ton -> 0 | F45: =Apdx_1!F45*1/2000*1/1000*metric_tons_per_short_ton -> 0 | G45: 3017.83446 | H45: =Apdx_1!M45*Apdx_1!N45*1/2000*1/1000*metric_tons_per_short_ton -> 925.4474237 | I45: =Apdx_1!D45*Apdx_1!P45*1/2000*1/1000*metric_tons_per_short_ton -> 1022.032587 | J45: =Apdx_1!E45*Apdx_1!O45*1/2000*1/1000*metric_tons_per_short_ton -> 0 | K45: =Apdx_1!Q45*1/2000*1/1000*metric_tons_per_short_ton -> 0 | L45: 1947.480011 | M45: -2078.486405 | N45: 1008.131955 | O45: 0 | P45: 0 | Q45: -1070.354449 | R45: -0.3546763295
B46: Tennessee | C46: =Apdx_1!C46*Apdx_1!G46*1/2000*1/1000*metric_tons_per_short_ton -> 34988.12044 | D46: =Apdx_1!D46*Apdx_1!H46*1/2000*1/1000*metric_tons_per_short_ton -> 2414.135359 | E46: =Apdx_1!E46*Apdx_1!I46*1/2000*1/1000*metric_tons_per_short_ton -> 0 | F46: =Apdx_1!F46*1/2000*1/1000*metric_tons_per_short_ton -> 0 | G46: 37402.2558 | H46: =Apdx_1!M46*Apdx_1!N46*1/2000*1/1000*metric_tons_per_short_ton -> 29734.08699 | I46: =Apdx_1!D46*Apdx_1!P46*1/2000*1/1000*metric_tons_per_short_ton -> 3629.581317 | J46: =Apdx_1!E46*Apdx_1!O46*1/2000*1/1000*metric_tons_per_short_ton -> 0 | K46: =Apdx_1!Q46*1/2000*1/1000*metric_tons_per_short_ton -> 0 | L46: 33363.66831 | M46: -5254.033443 | N46: 1215.445958 | O46: 0 | P46: 0 | Q46: -4038.587485 | R46: -0.1079771099
B47: Texas | C47: =Apdx_1!C47*Apdx_1!G47*1/2000*1/1000*metric_tons_per_short_ton -> 140814.482 | D47: =Apdx_1!D47*Apdx_1!H47*1/2000*1/1000*metric_tons_per_short_ton -> 56214.06319 | E47: =Apdx_1!E47*Apdx_1!I47*1/2000*1/1000*metric_tons_per_short_ton -> 13056.2208 | F47: =Apdx_1!F47*1/2000*1/1000*metric_tons_per_short_ton -> 10610.03223 | G47: 220694.7982 | H47: =Apdx_1!M47*Apdx_1!N47*1/2000*1/1000*metric_tons_per_short_ton -> 63649.78682 | I47: =Apdx_1!D47*Apdx_1!P47*1/2000*1/1000*metric_tons_per_short_ton -> 87685.30368 | J47: =Apdx_1!E47*Apdx_1!O47*1/2000*1/1000*metric_tons_per_short_ton -> 6278.259517 | K47: =Apdx_1!Q47*1/2000*1/1000*metric_tons_per_short_ton -> 10610.03223 | L47: 168223.3822 | M47: -77164.69522 | N47: 31471.24049 | O47: -6777.961278 | P47: 0 | Q47: -52471.416 | R47: -0.237755563
B48: Utah | C48: =Apdx_1!C48*Apdx_1!G48*1/2000*1/1000*metric_tons_per_short_ton -> 25668.76243 | D48: =Apdx_1!D48*Apdx_1!H48*1/2000*1/1000*metric_tons_per_short_ton -> 2185.01767 | E48: =Apdx_1!E48*Apdx_1!I48*1/2000*1/1000*metric_tons_per_short_ton -> 101.8953867 | F48: =Apdx_1!F48*1/2000*1/1000*metric_tons_per_short_ton -> 0 | G48: 27955.67549 | H48: =Apdx_1!M48*Apdx_1!N48*1/2000*1/1000*metric_tons_per_short_ton -> 18359.6431 | I48: =Apdx_1!D48*Apdx_1!P48*1/2000*1/1000*metric_tons_per_short_ton -> 4817.816636 | J48: =Apdx_1!E48*Apdx_1!O48*1/2000*1/1000*metric_tons_per_short_ton -> 77.53288997 | K48: =Apdx_1!Q48*1/2000*1/1000*metric_tons_per_short_ton -> 0 | L48: 23254.99263 | M48: -7309.119333 | N48: 2632.798966 | O48: -24.36249673 | P48: 0 | Q48: -4700.682863 | R48: -0.1681477117
B49: Virginia | C49: =Apdx_1!C49*Apdx_1!G49*1/2000*1/1000*metric_tons_per_short_ton -> 14029.87673 | D49: =Apdx_1!D49*Apdx_1!H49*1/2000*1/1000*metric_tons_per_short_ton -> 9450.263729 | E49: =Apdx_1!E49*Apdx_1!I49*1/2000*1/1000*metric_tons_per_short_ton -> 257.706563 | F49: =Apdx_1!F49*1/2000*1/1000*metric_tons_per_short_ton -> 1170.891012 | G49: 24908.73804 | H49: =Apdx_1!M49*Apdx_1!N49*1/2000*1/1000*metric_tons_per_short_ton -> 7347.909233 | I49: =Apdx_1!D49*Apdx_1!P49*1/2000*1/1000*metric_tons_per_short_ton -> 11987.20637 | J49: =Apdx_1!E49*Apdx_1!O49*1/2000*1/1000*metric_tons_per_short_ton -> 143.5844976 | K49: =Apdx_1!Q49*1/2000*1/1000*metric_tons_per_short_ton -> 4986.393967 | L49: 24465.09407 | M49: -6681.967499 | N49: 2536.942639 | O49: -114.1220654 | P49: 3815.502956 | Q49: -443.6439696 | R49: -0.01781077664
B50: Washington | C50: =Apdx_1!C50*Apdx_1!G50*1/2000*1/1000*metric_tons_per_short_ton -> 4119.970742 | D50: =Apdx_1!D50*Apdx_1!H50*1/2000*1/1000*metric_tons_per_short_ton -> 2114.581956 | E50: =Apdx_1!E50*Apdx_1!I50*1/2000*1/1000*metric_tons_per_short_ton -> 0 | F50: =Apdx_1!F50*1/2000*1/1000*metric_tons_per_short_ton -> 381.4294363 | G50: 6615.982134 | H50: =Apdx_1!M50*Apdx_1!N50*1/2000*1/1000*metric_tons_per_short_ton -> 0 | I50: =Apdx_1!D50*Apdx_1!P50*1/2000*1/1000*metric_tons_per_short_ton -> 3509.0117 | J50: =Apdx_1!E50*Apdx_1!O50*1/2000*1/1000*metric_tons_per_short_ton -> 0 | K50: =Apdx_1!Q50*1/2000*1/1000*metric_tons_per_short_ton -> 381.4294363 | L50: 3890.441136 | M50: -4119.970742 | N50: 1394.429744 | O50: 0 | P50: 0 | Q50: -2725.540998 | R50: -0.4119631739
B51: West Virginia | C51: =Apdx_1!C51*Apdx_1!G51*1/2000*1/1000*metric_tons_per_short_ton -> 65342.69324 | D51: =Apdx_1!D51*Apdx_1!H51*1/2000*1/1000*metric_tons_per_short_ton -> 0 | E51: =Apdx_1!E51*Apdx_1!I51*1/2000*1/1000*metric_tons_per_short_ton -> 0 | F51: =Apdx_1!F51*1/2000*1/1000*metric_tons_per_short_ton -> 258.07319 | G51: 65600.76643 | H51: =Apdx_1!M51*Apdx_1!N51*1/2000*1/1000*metric_tons_per_short_ton -> 61422.13165 | I51: =Apdx_1!D51*Apdx_1!P51*1/2000*1/1000*metric_tons_per_short_ton -> 0 | J51: =Apdx_1!E51*Apdx_1!O51*1/2000*1/1000*metric_tons_per_short_ton -> 0 | K51: =Apdx_1!Q51*1/2000*1/1000*metric_tons_per_short_ton -> 258.07319 | L51: 61680.20484 | M51: -3920.561595 | N51: 0 | O51: 0 | P51: 0 | Q51: -3920.561595 | R51: -0.05976396021
B52: Wisconsin | C52: =Apdx_1!C52*Apdx_1!G52*1/2000*1/1000*metric_tons_per_short_ton -> 34410.64093 | D52: =Apdx_1!D52*Apdx_1!H52*1/2000*1/1000*metric_tons_per_short_ton -> 3872.011022 | E52: =Apdx_1!E52*Apdx_1!I52*1/2000*1/1000*metric_tons_per_short_ton -> 38.86570281 | F52: =Apdx_1!F52*1/2000*1/1000*metric_tons_per_short_ton -> 60.59805515 | G52: 38382.11571 | H52: =Apdx_1!M52*Apdx_1!N52*1/2000*1/1000*metric_tons_per_short_ton -> 24236.92024 | I52: =Apdx_1!D52*Apdx_1!P52*1/2000*1/1000*metric_tons_per_short_ton -> 6919.399533 | J52: =Apdx_1!E52*Apdx_1!O52*1/2000*1/1000*metric_tons_per_short_ton -> 29.12214391 | K52: =Apdx_1!Q52*1/2000*1/1000*metric_tons_per_short_ton -> 60.59805515 | L52: 31246.03997 | M52: -10173.72069 | N52: 3047.388511 | O52: -9.743558899 | P52: 0 | Q52: -7136.075741 | R52: -0.1859218964
B53: Wyoming | C53: =Apdx_1!C53*Apdx_1!G53*1/2000*1/1000*metric_tons_per_short_ton -> 45348.85367 | D53: =Apdx_1!D53*Apdx_1!H53*1/2000*1/1000*metric_tons_per_short_ton -> 0 | E53: =Apdx_1!E53*Apdx_1!I53*1/2000*1/1000*metric_tons_per_short_ton -> 0 | F53: =Apdx_1!F53*1/2000*1/1000*metric_tons_per_short_ton -> 0 | G53: 45348.85367 | H53: =Apdx_1!M53*Apdx_1!N53*1/2000*1/1000*metric_tons_per_short_ton -> 42339.93871 | I53: =Apdx_1!D53*Apdx_1!P53*1/2000*1/1000*metric_tons_per_short_ton -> 0 | J53: =Apdx_1!E53*Apdx_1!O53*1/2000*1/1000*metric_tons_per_short_ton -> 0 | K53: =Apdx_1!Q53*1/2000*1/1000*metric_tons_per_short_ton -> 437.1820034 | L53: 42777.12072 | M53: -3008.914956 | N53: 0 | O53: 0 | P53: 437.1820034 | Q53: -2571.732953 | R53: -0.05670998812
B54: U.S. Total | C54: =SUM(C5:C53) -> 1480055.756 | D54: =D4 -> 376884.3572 | E54: 66282.29365 | F54: 29235.80517 | G54: 1952458.212 | H54: 1031283.061 | I54: 549124.406 | J54: 24212.52492 | K54: 48623.23997 | L54: 1653243.232 | M54: -448772.6951 | N54: 172240.0488 | O54: -42069.76872 | P54: 19387.4348 | Q54: -299214.9802

Sheet Cost_Summary (hidden)
B2: =IF(CostData!C4<>"EPA 111(d) cost","Caution: Adjusted EE Costs in Effect","") ->  | D2: All Building Blocks | E2: ='BB1'!B3 -> (1) Lower Average Coal Emission Rate | G2: =BB2a!B3 -> (2a) Redispatch to Existing NG | I2: =BB2b!B3 -> (2b) Redispatch to Under-Construction NG | K2: =BB3ai!B3 -> (3a-i) At-Risk Nuclear | M2: =BB3aii!B3 -> (3a-ii) Under-Construction Nuclear | O2: =BB3b!B3 -> (3b) Incremental Renewables | R2: ='BB4'!B3 -> (4) Incremental Energy Efficiency
B3: State | C3: IPM Model Costs (millions) | D3: Total Cost (millions) | E3: ='BB1'!H4 -> Emission Reduction (thousand metric tons) | F3: Measure Cost (millions) | G3: =BB2a!P4 -> Existing Emission Reduction (thousand metric tons) | H3: Measure Cost (millions) | I3: =BB2b!P4 -> Under Constr Emission Reduction (thousand metric tons) | J3: Measure Cost (millions) | K3: =BB3ai!C4 -> Nuclear Generation "At Risk" (MWh) | L3: Measure Cost (millions) | M3: =BB3aii!C4 -> Nuclear Generation Under Construction (MWh) | N3: Measure Cost (millions) | O3: Incremental RE (MWh) | P3: Measure Cost (millions) | Q3: Displaced energy savings (millions) | R3: GROSS Existing and Incremental EE (MWh) | S3: Total Measure Cost (millions) | T3: Displaced energy savings (millions) | U3: Admin Measure Cost (millions) | V3: Participant Measure Cost (millions) | X3: Total Costs (millions) | Y3: Total Benefits (millions) | Z3: EE Participant Costs (millions) | AB3: BB1 Lower Average Coal Emission Rate Cost (millions) | AC3: BB2a Redispatch to Existing NG Cost (millions) | AD3: BB2b Redispatch to Under-Construction NG Cost (millions) | AE3: BB3ai At-Risk Nuclear Cost (millions) | AF3: BB3aii Under-Construction Nuclear Cost (millions) | AG3: BB3b Renewables Cost (millions) | AH3: BB4 EE Program Administration Cost (millions) | AI3: BB3b RE Displaced Energy Savings (millions) | AJ3: BB4 EE Displaced Energy Savings (millions) | AL3: BAU System Generation (TWh) | AM3: BAU System Costs ($ billions) | AN3: BAU System Costs (¢/kWh) | AP3: 111(d) System Generation (TWh) | AR3: BB1 System Costs ($ billions) | AS3: BB2a System Costs ($ billions) | AT3: BB2b System Costs ($ billions) | AU3: BB3ai System Costs ($ billions) | AV3: BB3aii System Costs ($ billions) | AW3: BB3b System Costs ($ billions) | AX3: BB4 System Costs ($ billions) | AZ3: BB1 System Costs (¢/kWh) | BA3: BB2a System Costs (¢/kWh) | BB3: BB2b System Costs (¢/kWh) | BC3: BB3ai System Costs (¢/kWh) | BD3: BB3aii System Costs (¢/kWh) | BE3: BB3b System Costs (¢/kWh) | BF3: BB4 System Costs (¢/kWh) | BH3: BB1 Net Costs (¢/kWh) | BI3: BB2a Net Costs (¢/kWh) | BJ3: BB2b Net Costs (¢/kWh) | BK3: BB3ai Net Costs (¢/kWh) | BL3: BB3aii Net Costs (¢/kWh) | BM3: BB3b Net Costs (¢/kWh) | BN3: BB4 Net Costs (¢/kWh) | BP3: Total Net Costs (¢/kWh)
B4: U.S. Total | C4: =C54 -> -34000 | D4: 7513.402768 | E4: 88803.34535 | F4: 683.7857592 | G4: 227227.0181 | H4: 7498.491596 | I4: 2105.96504 | J4: 69.49684633 | K4: 44484120 | L4: 266.90472 | M4: =M54 -> 44113248 | N4: 0 | O4: 313620568.5 | P4: 19758.09582 | Q4: -24762.19212 | R4: 475133407.8 | S4: 3998.820153 | T4: -37514.58261 | U4: 20756.70138 | V4: 20756.70138 | X4: =X54 -> 49033.47612 | Y4: -62276.77474 | Z4: =Z54 -> 20756.70138 | AB4: 683.7857592 | AC4: 7498.491596 | AD4: 69.49684633 | AE4: 266.90472 | AF4: 0 | AG4: 19758.09582 | AH4: 20756.70138 | AI4: -24762.19212 | AJ4: -37514.58261 | AL4: =AL54 -> 4744.076874 | AM4: 374.5728271 | AN4: 7.895589323 | AP4: =AP54 -> 4268.943466 | AR4: =AR54 -> 375.2566129 | AS4: 382.0713187 | AT4: 374.642324 | AU4: 374.8397318 | AV4: 374.5728271 | AW4: 369.5687308 | AX4: 357.8149459 | AZ4: =AZ54 -> 7.910002786 | BA4: 8.053649401 | BB4: 7.897054241 | BC4: 7.901215385 | BD4: 7.895589323 | BE4: 7.790108395 | BF4: 8.38181505 | BH4: =BH54 -> 0.01441346288 | BI4: 0.1580600778 | BJ4: 0.001464918216 | BK4: 0.00562606229 | BL4: 0 | BM4: -0.1054809279 | BN4: 0.4862257266 | BP4: 0.5603093198
B5: Alabama | C5: =D5-U5-V5 -> -785.5043033 | D5: =F5+H5+J5+L5+N5+P5+Q5+S5 -> 128.2004466 | E5: =-'BB1'!H5 -> 2836.585604 | F5: =E5*INDEX(RefTables!$D$14:$F$14,1,StateData!$C$73)*1/1000 -> 21.84170915 | G5: =-BB2a!P5 -> 5700.607663 | H5: =G5*INDEX(RefTables!$D$15:$F$15,1,StateData!$C$73)*1/1000 -> 188.1200529 | I5: =-BB2b!N5*BB2b!O5 -> 0 | J5: =I5*INDEX(RefTables!$D$16:$F$16,1,StateData!$C$73)*1/1000 -> 0 | K5: =BB3ai!C5 -> 2329528.283 | L5: =K5*INDEX(RefTables!$D$17:$F$17,1,StateData!$C$73)*1/1000000 -> 13.9771697 | M5: =BB3aii!C5 -> 0 | N5: =M5*INDEX(RefTables!$D$18:$F$18,1,StateData!$C$73)*1/1000000 -> 0 | O5: =IF(GWh_Summary!Z5*1000<0,0,GWh_Summary!Z5*1000) -> 11516247.24 | P5: =O5*INDEX(RefTables!$D$22:$F$22,1,StateData!$C$73)*1/1000000 -> 725.5235763 | Q5: =-O5*INDEX(RefTables!$D$38:$F$39,StateData!$C$74,StateData!$C$73)*1/1000000 -> -909.2755877 | R5: =IF(CostData!$C$6="Proposed - Option 1", INDEX(Apdx_5_5_Opt_1_CumSavings!$G$7:$Q$59,MATCH(B5,Apdx_5_5_Opt_1_CumSavings!$C$7:$C$59,0),MATCH(CostData!$C$3,Apdx_5_5_Opt_1_CumSavings!$G$6:$Q$6,0)), INDEX(Apdx_5_5_Opt_2_CumSavings!$G$7:$Q$59,MATCH(B5,Apdx_5_5_Opt_2_CumSavings!$C$7:$C$59,0),MATCH(CostData!$C$3,Apdx_5_5_Opt_2_CumSavings!$G$6:$Q$6,0)))*1000 -> 10457626.27 | S5: =T5+U5+V5 -> 88.01352634 | T5: =-$R5*INDEX(RefTables!$D$38:$F$39,StateData!$C$74,StateData!$C$73)*1/1000000 -> -825.6912236 | U5: =$R5*INDEX(RefTables!$D$28:$F$28,1,StateData!$C$73)/2*1/1000000 -> 456.852375 | V5: =U5 -> 456.852375 | X5: =F5+H5+J5+L5+N5+P5+U5 -> 1406.314883 | Y5: =Q5+T5 -> -1734.966811 | Z5: =V5 -> 456.852375 | AB5: =F5 -> 21.84170915 | AC5: =H5 -> 188.1200529 | AD5: =J5 -> 0 | AE5: =L5 -> 13.9771697 | AF5: =N5 -> 0 | AG5: =P5 -> 725.5235763 | AH5: =U5 -> 456.852375 | AI5: =Q5 -> -909.2755877 | AJ5: =T5 -> -825.6912236 | AL5: =IF(CostData!$C$6="Proposed - Option 1", (INDEX(Apdx_5_5_Opt_1_CumSavings!$S$7:$S$59,MATCH(B5,Apdx_5_5_Opt_1_CumSavings!$C$7:$C$59,0)) +INDEX(Apdx_5_5_Opt_1_CumSavings!$G$7:$Q$59,MATCH(B5,Apdx_5_5_Opt_1_CumSavings!$C$7:$C$59,0),MATCH(CostData!$C$3,Apdx_5_5_Opt_1_CumSavings!$G$6:$Q$6,0))), (INDEX(Apdx_5_5_Opt_2_CumSavings!$S$7:$S$59,MATCH(B5,Apdx_5_5_Opt_2_CumSavings!$C$7:$C$59,0)) +INDEX(Apdx_5_5_Opt_2_CumSavings!$G$7:$Q$59,MATCH(B5,Apdx_5_5_Opt_2_CumSavings!$C$7:$C$59,0),MATCH(CostData!$C$3,Apdx_5_5_Opt_2_CumSavings!$G$6:$Q$6,0))))/1000 -> 114.1010978 | AM5: =AL5*INDEX(RefTables!$D$38:$F$39,StateData!$C$74,StateData!$C$73)*10^-3 -> 9.008954093 | AN5: =AM5*100/AL5 -> 7.895589323 | AP5: =IF(CostData!$C$6="Proposed - Option 1", INDEX(Apdx_5_5_Opt_1_CumSavings!$S$7:$S$59,MATCH(B5,Apdx_5_5_Opt_1_CumSavings!$C$7:$C$59,0)), INDEX(Apdx_5_5_Opt_2_CumSavings!$S$7:$S$59,MATCH(B5,Apdx_5_5_Opt_2_CumSavings!$C$7:$C$59,0)))/1000 -> 103.6434715 | AR5: =$AM5+AB5/1000 -> 9.030795803 | AS5: =$AM5+AC5/1000 -> 9.197074146 | AT5: =$AM5+AD5/1000 -> 9.008954093 | AU5: =$AM5+AE5/1000 -> 9.022931263 | AV5: =$AM5+AF5/1000 -> 9.008954093 | AW5: =$AM5+(AG5+AI5)/1000 -> 8.825202082 | AX5: =$AM5+(AH5+AJ5)/1000 -> 8.640115245 | AZ5: =AR5*100/$AL5 -> 7.914731741 | BA5: =AS5*100/$AL5 -> 8.060460702 | BB5: 7.895589323 | BC5: 7.907839135 | BD5: 7.895589323 | BE5: 7.734546165 | BF5: =AX5*100/$AP5 -> 8.336381559 | BH5: =AZ5-$AN5 -> 0.01914241806 | BI5: =BA5-$AN5 -> 0.1648713786 | BJ5: 0 | BK5: 0.01224981176 | BL5: 0 | BM5: -0.1610431582 | BN5: =BF5-$AN5 -> 0.4407922355 | BP5: =SUM(BH5:BN5) -> 0.4760126857
B6: Alaska | C6: =D6-U6-V6 -> -55.64031492 | D6: =F6+H6+J6+L6+N6+P6+Q6+S6 -> 9.363344136 | E6: =-'BB1'!H6 -> 16.71541494 | F6: =E6*INDEX(RefTables!$D$14:$F$14,1,StateData!$C$73)*1/1000 -> 0.128708695 | G6: =-BB2a!P6 -> 149.6290316 | H6: =G6*INDEX(RefTables!$D$15:$F$15,1,StateData!$C$73)*1/1000 -> 4.937758043 | I6: =-BB2b!N6*BB2b!O6 -> 0 | J6: =I6*INDEX(RefTables!$D$16:$F$16,1,StateData!$C$73)*1/1000 -> 0 | K6: =BB3ai!C6 -> 0 | L6: =K6*INDEX(RefTables!$D$17:$F$17,1,StateData!$C$73)*1/1000000 -> 0 | M6: =BB3aii!C6 -> 0 | N6: =M6*INDEX(RefTables!$D$18:$F$18,1,StateData!$C$73)*1/1000000 -> 0 | O6: =IF(GWh_Summary!Z6*1000<0,0,GWh_Summary!Z6*1000) -> 123131.01 | P6: =O6*INDEX(RefTables!$D$22:$F$22,1,StateData!$C$73)*1/1000000 -> 7.75725363 | Q6: =-O6*INDEX(RefTables!$D$38:$F$39,StateData!$C$74,StateData!$C$73)*1/1000000 -> -9.721918879 | R6: =IF(CostData!$C$6="Proposed - Option 1", INDEX(Apdx_5_5_Opt_1_CumSavings!$G$7:$Q$59,MATCH(B6,Apdx_5_5_Opt_1_CumSavings!$C$7:$C$59,0),MATCH(CostData!$C$3,Apdx_5_5_Opt_1_CumSavings!$G$6:$Q$6,0)), INDEX(Apdx_5_5_Opt_2_CumSavings!$G$7:$Q$59,MATCH(B6,Apdx_5_5_Opt_2_CumSavings!$C$7:$C$59,0),MATCH(CostData!$C$3,Apdx_5_5_Opt_2_CumSavings!$G$6:$Q$6,0)))*1000 -> 743986.4715 | S6: =T6+U6+V6 -> 6.261542647 | T6: =-$R6*INDEX(RefTables!$D$38:$F$39,StateData!$C$74,StateData!$C$73)*1/1000000 -> -58.74211641 | U6: =$R6*INDEX(RefTables!$D$28:$F$28,1,StateData!$C$73)/2*1/1000000 -> 32.50182953 | V6: =U6 -> 32.50182953 | X6: =F6+H6+J6+L6+N6+P6+U6 -> 45.3255499 | Y6: =Q6+T6 -> -68.46403529 | Z6: =V6 -> 32.50182953 | AB6: =F6 -> 0.128708695 | AC6: =H6 -> 4.937758043 | AD6: =J6 -> 0 | AE6: =L6 -> 0 | AF6: =N6 -> 0 | AG6: =P6 -> 7.75725363 | AH6: =U6 -> 32.50182953 | AI6: =Q6 -> -9.721918879 | AJ6: =T6 -> -58.74211641 | AL6: =IF(CostData!$C$6="Proposed - Option 1", (INDEX(Apdx_5_5_Opt_1_CumSavings!$S$7:$S$59,MATCH(B6,Apdx_5_5_Opt_1_CumSavings!$C$7:$C$59,0)) +INDEX(Apdx_5_5_Opt_1_CumSavings!$G$7:$Q$59,MATCH(B6,Apdx_5_5_Opt_1_CumSavings!$C$7:$C$59,0),MATCH(CostData!$C$3,Apdx_5_5_Opt_1_CumSavings!$G$6:$Q$6,0))), (INDEX(Apdx_5_5_Opt_2_CumSavings!$S$7:$S$59,MATCH(B6,Apdx_5_5_Opt_2_CumSavings!$C$7:$C$59,0)) +INDEX(Apdx_5_5_Opt_2_CumSavings!$G$7:$Q$59,MATCH(B6,Apdx_5_5_Opt_2_CumSavings!$C$7:$C$59,0),MATCH(CostData!$C$3,Apdx_5_5_Opt_2_CumSavings!$G$6:$Q$6,0))))/1000 -> 8.117489658 | AM6: =AL6*INDEX(RefTables!$D$38:$F$39,StateData!$C$74,StateData!$C$73)*10^-3 -> 0.6409236467 | AN6: =AM6*100/AL6 -> 7.895589323 | AP6: =IF(CostData!$C$6="Proposed - Option 1", INDEX(Apdx_5_5_Opt_1_CumSavings!$S$7:$S$59,MATCH(B6,Apdx_5_5_Opt_1_CumSavings!$C$7:$C$59,0)), INDEX(Apdx_5_5_Opt_2_CumSavings!$S$7:$S$59,MATCH(B6,Apdx_5_5_Opt_2_CumSavings!$C$7:$C$59,0)))/1000 -> 7.373503186 | AR6: =$AM6+AB6/1000 -> 0.6410523554 | AS6: =$AM6+AC6/1000 -> 0.6458614048 | AT6: =$AM6+AD6/1000 -> 0.6409236467 | AU6: =$AM6+AE6/1000 -> 0.6409236467 | AV6: =$AM6+AF6/1000 -> 0.6409236467 | AW6: =$AM6+(AG6+AI6)/1000 -> 0.6389589815 | AX6: =$AM6+(AH6+AJ6)/1000 -> 0.6146833598 | AZ6: =AR6*100/$AL6 -> 7.897174896 | BA6: =AS6*100/$AL6 -> 7.956417957 | BB6: =AT6*100/$AL6 -> 7.895589323 | BC6: =AU6*100/$AL6 -> 7.895589323 | BD6: =AV6*100/$AL6 -> 7.895589323 | BE6: =AW6*100/$AL6 -> 7.871386456 | BF6: =AX6*100/$AP6 -> 8.336381559 | BH6: =AZ6-$AN6 -> 0.001585572639 | BI6: =BA6-$AN6 -> 0.06082863362 | BJ6: =BB6-$AN6 -> 0 | BK6: =BC6-$AN6 -> 0 | BL6: =BD6-$AN6 -> 0 | BM6: =BE6-$AN6 -> -0.02420286729 | BN6: =BF6-$AN6 -> 0.4407922355 | BP6: =SUM(BH6:BN6) -> 0.4790035745
B7: Arizona | C7: =D7-U7-V7 -> -440.8489599 | D7: 545.0931664 | E7: =-'BB1'!H7 -> 1501.894776 | F7: =E7*INDEX(RefTables!$D$14:$F$14,1,StateData!$C$73)*1/1000 -> 11.56458978 | G7: =-BB2a!P7 -> 13909.38974 | H7: =G7*INDEX(RefTables!$D$15:$F$15,1,StateData!$C$73)*1/1000 -> 459.0098613 | I7: =-BB2b!N7*BB2b!O7 -> 0 | J7: =I7*INDEX(RefTables!$D$16:$F$16,1,StateData!$C$73)*1/1000 -> 0 | K7: =BB3ai!C7 -> 1818486.111 | L7: =K7*INDEX(RefTables!$D$17:$F$17,1,StateData!$C$73)*1/1000000 -> 10.91091666 | M7: =BB3aii!C7 -> 0 | N7: =M7*INDEX(RefTables!$D$18:$F$18,1,StateData!$C$73)*1/1000000 -> 0 | O7: =IF(GWh_Summary!Z7*1000<0,0,GWh_Summary!Z7*1000) -> 1965672.806 | P7: =O7*INDEX(RefTables!$D$22:$F$22,1,StateData!$C$73)*1/1000000 -> 123.8373868 | Q7: =-O7*INDEX(RefTables!$D$38:$F$39,StateData!$C$74,StateData!$C$73)*1/1000000 -> -155.2014522 | R7: =IF(CostData!$C$6="Proposed - Option 1", INDEX(Apdx_5_5_Opt_1_CumSavings!$G$7:$Q$59,MATCH(B7,Apdx_5_5_Opt_1_CumSavings!$C$7:$C$59,0),MATCH(CostData!$C$3,Apdx_5_5_Opt_1_CumSavings!$G$6:$Q$6,0)), INDEX(Apdx_5_5_Opt_2_CumSavings!$G$7:$Q$59,MATCH(B7,Apdx_5_5_Opt_2_CumSavings!$C$7:$C$59,0),MATCH(CostData!$C$3,Apdx_5_5_Opt_2_CumSavings!$G$6:$Q$6,0)))*1000 -> 11284404.82 | S7: =T7+U7+V7 -> 94.97186407 | T7: =-$R7*INDEX(RefTables!$D$38:$F$39,StateData!$C$74,StateData!$C$73)*1/1000000 -> -890.9702622 | U7: =$R7*INDEX(RefTables!$D$28:$F$28,1,StateData!$C$73)/2*1/1000000 -> 492.9710632 | V7: 492.9710632 | X7: 1098.293818 | Y7: -1046.171714 | Z7: 492.9710632 | AB7: 11.56458978 | AC7: 459.0098613 | AD7: 0 | AE7: 10.91091666 | AF7: 0 | AG7: 123.8373868 | AH7: 492.9710632 | AI7: -155.2014522 | AJ7: -890.9702622 | AL7: =IF(CostData!$C$6="Proposed - Option 1", (INDEX(Apdx_5_5_Opt_1_CumSavings!$S$7:$S$59,MATCH(B7,Apdx_5_5_Opt_1_CumSavings!$C$7:$C$59,0)) +INDEX(Apdx_5_5_Opt_1_CumSavings!$G$7:$Q$59,MATCH(B7,Apdx_5_5_Opt_1_CumSavings!$C$7:$C$59,0),MATCH(CostData!$C$3,Apdx_5_5_Opt_1_CumSavings!$G$6:$Q$6,0))), (INDEX(Apdx_5_5_Opt_2_CumSavings!$S$7:$S$59,MATCH(B7,Apdx_5_5_Opt_2_CumSavings!$C$7:$C$59,0)) +INDEX(Apdx_5_5_Opt_2_CumSavings!$G$7:$Q$59,MATCH(B7,Apdx_5_5_Opt_2_CumSavings!$C$7:$C$59,0),MATCH(CostData!$C$3,Apdx_5_5_Opt_2_CumSavings!$G$6:$Q$6,0))))/1000 -> 107.5677224 | AM7: =AL7*INDEX(RefTables!$D$38:$F$39,StateData!$C$74,StateData!$C$73)*10^-3 -> 8.493105606 | AN7: =AM7*100/AL7 -> 7.895589323 | AP7: =IF(CostData!$C$6="Proposed - Option 1", INDEX(Apdx_5_5_Opt_1_CumSavings!$S$7:$S$59,MATCH(B7,Apdx_5_5_Opt_1_CumSavings!$C$7:$C$59,0)), INDEX(Apdx_5_5_Opt_2_CumSavings!$S$7:$S$59,MATCH(B7,Apdx_5_5_Opt_2_CumSavings!$C$7:$C$59,0)))/1000 -> 96.28331759 | AR7: 8.504670195 | AS7: 8.952115467 | AT7: 8.493105606 | AU7: 8.504016522 | AV7: 8.493105606 | AW7: 8.46174154 | AX7: =$AM7+(AH7+AJ7)/1000 -> 8.095106406 | AZ7: 7.906340308 | BA7: 8.322306419 | BB7: 7.895589323 | BC7: 7.905732623 | BD7: 7.895589323 | BE7: 7.866431817 | BF7: =AX7*100/$AP7 -> 8.407589819 | BH7: 0.01075098507 | BI7: 0.426717096 | BJ7: 0 | BK7: 0.01014329989 | BL7: 0 | BM7: -0.02915750629 | BN7: =BF7-$AN7 -> 0.5120004955 | BP7: 0.9304543702
B8: Arkansas | C8: =D8-U8-V8 -> -113.9325662 | D8: =F8+H8+J8+L8+N8+P8+Q8+S8 -> 379.2272221 | E8: =-'BB1'!H8 -> 1757.628952 | F8: =E8*INDEX(RefTables!$D$14:$F$14,1,StateData!$C$73)*1/1000 -> 13.53374293 | G8: =-BB2a!P8 -> 10962.9675 | H8: =G8*INDEX(RefTables!$D$15:$F$15,1,StateData!$C$73)*1/1000 -> 361.7779274 | I8: =-BB2b!N8*BB2b!O8 -> 0 | J8: =I8*INDEX(RefTables!$D$16:$F$16,1,StateData!$C$73)*1/1000 -> 0 | K8: =BB3ai!C8 -> 842037.1297 | L8: =K8*INDEX(RefTables!$D$17:$F$17,1,StateData!$C$73)*1/1000000 -> 5.052222778 | M8: =BB3aii!C8 -> 0 | N8: =M8*INDEX(RefTables!$D$18:$F$18,1,StateData!$C$73)*1/1000000 -> 0 | O8: =IF(GWh_Summary!Z8*1000<0,0,GWh_Summary!Z8*1000) -> 3048452.477 | P8: =O8*INDEX(RefTables!$D$22:$F$22,1,StateData!$C$73)*1/1000000 -> 192.052506 | Q8: =-O8*INDEX(RefTables!$D$38:$F$39,StateData!$C$74,StateData!$C$73)*1/1000000 -> -240.6932883 | R8: =IF(CostData!$C$6="Proposed - Option 1", INDEX(Apdx_5_5_Opt_1_CumSavings!$G$7:$Q$59,MATCH(B8,Apdx_5_5_Opt_1_CumSavings!$C$7:$C$59,0),MATCH(CostData!$C$3,Apdx_5_5_Opt_1_CumSavings!$G$6:$Q$6,0)), INDEX(Apdx_5_5_Opt_2_CumSavings!$G$7:$Q$59,MATCH(B8,Apdx_5_5_Opt_2_CumSavings!$C$7:$C$59,0),MATCH(CostData!$C$3,Apdx_5_5_Opt_2_CumSavings!$G$6:$Q$6,0)))*1000 -> 5644362.427 | S8: 47.50411117 | T8: =-$R8*INDEX(RefTables!$D$38:$F$39,StateData!$C$74,StateData!$C$73)*1/1000000 -> -445.6556771 | U8: =$R8*INDEX(RefTables!$D$28:$F$28,1,StateData!$C$73)/2*1/1000000 -> 246.5798941 | V8: 246.5798941 | X8: 818.9962933 | Y8: -686.3489654 | Z8: 246.5798941 | AB8: 13.53374293 | AC8: 361.7779274 | AD8: 0 | AE8: 5.052222778 | AF8: 0 | AG8: 192.052506 | AH8: 246.5798941 | AI8: -240.6932883 | AJ8: -445.6556771 | AL8: =IF(CostData!$C$6="Proposed - Option 1", (INDEX(Apdx_5_5_Opt_1_CumSavings!$S$7:$S$59,MATCH(B8,Apdx_5_5_Opt_1_CumSavings!$C$7:$C$59,0)) +INDEX(Apdx_5_5_Opt_1_CumSavings!$G$7:$Q$59,MATCH(B8,Apdx_5_5_Opt_1_CumSavings!$C$7:$C$59,0),MATCH(CostData!$C$3,Apdx_5_5_Opt_1_CumSavings!$G$6:$Q$6,0))), (INDEX(Apdx_5_5_Opt_2_CumSavings!$S$7:$S$59,MATCH(B8,Apdx_5_5_Opt_2_CumSavings!$C$7:$C$59,0)) +INDEX(Apdx_5_5_Opt_2_CumSavings!$G$7:$Q$59,MATCH(B8,Apdx_5_5_Opt_2_CumSavings!$C$7:$C$59,0),MATCH(CostData!$C$3,Apdx_5_5_Opt_2_CumSavings!$G$6:$Q$6,0))))/1000 -> 60.39084571 | AM8: =AL8*INDEX(RefTables!$D$38:$F$39,StateData!$C$74,StateData!$C$73)*10^-3 -> 4.768213166 | AN8: 7.895589323 | AP8: =IF(CostData!$C$6="Proposed - Option 1", INDEX(Apdx_5_5_Opt_1_CumSavings!$S$7:$S$59,MATCH(B8,Apdx_5_5_Opt_1_CumSavings!$C$7:$C$59,0)), INDEX(Apdx_5_5_Opt_2_CumSavings!$S$7:$S$59,MATCH(B8,Apdx_5_5_Opt_2_CumSavings!$C$7:$C$59,0)))/1000 -> 54.74648328 | AR8: 4.781746909 | AS8: 5.129991094 | AT8: 4.768213166 | AU8: 4.773265389 | AV8: 4.768213166 | AW8: 4.719572384 | AX8: 4.569137383 | AZ8: 7.917999579 | BA8: 8.494650196 | BB8: 7.895589323 | BC8: 7.903955198 | BD8: 7.895589323 | BE8: 7.815046019 | BF8: 8.345992489 | BH8: 0.02241025568 | BI8: 0.5990608729 | BJ8: 0 | BK8: 0.00836587519 | BL8: 0 | BM8: -0.08054330366 | BN8: 0.4504031663 | BP8: 0.9996968664
B9: California | C9: =D9-U9-V9 -> -2970.250349 | D9: 237.5965457 | E9: =-'BB1'!H9 -> 55.46409637 | F9: =E9*INDEX(RefTables!$D$14:$F$14,1,StateData!$C$73)*1/1000 -> 0.427073542 | G9: =-BB2a!P9 -> 2985.598693 | H9: =G9*INDEX(RefTables!$D$15:$F$15,1,StateData!$C$73)*1/1000 -> 98.52475688 | I9: =-BB2b!N9*BB2b!O9 -> 57.1580201 | J9: =I9*INDEX(RefTables!$D$16:$F$16,1,StateData!$C$73)*1/1000 -> 1.886214663 | K9: =BB3ai!C9 -> 1034647.927 | L9: =K9*INDEX(RefTables!$D$17:$F$17,1,StateData!$C$73)*1/1000000 -> 6.207887561 | M9: =BB3aii!C9 -> 0 | N9: =M9*INDEX(RefTables!$D$18:$F$18,1,StateData!$C$73)*1/1000000 -> 0 | O9: =IF(GWh_Summary!Z9*1000<0,0,GWh_Summary!Z9*1000) -> 11183858.74 | P9: =O9*INDEX(RefTables!$D$22:$F$22,1,StateData!$C$73)*1/1000000 -> 704.5831009 | Q9: =-O9*INDEX(RefTables!$D$38:$F$39,StateData!$C$74,StateData!$C$73)*1/1000000 -> -883.0315569 | R9: =IF(CostData!$C$6="Proposed - Option 1", INDEX(Apdx_5_5_Opt_1_CumSavings!$G$7:$Q$59,MATCH(B9,Apdx_5_5_Opt_1_CumSavings!$C$7:$C$59,0),MATCH(CostData!$C$3,Apdx_5_5_Opt_1_CumSavings!$G$6:$Q$6,0)), INDEX(Apdx_5_5_Opt_2_CumSavings!$G$7:$Q$59,MATCH(B9,Apdx_5_5_Opt_2_CumSavings!$C$7:$C$59,0),MATCH(CostData!$C$3,Apdx_5_5_Opt_2_CumSavings!$G$6:$Q$6,0)))*1000 -> 36714774.62 | S9: 308.9990691 | T9: =-$R9*INDEX(RefTables!$D$38:$F$39,StateData!$C$74,StateData!$C$73)*1/1000000 -> -2898.847825 | U9: =$R9*INDEX(RefTables!$D$28:$F$28,1,StateData!$C$73)/2*1/1000000 -> 1603.923447 | V9: 1603.923447 | X9: 2415.552481 | Y9: -3781.879382 | Z9: 1603.923447 | AB9: 0.427073542 | AC9: 98.52475688 | AD9: 1.886214663 | AE9: 6.207887561 | AF9: 0 | AG9: 704.5831009 | AH9: 1603.923447 | AI9: -883.0315569 | AJ9: -2898.847825 | AL9: =IF(CostData!$C$6="Proposed - Option 1", (INDEX(Apdx_5_5_Opt_1_CumSavings!$S$7:$S$59,MATCH(B9,Apdx_5_5_Opt_1_CumSavings!$C$7:$C$59,0)) +INDEX(Apdx_5_5_Opt_1_CumSavings!$G$7:$Q$59,MATCH(B9,Apdx_5_5_Opt_1_CumSavings!$C$7:$C$59,0),MATCH(CostData!$C$3,Apdx_5_5_Opt_1_CumSavings!$G$6:$Q$6,0))), (INDEX(Apdx_5_5_Opt_2_CumSavings!$S$7:$S$59,MATCH(B9,Apdx_5_5_Opt_2_CumSavings!$C$7:$C$59,0)) +INDEX(Apdx_5_5_Opt_2_CumSavings!$G$7:$Q$59,MATCH(B9,Apdx_5_5_Opt_2_CumSavings!$C$7:$C$59,0),MATCH(CostData!$C$3,Apdx_5_5_Opt_2_CumSavings!$G$6:$Q$6,0))))/1000 -> 345.2422925 | AM9: =AL9*INDEX(RefTables!$D$38:$F$39,StateData!$C$74,StateData!$C$73)*10^-3 -> 27.25891358 | AN9: 7.895589323 | AP9: =IF(CostData!$C$6="Proposed - Option 1", INDEX(Apdx_5_5_Opt_1_CumSavings!$S$7:$S$59,MATCH(B9,Apdx_5_5_Opt_1_CumSavings!$C$7:$C$59,0)), INDEX(Apdx_5_5_Opt_2_CumSavings!$S$7:$S$59,MATCH(B9,Apdx_5_5_Opt_2_CumSavings!$C$7:$C$59,0)))/1000 -> 308.5275179 | AR9: 27.25934066 | AS9: 27.35743834 | AT9: 27.2607998 | AU9: 27.26512147 | AV9: 27.25891358 | AW9: 27.08046513 | AX9: 25.96398921 | AZ9: 7.895713026 | BA9: 7.924127182 | BB9: 7.896135668 | BC9: 7.897387448 | BD9: 7.895589323 | BE9: 7.843901433 | BF9: 8.415453307 | BH9: 0.0001237025565 | BI9: 0.02853785849 | BJ9: 0.0005463451913 | BK9: 0.001798124881 | BL9: 0 | BM9: -0.0516878899 | BN9: 0.5198639844 | BP9: 0.4991821256
B10: Colorado | C10: -457.3609295 | D10: 212.6729509 | E10: =-'BB1'!H10 -> 2082.279496 | F10: =E10*INDEX(RefTables!$D$14:$F$14,1,StateData!$C$73)*1/1000 -> 16.03355212 | G10: =-BB2a!P10 -> 6170.431963 | H10: =G10*INDEX(RefTables!$D$15:$F$15,1,StateData!$C$73)*1/1000 -> 203.6242548 | I10: =-BB2b!N10*BB2b!O10 -> 79.76565745 | J10: =I10*INDEX(RefTables!$D$16:$F$16,1,StateData!$C$73)*1/1000 -> 2.632266696 | K10: =BB3ai!C10 -> 0 | L10: =K10*INDEX(RefTables!$D$17:$F$17,1,StateData!$C$73)*1/1000000 -> 0 | M10: =BB3aii!C10 -> 0 | N10: =M10*INDEX(RefTables!$D$18:$F$18,1,StateData!$C$73)*1/1000000 -> 0 | O10: =IF(GWh_Summary!Z10*1000<0,0,GWh_Summary!Z10*1000) -> 4647737.804 | P10: =O10*INDEX(RefTables!$D$22:$F$22,1,StateData!$C$73)*1/1000000 -> 292.8074816 | Q10: =-O10*INDEX(RefTables!$D$38:$F$39,StateData!$C$74,StateData!$C$73)*1/1000000 -> -366.9662898 | R10: =IF(CostData!$C$6="Proposed - Option 1", INDEX(Apdx_5_5_Opt_1_CumSavings!$G$7:$Q$59,MATCH(B10,Apdx_5_5_Opt_1_CumSavings!$C$7:$C$59,0),MATCH(CostData!$C$3,Apdx_5_5_Opt_1_CumSavings!$G$6:$Q$6,0)), INDEX(Apdx_5_5_Opt_2_CumSavings!$G$7:$Q$59,MATCH(B10,Apdx_5_5_Opt_2_CumSavings!$C$7:$C$59,0),MATCH(CostData!$C$3,Apdx_5_5_Opt_2_CumSavings!$G$6:$Q$6,0)))*1000 -> 7668739.725 | S10: 64.54168548 | T10: =-$R10*INDEX(RefTables!$D$38:$F$39,StateData!$C$74,StateData!$C$73)*1/1000000 -> -605.492195 | U10: =$R10*INDEX(RefTables!$D$28:$F$28,1,StateData!$C$73)/2*1/1000000 -> 335.0169402 | V10: 335.0169402 | X10: 850.1144955 | Y10: -972.4584848 | Z10: 335.0169402 | AB10: 16.03355212 | AC10: 203.6242548 | AD10: 2.632266696 | AE10: 0 | AF10: 0 | AG10: 292.8074816 | AH10: 335.0169402 | AI10: -366.9662898 | AJ10: -605.492195 | AL10: =IF(CostData!$C$6="Proposed - Option 1", (INDEX(Apdx_5_5_Opt_1_CumSavings!$S$7:$S$59,MATCH(B10,Apdx_5_5_Opt_1_CumSavings!$C$7:$C$59,0)) +INDEX(Apdx_5_5_Opt_1_CumSavings!$G$7:$Q$59,MATCH(B10,Apdx_5_5_Opt_1_CumSavings!$C$7:$C$59,0),MATCH(CostData!$C$3,Apdx_5_5_Opt_1_CumSavings!$G$6:$Q$6,0))), (INDEX(Apdx_5_5_Opt_2_CumSavings!$S$7:$S$59,MATCH(B10,Apdx_5_5_Opt_2_CumSavings!$C$7:$C$59,0)) +INDEX(Apdx_5_5_Opt_2_CumSavings!$G$7:$Q$59,MATCH(B10,Apdx_5_5_Opt_2_CumSavings!$C$7:$C$59,0),MATCH(CostData!$C$3,Apdx_5_5_Opt_2_CumSavings!$G$6:$Q$6,0))))/1000 -> 74.99744671 | AM10: =AL10*INDEX(RefTables!$D$38:$F$39,StateData!$C$74,StateData!$C$73)*10^-3 -> 5.921490395 | AN10: 7.895589323 | AP10: =IF(CostData!$C$6="Proposed - Option 1", INDEX(Apdx_5_5_Opt_1_CumSavings!$S$7:$S$59,MATCH(B10,Apdx_5_5_Opt_1_CumSavings!$C$7:$C$59,0)), INDEX(Apdx_5_5_Opt_2_CumSavings!$S$7:$S$59,MATCH(B10,Apdx_5_5_Opt_2_CumSavings!$C$7:$C$59,0)))/1000 -> 67.32870698 | AR10: 5.937523947 | AS10: 6.12511465 | AT10: 5.924122662 | AU10: 5.921490395 | AV10: 5.921490395 | AW10: 5.847331587 | AX10: 5.65101514 | AZ10: 7.91696812 | BA10: 8.167097573 | BB10: 7.899099132 | BC10: 7.895589323 | BD10: 7.895589323 | BE10: 7.796707546 | BF10: 8.393173422 | BH10: 0.02137879731 | BI10: 0.2715082496 | BJ10: 0.003509808415 | BK10: 0 | BL10: 0 | BM10: -0.09888177721 | BN10: 0.4975840993 | BP10: 0.6950991774
B11: Connecticut | C11: -325.9889729 | D11: 6.880076569 | E11: =-'BB1'!H11 -> 8.514234516 | F11: =E11*INDEX(RefTables!$D$14:$F$14,1,StateData!$C$73)*1/1000 -> 0.06555960578 | G11: =-BB2a!P11 -> 241.8599114 | H11: =G11*INDEX(RefTables!$D$15:$F$15,1,StateData!$C$73)*1/1000 -> 7.981377077 | I11: =-BB2b!N11*BB2b!O11 -> 0 | J11: =I11*INDEX(RefTables!$D$16:$F$16,1,StateData!$C$73)*1/1000 -> 0 | K11: =BB3ai!C11 -> 971137.1724 | L11: =K11*INDEX(RefTables!$D$17:$F$17,1,StateData!$C$73)*1/1000000 -> 5.826823034 | M11: =BB3aii!C11 -> 0 | N11: =M11*INDEX(RefTables!$D$18:$F$18,1,StateData!$C$73)*1/1000000 -> 0 | O11: =IF(GWh_Summary!Z11*1000<0,0,GWh_Summary!Z11*1000) -> 2447849.681 | P11: =O11*INDEX(RefTables!$D$22:$F$22,1,StateData!$C$73)*1/1000000 -> 154.2145299 | Q11: =-O11*INDEX(RefTables!$D$38:$F$39,StateData!$C$74,StateData!$C$73)*1/1000000 -> -193.2721581 | R11: =IF(CostData!$C$6="Proposed - Option 1", INDEX(Apdx_5_5_Opt_1_CumSavings!$G$7:$Q$59,MATCH(B11,Apdx_5_5_Opt_1_CumSavings!$C$7:$C$59,0),MATCH(CostData!$C$3,Apdx_5_5_Opt_1_CumSavings!$G$6:$Q$6,0)), INDEX(Apdx_5_5_Opt_2_CumSavings!$G$7:$Q$59,MATCH(B11,Apdx_5_5_Opt_2_CumSavings!$C$7:$C$59,0),MATCH(CostData!$C$3,Apdx_5_5_Opt_2_CumSavings!$G$6:$Q$6,0)))*1000 -> 3809786.605 | S11: 32.06394501 | T11: =-$R11*INDEX(RefTables!$D$38:$F$39,StateData!$C$74,StateData!$C$73)*1/1000000 -> -300.8051045 | U11: =$R11*INDEX(RefTables!$D$28:$F$28,1,StateData!$C$73)/2*1/1000000 -> 166.4345247 | V11: 166.4345247 | X11: 334.5228143 | Y11: -494.0772625 | Z11: 166.4345247 | AB11: 0.06555960578 | AC11: 7.981377077 | AD11: 0 | AE11: 5.826823034 | AF11: 0 | AG11: 154.2145299 | AH11: 166.4345247 | AI11: -193.2721581 | AJ11: -300.8051045 | AL11: =IF(CostData!$C$6="Proposed - Option 1", (INDEX(Apdx_5_5_Opt_1_CumSavings!$S$7:$S$59,MATCH(B11,Apdx_5_5_Opt_1_CumSavings!$C$7:$C$59,0)) +INDEX(Apdx_5_5_Opt_1_CumSavings!$G$7:$Q$59,MATCH(B11,Apdx_5_5_Opt_1_CumSavings!$C$7:$C$59,0),MATCH(CostData!$C$3,Apdx_5_5_Opt_1_CumSavings!$G$6:$Q$6,0))), (INDEX(Apdx_5_5_Opt_2_CumSavings!$S$7:$S$59,MATCH(B11,Apdx_5_5_Opt_2_CumSavings!$C$7:$C$59,0)) +INDEX(Apdx_5_5_Opt_2_CumSavings!$G$7:$Q$59,MATCH(B11,Apdx_5_5_Opt_2_CumSavings!$C$7:$C$59,0),MATCH(CostData!$C$3,Apdx_5_5_Opt_2_CumSavings!$G$6:$Q$6,0))))/1000 -> 34.85939219 | AM11: =AL11*INDEX(RefTables!$D$38:$F$39,StateData!$C$74,StateData!$C$73)*10^-3 -> 2.752354448 | AN11: 7.895589323 | AP11: =IF(CostData!$C$6="Proposed - Option 1", INDEX(Apdx_5_5_Opt_1_CumSavings!$S$7:$S$59,MATCH(B11,Apdx_5_5_Opt_1_CumSavings!$C$7:$C$59,0)), INDEX(Apdx_5_5_Opt_2_CumSavings!$S$7:$S$59,MATCH(B11,Apdx_5_5_Opt_2_CumSavings!$C$7:$C$59,0)))/1000 -> 31.04960559 | AR11: 2.752420008 | AS11: 2.760335825 | AT11: 2.752354448 | AU11: 2.758181271 | AV11: 2.752354448 | AW11: 2.71329682 | AX11: 2.617983868 | AZ11: 7.895777392 | BA11: 7.918485239 | BB11: 7.895589323 | BC11: 7.91230454 | BD11: 7.895589323 | BE11: 7.783545981 | BF11: 8.431617146 | BH11: 0.0001880687002 | BI11: 0.02289591578 | BJ11: 0 | BK11: 0.01671521696 | BL11: 0 | BM11: -0.1120433424 | BN11: 0.5360278225 | BP11: 0.4637836816
B12: Delaware | C12: -89.85784506 | D12: 22.05227733 | E12: =-'BB1'!H12 -> 81.78121957 | F12: =E12*INDEX(RefTables!$D$14:$F$14,1,StateData!$C$73)*1/1000 -> 0.6297153907 | G12: =-BB2a!P12 -> 761.1969541 | H12: =G12*INDEX(RefTables!$D$15:$F$15,1,StateData!$C$73)*1/1000 -> 25.11949949 | I12: =-BB2b!N12*BB2b!O12 -> 0 | J12: =I12*INDEX(RefTables!$D$16:$F$16,1,StateData!$C$73)*1/1000 -> 0 | K12: =BB3ai!C12 -> 0 | L12: =K12*INDEX(RefTables!$D$17:$F$17,1,StateData!$C$73)*1/1000000 -> 0 | M12: =BB3aii!C12 -> 0 | N12: =M12*INDEX(RefTables!$D$18:$F$18,1,StateData!$C$73)*1/1000000 -> 0 | O12: =IF(GWh_Summary!Z12*1000<0,0,GWh_Summary!Z12*1000) -> 907300.651 | P12: =O12*INDEX(RefTables!$D$22:$F$22,1,StateData!$C$73)*1/1000000 -> 57.15994101 | Q12: =-O12*INDEX(RefTables!$D$38:$F$39,StateData!$C$74,StateData!$C$73)*1/1000000 -> -71.63673333 | R12: =IF(CostData!$C$6="Proposed - Option 1", INDEX(Apdx_5_5_Opt_1_CumSavings!$G$7:$Q$59,MATCH(B12,Apdx_5_5_Opt_1_CumSavings!$C$7:$C$59,0),MATCH(CostData!$C$3,Apdx_5_5_Opt_1_CumSavings!$G$6:$Q$6,0)), INDEX(Apdx_5_5_Opt_2_CumSavings!$G$7:$Q$59,MATCH(B12,Apdx_5_5_Opt_2_CumSavings!$C$7:$C$59,0),MATCH(CostData!$C$3,Apdx_5_5_Opt_2_CumSavings!$G$6:$Q$6,0)))*1000 -> 1280845.083 | S12: 10.77985477 | T12: =-$R12*INDEX(RefTables!$D$38:$F$39,StateData!$C$74,StateData!$C$73)*1/1000000 -> -101.1302676 | U12: =$R12*INDEX(RefTables!$D$28:$F$28,1,StateData!$C$73)/2*1/1000000 -> 55.95506119 | V12: 55.95506119 | X12: 138.8642171 | Y12: -172.7670009 | Z12: 55.95506119 | AB12: 0.6297153907 | AC12: 25.11949949 | AD12: 0 | AE12: 0 | AF12: 0 | AG12: 57.15994101 | AH12: 55.95506119 | AI12: -71.63673333 | AJ12: -101.1302676 | AL12: =IF(CostData!$C$6="Proposed - Option 1", (INDEX(Apdx_5_5_Opt_1_CumSavings!$S$7:$S$59,MATCH(B12,Apdx_5_5_Opt_1_CumSavings!$C$7:$C$59,0)) +INDEX(Apdx_5_5_Opt_1_CumSavings!$G$7:$Q$59,MATCH(B12,Apdx_5_5_Opt_1_CumSavings!$C$7:$C$59,0),MATCH(CostData!$C$3,Apdx_5_5_Opt_1_CumSavings!$G$6:$Q$6,0))), (INDEX(Apdx_5_5_Opt_2_CumSavings!$S$7:$S$59,MATCH(B12,Apdx_5_5_Opt_2_CumSavings!$C$7:$C$59,0)) +INDEX(Apdx_5_5_Opt_2_CumSavings!$G$7:$Q$59,MATCH(B12,Apdx_5_5_Opt_2_CumSavings!$C$7:$C$59,0),MATCH(CostData!$C$3,Apdx_5_5_Opt_2_CumSavings!$G$6:$Q$6,0))))/1000 -> 13.9124534 | AM12: =AL12*INDEX(RefTables!$D$38:$F$39,StateData!$C$74,StateData!$C$73)*10^-3 -> 1.098470185 | AN12: 7.895589323 | AP12: =IF(CostData!$C$6="Proposed - Option 1", INDEX(Apdx_5_5_Opt_1_CumSavings!$S$7:$S$59,MATCH(B12,Apdx_5_5_Opt_1_CumSavings!$C$7:$C$59,0)), INDEX(Apdx_5_5_Opt_2_CumSavings!$S$7:$S$59,MATCH(B12,Apdx_5_5_Opt_2_CumSavings!$C$7:$C$59,0)))/1000 -> 12.63160831 | AR12: 1.0990999 | AS12: 1.123589684 | AT12: 1.098470185 | AU12: 1.098470185 | AV12: 1.098470185 | AW12: 1.083993393 | AX12: 1.053294979 | AZ12: 7.900115594 | BA12: 8.076143383 | BB12: 7.895589323 | BC12: 7.895589323 | BD12: 7.895589323 | BE12: 7.791532965 | BF12: 8.338565861 | BH12: 0.004526271339 | BI12: 0.1805540602 | BJ12: 0 | BK12: 0 | BL12: 0 | BM12: -0.104056358 | BN12: 0.4429765379 | BP12: 0.5240005115
B13: Florida | C13: -1671.447759 | D13: 839.1936472 | E13: =-'BB1'!H13 -> 2727.559787 | F13: =E13*INDEX(RefTables!$D$14:$F$14,1,StateData!$C$73)*1/1000 -> 21.00221036 | G13: =-BB2a!P13 -> 25458.96074 | H13: =G13*INDEX(RefTables!$D$15:$F$15,1,StateData!$C$73)*1/1000 -> 840.1457045 | I13: =-BB2b!N13*BB2b!O13 -> 214.0743551 | J13: =I13*INDEX(RefTables!$D$16:$F$16,1,StateData!$C$73)*1/1000 -> 7.064453717 | K13: =BB3ai!C13 -> 1623103.935 | L13: =K13*INDEX(RefTables!$D$17:$F$17,1,StateData!$C$73)*1/1000000 -> 9.738623611 | M13: =BB3aii!C13 -> 0 | N13: =M13*INDEX(RefTables!$D$18:$F$18,1,StateData!$C$73)*1/1000000 -> 0 | O13: =IF(GWh_Summary!Z13*1000<0,0,GWh_Summary!Z13*1000) -> 17585815.61 | P13: =O13*INDEX(RefTables!$D$22:$F$22,1,StateData!$C$73)*1/1000000 -> 1107.906383 | Q13: =-O13*INDEX(RefTables!$D$38:$F$39,StateData!$C$74,StateData!$C$73)*1/1000000 -> -1388.50378 | R13: =IF(CostData!$C$6="Proposed - Option 1", INDEX(Apdx_5_5_Opt_1_CumSavings!$G$7:$Q$59,MATCH(B13,Apdx_5_5_Opt_1_CumSavings!$C$7:$C$59,0),MATCH(CostData!$C$3,Apdx_5_5_Opt_1_CumSavings!$G$6:$Q$6,0)), INDEX(Apdx_5_5_Opt_2_CumSavings!$G$7:$Q$59,MATCH(B13,Apdx_5_5_Opt_2_CumSavings!$C$7:$C$59,0),MATCH(CostData!$C$3,Apdx_5_5_Opt_2_CumSavings!$G$6:$Q$6,0)))*1000 -> 28735047.66 | S13: 241.8400513 | T13: =-$R13*INDEX(RefTables!$D$38:$F$39,StateData!$C$74,StateData!$C$73)*1/1000000 -> -2268.801355 | U13: =$R13*INDEX(RefTables!$D$28:$F$28,1,StateData!$C$73)/2*1/1000000 -> 1255.320703 | V13: 1255.320703 | X13: 3241.178079 | Y13: -3657.305135 | Z13: 1255.320703 | AB13: 21.00221036 | AC13: 840.1457045 | AD13: 7.064453717 | AE13: 9.738623611 | AF13: 0 | AG13: 1107.906383 | AH13: 1255.320703 | AI13: -1388.50378 | AJ13: -2268.801355 | AL13: =IF(CostData!$C$6="Proposed - Option 1", (INDEX(Apdx_5_5_Opt_1_CumSavings!$S$7:$S$59,MATCH(B13,Apdx_5_5_Opt_1_CumSavings!$C$7:$C$59,0)) +INDEX(Apdx_5_5_Opt_1_CumSavings!$G$7:$Q$59,MATCH(B13,Apdx_5_5_Opt_1_CumSavings!$C$7:$C$59,0),MATCH(CostData!$C$3,Apdx_5_5_Opt_1_CumSavings!$G$6:$Q$6,0))), (INDEX(Apdx_5_5_Opt_2_CumSavings!$S$7:$S$59,MATCH(B13,Apdx_5_5_Opt_2_CumSavings!$C$7:$C$59,0)) +INDEX(Apdx_5_5_Opt_2_CumSavings!$G$7:$Q$59,MATCH(B13,Apdx_5_5_Opt_2_CumSavings!$C$7:$C$59,0),MATCH(CostData!$C$3,Apdx_5_5_Opt_2_CumSavings!$G$6:$Q$6,0))))/1000 -> 302.4021683 | AM13: =AL13*INDEX(RefTables!$D$38:$F$39,StateData!$C$74,StateData!$C$73)*10^-3 -> 23.87643331 | AN13: 7.895589323 | AP13: =IF(CostData!$C$6="Proposed - Option 1", INDEX(Apdx_5_5_Opt_1_CumSavings!$S$7:$S$59,MATCH(B13,Apdx_5_5_Opt_1_CumSavings!$C$7:$C$59,0)), INDEX(Apdx_5_5_Opt_2_CumSavings!$S$7:$S$59,MATCH(B13,Apdx_5_5_Opt_2_CumSavings!$C$7:$C$59,0)))/1000 -> 273.6671206 | AR13: 23.89743552 | AS13: 24.71657902 | AT13: 23.88349776 | AU13: 23.88617193 | AV13: 23.87643331 | AW13: 23.59583592 | AX13: 22.86295266 | AZ13: 7.902534449 | BA13: 8.173413292 | BB13: 7.897925435 | BC13: 7.898809744 | BD13: 7.895589323 | BE13: 7.802799844 | BF13: 8.354292839 | BH13: 0.006945125586 | BI13: 0.2778239684 | BJ13: 0.002336112124 | BK13: 0.003220421225 | BL13: 0 | BM13: -0.09278947894 | BN13: 0.4587035156 | BP13: 0.656239664
B14: Georgia | C14: -1135.325796 | D14: 297.1756756 | E14: =-'BB1'!H14 -> 2558.080487 | F14: =E14*INDEX(RefTables!$D$14:$F$14,1,StateData!$C$73)*1/1000 -> 19.69721975 | G14: =-BB2a!P14 -> 8223.049153 | H14: =G14*INDEX(RefTables!$D$15:$F$15,1,StateData!$C$73)*1/1000 -> 271.3606221 | I14: =-BB2b!N14*BB2b!O14 -> 0 | J14: =I14*INDEX(RefTables!$D$16:$F$16,1,StateData!$C$73)*1/1000 -> 0 | K14: =BB3ai!C14 -> 1828241.264 | L14: =K14*INDEX(RefTables!$D$17:$F$17,1,StateData!$C$73)*1/1000000 -> 10.96944758 | M14: =BB3aii!C14 -> 17392320 | N14: =M14*INDEX(RefTables!$D$18:$F$18,1,StateData!$C$73)*1/1000000 -> 0 | O14: =IF(GWh_Summary!Z14*1000<0,0,GWh_Summary!Z14*1000) -> 8952100.175 | P14: =O14*INDEX(RefTables!$D$22:$F$22,1,StateData!$C$73)*1/1000000 -> 563.982311 | Q14: =-O14*INDEX(RefTables!$D$38:$F$39,StateData!$C$74,StateData!$C$73)*1/1000000 -> -706.8210656 | R14: =IF(CostData!$C$6="Proposed - Option 1", INDEX(Apdx_5_5_Opt_1_CumSavings!$G$7:$Q$59,MATCH(B14,Apdx_5_5_Opt_1_CumSavings!$C$7:$C$59,0),MATCH(CostData!$C$3,Apdx_5_5_Opt_1_CumSavings!$G$6:$Q$6,0)), INDEX(Apdx_5_5_Opt_2_CumSavings!$G$7:$Q$59,MATCH(B14,Apdx_5_5_Opt_2_CumSavings!$C$7:$C$59,0),MATCH(CostData!$C$3,Apdx_5_5_Opt_2_CumSavings!$G$6:$Q$6,0)))*1000 -> 16395411.13 | S14: 137.9871408 | T14: =-$R14*INDEX(RefTables!$D$38:$F$39,StateData!$C$74,StateData!$C$73)*1/1000000 -> -1294.51433 | U14: =$R14*INDEX(RefTables!$D$28:$F$28,1,StateData!$C$73)/2*1/1000000 -> 716.2507356 | V14: 716.2507356 | X14: 1582.260336 | Y14: -2001.335396 | Z14: 716.2507356 | AB14: 19.69721975 | AC14: 271.3606221 | AD14: 0 | AE14: 10.96944758 | AF14: 0 | AG14: 563.982311 | AH14: 716.2507356 | AI14: -706.8210656 | AJ14: -1294.51433 | AL14: =IF(CostData!$C$6="Proposed - Option 1", (INDEX(Apdx_5_5_Opt_1_CumSavings!$S$7:$S$59,MATCH(B14,Apdx_5_5_Opt_1_CumSavings!$C$7:$C$59,0)) +INDEX(Apdx_5_5_Opt_1_CumSavings!$G$7:$Q$59,MATCH(B14,Apdx_5_5_Opt_1_CumSavings!$C$7:$C$59,0),MATCH(CostData!$C$3,Apdx_5_5_Opt_1_CumSavings!$G$6:$Q$6,0))), (INDEX(Apdx_5_5_Opt_2_CumSavings!$S$7:$S$59,MATCH(B14,Apdx_5_5_Opt_2_CumSavings!$C$7:$C$59,0)) +INDEX(Apdx_5_5_Opt_2_CumSavings!$G$7:$Q$59,MATCH(B14,Apdx_5_5_Opt_2_CumSavings!$C$7:$C$59,0),MATCH(CostData!$C$3,Apdx_5_5_Opt_2_CumSavings!$G$6:$Q$6,0))))/1000 -> 174.043595 | AM14: =AL14*INDEX(RefTables!$D$38:$F$39,StateData!$C$74,StateData!$C$73)*10^-3 -> 13.74176751 | AN14: 7.895589323 | AP14: =IF(CostData!$C$6="Proposed - Option 1", INDEX(Apdx_5_5_Opt_1_CumSavings!$S$7:$S$59,MATCH(B14,Apdx_5_5_Opt_1_CumSavings!$C$7:$C$59,0)), INDEX(Apdx_5_5_Opt_2_CumSavings!$S$7:$S$59,MATCH(B14,Apdx_5_5_Opt_2_CumSavings!$C$7:$C$59,0)))/1000 -> 157.6481839 | AR14: 13.76146473 | AS14: 14.01312813 | AT14: 13.74176751 | AU14: 13.75273695 | AV14: 13.74176751 | AW14: 13.59892875 | AX14: 13.16350391 | AZ14: 7.906906729 | BA14: 8.05150464 | BB14: 7.895589323 | BC14: 7.901892024 | BD14: 7.895589323 | BE14: 7.813518647 | BF14: 8.349924234 | BH14: 0.0113174057 | BI14: 0.1559153165 | BJ14: 0 | BK14: 0.006302701102 | BL14: 0 | BM14: -0.08207067578 | BN14: 0.4543349107 | BP14: 0.5457996582
B15: Hawaii | C15: -90.1162595 | D15: 8.173187246 | E15: =-'BB1'!H15 -> 84.90390282 | F15: =E15*INDEX(RefTables!$D$14:$F$14,1,StateData!$C$73)*1/1000 -> 0.6537600517 | G15: =-BB2a!P15 -> 0 | H15: =G15*INDEX(RefTables!$D$15:$F$15,1,StateData!$C$73)*1/1000 -> 0 | I15: =-BB2b!N15*BB2b!O15 -> 0 | J15: =I15*INDEX(RefTables!$D$16:$F$16,1,StateData!$C$73)*1/1000 -> 0 | K15: =BB3ai!C15 -> 0 | L15: =K15*INDEX(RefTables!$D$17:$F$17,1,StateData!$C$73)*1/1000000 -> 0 | M15: =BB3aii!C15 -> 0 | N15: =M15*INDEX(RefTables!$D$18:$F$18,1,StateData!$C$73)*1/1000000 -> 0 | O15: =IF(GWh_Summary!Z15*1000<0,0,GWh_Summary!Z15*1000) -> 122111.768 | P15: =O15*INDEX(RefTables!$D$22:$F$22,1,StateData!$C$73)*1/1000000 -> 7.693041384 | Q15: =-O15*INDEX(RefTables!$D$38:$F$39,StateData!$C$74,StateData!$C$73)*1/1000000 -> -9.641443716 | R15: =IF(CostData!$C$6="Proposed - Option 1", INDEX(Apdx_5_5_Opt_1_CumSavings!$G$7:$Q$59,MATCH(B15,Apdx_5_5_Opt_1_CumSavings!$C$7:$C$59,0),MATCH(CostData!$C$3,Apdx_5_5_Opt_1_CumSavings!$G$6:$Q$6,0)), INDEX(Apdx_5_5_Opt_2_CumSavings!$G$7:$Q$59,MATCH(B15,Apdx_5_5_Opt_2_CumSavings!$C$7:$C$59,0),MATCH(CostData!$C$3,Apdx_5_5_Opt_2_CumSavings!$G$6:$Q$6,0)))*1000 -> 1124952.345 | S15: 9.467829527 | T15: =-$R15*INDEX(RefTables!$D$38:$F$39,StateData!$C$74,StateData!$C$73)*1/1000000 -> -88.82161722 | U15: =$R15*INDEX(RefTables!$D$28:$F$28,1,StateData!$C$73)/2*1/1000000 -> 49.14472337 | V15: 49.14472337 | X15: 57.49152481 | Y15: -98.46306093 | Z15: 49.14472337 | AB15: 0.6537600517 | AC15: 0 | AD15: 0 | AE15: 0 | AF15: 0 | AG15: 7.693041384 | AH15: 49.14472337 | AI15: -9.641443716 | AJ15: -88.82161722 | AL15: =IF(CostData!$C$6="Proposed - Option 1", (INDEX(Apdx_5_5_Opt_1_CumSavings!$S$7:$S$59,MATCH(B15,Apdx_5_5_Opt_1_CumSavings!$C$7:$C$59,0)) +INDEX(Apdx_5_5_Opt_1_CumSavings!$G$7:$Q$59,MATCH(B15,Apdx_5_5_Opt_1_CumSavings!$C$7:$C$59,0),MATCH(CostData!$C$3,Apdx_5_5_Opt_1_CumSavings!$G$6:$Q$6,0))), (INDEX(Apdx_5_5_Opt_2_CumSavings!$S$7:$S$59,MATCH(B15,Apdx_5_5_Opt_2_CumSavings!$C$7:$C$59,0)) +INDEX(Apdx_5_5_Opt_2_CumSavings!$G$7:$Q$59,MATCH(B15,Apdx_5_5_Opt_2_CumSavings!$C$7:$C$59,0),MATCH(CostData!$C$3,Apdx_5_5_Opt_2_CumSavings!$G$6:$Q$6,0))))/1000 -> 12.20822668 | AM15: =AL15*INDEX(RefTables!$D$38:$F$39,StateData!$C$74,StateData!$C$73)*10^-3 -> 0.963911442 | AN15: 7.895589323 | AP15: =IF(CostData!$C$6="Proposed - Option 1", INDEX(Apdx_5_5_Opt_1_CumSavings!$S$7:$S$59,MATCH(B15,Apdx_5_5_Opt_1_CumSavings!$C$7:$C$59,0)), INDEX(Apdx_5_5_Opt_2_CumSavings!$S$7:$S$59,MATCH(B15,Apdx_5_5_Opt_2_CumSavings!$C$7:$C$59,0)))/1000 -> 11.08327433 | AR15: 0.9645652021 | AS15: 0.963911442 | AT15: 0.963911442 | AU15: 0.963911442 | AV15: 0.963911442 | AW15: 0.9619630397 | AX15: 0.9242345482 | AZ15: 7.900944401 | BA15: 7.895589323 | BB15: 7.895589323 | BC15: 7.895589323 | BD15: 7.895589323 | BE15: 7.879629574 | BF15: 8.339002722 | BH15: 0.005355077924 | BI15: 0 | BJ15: 0 | BK15: 0 | BL15: 0 | BM15: -0.01595974898 | BN15: 0.4434133984 | BP15: 0.4328087274
B16: Idaho | C16: -269.3814774 | D16: 16.66925239 | E16: =-'BB1'!H16 -> 0 | F16: =E16*INDEX(RefTables!$D$14:$F$14,1,StateData!$C$73)*1/1000 -> 0 | G16: =-BB2a!P16 -> 0 | H16: =G16*INDEX(RefTables!$D$15:$F$15,1,StateData!$C$73)*1/1000 -> 0 | I16: =-BB2b!N16*BB2b!O16 -> 0 | J16: =I16*INDEX(RefTables!$D$16:$F$16,1,StateData!$C$73)*1/1000 -> 0 | K16: =BB3ai!C16 -> 0 | L16: =K16*INDEX(RefTables!$D$17:$F$17,1,StateData!$C$73)*1/1000000 -> 0 | M16: =BB3aii!C16 -> 0 | N16: =M16*INDEX(RefTables!$D$18:$F$18,1,StateData!$C$73)*1/1000000 -> 0 | O16: =IF(GWh_Summary!Z16*1000<0,0,GWh_Summary!Z16*1000) -> 682185.0002 | P16: =O16*INDEX(RefTables!$D$22:$F$22,1,StateData!$C$73)*1/1000000 -> 42.97765501 | Q16: =-O16*INDEX(RefTables!$D$38:$F$39,StateData!$C$74,StateData!$C$73)*1/1000000 -> -53.86252604 | R16: =IF(CostData!$C$6="Proposed - Option 1", INDEX(Apdx_5_5_Opt_1_CumSavings!$G$7:$Q$59,MATCH(B16,Apdx_5_5_Opt_1_CumSavings!$C$7:$C$59,0),MATCH(CostData!$C$3,Apdx_5_5_Opt_1_CumSavings!$G$6:$Q$6,0)), INDEX(Apdx_5_5_Opt_2_CumSavings!$G$7:$Q$59,MATCH(B16,Apdx_5_5_Opt_2_CumSavings!$C$7:$C$59,0),MATCH(CostData!$C$3,Apdx_5_5_Opt_2_CumSavings!$G$6:$Q$6,0)))*1000 -> 3273936.825 | S16: 27.55412341 | T16: =-$R16*INDEX(RefTables!$D$38:$F$39,StateData!$C$74,StateData!$C$73)*1/1000000 -> -258.4966064 | U16: =$R16*INDEX(RefTables!$D$28:$F$28,1,StateData!$C$73)/2*1/1000000 -> 143.0253649 | V16: 143.0253649 | X16: 186.0030199 | Y16: -312.3591324 | Z16: 143.0253649 | AB16: 0 | AC16: 0 | AD16: 0 | AE16: 0 | AF16: 0 | AG16: 42.97765501 | AH16: 143.0253649 | AI16: -53.86252604 | AJ16: -258.4966064 | AL16: =IF(CostData!$C$6="Proposed - Option 1", (INDEX(Apdx_5_5_Opt_1_CumSavings!$S$7:$S$59,MATCH(B16,Apdx_5_5_Opt_1_CumSavings!$C$7:$C$59,0)) +INDEX(Apdx_5_5_Opt_1_CumSavings!$G$7:$Q$59,MATCH(B16,Apdx_5_5_Opt_1_CumSavings!$C$7:$C$59,0),MATCH(CostData!$C$3,Apdx_5_5_Opt_1_CumSavings!$G$6:$Q$6,0))), (INDEX(Apdx_5_5_Opt_2_CumSavings!$S$7:$S$59,MATCH(B16,Apdx_5_5_Opt_2_CumSavings!$C$7:$C$59,0)) +INDEX(Apdx_5_5_Opt_2_CumSavings!$G$7:$Q$59,MATCH(B16,Apdx_5_5_Opt_2_CumSavings!$C$7:$C$59,0),MATCH(CostData!$C$3,Apdx_5_5_Opt_2_CumSavings!$G$6:$Q$6,0))))/1000 -> 31.74295269 | AM16: =AL16*INDEX(RefTables!$D$38:$F$39,StateData!$C$74,StateData!$C$73)*10^-3 -> 2.506293184 | AN16: 7.895589323 | AP16: =IF(CostData!$C$6="Proposed - Option 1", INDEX(Apdx_5_5_Opt_1_CumSavings!$S$7:$S$59,MATCH(B16,Apdx_5_5_Opt_1_CumSavings!$C$7:$C$59,0)), INDEX(Apdx_5_5_Opt_2_CumSavings!$S$7:$S$59,MATCH(B16,Apdx_5_5_Opt_2_CumSavings!$C$7:$C$59,0)))/1000 -> 28.46901587 | AR16: 2.506293184 | AS16: 2.506293184 | AT16: 2.506293184 | AU16: 2.506293184 | AV16: 2.506293184 | AW16: 2.495408313 | AX16: 2.390821942 | AZ16: 7.895589323 | BA16: 7.895589323 | BB16: 7.895589323 | BC16: 7.895589323 | BD16: 7.895589323 | BE16: 7.861298654 | BF16: 8.397978888 | BH16: 0 | BI16: 0 | BJ16: 0 | BK16: 0 | BL16: 0 | BM16: -0.03429066959 | BN16: 0.5023895647 | BP16: 0.4680988951
B17: Illinois | C17: -1302.200387 | D17: 336.4000331 | E17: =-'BB1'!H17 -> 5027.979109 | F17: =E17*INDEX(RefTables!$D$14:$F$14,1,StateData!$C$73)*1/1000 -> 38.71543914 | G17: =-BB2a!P17 -> 7840.048921 | H17: =G17*INDEX(RefTables!$D$15:$F$15,1,StateData!$C$73)*1/1000 -> 258.7216144 | I17: =-BB2b!N17*BB2b!O17 -> 0 | J17: =I17*INDEX(RefTables!$D$16:$F$16,1,StateData!$C$73)*1/1000 -> 0 | K17: =BB3ai!C17 -> 5305342.003 | L17: =K17*INDEX(RefTables!$D$17:$F$17,1,StateData!$C$73)*1/1000000 -> 31.83205202 | M17: =BB3aii!C17 -> 0 | N17: =M17*INDEX(RefTables!$D$18:$F$18,1,StateData!$C$73)*1/1000000 -> 0 | O17: =IF(GWh_Summary!Z17*1000<0,0,GWh_Summary!Z17*1000) -> 9445344.054 | P17: =O17*INDEX(RefTables!$D$22:$F$22,1,StateData!$C$73)*1/1000000 -> 595.0566754 | Q17: =-O17*INDEX(RefTables!$D$38:$F$39,StateData!$C$74,StateData!$C$73)*1/1000000 -> -745.7655766 | R17: =IF(CostData!$C$6="Proposed - Option 1", INDEX(Apdx_5_5_Opt_1_CumSavings!$G$7:$Q$59,MATCH(B17,Apdx_5_5_Opt_1_CumSavings!$C$7:$C$59,0),MATCH(CostData!$C$3,Apdx_5_5_Opt_1_CumSavings!$G$6:$Q$6,0)), INDEX(Apdx_5_5_Opt_2_CumSavings!$G$7:$Q$59,MATCH(B17,Apdx_5_5_Opt_2_CumSavings!$C$7:$C$59,0),MATCH(CostData!$C$3,Apdx_5_5_Opt_2_CumSavings!$G$6:$Q$6,0)))*1000 -> 18754275.72 | S17: 157.8398288 | T17: =-$R17*INDEX(RefTables!$D$38:$F$39,StateData!$C$74,StateData!$C$73)*1/1000000 -> -1480.760592 | U17: =$R17*INDEX(RefTables!$D$28:$F$28,1,StateData!$C$73)/2*1/1000000 -> 819.3002102 | V17: 819.3002102 | X17: 1743.625991 | Y17: -2226.526168 | Z17: 819.3002102 | AB17: 38.71543914 | AC17: 258.7216144 | AD17: 0 | AE17: 31.83205202 | AF17: 0 | AG17: 595.0566754 | AH17: 819.3002102 | AI17: -745.7655766 | AJ17: -1480.760592 | AL17: =IF(CostData!$C$6="Proposed - Option 1", (INDEX(Apdx_5_5_Opt_1_CumSavings!$S$7:$S$59,MATCH(B17,Apdx_5_5_Opt_1_CumSavings!$C$7:$C$59,0)) +INDEX(Apdx_5_5_Opt_1_CumSavings!$G$7:$Q$59,MATCH(B17,Apdx_5_5_Opt_1_CumSavings!$C$7:$C$59,0),MATCH(CostData!$C$3,Apdx_5_5_Opt_1_CumSavings!$G$6:$Q$6,0))), (INDEX(Apdx_5_5_Opt_2_CumSavings!$S$7:$S$59,MATCH(B17,Apdx_5_5_Opt_2_CumSavings!$C$7:$C$59,0)) +INDEX(Apdx_5_5_Opt_2_CumSavings!$G$7:$Q$59,MATCH(B17,Apdx_5_5_Opt_2_CumSavings!$C$7:$C$59,0),MATCH(CostData!$C$3,Apdx_5_5_Opt_2_CumSavings!$G$6:$Q$6,0))))/1000 -> 174.650167 | AM17: =AL17*INDEX(RefTables!$D$38:$F$39,StateData!$C$74,StateData!$C$73)*10^-3 -> 13.78965994 | AN17: 7.895589323 | AP17: =IF(CostData!$C$6="Proposed - Option 1", INDEX(Apdx_5_5_Opt_1_CumSavings!$S$7:$S$59,MATCH(B17,Apdx_5_5_Opt_1_CumSavings!$C$7:$C$59,0)), INDEX(Apdx_5_5_Opt_2_CumSavings!$S$7:$S$59,MATCH(B17,Apdx_5_5_Opt_2_CumSavings!$C$7:$C$59,0)))/1000 -> 155.8958913 | AR17: 13.82837538 | AS17: 14.04838156 | AT17: 13.78965994 | AU17: 13.82149199 | AV17: 13.78965994 | AW17: 13.63895104 | AX17: 13.12819956 | AZ17: 7.917756745 | BA17: 8.043726378 | BB17: 7.895589323 | BC17: 7.913815502 | BD17: 7.895589323 | BE17: 7.80929745 | BF17: 8.421132494 | BH17: 0.02216742176 | BI17: 0.1481370552 | BJ17: 0 | BK17: 0.01822617897 | BL17: 0 | BM17: -0.08629187353 | BN17: 0.5255431707 | BP17: 0.6277819532
B18: Indiana | C18: -995.7509289 | D18: 156.2801975 | E18: =-'BB1'!H18 -> 5121.430386 | F18: =E18*INDEX(RefTables!$D$14:$F$14,1,StateData!$C$73)*1/1000 -> 39.43501397 | G18: =-BB2a!P18 -> 2112.414438 | H18: =G18*INDEX(RefTables!$D$15:$F$15,1,StateData!$C$73)*1/1000 -> 69.70967646 | I18: =-BB2b!N18*BB2b!O18 -> 0 | J18: =I18*INDEX(RefTables!$D$16:$F$16,1,StateData!$C$73)*1/1000 -> 0 | K18: =BB3ai!C18 -> 0 | L18: =K18*INDEX(RefTables!$D$17:$F$17,1,StateData!$C$73)*1/1000000 -> 0 | M18: =BB3aii!C18 -> 0 | N18: =M18*INDEX(RefTables!$D$18:$F$18,1,StateData!$C$73)*1/1000000 -> 0 | O18: =IF(GWh_Summary!Z18*1000<0,0,GWh_Summary!Z18*1000) -> 4000719.083 | P18: =O18*INDEX(RefTables!$D$22:$F$22,1,StateData!$C$73)*1/1000000 -> 252.0453022 | Q18: =-O18*INDEX(RefTables!$D$38:$F$39,StateData!$C$74,StateData!$C$73)*1/1000000 -> -315.8803487 | R18: =IF(CostData!$C$6="Proposed - Option 1", INDEX(Apdx_5_5_Opt_1_CumSavings!$G$7:$Q$59,MATCH(B18,Apdx_5_5_Opt_1_CumSavings!$C$7:$C$59,0),MATCH(CostData!$C$3,Apdx_5_5_Opt_1_CumSavings!$G$6:$Q$6,0)), INDEX(Apdx_5_5_Opt_2_CumSavings!$G$7:$Q$59,MATCH(B18,Apdx_5_5_Opt_2_CumSavings!$C$7:$C$59,0),MATCH(CostData!$C$3,Apdx_5_5_Opt_2_CumSavings!$G$6:$Q$6,0)))*1000 -> 13185343.49 | S18: 110.9705536 | T18: =-$R18*INDEX(RefTables!$D$38:$F$39,StateData!$C$74,StateData!$C$73)*1/1000000 -> -1041.060573 | U18: =$R18*INDEX(RefTables!$D$28:$F$28,1,StateData!$C$73)/2*1/1000000 -> 576.0155632 | V18: 576.0155632 | X18: 937.2055558 | Y18: -1356.940922 | Z18: 576.0155632 | AB18: 39.43501397 | AC18: 69.70967646 | AD18: 0 | AE18: 0 | AF18: 0 | AG18: 252.0453022 | AH18: 576.0155632 | AI18: -315.8803487 | AJ18: -1041.060573 | AL18: =IF(CostData!$C$6="Proposed - Option 1", (INDEX(Apdx_5_5_Opt_1_CumSavings!$S$7:$S$59,MATCH(B18,Apdx_5_5_Opt_1_CumSavings!$C$7:$C$59,0)) +INDEX(Apdx_5_5_Opt_1_CumSavings!$G$7:$Q$59,MATCH(B18,Apdx_5_5_Opt_1_CumSavings!$C$7:$C$59,0),MATCH(CostData!$C$3,Apdx_5_5_Opt_1_CumSavings!$G$6:$Q$6,0))), (INDEX(Apdx_5_5_Opt_2_CumSavings!$S$7:$S$59,MATCH(B18,Apdx_5_5_Opt_2_CumSavings!$C$7:$C$59,0)) +INDEX(Apdx_5_5_Opt_2_CumSavings!$G$7:$Q$59,MATCH(B18,Apdx_5_5_Opt_2_CumSavings!$C$7:$C$59,0),MATCH(CostData!$C$3,Apdx_5_5_Opt_2_CumSavings!$G$6:$Q$6,0))))/1000 -> 126.9501708 | AM18: =AL18*INDEX(RefTables!$D$38:$F$39,StateData!$C$74,StateData!$C$73)*10^-3 -> 10.02346413 | AN18: 7.895589323 | AP18: =IF(CostData!$C$6="Proposed - Option 1", INDEX(Apdx_5_5_Opt_1_CumSavings!$S$7:$S$59,MATCH(B18,Apdx_5_5_Opt_1_CumSavings!$C$7:$C$59,0)), INDEX(Apdx_5_5_Opt_2_CumSavings!$S$7:$S$59,MATCH(B18,Apdx_5_5_Opt_2_CumSavings!$C$7:$C$59,0)))/1000 -> 113.7648273 | AR18: 10.06289915 | AS18: 10.09317381 | AT18: 10.02346413 | AU18: 10.02346413 | AV18: 10.02346413 | AW18: 9.959629088 | AX18: 9.558419125 | AZ18: 7.926652703 | BA18: 7.950500377 | BB18: 7.895589323 | BC18: 7.895589323 | BD18: 7.895589323 | BE18: 7.845305778 | BF18: 8.401910632 | BH18: 0.03106337999 | BI18: 0.05491105368 | BJ18: 0 | BK18: 0 | BL18: 0 | BM18: -0.0502835452 | BN18: 0.5063213091 | BP18: 0.5420121976
B19: Iowa | C19: -350.4887024 | D19: 184.9354199 | E19: =-'BB1'!H19 -> 2024.918088 | F19: =E19*INDEX(RefTables!$D$14:$F$14,1,StateData!$C$73)*1/1000 -> 15.59186928 | G19: =-BB2a!P19 -> 3518.229641 | H19: =G19*INDEX(RefTables!$D$15:$F$15,1,StateData!$C$73)*1/1000 -> 116.1015782 | I19: =-BB2b!N19*BB2b!O19 -> 0 | J19: =I19*INDEX(RefTables!$D$16:$F$16,1,StateData!$C$73)*1/1000 -> 0 | K19: =BB3ai!C19 -> 277784.4925 | L19: =K19*INDEX(RefTables!$D$17:$F$17,1,StateData!$C$73)*1/1000000 -> 1.666706955 | M19: =BB3aii!C19 -> 0 | N19: =M19*INDEX(RefTables!$D$18:$F$18,1,StateData!$C$73)*1/1000000 -> 0 | O19: =IF(GWh_Summary!Z19*1000<0,0,GWh_Summary!Z19*1000) -> 0 | P19: =O19*INDEX(RefTables!$D$22:$F$22,1,StateData!$C$73)*1/1000000 -> 0 | Q19: =-O19*INDEX(RefTables!$D$38:$F$39,StateData!$C$74,StateData!$C$73)*1/1000000 -> 0 | R19: =IF(CostData!$C$6="Proposed - Option 1", INDEX(Apdx_5_5_Opt_1_CumSavings!$G$7:$Q$59,MATCH(B19,Apdx_5_5_Opt_1_CumSavings!$C$7:$C$59,0),MATCH(CostData!$C$3,Apdx_5_5_Opt_1_CumSavings!$G$6:$Q$6,0)), INDEX(Apdx_5_5_Opt_2_CumSavings!$G$7:$Q$59,MATCH(B19,Apdx_5_5_Opt_2_CumSavings!$C$7:$C$59,0),MATCH(CostData!$C$3,Apdx_5_5_Opt_2_CumSavings!$G$6:$Q$6,0)))*1000 -> 6128090.47 | S19: 51.57526554 | T19: =-$R19*INDEX(RefTables!$D$38:$F$39,StateData!$C$74,StateData!$C$73)*1/1000000 -> -483.8488568 | U19: =$R19*INDEX(RefTables!$D$28:$F$28,1,StateData!$C$73)/2*1/1000000 -> 267.7120612 | V19: 267.7120612 | X19: 401.0722156 | Y19: -483.8488568 | Z19: 267.7120612 | AB19: 15.59186928 | AC19: 116.1015782 | AD19: 0 | AE19: 1.666706955 | AF19: 0 | AG19: 0 | AH19: 267.7120612 | AI19: 0 | AJ19: -483.8488568 | AL19: =IF(CostData!$C$6="Proposed - Option 1", (INDEX(Apdx_5_5_Opt_1_CumSavings!$S$7:$S$59,MATCH(B19,Apdx_5_5_Opt_1_CumSavings!$C$7:$C$59,0)) +INDEX(Apdx_5_5_Opt_1_CumSavings!$G$7:$Q$59,MATCH(B19,Apdx_5_5_Opt_1_CumSavings!$C$7:$C$59,0),MATCH(CostData!$C$3,Apdx_5_5_Opt_1_CumSavings!$G$6:$Q$6,0))), (INDEX(Apdx_5_5_Opt_2_CumSavings!$S$7:$S$59,MATCH(B19,Apdx_5_5_Opt_2_CumSavings!$C$7:$C$59,0)) +INDEX(Apdx_5_5_Opt_2_CumSavings!$G$7:$Q$59,MATCH(B19,Apdx_5_5_Opt_2_CumSavings!$C$7:$C$59,0),MATCH(CostData!$C$3,Apdx_5_5_Opt_2_CumSavings!$G$6:$Q$6,0))))/1000 -> 57.02585185 | AM19: =AL19*INDEX(RefTables!$D$38:$F$39,StateData!$C$74,StateData!$C$73)*10^-3 -> 4.50252707 | AN19: 7.895589323 | AP19: =IF(CostData!$C$6="Proposed - Option 1", INDEX(Apdx_5_5_Opt_1_CumSavings!$S$7:$S$59,MATCH(B19,Apdx_5_5_Opt_1_CumSavings!$C$7:$C$59,0)), INDEX(Apdx_5_5_Opt_2_CumSavings!$S$7:$S$59,MATCH(B19,Apdx_5_5_Opt_2_CumSavings!$C$7:$C$59,0)))/1000 -> 50.89776138 | AR19: 4.518118939 | AS19: 4.618628648 | AT19: 4.50252707 | AU19: 4.504193777 | AV19: 4.50252707 | AW19: 4.50252707 | AX19: 4.286390274 | AZ19: 7.922931079 | BA19: 8.099183964 | BB19: 7.895589323 | BC19: 7.898512045 | BD19: 7.895589323 | BE19: 7.895589323 | BF19: 8.421569354 | BH19: 0.02734175602 | BI19: 0.2035946407 | BJ19: 0 | BK19: 0.002922721715 | BL19: 0 | BM19: 0 | BN19: 0.5259800312 | BP19: 0.7598391497
B20: Kansas | C20: -400.7337987 | D20: -2.480467291 | E20: =-'BB1'!H20 -> 1799.657156 | F20: =E20*INDEX(RefTables!$D$14:$F$14,1,StateData!$C$73)*1/1000 -> 13.8573601 | G20: =-BB2a!P20 -> 0 | H20: =G20*INDEX(RefTables!$D$15:$F$15,1,StateData!$C$73)*1/1000 -> 0 | I20: =-BB2b!N20*BB2b!O20 -> 0 | J20: =I20*INDEX(RefTables!$D$16:$F$16,1,StateData!$C$73)*1/1000 -> 0 | K20: =BB3ai!C20 -> 542728.2652 | L20: =K20*INDEX(RefTables!$D$17:$F$17,1,StateData!$C$73)*1/1000000 -> 3.256369591 | M20: =BB3aii!C20 -> 0 | N20: =M20*INDEX(RefTables!$D$18:$F$18,1,StateData!$C$73)*1/1000000 -> 0 | O20: =IF(GWh_Summary!Z20*1000<0,0,GWh_Summary!Z20*1000) -> 3632284.804 | P20: =O20*INDEX(RefTables!$D$22:$F$22,1,StateData!$C$73)*1/1000000 -> 228.8339427 | Q20: =-O20*INDEX(RefTables!$D$38:$F$39,StateData!$C$74,StateData!$C$73)*1/1000000 -> -286.7902912 | R20: =IF(CostData!$C$6="Proposed - Option 1", INDEX(Apdx_5_5_Opt_1_CumSavings!$G$7:$Q$59,MATCH(B20,Apdx_5_5_Opt_1_CumSavings!$C$7:$C$59,0),MATCH(CostData!$C$3,Apdx_5_5_Opt_1_CumSavings!$G$6:$Q$6,0)), INDEX(Apdx_5_5_Opt_2_CumSavings!$G$7:$Q$59,MATCH(B20,Apdx_5_5_Opt_2_CumSavings!$C$7:$C$59,0),MATCH(CostData!$C$3,Apdx_5_5_Opt_2_CumSavings!$G$6:$Q$6,0)))*1000 -> 4558129.42 | S20: 38.36215153 | T20: =-$R20*INDEX(RefTables!$D$38:$F$39,StateData!$C$74,StateData!$C$73)*1/1000000 -> -359.8911798 | U20: =$R20*INDEX(RefTables!$D$28:$F$28,1,StateData!$C$73)/2*1/1000000 -> 199.1266657 | V20: 199.1266657 | X20: 445.074338 | Y20: -646.681471 | Z20: 199.1266657 | AB20: 13.8573601 | AC20: 0 | AD20: 0 | AE20: 3.256369591 | AF20: 0 | AG20: 228.8339427 | AH20: 199.1266657 | AI20: -286.7902912 | AJ20: -359.8911798 | AL20: =IF(CostData!$C$6="Proposed - Option 1", (INDEX(Apdx_5_5_Opt_1_CumSavings!$S$7:$S$59,MATCH(B20,Apdx_5_5_Opt_1_CumSavings!$C$7:$C$59,0)) +INDEX(Apdx_5_5_Opt_1_CumSavings!$G$7:$Q$59,MATCH(B20,Apdx_5_5_Opt_1_CumSavings!$C$7:$C$59,0),MATCH(CostData!$C$3,Apdx_5_5_Opt_1_CumSavings!$G$6:$Q$6,0))), (INDEX(Apdx_5_5_Opt_2_CumSavings!$S$7:$S$59,MATCH(B20,Apdx_5_5_Opt_2_CumSavings!$C$7:$C$59,0)) +INDEX(Apdx_5_5_Opt_2_CumSavings!$G$7:$Q$59,MATCH(B20,Apdx_5_5_Opt_2_CumSavings!$C$7:$C$59,0),MATCH(CostData!$C$3,Apdx_5_5_Opt_2_CumSavings!$G$6:$Q$6,0))))/1000 -> 49.37749442 | AM20: =AL20*INDEX(RefTables!$D$38:$F$39,StateData!$C$74,StateData!$C$73)*10^-3 -> 3.898644177 | AN20: 7.895589323 | AP20: =IF(CostData!$C$6="Proposed - Option 1", INDEX(Apdx_5_5_Opt_1_CumSavings!$S$7:$S$59,MATCH(B20,Apdx_5_5_Opt_1_CumSavings!$C$7:$C$59,0)), INDEX(Apdx_5_5_Opt_2_CumSavings!$S$7:$S$59,MATCH(B20,Apdx_5_5_Opt_2_CumSavings!$C$7:$C$59,0)))/1000 -> 44.819365 | AR20: 3.912501537 | AS20: 3.898644177 | AT20: 3.898644177 | AU20: 3.901900547 | AV20: 3.898644177 | AW20: 3.840687829 | AX20: 3.737879663 | AZ20: 7.923653445 | BA20: 7.895589323 | BB20: 7.895589323 | BC20: 7.902184169 | BD20: 7.895589323 | BE20: 7.778215306 | BF20: 8.339876443 | BH20: 0.02806412165 | BI20: 0 | BJ20: 0 | BK20: 0.006594845748 | BL20: 0 | BM20: -0.1173740166 | BN20: 0.4442871194 | BP20: 0.3615720702
B21: Kentucky | C21: -842.0167504 | D21: 123.5170173 | E21: =-'BB1'!H21 -> 4972.56154 | F21: =E21*INDEX(RefTables!$D$14:$F$14,1,StateData!$C$73)*1/1000 -> 38.28872386 | G21: =-BB2a!P21 -> 0 | H21: =G21*INDEX(RefTables!$D$15:$F$15,1,StateData!$C$73)*1/1000 -> 0 | I21: =-BB2b!N21*BB2b!O21 -> 431.885064 | J21: =I21*INDEX(RefTables!$D$16:$F$16,1,StateData!$C$73)*1/1000 -> 14.25220711 | K21: =BB3ai!C21 -> 0 | L21: =K21*INDEX(RefTables!$D$17:$F$17,1,StateData!$C$73)*1/1000000 -> 0 | M21: =BB3aii!C21 -> 0 | N21: =M21*INDEX(RefTables!$D$18:$F$18,1,StateData!$C$73)*1/1000000 -> 0 | O21: =IF(GWh_Summary!Z21*1000<0,0,GWh_Summary!Z21*1000) -> 1380676.208 | P21: =O21*INDEX(RefTables!$D$22:$F$22,1,StateData!$C$73)*1/1000000 -> 86.98260111 | Q21: =-O21*INDEX(RefTables!$D$38:$F$39,StateData!$C$74,StateData!$C$73)*1/1000000 -> -109.0125233 | R21: =IF(CostData!$C$6="Proposed - Option 1", INDEX(Apdx_5_5_Opt_1_CumSavings!$G$7:$Q$59,MATCH(B21,Apdx_5_5_Opt_1_CumSavings!$C$7:$C$59,0),MATCH(CostData!$C$3,Apdx_5_5_Opt_1_CumSavings!$G$6:$Q$6,0)), INDEX(Apdx_5_5_Opt_2_CumSavings!$G$7:$Q$59,MATCH(B21,Apdx_5_5_Opt_2_CumSavings!$C$7:$C$59,0),MATCH(CostData!$C$3,Apdx_5_5_Opt_2_CumSavings!$G$6:$Q$6,0)))*1000 -> 11050825 | S21: 93.00600845 | T21: =-$R21*INDEX(RefTables!$D$38:$F$39,StateData!$C$74,StateData!$C$73)*1/1000000 -> -872.5277592 | U21: =$R21*INDEX(RefTables!$D$28:$F$28,1,StateData!$C$73)/2*1/1000000 -> 482.7668838 | V21: 482.7668838 | X21: 622.2904159 | Y21: -981.5402824 | Z21: 482.7668838 | AB21: 38.28872386 | AC21: 0 | AD21: 14.25220711 | AE21: 0 | AF21: 0 | AG21: 86.98260111 | AH21: 482.7668838 | AI21: -109.0125233 | AJ21: -872.5277592 | AL21: =IF(CostData!$C$6="Proposed - Option 1", (INDEX(Apdx_5_5_Opt_1_CumSavings!$S$7:$S$59,MATCH(B21,Apdx_5_5_Opt_1_CumSavings!$C$7:$C$59,0)) +INDEX(Apdx_5_5_Opt_1_CumSavings!$G$7:$Q$59,MATCH(B21,Apdx_5_5_Opt_1_CumSavings!$C$7:$C$59,0),MATCH(CostData!$C$3,Apdx_5_5_Opt_1_CumSavings!$G$6:$Q$6,0))), (INDEX(Apdx_5_5_Opt_2_CumSavings!$S$7:$S$59,MATCH(B21,Apdx_5_5_Opt_2_CumSavings!$C$7:$C$59,0)) +INDEX(Apdx_5_5_Opt_2_CumSavings!$G$7:$Q$59,MATCH(B21,Apdx_5_5_Opt_2_CumSavings!$C$7:$C$59,0),MATCH(CostData!$C$3,Apdx_5_5_Opt_2_CumSavings!$G$6:$Q$6,0))))/1000 -> 115.5997844 | AM21: =AL21*INDEX(RefTables!$D$38:$F$39,StateData!$C$74,StateData!$C$73)*10^-3 -> 9.127284232 | AN21: 7.895589323 | AP21: =IF(CostData!$C$6="Proposed - Option 1", INDEX(Apdx_5_5_Opt_1_CumSavings!$S$7:$S$59,MATCH(B21,Apdx_5_5_Opt_1_CumSavings!$C$7:$C$59,0)), INDEX(Apdx_5_5_Opt_2_CumSavings!$S$7:$S$59,MATCH(B21,Apdx_5_5_Opt_2_CumSavings!$C$7:$C$59,0)))/1000 -> 104.5489594 | AR21: 9.165572956 | AS21: 9.127284232 | AT21: 9.141536439 | AU21: 9.127284232 | AV21: 9.127284232 | AW21: 9.10525431 | AX21: 8.737523357 | AZ21: 7.928711118 | BA21: 7.895589323 | BB21: 7.907918245 | BC21: 7.895589323 | BD21: 7.895589323 | BE21: 7.876532261 | BF21: 8.357350862 | BH21: 0.03312179523 | BI21: 0 | BJ21: 0.01232892188 | BK21: 0 | BL21: 0 | BM21: -0.01905706164 | BN21: 0.4617615391 | BP21: 0.4881551945
B22: Louisiana | C22: -470.3706091 | D22: 391.6030944 | E22: =-'BB1'!H22 -> 1536.144591 | F22: =E22*INDEX(RefTables!$D$14:$F$14,1,StateData!$C$73)*1/1000 -> 11.82831335 | G22: =-BB2a!P22 -> 10970.34513 | H22: =G22*INDEX(RefTables!$D$15:$F$15,1,StateData!$C$73)*1/1000 -> 362.0213895 | I22: =-BB2b!N22*BB2b!O22 -> 0 | J22: =I22*INDEX(RefTables!$D$16:$F$16,1,StateData!$C$73)*1/1000 -> 0 | K22: =BB3ai!C22 -> 985225.0124 | L22: =K22*INDEX(RefTables!$D$17:$F$17,1,StateData!$C$73)*1/1000000 -> 5.911350075 | M22: =BB3aii!C22 -> 0 | N22: =M22*INDEX(RefTables!$D$18:$F$18,1,StateData!$C$73)*1/1000000 -> 0 | O22: =IF(GWh_Summary!Z22*1000<0,0,GWh_Summary!Z22*1000) -> 4461576.602 | P22: =O22*INDEX(RefTables!$D$22:$F$22,1,StateData!$C$73)*1/1000000 -> 281.0793259 | Q22: =-O22*INDEX(RefTables!$D$38:$F$39,StateData!$C$74,StateData!$C$73)*1/1000000 -> -352.2677658 | R22: =IF(CostData!$C$6="Proposed - Option 1", INDEX(Apdx_5_5_Opt_1_CumSavings!$G$7:$Q$59,MATCH(B22,Apdx_5_5_Opt_1_CumSavings!$C$7:$C$59,0),MATCH(CostData!$C$3,Apdx_5_5_Opt_1_CumSavings!$G$6:$Q$6,0)), INDEX(Apdx_5_5_Opt_2_CumSavings!$G$7:$Q$59,MATCH(B22,Apdx_5_5_Opt_2_CumSavings!$C$7:$C$59,0),MATCH(CostData!$C$3,Apdx_5_5_Opt_2_CumSavings!$G$6:$Q$6,0)))*1000 -> 9865548.856 | S22: 83.03048142 | T22: =-$R22*INDEX(RefTables!$D$38:$F$39,StateData!$C$74,StateData!$C$73)*1/1000000 -> -778.9432221 | U22: =$R22*INDEX(RefTables!$D$28:$F$28,1,StateData!$C$73)/2*1/1000000 -> 430.9868518 | V22: 430.9868518 | X22: 1091.827231 | Y22: -1131.210988 | Z22: 430.9868518 | AB22: 11.82831335 | AC22: 362.0213895 | AD22: 0 | AE22: 5.911350075 | AF22: 0 | AG22: 281.0793259 | AH22: 430.9868518 | AI22: -352.2677658 | AJ22: -778.9432221 | AL22: =IF(CostData!$C$6="Proposed - Option 1", (INDEX(Apdx_5_5_Opt_1_CumSavings!$S$7:$S$59,MATCH(B22,Apdx_5_5_Opt_1_CumSavings!$C$7:$C$59,0)) +INDEX(Apdx_5_5_Opt_1_CumSavings!$G$7:$Q$59,MATCH(B22,Apdx_5_5_Opt_1_CumSavings!$C$7:$C$59,0),MATCH(CostData!$C$3,Apdx_5_5_Opt_1_CumSavings!$G$6:$Q$6,0))), (INDEX(Apdx_5_5_Opt_2_CumSavings!$S$7:$S$59,MATCH(B22,Apdx_5_5_Opt_2_CumSavings!$C$7:$C$59,0)) +INDEX(Apdx_5_5_Opt_2_CumSavings!$G$7:$Q$59,MATCH(B22,Apdx_5_5_Opt_2_CumSavings!$C$7:$C$59,0),MATCH(CostData!$C$3,Apdx_5_5_Opt_2_CumSavings!$G$6:$Q$6,0))))/1000 -> 108.8178944 | AM22: =AL22*INDEX(RefTables!$D$38:$F$39,StateData!$C$74,StateData!$C$73)*10^-3 -> 8.591814056 | AN22: 7.895589323 | AP22: =IF(CostData!$C$6="Proposed - Option 1", INDEX(Apdx_5_5_Opt_1_CumSavings!$S$7:$S$59,MATCH(B22,Apdx_5_5_Opt_1_CumSavings!$C$7:$C$59,0)), INDEX(Apdx_5_5_Opt_2_CumSavings!$S$7:$S$59,MATCH(B22,Apdx_5_5_Opt_2_CumSavings!$C$7:$C$59,0)))/1000 -> 98.95234559 | AR22: 8.603642369 | AS22: 8.953835445 | AT22: 8.591814056 | AU22: 8.597725406 | AV22: 8.591814056 | AW22: 8.520625616 | AX22: 8.243857685 | AZ22: 7.906459147 | BA22: 8.228274854 | BB22: 7.895589323 | BC22: 7.901021656 | BD22: 7.895589323 | BE22: 7.830169531 | BF22: 8.331139233 | BH22: 0.01086982376 | BI22: 0.3326855305 | BJ22: 0 | BK22: 0.00543233271 | BL22: 0 | BM22: -0.06541979172 | BN22: 0.4355499096 | BP22: 0.7191178049
B23: Maine | C23: -119.2162409 | D23: 14.45626036 | E23: =-'BB1'!H23 -> 0 | F23: =E23*INDEX(RefTables!$D$14:$F$14,1,StateData!$C$73)*1/1000 -> 0 | G23: =-BB2a!P23 -> 47.88250375 | H23: =G23*INDEX(RefTables!$D$15:$F$15,1,StateData!$C$73)*1/1000 -> 1.580122624 | I23: =-BB2b!N23*BB2b!O23 -> 0 | J23: =I23*INDEX(RefTables!$D$16:$F$16,1,StateData!$C$73)*1/1000 -> 0 | K23: =BB3ai!C23 -> 0 | L23: =K23*INDEX(RefTables!$D$17:$F$17,1,StateData!$C$73)*1/1000000 -> 0 | M23: =BB3aii!C23 -> 0 | N23: =M23*INDEX(RefTables!$D$18:$F$18,1,StateData!$C$73)*1/1000000 -> 0 | O23: =IF(GWh_Summary!Z23*1000<0,0,GWh_Summary!Z23*1000) -> 0 | P23: =O23*INDEX(RefTables!$D$22:$F$22,1,StateData!$C$73)*1/1000000 -> 0 | Q23: =-O23*INDEX(RefTables!$D$38:$F$39,StateData!$C$74,StateData!$C$73)*1/1000000 -> 0 | R23: =IF(CostData!$C$6="Proposed - Option 1", INDEX(Apdx_5_5_Opt_1_CumSavings!$G$7:$Q$59,MATCH(B23,Apdx_5_5_Opt_1_CumSavings!$C$7:$C$59,0),MATCH(CostData!$C$3,Apdx_5_5_Opt_1_CumSavings!$G$6:$Q$6,0)), INDEX(Apdx_5_5_Opt_2_CumSavings!$G$7:$Q$59,MATCH(B23,Apdx_5_5_Opt_2_CumSavings!$C$7:$C$59,0),MATCH(CostData!$C$3,Apdx_5_5_Opt_2_CumSavings!$G$6:$Q$6,0)))*1000 -> 1529922.069 | S23: 12.87613773 | T23: =-$R23*INDEX(RefTables!$D$38:$F$39,StateData!$C$74,StateData!$C$73)*1/1000000 -> -120.7963635 | U23: =$R23*INDEX(RefTables!$D$28:$F$28,1,StateData!$C$73)/2*1/1000000 -> 66.83625062 | V23: 66.83625062 | X23: 68.41637324 | Y23: -120.7963635 | Z23: 66.83625062 | AB23: 0 | AC23: 1.580122624 | AD23: 0 | AE23: 0 | AF23: 0 | AG23: 0 | AH23: 66.83625062 | AI23: 0 | AJ23: -120.7963635 | AL23: =IF(CostData!$C$6="Proposed - Option 1", (INDEX(Apdx_5_5_Opt_1_CumSavings!$S$7:$S$59,MATCH(B23,Apdx_5_5_Opt_1_CumSavings!$C$7:$C$59,0)) +INDEX(Apdx_5_5_Opt_1_CumSavings!$G$7:$Q$59,MATCH(B23,Apdx_5_5_Opt_1_CumSavings!$C$7:$C$59,0),MATCH(CostData!$C$3,Apdx_5_5_Opt_1_CumSavings!$G$6:$Q$6,0))), (INDEX(Apdx_5_5_Opt_2_CumSavings!$S$7:$S$59,MATCH(B23,Apdx_5_5_Opt_2_CumSavings!$C$7:$C$59,0)) +INDEX(Apdx_5_5_Opt_2_CumSavings!$G$7:$Q$59,MATCH(B23,Apdx_5_5_Opt_2_CumSavings!$C$7:$C$59,0),MATCH(CostData!$C$3,Apdx_5_5_Opt_2_CumSavings!$G$6:$Q$6,0))))/1000 -> 13.788913 | AM23: =AL23*INDEX(RefTables!$D$38:$F$39,StateData!$C$74,StateData!$C$73)*10^-3 -> 1.088715943 | AN23: 7.895589323 | AP23: =IF(CostData!$C$6="Proposed - Option 1", INDEX(Apdx_5_5_Opt_1_CumSavings!$S$7:$S$59,MATCH(B23,Apdx_5_5_Opt_1_CumSavings!$C$7:$C$59,0)), INDEX(Apdx_5_5_Opt_2_CumSavings!$S$7:$S$59,MATCH(B23,Apdx_5_5_Opt_2_CumSavings!$C$7:$C$59,0)))/1000 -> 12.25899093 | AR23: 1.088715943 | AS23: 1.090296065 | AT23: 1.088715943 | AU23: 1.088715943 | AV23: 1.088715943 | AW23: 1.088715943 | AX23: 1.03475583 | AZ23: 7.895589323 | BA23: 7.907048694 | BB23: 7.895589323 | BC23: 7.895589323 | BD23: 7.895589323 | BE23: 7.895589323 | BF23: 8.440791216 | BH23: 0 | BI23: 0.01145937046 | BJ23: 0 | BK23: 0 | BL23: 0 | BM23: 0 | BN23: 0.5452018928 | BP23: 0.5566612633
B24: Maryland | C24: -695.8321749 | D24: 15.63554164 | E24: =-'BB1'!H24 -> 956.9936501 | F24: =E24*INDEX(RefTables!$D$14:$F$14,1,StateData!$C$73)*1/1000 -> 7.368851105 | G24: =-BB2a!P24 -> 488.6991472 | H24: =G24*INDEX(RefTables!$D$15:$F$15,1,StateData!$C$73)*1/1000 -> 16.12707186 | I24: =-BB2b!N24*BB2b!O24 -> 0 | J24: =I24*INDEX(RefTables!$D$16:$F$16,1,StateData!$C$73)*1/1000 -> 0 | K24: =BB3ai!C24 -> 787533.355 | L24: =K24*INDEX(RefTables!$D$17:$F$17,1,StateData!$C$73)*1/1000000 -> 4.72520013 | M24: =BB3aii!C24 -> 0 | N24: =M24*INDEX(RefTables!$D$18:$F$18,1,StateData!$C$73)*1/1000000 -> 0 | O24: =IF(GWh_Summary!Z24*1000<0,0,GWh_Summary!Z24*1000) -> 5083916.116 | P24: =O24*INDEX(RefTables!$D$22:$F$22,1,StateData!$C$73)*1/1000000 -> 320.2867153 | Q24: =-O24*INDEX(RefTables!$D$38:$F$39,StateData!$C$74,StateData!$C$73)*1/1000000 -> -401.405138 | R24: =IF(CostData!$C$6="Proposed - Option 1", INDEX(Apdx_5_5_Opt_1_CumSavings!$G$7:$Q$59,MATCH(B24,Apdx_5_5_Opt_1_CumSavings!$C$7:$C$59,0),MATCH(CostData!$C$3,Apdx_5_5_Opt_1_CumSavings!$G$6:$Q$6,0)), INDEX(Apdx_5_5_Opt_2_CumSavings!$G$7:$Q$59,MATCH(B24,Apdx_5_5_Opt_2_CumSavings!$C$7:$C$59,0),MATCH(CostData!$C$3,Apdx_5_5_Opt_2_CumSavings!$G$6:$Q$6,0)))*1000 -> 8142962.469 | S24: 68.53284129 | T24: =-$R24*INDEX(RefTables!$D$38:$F$39,StateData!$C$74,StateData!$C$73)*1/1000000 -> -642.9348753 | U24: =$R24*INDEX(RefTables!$D$28:$F$28,1,StateData!$C$73)/2*1/1000000 -> 355.7338583 | V24: 355.7338583 | X24: 704.2416967 | Y24: -1044.340013 | Z24: 355.7338583 | AB24: 7.368851105 | AC24: 16.12707186 | AD24: 0 | AE24: 4.72520013 | AF24: 0 | AG24: 320.2867153 | AH24: 355.7338583 | AI24: -401.405138 | AJ24: -642.9348753 | AL24: =IF(CostData!$C$6="Proposed - Option 1", (INDEX(Apdx_5_5_Opt_1_CumSavings!$S$7:$S$59,MATCH(B24,Apdx_5_5_Opt_1_CumSavings!$C$7:$C$59,0)) +INDEX(Apdx_5_5_Opt_1_CumSavings!$G$7:$Q$59,MATCH(B24,Apdx_5_5_Opt_1_CumSavings!$C$7:$C$59,0),MATCH(CostData!$C$3,Apdx_5_5_Opt_1_CumSavings!$G$6:$Q$6,0))), (INDEX(Apdx_5_5_Opt_2_CumSavings!$S$7:$S$59,MATCH(B24,Apdx_5_5_Opt_2_CumSavings!$C$7:$C$59,0)) +INDEX(Apdx_5_5_Opt_2_CumSavings!$G$7:$Q$59,MATCH(B24,Apdx_5_5_Opt_2_CumSavings!$C$7:$C$59,0),MATCH(CostData!$C$3,Apdx_5_5_Opt_2_CumSavings!$G$6:$Q$6,0))))/1000 -> 76.456406 | AM24: =AL24*INDEX(RefTables!$D$38:$F$39,StateData!$C$74,StateData!$C$73)*10^-3 -> 6.036683829 | AN24: 7.895589323 | AP24: =IF(CostData!$C$6="Proposed - Option 1", INDEX(Apdx_5_5_Opt_1_CumSavings!$S$7:$S$59,MATCH(B24,Apdx_5_5_Opt_1_CumSavings!$C$7:$C$59,0)), INDEX(Apdx_5_5_Opt_2_CumSavings!$S$7:$S$59,MATCH(B24,Apdx_5_5_Opt_2_CumSavings!$C$7:$C$59,0)))/1000 -> 68.31344353 | AR24: 6.04405268 | AS24: 6.052810901 | AT24: 6.036683829 | AU24: 6.041409029 | AV24: 6.036683829 | AW24: 5.955565406 | AX24: 5.749482812 | AZ24: 7.9052273 | BA24: 7.916682483 | BB24: 7.895589323 | BC24: 7.901769577 | BD24: 7.895589323 | BE24: 7.789491709 | BF24: 8.416327028 | BH24: 0.009637977367 | BI24: 0.02109315975 | BJ24: 0 | BK24: 0.006180254052 | BL24: 0 | BM24: -0.1060976143 | BN24: 0.5207377053 | BP24: 0.4515514822
B25: Massachusetts | C25: -623.0151186 | D25: -4.940453408 | E25: =-'BB1'!H25 -> 128.5236111 | F25: =E25*INDEX(RefTables!$D$14:$F$14,1,StateData!$C$73)*1/1000 -> 0.9896318058 | G25: =-BB2a!P25 -> 1232.061198 | H25: =G25*INDEX(RefTables!$D$15:$F$15,1,StateData!$C$73)*1/1000 -> 40.65801955 | I25: =-BB2b!N25*BB2b!O25 -> 0 | J25: =I25*INDEX(RefTables!$D$16:$F$16,1,StateData!$C$73)*1/1000 -> 0 | K25: =BB3ai!C25 -> 316260.4623 | L25: =K25*INDEX(RefTables!$D$17:$F$17,1,StateData!$C$73)*1/1000000 -> 1.897562774 | M25: =BB3aii!C25 -> 0 | N25: =M25*INDEX(RefTables!$D$18:$F$18,1,StateData!$C$73)*1/1000000 -> 0 | O25: =IF(GWh_Summary!Z25*1000<0,0,GWh_Summary!Z25*1000) -> 6770058.431 | P25: =O25*INDEX(RefTables!$D$22:$F$22,1,StateData!$C$73)*1/1000000 -> 426.5136812 | Q25: =-O25*INDEX(RefTables!$D$38:$F$39,StateData!$C$74,StateData!$C$73)*1/1000000 -> -534.5360107 | R25: =IF(CostData!$C$6="Proposed - Option 1", INDEX(Apdx_5_5_Opt_1_CumSavings!$G$7:$Q$59,MATCH(B25,Apdx_5_5_Opt_1_CumSavings!$C$7:$C$59,0),MATCH(CostData!$C$3,Apdx_5_5_Opt_1_CumSavings!$G$6:$Q$6,0)), INDEX(Apdx_5_5_Opt_2_CumSavings!$G$7:$Q$59,MATCH(B25,Apdx_5_5_Opt_2_CumSavings!$C$7:$C$59,0),MATCH(CostData!$C$3,Apdx_5_5_Opt_2_CumSavings!$G$6:$Q$6,0)))*1000 -> 7074050.845 | S25: 59.53666196 | T25: =-$R25*INDEX(RefTables!$D$38:$F$39,StateData!$C$74,StateData!$C$73)*1/1000000 -> -558.5380032 | U25: =$R25*INDEX(RefTables!$D$28:$F$28,1,StateData!$C$73)/2*1/1000000 -> 309.0373326 | V25: 309.0373326 | X25: 779.0962279 | Y25: -1093.074014 | Z25: 309.0373326 | AB25: 0.9896318058 | AC25: 40.65801955 | AD25: 0 | AE25: 1.897562774 | AF25: 0 | AG25: 426.5136812 | AH25: 309.0373326 | AI25: -534.5360107 | AJ25: -558.5380032 | AL25: =IF(CostData!$C$6="Proposed - Option 1", (INDEX(Apdx_5_5_Opt_1_CumSavings!$S$7:$S$59,MATCH(B25,Apdx_5_5_Opt_1_CumSavings!$C$7:$C$59,0)) +INDEX(Apdx_5_5_Opt_1_CumSavings!$G$7:$Q$59,MATCH(B25,Apdx_5_5_Opt_1_CumSavings!$C$7:$C$59,0),MATCH(CostData!$C$3,Apdx_5_5_Opt_1_CumSavings!$G$6:$Q$6,0))), (INDEX(Apdx_5_5_Opt_2_CumSavings!$S$7:$S$59,MATCH(B25,Apdx_5_5_Opt_2_CumSavings!$C$7:$C$59,0)) +INDEX(Apdx_5_5_Opt_2_CumSavings!$G$7:$Q$59,MATCH(B25,Apdx_5_5_Opt_2_CumSavings!$C$7:$C$59,0),MATCH(CostData!$C$3,Apdx_5_5_Opt_2_CumSavings!$G$6:$Q$6,0))))/1000 -> 65.15328602 | AM25: =AL25*INDEX(RefTables!$D$38:$F$39,StateData!$C$74,StateData!$C$73)*10^-3 -> 5.144235895 | AN25: 7.895589323 | AP25: =IF(CostData!$C$6="Proposed - Option 1", INDEX(Apdx_5_5_Opt_1_CumSavings!$S$7:$S$59,MATCH(B25,Apdx_5_5_Opt_1_CumSavings!$C$7:$C$59,0)), INDEX(Apdx_5_5_Opt_2_CumSavings!$S$7:$S$59,MATCH(B25,Apdx_5_5_Opt_2_CumSavings!$C$7:$C$59,0)))/1000 -> 58.07923518 | AR25: 5.145225527 | AS25: 5.184893915 | AT25: 5.144235895 | AU25: 5.146133458 | AV25: 5.144235895 | AW25: 5.036213566 | AX25: 4.894735224 | AZ25: 7.897108252 | BA25: 7.957992959 | BB25: 7.895589323 | BC25: 7.898501782 | BD25: 7.895589323 | BE25: 7.729792115 | BF25: 8.427685401 | BH25: 0.001518928463 | BI25: 0.06240363615 | BJ25: 0 | BK25: 0.002912459048 | BL25: 0 | BM25: -0.1657972085 | BN25: 0.5320960781 | BP25: 0.4331338932
B26: Michigan | C26: -870.787975 | D26: 322.4364414 | E26: =-'BB1'!H26 -> 3264.865427 | F26: =E26*INDEX(RefTables!$D$14:$F$14,1,StateData!$C$73)*1/1000 -> 25.13946378 | G26: =-BB2a!P26 -> 7258.465247 | H26: =G26*INDEX(RefTables!$D$15:$F$15,1,StateData!$C$73)*1/1000 -> 239.5293531 | I26: =-BB2b!N26*BB2b!O26 -> 0 | J26: =I26*INDEX(RefTables!$D$16:$F$16,1,StateData!$C$73)*1/1000 -> 0 | K26: =BB3ai!C26 -> 1827908.797 | L26: =K26*INDEX(RefTables!$D$17:$F$17,1,StateData!$C$73)*1/1000000 -> 10.96745278 | M26: =BB3aii!C26 -> 0 | N26: =M26*INDEX(RefTables!$D$18:$F$18,1,StateData!$C$73)*1/1000000 -> 0 | O26: =IF(GWh_Summary!Z26*1000<0,0,GWh_Summary!Z26*1000) -> 4270420.082 | P26: =O26*INDEX(RefTables!$D$22:$F$22,1,StateData!$C$73)*1/1000000 -> 269.0364652 | Q26: =-O26*INDEX(RefTables!$D$38:$F$39,StateData!$C$74,StateData!$C$73)*1/1000000 -> -337.1748321 | R26: =IF(CostData!$C$6="Proposed - Option 1", INDEX(Apdx_5_5_Opt_1_CumSavings!$G$7:$Q$59,MATCH(B26,Apdx_5_5_Opt_1_CumSavings!$C$7:$C$59,0),MATCH(CostData!$C$3,Apdx_5_5_Opt_1_CumSavings!$G$6:$Q$6,0)), INDEX(Apdx_5_5_Opt_2_CumSavings!$G$7:$Q$59,MATCH(B26,Apdx_5_5_Opt_2_CumSavings!$C$7:$C$59,0),MATCH(CostData!$C$3,Apdx_5_5_Opt_2_CumSavings!$G$6:$Q$6,0)))*1000 -> 13656813.11 | S26: 114.9385385 | T26: =-$R26*INDEX(RefTables!$D$38:$F$39,StateData!$C$74,StateData!$C$73)*1/1000000 -> -1078.285878 | U26: =$R26*INDEX(RefTables!$D$28:$F$28,1,StateData!$C$73)/2*1/1000000 -> 596.6122082 | V26: 596.6122082 | X26: 1141.284943 | Y26: -1415.46071 | Z26: 596.6122082 | AB26: 25.13946378 | AC26: 239.5293531 | AD26: 0 | AE26: 10.96745278 | AF26: 0 | AG26: 269.0364652 | AH26: 596.6122082 | AI26: -337.1748321 | AJ26: -1078.285878 | AL26: =IF(CostData!$C$6="Proposed - Option 1", (INDEX(Apdx_5_5_Opt_1_CumSavings!$S$7:$S$59,MATCH(B26,Apdx_5_5_Opt_1_CumSavings!$C$7:$C$59,0)) +INDEX(Apdx_5_5_Opt_1_CumSavings!$G$7:$Q$59,MATCH(B26,Apdx_5_5_Opt_1_CumSavings!$C$7:$C$59,0),MATCH(CostData!$C$3,Apdx_5_5_Opt_1_CumSavings!$G$6:$Q$6,0))), (INDEX(Apdx_5_5_Opt_2_CumSavings!$S$7:$S$59,MATCH(B26,Apdx_5_5_Opt_2_CumSavings!$C$7:$C$59,0)) +INDEX(Apdx_5_5_Opt_2_CumSavings!$G$7:$Q$59,MATCH(B26,Apdx_5_5_Opt_2_CumSavings!$C$7:$C$59,0),MATCH(CostData!$C$3,Apdx_5_5_Opt_2_CumSavings!$G$6:$Q$6,0))))/1000 -> 125.9661315 | AM26: =AL26*INDEX(RefTables!$D$38:$F$39,StateData!$C$74,StateData!$C$73)*10^-3 -> 9.945768426 | AN26: 7.895589323 | AP26: =IF(CostData!$C$6="Proposed - Option 1", INDEX(Apdx_5_5_Opt_1_CumSavings!$S$7:$S$59,MATCH(B26,Apdx_5_5_Opt_1_CumSavings!$C$7:$C$59,0)), INDEX(Apdx_5_5_Opt_2_CumSavings!$S$7:$S$59,MATCH(B26,Apdx_5_5_Opt_2_CumSavings!$C$7:$C$59,0)))/1000 -> 112.3093183 | AR26: 9.970907889 | AS26: 10.18529778 | AT26: 9.945768426 | AU26: 9.956735878 | AV26: 9.945768426 | AW26: 9.877630059 | AX26: 9.464094756 | AZ26: 7.915546643 | BA26: 8.085743097 | BB26: 7.895589323 | BC26: 7.904295991 | BD26: 7.895589323 | BE26: 7.841496714 | BF26: 8.42681168 | BH26: 0.01995731987 | BI26: 0.1901537742 | BJ26: 0 | BK26: 0.00870666794 | BL26: 0 | BM26: -0.05409260894 | BN26: 0.5312223571 | BP26: 0.6959475102
B27: Minnesota | C27: -484.8015048 | D27: 315.3676208 | E27: =-'BB1'!H27 -> 1386.933567 | F27: =E27*INDEX(RefTables!$D$14:$F$14,1,StateData!$C$73)*1/1000 -> 10.67938847 | G27: =-BB2a!P27 -> 6744.545502 | H27: =G27*INDEX(RefTables!$D$15:$F$15,1,StateData!$C$73)*1/1000 -> 222.5700016 | I27: =-BB2b!N27*BB2b!O27 -> 0 | J27: =I27*INDEX(RefTables!$D$16:$F$16,1,StateData!$C$73)*1/1000 -> 0 | K27: =BB3ai!C27 -> 840189.5441 | L27: =K27*INDEX(RefTables!$D$17:$F$17,1,StateData!$C$73)*1/1000000 -> 5.041137265 | M27: =BB3aii!C27 -> 0 | N27: =M27*INDEX(RefTables!$D$18:$F$18,1,StateData!$C$73)*1/1000000 -> 0 | O27: =IF(GWh_Summary!Z27*1000<0,0,GWh_Summary!Z27*1000) -> 0 | P27: =O27*INDEX(RefTables!$D$22:$F$22,1,StateData!$C$73)*1/1000000 -> 0 | Q27: =-O27*INDEX(RefTables!$D$38:$F$39,StateData!$C$74,StateData!$C$73)*1/1000000 -> 0 | R27: =IF(CostData!$C$6="Proposed - Option 1", INDEX(Apdx_5_5_Opt_1_CumSavings!$G$7:$Q$59,MATCH(B27,Apdx_5_5_Opt_1_CumSavings!$C$7:$C$59,0),MATCH(CostData!$C$3,Apdx_5_5_Opt_1_CumSavings!$G$6:$Q$6,0)), INDEX(Apdx_5_5_Opt_2_CumSavings!$G$7:$Q$59,MATCH(B27,Apdx_5_5_Opt_2_CumSavings!$C$7:$C$59,0),MATCH(CostData!$C$3,Apdx_5_5_Opt_2_CumSavings!$G$6:$Q$6,0)))*1000 -> 9158176.832 | S27: 77.07709347 | T27: =-$R27*INDEX(RefTables!$D$38:$F$39,StateData!$C$74,StateData!$C$73)*1/1000000 -> -723.0920321 | U27: =$R27*INDEX(RefTables!$D$28:$F$28,1,StateData!$C$73)/2*1/1000000 -> 400.0845628 | V27: 400.0845628 | X27: 638.3750901 | Y27: -723.0920321 | Z27: 400.0845628 | AB27: 10.67938847 | AC27: 222.5700016 | AD27: 0 | AE27: 5.041137265 | AF27: 0 | AG27: 0 | AH27: 400.0845628 | AI27: 0 | AJ27: -723.0920321 | AL27: =IF(CostData!$C$6="Proposed - Option 1", (INDEX(Apdx_5_5_Opt_1_CumSavings!$S$7:$S$59,MATCH(B27,Apdx_5_5_Opt_1_CumSavings!$C$7:$C$59,0)) +INDEX(Apdx_5_5_Opt_1_CumSavings!$G$7:$Q$59,MATCH(B27,Apdx_5_5_Opt_1_CumSavings!$C$7:$C$59,0),MATCH(CostData!$C$3,Apdx_5_5_Opt_1_CumSavings!$G$6:$Q$6,0))), (INDEX(Apdx_5_5_Opt_2_CumSavings!$S$7:$S$59,MATCH(B27,Apdx_5_5_Opt_2_CumSavings!$C$7:$C$59,0)) +INDEX(Apdx_5_5_Opt_2_CumSavings!$G$7:$Q$59,MATCH(B27,Apdx_5_5_Opt_2_CumSavings!$C$7:$C$59,0),MATCH(CostData!$C$3,Apdx_5_5_Opt_2_CumSavings!$G$6:$Q$6,0))))/1000 -> 84.90819198 | AM27: =AL27*INDEX(RefTables!$D$38:$F$39,StateData!$C$74,StateData!$C$73)*10^-3 -> 6.704002141 | AN27: 7.895589323 | AP27: =IF(CostData!$C$6="Proposed - Option 1", INDEX(Apdx_5_5_Opt_1_CumSavings!$S$7:$S$59,MATCH(B27,Apdx_5_5_Opt_1_CumSavings!$C$7:$C$59,0)), INDEX(Apdx_5_5_Opt_2_CumSavings!$S$7:$S$59,MATCH(B27,Apdx_5_5_Opt_2_CumSavings!$C$7:$C$59,0)))/1000 -> 75.75001515 | AR27: 6.714681529 | AS27: 6.926572142 | AT27: 6.704002141 | AU27: 6.709043278 | AV27: 6.704002141 | AW27: 6.704002141 | AX27: 6.380994671 | AZ27: 7.908166895 | BA27: 8.157719509 | BB27: 7.895589323 | BC27: 7.901526486 | BD27: 7.895589323 | BE27: 7.895589323 | BF27: 8.423753657 | BH27: 0.01257757139 | BI27: 0.262130186 | BJ27: 0 | BK27: 0.005937162418 | BL27: 0 | BM27: 0 | BN27: 0.5281643337 | BP27: 0.8088092535
B28: Mississippi | C28: -307.1282088 | D28: 196.8196516 | E28: =-'BB1'!H28 -> 509.1596415 | F28: =E28*INDEX(RefTables!$D$14:$F$14,1,StateData!$C$73)*1/1000 -> 3.92052924 | G28: =-BB2a!P28 -> 6144.021517 | H28: =G28*INDEX(RefTables!$D$15:$F$15,1,StateData!$C$73)*1/1000 -> 202.7527101 | I28: =-BB2b!N28*BB2b!O28 -> 25.0160121 | J28: =I28*INDEX(RefTables!$D$16:$F$16,1,StateData!$C$73)*1/1000 -> 0.8255283992 | K28: =BB3ai!C28 -> 631874.2696 | L28: =K28*INDEX(RefTables!$D$17:$F$17,1,StateData!$C$73)*1/1000000 -> 3.791245617 | M28: =BB3aii!C28 -> 0 | N28: =M28*INDEX(RefTables!$D$18:$F$18,1,StateData!$C$73)*1/1000000 -> 0 | O28: =IF(GWh_Summary!Z28*1000<0,0,GWh_Summary!Z28*1000) -> 3949239.561 | P28: =O28*INDEX(RefTables!$D$22:$F$22,1,StateData!$C$73)*1/1000000 -> 248.8020923 | Q28: =-O28*INDEX(RefTables!$D$38:$F$39,StateData!$C$74,StateData!$C$73)*1/1000000 -> -311.8157371 | R28: =IF(CostData!$C$6="Proposed - Option 1", INDEX(Apdx_5_5_Opt_1_CumSavings!$G$7:$Q$59,MATCH(B28,Apdx_5_5_Opt_1_CumSavings!$C$7:$C$59,0),MATCH(CostData!$C$3,Apdx_5_5_Opt_1_CumSavings!$G$6:$Q$6,0)), INDEX(Apdx_5_5_Opt_2_CumSavings!$G$7:$Q$59,MATCH(B28,Apdx_5_5_Opt_2_CumSavings!$C$7:$C$59,0),MATCH(CostData!$C$3,Apdx_5_5_Opt_2_CumSavings!$G$6:$Q$6,0)))*1000 -> 5767835.164 | S28: 48.54328304 | T28: =-$R28*INDEX(RefTables!$D$38:$F$39,StateData!$C$74,StateData!$C$73)*1/1000000 -> -455.4045774 | U28: =$R28*INDEX(RefTables!$D$28:$F$28,1,StateData!$C$73)/2*1/1000000 -> 251.9739302 | V28: 251.9739302 | X28: 712.0660359 | Y28: -767.2203145 | Z28: 251.9739302 | AB28: 3.92052924 | AC28: 202.7527101 | AD28: 0.8255283992 | AE28: 3.791245617 | AF28: 0 | AG28: 248.8020923 | AH28: 251.9739302 | AI28: -311.8157371 | AJ28: -455.4045774 | AL28: =IF(CostData!$C$6="Proposed - Option 1", (INDEX(Apdx_5_5_Opt_1_CumSavings!$S$7:$S$59,MATCH(B28,Apdx_5_5_Opt_1_CumSavings!$C$7:$C$59,0)) +INDEX(Apdx_5_5_Opt_1_CumSavings!$G$7:$Q$59,MATCH(B28,Apdx_5_5_Opt_1_CumSavings!$C$7:$C$59,0),MATCH(CostData!$C$3,Apdx_5_5_Opt_1_CumSavings!$G$6:$Q$6,0))), (INDEX(Apdx_5_5_Opt_2_CumSavings!$S$7:$S$59,MATCH(B28,Apdx_5_5_Opt_2_CumSavings!$C$7:$C$59,0)) +INDEX(Apdx_5_5_Opt_2_CumSavings!$G$7:$Q$59,MATCH(B28,Apdx_5_5_Opt_2_CumSavings!$C$7:$C$59,0),MATCH(CostData!$C$3,Apdx_5_5_Opt_2_CumSavings!$G$6:$Q$6,0))))/1000 -> 62.31523873 | AM28: =AL28*INDEX(RefTables!$D$38:$F$39,StateData!$C$74,StateData!$C$73)*10^-3 -> 4.920155336 | AN28: 7.895589323 | AP28: =IF(CostData!$C$6="Proposed - Option 1", INDEX(Apdx_5_5_Opt_1_CumSavings!$S$7:$S$59,MATCH(B28,Apdx_5_5_Opt_1_CumSavings!$C$7:$C$59,0)), INDEX(Apdx_5_5_Opt_2_CumSavings!$S$7:$S$59,MATCH(B28,Apdx_5_5_Opt_2_CumSavings!$C$7:$C$59,0)))/1000 -> 56.54740356 | AR28: 4.924075865 | AS28: 5.122908046 | AT28: 4.920980864 | AU28: 4.923946581 | AV28: 4.920155336 | AW28: 4.857141691 | AX28: 4.716724689 | AZ28: 7.901880769 | BA28: 8.2209555 | BB28: 7.896914085 | BC28: 7.901673301 | BD28: 7.895589323 | BE28: 7.79446856 | BF28: 8.341187024 | BH28: 0.006291445431 | BI28: 0.3253661772 | BJ28: 0.001324761673 | BK28: 0.006083978325 | BL28: 0 | BM28: -0.1011207629 | BN28: 0.4455977009 | BP28: 0.6835433007
B29: Missouri | C29: -608.7656132 | D29: 218.360201 | E29: =-'BB1'!H29 -> 4137.190738 | F29: =E29*INDEX(RefTables!$D$14:$F$14,1,StateData!$C$73)*1/1000 -> 31.85636868 | G29: =-BB2a!P29 -> 3845.659012 | H29: =G29*INDEX(RefTables!$D$15:$F$15,1,StateData!$C$73)*1/1000 -> 126.9067474 | I29: =-BB2b!N29*BB2b!O29 -> 0 | J29: =I29*INDEX(RefTables!$D$16:$F$16,1,StateData!$C$73)*1/1000 -> 0 | K29: =BB3ai!C29 -> 549656.7111 | L29: =K29*INDEX(RefTables!$D$17:$F$17,1,StateData!$C$73)*1/1000000 -> 3.297940267 | M29: =BB3aii!C29 -> 0 | N29: =M29*INDEX(RefTables!$D$18:$F$18,1,StateData!$C$73)*1/1000000 -> 0 | O29: =IF(GWh_Summary!Z29*1000<0,0,GWh_Summary!Z29*1000) -> 1464949.567 | P29: =O29*INDEX(RefTables!$D$22:$F$22,1,StateData!$C$73)*1/1000000 -> 92.29182269 | Q29: =-O29*INDEX(RefTables!$D$38:$F$39,StateData!$C$74,StateData!$C$73)*1/1000000 -> -115.6664016 | R29: =IF(CostData!$C$6="Proposed - Option 1", INDEX(Apdx_5_5_Opt_1_CumSavings!$G$7:$Q$59,MATCH(B29,Apdx_5_5_Opt_1_CumSavings!$C$7:$C$59,0),MATCH(CostData!$C$3,Apdx_5_5_Opt_1_CumSavings!$G$6:$Q$6,0)), INDEX(Apdx_5_5_Opt_2_CumSavings!$G$7:$Q$59,MATCH(B29,Apdx_5_5_Opt_2_CumSavings!$C$7:$C$59,0),MATCH(CostData!$C$3,Apdx_5_5_Opt_2_CumSavings!$G$6:$Q$6,0)))*1000 -> 9466704.258 | S29: 79.67372354 | T29: =-$R29*INDEX(RefTables!$D$38:$F$39,StateData!$C$74,StateData!$C$73)*1/1000000 -> -747.4520907 | U29: =$R29*INDEX(RefTables!$D$28:$F$28,1,StateData!$C$73)/2*1/1000000 -> 413.5629071 | V29: 413.5629071 | X29: 667.9157861 | Y29: -863.1184922 | Z29: 413.5629071 | AB29: 31.85636868 | AC29: 126.9067474 | AD29: 0 | AE29: 3.297940267 | AF29: 0 | AG29: 92.29182269 | AH29: 413.5629071 | AI29: -115.6664016 | AJ29: -747.4520907 | AL29: =IF(CostData!$C$6="Proposed - Option 1", (INDEX(Apdx_5_5_Opt_1_CumSavings!$S$7:$S$59,MATCH(B29,Apdx_5_5_Opt_1_CumSavings!$C$7:$C$59,0)) +INDEX(Apdx_5_5_Opt_1_CumSavings!$G$7:$Q$59,MATCH(B29,Apdx_5_5_Opt_1_CumSavings!$C$7:$C$59,0),MATCH(CostData!$C$3,Apdx_5_5_Opt_1_CumSavings!$G$6:$Q$6,0))), (INDEX(Apdx_5_5_Opt_2_CumSavings!$S$7:$S$59,MATCH(B29,Apdx_5_5_Opt_2_CumSavings!$C$7:$C$59,0)) +INDEX(Apdx_5_5_Opt_2_CumSavings!$G$7:$Q$59,MATCH(B29,Apdx_5_5_Opt_2_CumSavings!$C$7:$C$59,0),MATCH(CostData!$C$3,Apdx_5_5_Opt_2_CumSavings!$G$6:$Q$6,0))))/1000 -> 99.36892893 | AM29: =AL29*INDEX(RefTables!$D$38:$F$39,StateData!$C$74,StateData!$C$73)*10^-3 -> 7.845762543 | AN29: 7.895589323 | AP29: =IF(CostData!$C$6="Proposed - Option 1", INDEX(Apdx_5_5_Opt_1_CumSavings!$S$7:$S$59,MATCH(B29,Apdx_5_5_Opt_1_CumSavings!$C$7:$C$59,0)), INDEX(Apdx_5_5_Opt_2_CumSavings!$S$7:$S$59,MATCH(B29,Apdx_5_5_Opt_2_CumSavings!$C$7:$C$59,0)))/1000 -> 89.90222468 | AR29: 7.877618912 | AS29: 7.972669291 | AT29: 7.845762543 | AU29: 7.849060484 | AV29: 7.845762543 | AW29: 7.822387965 | AX29: 7.51187336 | AZ29: 7.927648005 | BA29: 8.023302028 | BB29: 7.895589323 | BC29: 7.898908208 | BD29: 7.895589323 | BE29: 7.872066297 | BF29: 8.35560342 | BH29: 0.03205868174 | BI29: 0.1277127053 | BJ29: 0 | BK29: 0.003318884788 | BL29: 0 | BM29: -0.02352302588 | BN29: 0.4600140971 | BP29: 0.5995813431
B30: Montana | C30: -164.5239745 | D30: -0.09223520067 | E30: =-'BB1'!H30 -> 958.3814554 | F30: =E30*INDEX(RefTables!$D$14:$F$14,1,StateData!$C$73)*1/1000 -> 7.379537206 | G30: =-BB2a!P30 -> 0 | H30: =G30*INDEX(RefTables!$D$15:$F$15,1,StateData!$C$73)*1/1000 -> 0 | I30: =-BB2b!N30*BB2b!O30 -> 0 | J30: =I30*INDEX(RefTables!$D$16:$F$16,1,StateData!$C$73)*1/1000 -> 0 | K30: =BB3ai!C30 -> 0 | L30: =K30*INDEX(RefTables!$D$17:$F$17,1,StateData!$C$73)*1/1000000 -> 0 | M30: =BB3aii!C30 -> 0 | N30: =M30*INDEX(RefTables!$D$18:$F$18,1,StateData!$C$73)*1/1000000 -> 0 | O30: =IF(GWh_Summary!Z30*1000<0,0,GWh_Summary!Z30*1000) -> 1460953.909 | P30: =O30*INDEX(RefTables!$D$22:$F$22,1,StateData!$C$73)*1/1000000 -> 92.04009628 | Q30: =-O30*INDEX(RefTables!$D$38:$F$39,StateData!$C$74,StateData!$C$73)*1/1000000 -> -115.3509209 | R30: =IF(CostData!$C$6="Proposed - Option 1", INDEX(Apdx_5_5_Opt_1_CumSavings!$G$7:$Q$59,MATCH(B30,Apdx_5_5_Opt_1_CumSavings!$C$7:$C$59,0),MATCH(CostData!$C$3,Apdx_5_5_Opt_1_CumSavings!$G$6:$Q$6,0)), INDEX(Apdx_5_5_Opt_2_CumSavings!$G$7:$Q$59,MATCH(B30,Apdx_5_5_Opt_2_CumSavings!$C$7:$C$59,0),MATCH(CostData!$C$3,Apdx_5_5_Opt_2_CumSavings!$G$6:$Q$6,0)))*1000 -> 1881970.819 | S30: 15.83905218 | T30: =-$R30*INDEX(RefTables!$D$38:$F$39,StateData!$C$74,StateData!$C$73)*1/1000000 -> -148.5926871 | U30: =$R30*INDEX(RefTables!$D$28:$F$28,1,StateData!$C$73)/2*1/1000000 -> 82.21586963 | V30: 82.21586963 | X30: 181.6355031 | Y30: -263.943608 | Z30: 82.21586963 | AB30: 7.379537206 | AC30: 0 | AD30: 0 | AE30: 0 | AF30: 0 | AG30: 92.04009628 | AH30: 82.21586963 | AI30: -115.3509209 | AJ30: -148.5926871 | AL30: =IF(CostData!$C$6="Proposed - Option 1", (INDEX(Apdx_5_5_Opt_1_CumSavings!$S$7:$S$59,MATCH(B30,Apdx_5_5_Opt_1_CumSavings!$C$7:$C$59,0)) +INDEX(Apdx_5_5_Opt_1_CumSavings!$G$7:$Q$59,MATCH(B30,Apdx_5_5_Opt_1_CumSavings!$C$7:$C$59,0),MATCH(CostData!$C$3,Apdx_5_5_Opt_1_CumSavings!$G$6:$Q$6,0))), (INDEX(Apdx_5_5_Opt_2_CumSavings!$S$7:$S$59,MATCH(B30,Apdx_5_5_Opt_2_CumSavings!$C$7:$C$59,0)) +INDEX(Apdx_5_5_Opt_2_CumSavings!$G$7:$Q$59,MATCH(B30,Apdx_5_5_Opt_2_CumSavings!$C$7:$C$59,0),MATCH(CostData!$C$3,Apdx_5_5_Opt_2_CumSavings!$G$6:$Q$6,0))))/1000 -> 18.49248114 | AM30: =AL30*INDEX(RefTables!$D$38:$F$39,StateData!$C$74,StateData!$C$73)*10^-3 -> 1.460090367 | AN30: 7.895589323 | AP30: =IF(CostData!$C$6="Proposed - Option 1", INDEX(Apdx_5_5_Opt_1_CumSavings!$S$7:$S$59,MATCH(B30,Apdx_5_5_Opt_1_CumSavings!$C$7:$C$59,0)), INDEX(Apdx_5_5_Opt_2_CumSavings!$S$7:$S$59,MATCH(B30,Apdx_5_5_Opt_2_CumSavings!$C$7:$C$59,0)))/1000 -> 16.61051032 | AR30: 1.467469904 | AS30: 1.460090367 | AT30: 1.460090367 | AU30: 1.460090367 | AV30: 1.460090367 | AW30: 1.436779542 | AX30: 1.393713549 | AZ30: 7.935494932 | BA30: 7.895589323 | BB30: 7.895589323 | BC30: 7.895589323 | BD30: 7.895589323 | BE30: 7.769533634 | BF30: 8.390552259 | BH30: 0.03990560893 | BI30: 0 | BJ30: 0 | BK30: 0 | BL30: 0 | BM30: -0.1260556894 | BN30: 0.4949629364 | BP30: 0.4088128559
B31: Nebraska | C31: -284.4910378 | D31: 41.70288024 | E31: =-'BB1'!H31 -> 1463.609518 | F31: =E31*INDEX(RefTables!$D$14:$F$14,1,StateData!$C$73)*1/1000 -> 11.26979329 | G31: =-BB2a!P31 -> 1061.113095 | H31: =G31*INDEX(RefTables!$D$15:$F$15,1,StateData!$C$73)*1/1000 -> 35.01673215 | I31: =-BB2b!N31*BB2b!O31 -> 0 | J31: =I31*INDEX(RefTables!$D$16:$F$16,1,StateData!$C$73)*1/1000 -> 0 | K31: =BB3ai!C31 -> 574830.0647 | L31: =K31*INDEX(RefTables!$D$17:$F$17,1,StateData!$C$73)*1/1000000 -> 3.448980388 | M31: =BB3aii!C31 -> 0 | N31: =M31*INDEX(RefTables!$D$18:$F$18,1,StateData!$C$73)*1/1000000 -> 0 | O31: =IF(GWh_Summary!Z31*1000<0,0,GWh_Summary!Z31*1000) -> 2472665.196 | P31: =O31*INDEX(RefTables!$D$22:$F$22,1,StateData!$C$73)*1/1000000 -> 155.7779073 | Q31: =-O31*INDEX(RefTables!$D$38:$F$39,StateData!$C$74,StateData!$C$73)*1/1000000 -> -195.2314892 | R31: =IF(CostData!$C$6="Proposed - Option 1", INDEX(Apdx_5_5_Opt_1_CumSavings!$G$7:$Q$59,MATCH(B31,Apdx_5_5_Opt_1_CumSavings!$C$7:$C$59,0),MATCH(CostData!$C$3,Apdx_5_5_Opt_1_CumSavings!$G$6:$Q$6,0)), INDEX(Apdx_5_5_Opt_2_CumSavings!$G$7:$Q$59,MATCH(B31,Apdx_5_5_Opt_2_CumSavings!$C$7:$C$59,0),MATCH(CostData!$C$3,Apdx_5_5_Opt_2_CumSavings!$G$6:$Q$6,0)))*1000 -> 3733387.715 | S31: 31.42095628 | T31: =-$R31*INDEX(RefTables!$D$38:$F$39,StateData!$C$74,StateData!$C$73)*1/1000000 -> -294.7729618 | U31: =$R31*INDEX(RefTables!$D$28:$F$28,1,StateData!$C$73)/2*1/1000000 -> 163.096959 | V31: 163.096959 | X31: 368.6103722 | Y31: -490.004451 | Z31: 163.096959 | AB31: 11.26979329 | AC31: 35.01673215 | AD31: 0 | AE31: 3.448980388 | AF31: 0 | AG31: 155.7779073 | AH31: 163.096959 | AI31: -195.2314892 | AJ31: -294.7729618 | AL31: =IF(CostData!$C$6="Proposed - Option 1", (INDEX(Apdx_5_5_Opt_1_CumSavings!$S$7:$S$59,MATCH(B31,Apdx_5_5_Opt_1_CumSavings!$C$7:$C$59,0)) +INDEX(Apdx_5_5_Opt_1_CumSavings!$G$7:$Q$59,MATCH(B31,Apdx_5_5_Opt_1_CumSavings!$C$7:$C$59,0),MATCH(CostData!$C$3,Apdx_5_5_Opt_1_CumSavings!$G$6:$Q$6,0))), (INDEX(Apdx_5_5_Opt_2_CumSavings!$S$7:$S$59,MATCH(B31,Apdx_5_5_Opt_2_CumSavings!$C$7:$C$59,0)) +INDEX(Apdx_5_5_Opt_2_CumSavings!$G$7:$Q$59,MATCH(B31,Apdx_5_5_Opt_2_CumSavings!$C$7:$C$59,0),MATCH(CostData!$C$3,Apdx_5_5_Opt_2_CumSavings!$G$6:$Q$6,0))))/1000 -> 37.82825269 | AM31: =AL31*INDEX(RefTables!$D$38:$F$39,StateData!$C$74,StateData!$C$73)*10^-3 -> 2.98676348 | AN31: 7.895589323 | AP31: =IF(CostData!$C$6="Proposed - Option 1", INDEX(Apdx_5_5_Opt_1_CumSavings!$S$7:$S$59,MATCH(B31,Apdx_5_5_Opt_1_CumSavings!$C$7:$C$59,0)), INDEX(Apdx_5_5_Opt_2_CumSavings!$S$7:$S$59,MATCH(B31,Apdx_5_5_Opt_2_CumSavings!$C$7:$C$59,0)))/1000 -> 34.09486497 | AR31: 2.998033274 | AS31: 3.021780213 | AT31: 2.98676348 | AU31: 2.990212461 | AV31: 2.98676348 | AW31: 2.947309899 | AX31: 2.855087478 | AZ31: 7.925381324 | BA31: 7.988156993 | BB31: 7.895589323 | BC31: 7.904706795 | BD31: 7.895589323 | BE31: 7.791292722 | BF31: 8.373951561 | BH31: 0.02979200065 | BI31: 0.09256767008 | BJ31: 0 | BK31: 0.009117472109 | BL31: 0 | BM31: -0.1042966012 | BN31: 0.4783622377 | BP31: 0.5055427793
B32: Nevada | C32: -343.4744366 | D32: 66.72776401 | E32: =-'BB1'!H32 -> 255.8396685 | F32: =E32*INDEX(RefTables!$D$14:$F$14,1,StateData!$C$73)*1/1000 -> 1.969965447 | G32: =-BB2a!P32 -> 2426.969508 | H32: =G32*INDEX(RefTables!$D$15:$F$15,1,StateData!$C$73)*1/1000 -> 80.08999377 | I32: =-BB2b!N32*BB2b!O32 -> 0 | J32: =I32*INDEX(RefTables!$D$16:$F$16,1,StateData!$C$73)*1/1000 -> 0 | K32: =BB3ai!C32 -> 0 | L32: =K32*INDEX(RefTables!$D$17:$F$17,1,StateData!$C$73)*1/1000000 -> 0 | M32: =BB3aii!C32 -> 0 | N32: =M32*INDEX(RefTables!$D$18:$F$18,1,StateData!$C$73)*1/1000000 -> 0 | O32: =IF(GWh_Summary!Z32*1000<0,0,GWh_Summary!Z32*1000) -> 3437308.884 | P32: =O32*INDEX(RefTables!$D$22:$F$22,1,StateData!$C$73)*1/1000000 -> 216.5504597 | Q32: =-O32*INDEX(RefTables!$D$38:$F$39,StateData!$C$74,StateData!$C$73)*1/1000000 -> -271.3957932 | R32: =IF(CostData!$C$6="Proposed - Option 1", INDEX(Apdx_5_5_Opt_1_CumSavings!$G$7:$Q$59,MATCH(B32,Apdx_5_5_Opt_1_CumSavings!$C$7:$C$59,0),MATCH(CostData!$C$3,Apdx_5_5_Opt_1_CumSavings!$G$6:$Q$6,0)), INDEX(Apdx_5_5_Opt_2_CumSavings!$G$7:$Q$59,MATCH(B32,Apdx_5_5_Opt_2_CumSavings!$C$7:$C$59,0),MATCH(CostData!$C$3,Apdx_5_5_Opt_2_CumSavings!$G$6:$Q$6,0)))*1000 -> 4694887.831 | S32: 39.51313835 | T32: =-$R32*INDEX(RefTables!$D$38:$F$39,StateData!$C$74,StateData!$C$73)*1/1000000 -> -370.6890623 | U32: =$R32*INDEX(RefTables!$D$28:$F$28,1,StateData!$C$73)/2*1/1000000 -> 205.1011003 | V32: 205.1011003 | X32: 503.7115192 | Y32: -642.0848555 | Z32: 205.1011003 | AB32: 1.969965447 | AC32: 80.08999377 | AD32: 0 | AE32: 0 | AF32: 0 | AG32: 216.5504597 | AH32: 205.1011003 | AI32: -271.3957932 | AJ32: -370.6890623 | AL32: =IF(CostData!$C$6="Proposed - Option 1", (INDEX(Apdx_5_5_Opt_1_CumSavings!$S$7:$S$59,MATCH(B32,Apdx_5_5_Opt_1_CumSavings!$C$7:$C$59,0)) +INDEX(Apdx_5_5_Opt_1_CumSavings!$G$7:$Q$59,MATCH(B32,Apdx_5_5_Opt_1_CumSavings!$C$7:$C$59,0),MATCH(CostData!$C$3,Apdx_5_5_Opt_1_CumSavings!$G$6:$Q$6,0))), (INDEX(Apdx_5_5_Opt_2_CumSavings!$S$7:$S$59,MATCH(B32,Apdx_5_5_Opt_2_CumSavings!$C$7:$C$59,0)) +INDEX(Apdx_5_5_Opt_2_CumSavings!$G$7:$Q$59,MATCH(B32,Apdx_5_5_Opt_2_CumSavings!$C$7:$C$59,0),MATCH(CostData!$C$3,Apdx_5_5_Opt_2_CumSavings!$G$6:$Q$6,0))))/1000 -> 46.80150515 | AM32: =AL32*INDEX(RefTables!$D$38:$F$39,StateData!$C$74,StateData!$C$73)*10^-3 -> 3.695254643 | AN32: 7.895589323 | AP32: =IF(CostData!$C$6="Proposed - Option 1", INDEX(Apdx_5_5_Opt_1_CumSavings!$S$7:$S$59,MATCH(B32,Apdx_5_5_Opt_1_CumSavings!$C$7:$C$59,0)), INDEX(Apdx_5_5_Opt_2_CumSavings!$S$7:$S$59,MATCH(B32,Apdx_5_5_Opt_2_CumSavings!$C$7:$C$59,0)))/1000 -> 42.10661732 | AR32: 3.697224609 | AS32: 3.775344637 | AT32: 3.695254643 | AU32: 3.695254643 | AV32: 3.695254643 | AW32: 3.64040931 | AX32: 3.529666681 | AZ32: 7.899798516 | BA32: 8.066716285 | BB32: 7.895589323 | BC32: 7.895589323 | BD32: 7.895589323 | BE32: 7.778402208 | BF32: 8.382688771 | BH32: 0.004209192506 | BI32: 0.1711269617 | BJ32: 0 | BK32: 0 | BL32: 0 | BM32: -0.1171871148 | BN32: 0.4870994475 | BP32: 0.5452484869
B33: New Hampshire | C33: -126.9160808 | D33: -12.58937759 | E33: =-'BB1'!H33 -> 83.04987946 | F33: =E33*INDEX(RefTables!$D$14:$F$14,1,StateData!$C$73)*1/1000 -> 0.6394840718 | G33: =-BB2a!P33 -> 824.4863913 | H33: =G33*INDEX(RefTables!$D$15:$F$15,1,StateData!$C$73)*1/1000 -> 27.20805091 | I33: =-BB2b!N33*BB2b!O33 -> 0 | J33: =I33*INDEX(RefTables!$D$16:$F$16,1,StateData!$C$73)*1/1000 -> 0 | K33: =BB3ai!C33 -> 575615.2886 | L33: =K33*INDEX(RefTables!$D$17:$F$17,1,StateData!$C$73)*1/1000000 -> 3.453691731 | M33: =BB3aii!C33 -> 0 | N33: =M33*INDEX(RefTables!$D$18:$F$18,1,StateData!$C$73)*1/1000000 -> 0 | O33: =IF(GWh_Summary!Z33*1000<0,0,GWh_Summary!Z33*1000) -> 3440937.956 | P33: =O33*INDEX(RefTables!$D$22:$F$22,1,StateData!$C$73)*1/1000000 -> 216.7790912 | Q33: =-O33*INDEX(RefTables!$D$38:$F$39,StateData!$C$74,StateData!$C$73)*1/1000000 -> -271.6823299 | R33: =IF(CostData!$C$6="Proposed - Option 1", INDEX(Apdx_5_5_Opt_1_CumSavings!$G$7:$Q$59,MATCH(B33,Apdx_5_5_Opt_1_CumSavings!$C$7:$C$59,0),MATCH(CostData!$C$3,Apdx_5_5_Opt_1_CumSavings!$G$6:$Q$6,0)), INDEX(Apdx_5_5_Opt_2_CumSavings!$G$7:$Q$59,MATCH(B33,Apdx_5_5_Opt_2_CumSavings!$C$7:$C$59,0),MATCH(CostData!$C$3,Apdx_5_5_Opt_2_CumSavings!$G$6:$Q$6,0)))*1000 -> 1308503.578 | S33: 11.01263433 | T33: =-$R33*INDEX(RefTables!$D$38:$F$39,StateData!$C$74,StateData!$C$73)*1/1000000 -> -103.3140688 | U33: =$R33*INDEX(RefTables!$D$28:$F$28,1,StateData!$C$73)/2*1/1000000 -> 57.16335158 | V33: 57.16335158 | X33: 305.2436695 | Y33: -374.9963987 | Z33: 57.16335158 | AB33: 0.6394840718 | AC33: 27.20805091 | AD33: 0 | AE33: 3.453691731 | AF33: 0 | AG33: 216.7790912 | AH33: 57.16335158 | AI33: -271.6823299 | AJ33: -103.3140688 | AL33: =IF(CostData!$C$6="Proposed - Option 1", (INDEX(Apdx_5_5_Opt_1_CumSavings!$S$7:$S$59,MATCH(B33,Apdx_5_5_Opt_1_CumSavings!$C$7:$C$59,0)) +INDEX(Apdx_5_5_Opt_1_CumSavings!$G$7:$Q$59,MATCH(B33,Apdx_5_5_Opt_1_CumSavings!$C$7:$C$59,0),MATCH(CostData!$C$3,Apdx_5_5_Opt_1_CumSavings!$G$6:$Q$6,0))), (INDEX(Apdx_5_5_Opt_2_CumSavings!$S$7:$S$59,MATCH(B33,Apdx_5_5_Opt_2_CumSavings!$C$7:$C$59,0)) +INDEX(Apdx_5_5_Opt_2_CumSavings!$G$7:$Q$59,MATCH(B33,Apdx_5_5_Opt_2_CumSavings!$C$7:$C$59,0),MATCH(CostData!$C$3,Apdx_5_5_Opt_2_CumSavings!$G$6:$Q$6,0))))/1000 -> 12.66704159 | AM33: =AL33*INDEX(RefTables!$D$38:$F$39,StateData!$C$74,StateData!$C$73)*10^-3 -> 1.000137583 | AN33: 7.895589323 | AP33: =IF(CostData!$C$6="Proposed - Option 1", INDEX(Apdx_5_5_Opt_1_CumSavings!$S$7:$S$59,MATCH(B33,Apdx_5_5_Opt_1_CumSavings!$C$7:$C$59,0)), INDEX(Apdx_5_5_Opt_2_CumSavings!$S$7:$S$59,MATCH(B33,Apdx_5_5_Opt_2_CumSavings!$C$7:$C$59,0)))/1000 -> 11.35853801 | AR33: 1.000777067 | AS33: 1.027345634 | AT33: 1.000137583 | AU33: 1.003591275 | AV33: 1.000137583 | AW33: 0.9452343443 | AX33: 0.9539868657 | AZ33: 7.900637732 | BA33: 8.110383367 | BB33: 7.895589323 | BC33: 7.922854503 | BD33: 7.895589323 | BE33: 7.462155531 | BF33: 8.398852609 | BH33: 0.005048409035 | BI33: 0.2147940443 | BJ33: 0 | BK33: 0.02726518033 | BL33: 0 | BM33: -0.4334337917 | BN33: 0.5032632857 | BP33: 0.3169371276
B34: New Jersey | C34: -752.4897797 | D34: -15.8346843 | E34: =-'BB1'!H34 -> 148.859331 | F34: =E34*INDEX(RefTables!$D$14:$F$14,1,StateData!$C$73)*1/1000 -> 1.146216848 | G34: =-BB2a!P34 -> 1328.508184 | H34: =G34*INDEX(RefTables!$D$15:$F$15,1,StateData!$C$73)*1/1000 -> 43.84077007 | I34: =-BB2b!N34*BB2b!O34 -> 0 | J34: =I34*INDEX(RefTables!$D$16:$F$16,1,StateData!$C$73)*1/1000 -> 0 | K34: =BB3ai!C34 -> 1616036.92 | L34: =K34*INDEX(RefTables!$D$17:$F$17,1,StateData!$C$73)*1/1000000 -> 9.696221522 | M34: =BB3aii!C34 -> 0 | N34: =M34*INDEX(RefTables!$D$18:$F$18,1,StateData!$C$73)*1/1000000 -> 0 | O34: =IF(GWh_Summary!Z34*1000<0,0,GWh_Summary!Z34*1000) -> 8866751.081 | P34: =O34*INDEX(RefTables!$D$22:$F$22,1,StateData!$C$73)*1/1000000 -> 558.6053181 | Q34: =-O34*INDEX(RefTables!$D$38:$F$39,StateData!$C$74,StateData!$C$73)*1/1000000 -> -700.0822517 | R34: =IF(CostData!$C$6="Proposed - Option 1", INDEX(Apdx_5_5_Opt_1_CumSavings!$G$7:$Q$59,MATCH(B34,Apdx_5_5_Opt_1_CumSavings!$C$7:$C$59,0),MATCH(CostData!$C$3,Apdx_5_5_Opt_1_CumSavings!$G$6:$Q$6,0)), INDEX(Apdx_5_5_Opt_2_CumSavings!$G$7:$Q$59,MATCH(B34,Apdx_5_5_Opt_2_CumSavings!$C$7:$C$59,0),MATCH(CostData!$C$3,Apdx_5_5_Opt_2_CumSavings!$G$6:$Q$6,0)))*1000 -> 8431239.612 | S34: 70.95904082 | T34: =-$R34*INDEX(RefTables!$D$38:$F$39,StateData!$C$74,StateData!$C$73)*1/1000000 -> -665.6960546 | U34: =$R34*INDEX(RefTables!$D$28:$F$28,1,StateData!$C$73)/2*1/1000000 -> 368.3275477 | V34: 368.3275477 | X34: 981.6160743 | Y34: -1365.778306 | Z34: 368.3275477 | AB34: 1.146216848 | AC34: 43.84077007 | AD34: 0 | AE34: 9.696221522 | AF34: 0 | AG34: 558.6053181 | AH34: 368.3275477 | AI34: -700.0822517 | AJ34: -665.6960546 | AL34: =IF(CostData!$C$6="Proposed - Option 1", (INDEX(Apdx_5_5_Opt_1_CumSavings!$S$7:$S$59,MATCH(B34,Apdx_5_5_Opt_1_CumSavings!$C$7:$C$59,0)) +INDEX(Apdx_5_5_Opt_1_CumSavings!$G$7:$Q$59,MATCH(B34,Apdx_5_5_Opt_1_CumSavings!$C$7:$C$59,0),MATCH(CostData!$C$3,Apdx_5_5_Opt_1_CumSavings!$G$6:$Q$6,0))), (INDEX(Apdx_5_5_Opt_2_CumSavings!$S$7:$S$59,MATCH(B34,Apdx_5_5_Opt_2_CumSavings!$C$7:$C$59,0)) +INDEX(Apdx_5_5_Opt_2_CumSavings!$G$7:$Q$59,MATCH(B34,Apdx_5_5_Opt_2_CumSavings!$C$7:$C$59,0),MATCH(CostData!$C$3,Apdx_5_5_Opt_2_CumSavings!$G$6:$Q$6,0))))/1000 -> 90.84804911 | AM34: =AL34*INDEX(RefTables!$D$38:$F$39,StateData!$C$74,StateData!$C$73)*10^-3 -> 7.172988866 | AN34: 7.895589323 | AP34: =IF(CostData!$C$6="Proposed - Option 1", INDEX(Apdx_5_5_Opt_1_CumSavings!$S$7:$S$59,MATCH(B34,Apdx_5_5_Opt_1_CumSavings!$C$7:$C$59,0)), INDEX(Apdx_5_5_Opt_2_CumSavings!$S$7:$S$59,MATCH(B34,Apdx_5_5_Opt_2_CumSavings!$C$7:$C$59,0)))/1000 -> 82.4168095 | AR34: 7.174135083 | AS34: 7.216829636 | AT34: 7.172988866 | AU34: 7.182685087 | AV34: 7.172988866 | AW34: 7.031511932 | AX34: 6.875620359 | AZ34: 7.896851009 | BA34: 7.943846573 | BB34: 7.895589323 | BC34: 7.906262333 | BD34: 7.895589323 | BE34: 7.73986013 | BF34: 8.342497605 | BH34: 0.001261685704 | BI34: 0.04825724989 | BJ34: 0 | BK34: 0.01067301017 | BL34: 0 | BM34: -0.1557291928 | BN34: 0.4469082824 | BP34: 0.3513710353
B35: New Mexico | C35: -207.8434433 | D35: 75.81470542 | E35: =-'BB1'!H35 -> 723.2134102 | F35: =E35*INDEX(RefTables!$D$14:$F$14,1,StateData!$C$73)*1/1000 -> 5.568743259 | G35: =-BB2a!P35 -> 2339.329333 | H35: =G35*INDEX(RefTables!$D$15:$F$15,1,StateData!$C$73)*1/1000 -> 77.19786798 | I35: =-BB2b!N35*BB2b!O35 -> 0 | J35: =I35*INDEX(RefTables!$D$16:$F$16,1,StateData!$C$73)*1/1000 -> 0 | K35: =BB3ai!C35 -> 0 | L35: =K35*INDEX(RefTables!$D$17:$F$17,1,StateData!$C$73)*1/1000000 -> 0 | M35: =BB3aii!C35 -> 0 | N35: =M35*INDEX(RefTables!$D$18:$F$18,1,StateData!$C$73)*1/1000000 -> 0 | O35: =IF(GWh_Summary!Z35*1000<0,0,GWh_Summary!Z35*1000) -> 2148144.323 | P35: =O35*INDEX(RefTables!$D$22:$F$22,1,StateData!$C$73)*1/1000000 -> 135.3330923 | Q35: =-O35*INDEX(RefTables!$D$38:$F$39,StateData!$C$74,StateData!$C$73)*1/1000000 -> -169.6086538 | R35: =IF(CostData!$C$6="Proposed - Option 1", INDEX(Apdx_5_5_Opt_1_CumSavings!$G$7:$Q$59,MATCH(B35,Apdx_5_5_Opt_1_CumSavings!$C$7:$C$59,0),MATCH(CostData!$C$3,Apdx_5_5_Opt_1_CumSavings!$G$6:$Q$6,0)), INDEX(Apdx_5_5_Opt_2_CumSavings!$G$7:$Q$59,MATCH(B35,Apdx_5_5_Opt_2_CumSavings!$C$7:$C$59,0),MATCH(CostData!$C$3,Apdx_5_5_Opt_2_CumSavings!$G$6:$Q$6,0)))*1000 -> 3246553.013 | S35: 27.32365564 | T35: =-$R35*INDEX(RefTables!$D$38:$F$39,StateData!$C$74,StateData!$C$73)*1/1000000 -> -256.3344931 | U35: =$R35*INDEX(RefTables!$D$28:$F$28,1,StateData!$C$73)/2*1/1000000 -> 141.8290744 | V35: 141.8290744 | X35: 359.9287779 | Y35: -425.9431469 | Z35: 141.8290744 | AB35: 5.568743259 | AC35: 77.19786798 | AD35: 0 | AE35: 0 | AF35: 0 | AG35: 135.3330923 | AH35: 141.8290744 | AI35: -169.6086538 | AJ35: -256.3344931 | AL35: =IF(CostData!$C$6="Proposed - Option 1", (INDEX(Apdx_5_5_Opt_1_CumSavings!$S$7:$S$59,MATCH(B35,Apdx_5_5_Opt_1_CumSavings!$C$7:$C$59,0)) +INDEX(Apdx_5_5_Opt_1_CumSavings!$G$7:$Q$59,MATCH(B35,Apdx_5_5_Opt_1_CumSavings!$C$7:$C$59,0),MATCH(CostData!$C$3,Apdx_5_5_Opt_1_CumSavings!$G$6:$Q$6,0))), (INDEX(Apdx_5_5_Opt_2_CumSavings!$S$7:$S$59,MATCH(B35,Apdx_5_5_Opt_2_CumSavings!$C$7:$C$59,0)) +INDEX(Apdx_5_5_Opt_2_CumSavings!$G$7:$Q$59,MATCH(B35,Apdx_5_5_Opt_2_CumSavings!$C$7:$C$59,0),MATCH(CostData!$C$3,Apdx_5_5_Opt_2_CumSavings!$G$6:$Q$6,0))))/1000 -> 32.68039719 | AM35: =AL35*INDEX(RefTables!$D$38:$F$39,StateData!$C$74,StateData!$C$73)*10^-3 -> 2.580309952 | AN35: 7.895589323 | AP35: =IF(CostData!$C$6="Proposed - Option 1", INDEX(Apdx_5_5_Opt_1_CumSavings!$S$7:$S$59,MATCH(B35,Apdx_5_5_Opt_1_CumSavings!$C$7:$C$59,0)), INDEX(Apdx_5_5_Opt_2_CumSavings!$S$7:$S$59,MATCH(B35,Apdx_5_5_Opt_2_CumSavings!$C$7:$C$59,0)))/1000 -> 29.43384418 | AR35: 2.585878695 | AS35: 2.65750782 | AT35: 2.580309952 | AU35: 2.580309952 | AV35: 2.580309952 | AW35: 2.54603439 | AX35: 2.465804533 | AZ35: 7.912629334 | BA35: 8.131810038 | BB35: 7.895589323 | BC35: 7.895589323 | BD35: 7.895589323 | BE35: 7.790708219 | BF35: 8.377446445 | BH35: 0.01704001094 | BI35: 0.2362207152 | BJ35: 0 | BK35: 0 | BL35: 0 | BM35: -0.1048811043 | BN35: 0.4818571216 | BP35: 0.6302367435
B36: New York | C36: -1582.287151 | D36: 17.85185715 | E36: =-'BB1'!H36 -> 250.9892929 | F36: =E36*INDEX(RefTables!$D$14:$F$14,1,StateData!$C$73)*1/1000 -> 1.932617555 | G36: =-BB2a!P36 -> 4593.665757 | H36: =G36*INDEX(RefTables!$D$15:$F$15,1,StateData!$C$73)*1/1000 -> 151.59097 | I36: =-BB2b!N36*BB2b!O36 -> 0 | J36: =I36*INDEX(RefTables!$D$16:$F$16,1,StateData!$C$73)*1/1000 -> 0 | K36: =BB3ai!C36 -> 2410637.29 | L36: =K36*INDEX(RefTables!$D$17:$F$17,1,StateData!$C$73)*1/1000000 -> 14.46382374 | M36: =BB3aii!C36 -> 0 | N36: =M36*INDEX(RefTables!$D$18:$F$18,1,StateData!$C$73)*1/1000000 -> 0 | O36: =IF(GWh_Summary!Z36*1000<0,0,GWh_Summary!Z36*1000) -> 19069477.62 | P36: =O36*INDEX(RefTables!$D$22:$F$22,1,StateData!$C$73)*1/1000000 -> 1201.37709 | Q36: =-O36*INDEX(RefTables!$D$38:$F$39,StateData!$C$74,StateData!$C$73)*1/1000000 -> -1505.647639 | R36: =IF(CostData!$C$6="Proposed - Option 1", INDEX(Apdx_5_5_Opt_1_CumSavings!$G$7:$Q$59,MATCH(B36,Apdx_5_5_Opt_1_CumSavings!$C$7:$C$59,0),MATCH(CostData!$C$3,Apdx_5_5_Opt_1_CumSavings!$G$6:$Q$6,0)), INDEX(Apdx_5_5_Opt_2_CumSavings!$G$7:$Q$59,MATCH(B36,Apdx_5_5_Opt_2_CumSavings!$C$7:$C$59,0),MATCH(CostData!$C$3,Apdx_5_5_Opt_2_CumSavings!$G$6:$Q$6,0)))*1000 -> 18314073.27 | S36: 154.1349947 | T36: =-$R36*INDEX(RefTables!$D$38:$F$39,StateData!$C$74,StateData!$C$73)*1/1000000 -> -1446.004014 | U36: =$R36*INDEX(RefTables!$D$28:$F$28,1,StateData!$C$73)/2*1/1000000 -> 800.0695043 | V36: 800.0695043 | X36: 2169.434005 | Y36: -2951.651653 | Z36: 800.0695043 | AB36: 1.932617555 | AC36: 151.59097 | AD36: 0 | AE36: 14.46382374 | AF36: 0 | AG36: 1201.37709 | AH36: 800.0695043 | AI36: -1505.647639 | AJ36: -1446.004014 | AL36: =IF(CostData!$C$6="Proposed - Option 1", (INDEX(Apdx_5_5_Opt_1_CumSavings!$S$7:$S$59,MATCH(B36,Apdx_5_5_Opt_1_CumSavings!$C$7:$C$59,0)) +INDEX(Apdx_5_5_Opt_1_CumSavings!$G$7:$Q$59,MATCH(B36,Apdx_5_5_Opt_1_CumSavings!$C$7:$C$59,0),MATCH(CostData!$C$3,Apdx_5_5_Opt_1_CumSavings!$G$6:$Q$6,0))), (INDEX(Apdx_5_5_Opt_2_CumSavings!$S$7:$S$59,MATCH(B36,Apdx_5_5_Opt_2_CumSavings!$C$7:$C$59,0)) +INDEX(Apdx_5_5_Opt_2_CumSavings!$G$7:$Q$59,MATCH(B36,Apdx_5_5_Opt_2_CumSavings!$C$7:$C$59,0),MATCH(CostData!$C$3,Apdx_5_5_Opt_2_CumSavings!$G$6:$Q$6,0))))/1000 -> 168.799474 | AM36: =AL36*INDEX(RefTables!$D$38:$F$39,StateData!$C$74,StateData!$C$73)*10^-3 -> 13.32771325 | AN36: 7.895589323 | AP36: =IF(CostData!$C$6="Proposed - Option 1", INDEX(Apdx_5_5_Opt_1_CumSavings!$S$7:$S$59,MATCH(B36,Apdx_5_5_Opt_1_CumSavings!$C$7:$C$59,0)), INDEX(Apdx_5_5_Opt_2_CumSavings!$S$7:$S$59,MATCH(B36,Apdx_5_5_Opt_2_CumSavings!$C$7:$C$59,0)))/1000 -> 150.4854008 | AR36: 13.32964587 | AS36: 13.47930422 | AT36: 13.32771325 | AU36: 13.34217707 | AV36: 13.32771325 | AW36: 13.0234427 | AX36: 12.68177874 | AZ36: 7.896734242 | BA36: 7.98539468 | BB36: 7.895589323 | BC36: 7.904157966 | BD36: 7.895589323 | BE36: 7.715333697 | BF36: 8.427248541 | BH36: 0.001144919181 | BI36: 0.08980535683 | BJ36: 0 | BK36: 0.008568642659 | BL36: 0 | BM36: -0.1802556261 | BN36: 0.5316592176 | BP36: 0.4509225102
B37: North Carolina | C37: -1170.20953 | D37: 302.1324555 | E37: =-'BB1'!H37 -> 2815.061203 | F37: =E37*INDEX(RefTables!$D$14:$F$14,1,StateData!$C$73)*1/1000 -> 21.67597126 | G37: =-BB2a!P37 -> 7364.242791 | H37: =G37*INDEX(RefTables!$D$15:$F$15,1,StateData!$C$73)*1/1000 -> 243.0200121 | I37: =-BB2b!N37*BB2b!O37 -> 753.6554773 | J37: =I37*INDEX(RefTables!$D$16:$F$16,1,StateData!$C$73)*1/1000 -> 24.87063075 | K37: =BB3ai!C37 -> 2295625.088 | L37: =K37*INDEX(RefTables!$D$17:$F$17,1,StateData!$C$73)*1/1000000 -> 13.77375053 | M37: =BB3aii!C37 -> 0 | N37: =M37*INDEX(RefTables!$D$18:$F$18,1,StateData!$C$73)*1/1000000 -> 0 | O37: =IF(GWh_Summary!Z37*1000<0,0,GWh_Summary!Z37*1000) -> 8964256.991 | P37: =O37*INDEX(RefTables!$D$22:$F$22,1,StateData!$C$73)*1/1000000 -> 564.7481904 | Q37: =-O37*INDEX(RefTables!$D$38:$F$39,StateData!$C$74,StateData!$C$73)*1/1000000 -> -707.7809179 | R37: =IF(CostData!$C$6="Proposed - Option 1", INDEX(Apdx_5_5_Opt_1_CumSavings!$G$7:$Q$59,MATCH(B37,Apdx_5_5_Opt_1_CumSavings!$C$7:$C$59,0),MATCH(CostData!$C$3,Apdx_5_5_Opt_1_CumSavings!$G$6:$Q$6,0)), INDEX(Apdx_5_5_Opt_2_CumSavings!$G$7:$Q$59,MATCH(B37,Apdx_5_5_Opt_2_CumSavings!$C$7:$C$59,0),MATCH(CostData!$C$3,Apdx_5_5_Opt_2_CumSavings!$G$6:$Q$6,0)))*1000 -> 16851397.83 | S37: 141.8248183 | T37: =-$R37*INDEX(RefTables!$D$38:$F$39,StateData!$C$74,StateData!$C$73)*1/1000000 -> -1330.517167 | U37: =$R37*INDEX(RefTables!$D$28:$F$28,1,StateData!$C$73)/2*1/1000000 -> 736.1709929 | V37: 736.1709929 | X37: 1604.259548 | Y37: -2038.298085 | Z37: 736.1709929 | AB37: 21.67597126 | AC37: 243.0200121 | AD37: 24.87063075 | AE37: 13.77375053 | AF37: 0 | AG37: 564.7481904 | AH37: 736.1709929 | AI37: -707.7809179 | AJ37: -1330.517167 | AL37: =IF(CostData!$C$6="Proposed - Option 1", (INDEX(Apdx_5_5_Opt_1_CumSavings!$S$7:$S$59,MATCH(B37,Apdx_5_5_Opt_1_CumSavings!$C$7:$C$59,0)) +INDEX(Apdx_5_5_Opt_1_CumSavings!$G$7:$Q$59,MATCH(B37,Apdx_5_5_Opt_1_CumSavings!$C$7:$C$59,0),MATCH(CostData!$C$3,Apdx_5_5_Opt_1_CumSavings!$G$6:$Q$6,0))), (INDEX(Apdx_5_5_Opt_2_CumSavings!$S$7:$S$59,MATCH(B37,Apdx_5_5_Opt_2_CumSavings!$C$7:$C$59,0)) +INDEX(Apdx_5_5_Opt_2_CumSavings!$G$7:$Q$59,MATCH(B37,Apdx_5_5_Opt_2_CumSavings!$C$7:$C$59,0),MATCH(CostData!$C$3,Apdx_5_5_Opt_2_CumSavings!$G$6:$Q$6,0))))/1000 -> 173.4629018 | AM37: =AL37*INDEX(RefTables!$D$38:$F$39,StateData!$C$74,StateData!$C$73)*10^-3 -> 13.69591835 | AN37: 7.895589323 | AP37: =IF(CostData!$C$6="Proposed - Option 1", INDEX(Apdx_5_5_Opt_1_CumSavings!$S$7:$S$59,MATCH(B37,Apdx_5_5_Opt_1_CumSavings!$C$7:$C$59,0)), INDEX(Apdx_5_5_Opt_2_CumSavings!$S$7:$S$59,MATCH(B37,Apdx_5_5_Opt_2_CumSavings!$C$7:$C$59,0)))/1000 -> 156.611504 | AR37: 13.71759432 | AS37: 13.93893836 | AT37: 13.72078898 | AU37: 13.7096921 | AV37: 13.69591835 | AW37: 13.55288562 | AX37: 13.10157218 | AZ37: 7.90808535 | BA37: 8.035688451 | BB37: 7.909927046 | BC37: 7.903529782 | BD37: 7.895589323 | BE37: 7.81313208 | BF37: 8.365651212 | BH37: 0.01249602713 | BI37: 0.1400991276 | BJ37: 0.01433772322 | BK37: 0.007940458959 | BL37: 0 | BM37: -0.08245724358 | BN37: 0.4700618884 | BP37: 0.5624779817
B38: North Dakota | C38: -121.4980905 | D38: 25.24851249 | E38: =-'BB1'!H38 -> 1816.043629 | F38: =E38*INDEX(RefTables!$D$14:$F$14,1,StateData!$C$73)*1/1000 -> 13.98353594 | G38: =-BB2a!P38 -> 0 | H38: =G38*INDEX(RefTables!$D$15:$F$15,1,StateData!$C$73)*1/1000 -> 0 | I38: =-BB2b!N38*BB2b!O38 -> 0 | J38: =I38*INDEX(RefTables!$D$16:$F$16,1,StateData!$C$73)*1/1000 -> 0 | K38: =BB3ai!C38 -> 0 | L38: =K38*INDEX(RefTables!$D$17:$F$17,1,StateData!$C$73)*1/1000000 -> 0 | M38: =BB3aii!C38 -> 0 | N38: =M38*INDEX(RefTables!$D$18:$F$18,1,StateData!$C$73)*1/1000000 -> 0 | O38: =IF(GWh_Summary!Z38*1000<0,0,GWh_Summary!Z38*1000) -> 179904.5101 | P38: =O38*INDEX(RefTables!$D$22:$F$22,1,StateData!$C$73)*1/1000000 -> 11.33398414 | Q38: =-O38*INDEX(RefTables!$D$38:$F$39,StateData!$C$74,StateData!$C$73)*1/1000000 -> -14.20452129 | R38: =IF(CostData!$C$6="Proposed - Option 1", INDEX(Apdx_5_5_Opt_1_CumSavings!$G$7:$Q$59,MATCH(B38,Apdx_5_5_Opt_1_CumSavings!$C$7:$C$59,0),MATCH(CostData!$C$3,Apdx_5_5_Opt_1_CumSavings!$G$6:$Q$6,0)), INDEX(Apdx_5_5_Opt_2_CumSavings!$G$7:$Q$59,MATCH(B38,Apdx_5_5_Opt_2_CumSavings!$C$7:$C$59,0),MATCH(CostData!$C$3,Apdx_5_5_Opt_2_CumSavings!$G$6:$Q$6,0)))*1000 -> 1679559.104 | S38: 14.1355137 | T38: =-$R38*INDEX(RefTables!$D$38:$F$39,StateData!$C$74,StateData!$C$73)*1/1000000 -> -132.6110893 | U38: =$R38*INDEX(RefTables!$D$28:$F$28,1,StateData!$C$73)/2*1/1000000 -> 73.3733015 | V38: 73.3733015 | X38: 98.69082158 | Y38: -146.8156106 | Z38: 73.3733015 | AB38: 13.98353594 | AC38: 0 | AD38: 0 | AE38: 0 | AF38: 0 | AG38: 11.33398414 | AH38: 73.3733015 | AI38: -14.20452129 | AJ38: -132.6110893 | AL38: =IF(CostData!$C$6="Proposed - Option 1", (INDEX(Apdx_5_5_Opt_1_CumSavings!$S$7:$S$59,MATCH(B38,Apdx_5_5_Opt_1_CumSavings!$C$7:$C$59,0)) +INDEX(Apdx_5_5_Opt_1_CumSavings!$G$7:$Q$59,MATCH(B38,Apdx_5_5_Opt_1_CumSavings!$C$7:$C$59,0),MATCH(CostData!$C$3,Apdx_5_5_Opt_1_CumSavings!$G$6:$Q$6,0))), (INDEX(Apdx_5_5_Opt_2_CumSavings!$S$7:$S$59,MATCH(B38,Apdx_5_5_Opt_2_CumSavings!$C$7:$C$59,0)) +INDEX(Apdx_5_5_Opt_2_CumSavings!$G$7:$Q$59,MATCH(B38,Apdx_5_5_Opt_2_CumSavings!$C$7:$C$59,0),MATCH(CostData!$C$3,Apdx_5_5_Opt_2_CumSavings!$G$6:$Q$6,0))))/1000 -> 17.9071833 | AM38: =AL38*INDEX(RefTables!$D$38:$F$39,StateData!$C$74,StateData!$C$73)*10^-3 -> 1.413877653 | AN38: 7.895589323 | AP38: =IF(CostData!$C$6="Proposed - Option 1", INDEX(Apdx_5_5_Opt_1_CumSavings!$S$7:$S$59,MATCH(B38,Apdx_5_5_Opt_1_CumSavings!$C$7:$C$59,0)), INDEX(Apdx_5_5_Opt_2_CumSavings!$S$7:$S$59,MATCH(B38,Apdx_5_5_Opt_2_CumSavings!$C$7:$C$59,0)))/1000 -> 16.22762419 | AR38: 1.427861188 | AS38: 1.413877653 | AT38: 1.413877653 | AU38: 1.413877653 | AV38: 1.413877653 | AW38: 1.411007115 | AX38: 1.354639865 | AZ38: 7.973678298 | BA38: 7.895589323 | BB38: 7.895589323 | BC38: 7.895589323 | BD38: 7.895589323 | BE38: 7.879559236 | BF38: 8.347739931 | BH38: 0.07808897531 | BI38: 0 | BJ38: 0 | BK38: 0 | BL38: 0 | BM38: -0.01603008752 | BN38: 0.4521506082 | BP38: 0.514209496
B39: Ohio | C39: -1610.260792 | D39: 119.6908845 | E39: =-'BB1'!H39 -> 5003.491734 | F39: =E39*INDEX(RefTables!$D$14:$F$14,1,StateData!$C$73)*1/1000 -> 38.52688636 | G39: =-BB2a!P39 -> 2970.295648 | H39: =G39*INDEX(RefTables!$D$15:$F$15,1,StateData!$C$73)*1/1000 -> 98.01975639 | I39: =-BB2b!N39*BB2b!O39 -> 79.00268218 | J39: =I39*INDEX(RefTables!$D$16:$F$16,1,StateData!$C$73)*1/1000 -> 2.607088512 | K39: =BB3ai!C39 -> 993077.2512 | L39: =K39*INDEX(RefTables!$D$17:$F$17,1,StateData!$C$73)*1/1000000 -> 5.958463507 | M39: =BB3aii!C39 -> 0 | N39: =M39*INDEX(RefTables!$D$18:$F$18,1,StateData!$C$73)*1/1000000 -> 0 | O39: =IF(GWh_Summary!Z39*1000<0,0,GWh_Summary!Z39*1000) -> 12036972.02 | P39: =O39*INDEX(RefTables!$D$22:$F$22,1,StateData!$C$73)*1/1000000 -> 758.329237 | Q39: =-O39*INDEX(RefTables!$D$38:$F$39,StateData!$C$74,StateData!$C$73)*1/1000000 -> -950.3898773 | R39: =IF(CostData!$C$6="Proposed - Option 1", INDEX(Apdx_5_5_Opt_1_CumSavings!$G$7:$Q$59,MATCH(B39,Apdx_5_5_Opt_1_CumSavings!$C$7:$C$59,0),MATCH(CostData!$C$3,Apdx_5_5_Opt_1_CumSavings!$G$6:$Q$6,0)), INDEX(Apdx_5_5_Opt_2_CumSavings!$G$7:$Q$59,MATCH(B39,Apdx_5_5_Opt_2_CumSavings!$C$7:$C$59,0),MATCH(CostData!$C$3,Apdx_5_5_Opt_2_CumSavings!$G$6:$Q$6,0)))*1000 -> 19799818.38 | S39: 166.6393301 | T39: =-$R39*INDEX(RefTables!$D$38:$F$39,StateData!$C$74,StateData!$C$73)*1/1000000 -> -1563.312346 | U39: =$R39*INDEX(RefTables!$D$28:$F$28,1,StateData!$C$73)/2*1/1000000 -> 864.9758381 | V39: 864.9758381 | X39: 1768.41727 | Y39: -2513.702223 | Z39: 864.9758381 | AB39: 38.52688636 | AC39: 98.01975639 | AD39: 2.607088512 | AE39: 5.958463507 | AF39: 0 | AG39: 758.329237 | AH39: 864.9758381 | AI39: -950.3898773 | AJ39: -1563.312346 | AL39: =IF(CostData!$C$6="Proposed - Option 1", (INDEX(Apdx_5_5_Opt_1_CumSavings!$S$7:$S$59,MATCH(B39,Apdx_5_5_Opt_1_CumSavings!$C$7:$C$59,0)) +INDEX(Apdx_5_5_Opt_1_CumSavings!$G$7:$Q$59,MATCH(B39,Apdx_5_5_Opt_1_CumSavings!$C$7:$C$59,0),MATCH(CostData!$C$3,Apdx_5_5_Opt_1_CumSavings!$G$6:$Q$6,0))), (INDEX(Apdx_5_5_Opt_2_CumSavings!$S$7:$S$59,MATCH(B39,Apdx_5_5_Opt_2_CumSavings!$C$7:$C$59,0)) +INDEX(Apdx_5_5_Opt_2_CumSavings!$G$7:$Q$59,MATCH(B39,Apdx_5_5_Opt_2_CumSavings!$C$7:$C$59,0),MATCH(CostData!$C$3,Apdx_5_5_Opt_2_CumSavings!$G$6:$Q$6,0))))/1000 -> 185.2118349 | AM39: =AL39*INDEX(RefTables!$D$38:$F$39,StateData!$C$74,StateData!$C$73)*10^-3 -> 14.62356586 | AN39: 7.895589323 | AP39: =IF(CostData!$C$6="Proposed - Option 1", INDEX(Apdx_5_5_Opt_1_CumSavings!$S$7:$S$59,MATCH(B39,Apdx_5_5_Opt_1_CumSavings!$C$7:$C$59,0)), INDEX(Apdx_5_5_Opt_2_CumSavings!$S$7:$S$59,MATCH(B39,Apdx_5_5_Opt_2_CumSavings!$C$7:$C$59,0)))/1000 -> 165.4120165 | AR39: 14.66209275 | AS39: 14.72158562 | AT39: 14.62617295 | AU39: 14.62952433 | AV39: 14.62356586 | AW39: 14.43150522 | AX39: 13.92522936 | AZ39: 7.916390848 | BA39: 7.948512375 | BB39: 7.896996948 | BC39: 7.89880643 | BD39: 7.895589323 | BE39: 7.7918915 | BF39: 8.418511331 | BH39: 0.02080152511 | BI39: 0.05292305237 | BJ39: 0.001407625227 | BK39: 0.003217107324 | BL39: 0 | BM39: -0.1036978228 | BN39: 0.5229220078 | BP39: 0.4975734951
B40: Oklahoma | C40: -357.7692556 | D40: 282.9024022 | E40: =-'BB1'!H40 -> 1825.031776 | F40: =E40*INDEX(RefTables!$D$14:$F$14,1,StateData!$C$73)*1/1000 -> 14.05274467 | G40: =-BB2a!P40 -> 9689.772215 | H40: =G40*INDEX(RefTables!$D$15:$F$15,1,StateData!$C$73)*1/1000 -> 319.7624831 | I40: =-BB2b!N40*BB2b!O40 -> 0 | J40: =I40*INDEX(RefTables!$D$16:$F$16,1,StateData!$C$73)*1/1000 -> 0 | K40: =BB3ai!C40 -> 0 | L40: =K40*INDEX(RefTables!$D$17:$F$17,1,StateData!$C$73)*1/1000000 -> 0 | M40: =BB3aii!C40 -> 0 | N40: =M40*INDEX(RefTables!$D$18:$F$18,1,StateData!$C$73)*1/1000000 -> 0 | O40: =IF(GWh_Summary!Z40*1000<0,0,GWh_Summary!Z40*1000) -> 7058593.576 | P40: =O40*INDEX(RefTables!$D$22:$F$22,1,StateData!$C$73)*1/1000000 -> 444.6913953 | Q40: =-O40*INDEX(RefTables!$D$38:$F$39,StateData!$C$74,StateData!$C$73)*1/1000000 -> -557.3175607 | R40: =IF(CostData!$C$6="Proposed - Option 1", INDEX(Apdx_5_5_Opt_1_CumSavings!$G$7:$Q$59,MATCH(B40,Apdx_5_5_Opt_1_CumSavings!$C$7:$C$59,0),MATCH(CostData!$C$3,Apdx_5_5_Opt_1_CumSavings!$G$6:$Q$6,0)), INDEX(Apdx_5_5_Opt_2_CumSavings!$G$7:$Q$59,MATCH(B40,Apdx_5_5_Opt_2_CumSavings!$C$7:$C$59,0),MATCH(CostData!$C$3,Apdx_5_5_Opt_2_CumSavings!$G$6:$Q$6,0)))*1000 -> 7332680.237 | S40: 61.71333994 | T40: =-$R40*INDEX(RefTables!$D$38:$F$39,StateData!$C$74,StateData!$C$73)*1/1000000 -> -578.9583179 | U40: =$R40*INDEX(RefTables!$D$28:$F$28,1,StateData!$C$73)/2*1/1000000 -> 320.3358289 | V40: 320.3358289 | X40: 1098.842452 | Y40: -1136.275879 | Z40: 320.3358289 | AB40: 14.05274467 | AC40: 319.7624831 | AD40: 0 | AE40: 0 | AF40: 0 | AG40: 444.6913953 | AH40: 320.3358289 | AI40: -557.3175607 | AJ40: -578.9583179 | AL40: =IF(CostData!$C$6="Proposed - Option 1", (INDEX(Apdx_5_5_Opt_1_CumSavings!$S$7:$S$59,MATCH(B40,Apdx_5_5_Opt_1_CumSavings!$C$7:$C$59,0)) +INDEX(Apdx_5_5_Opt_1_CumSavings!$G$7:$Q$59,MATCH(B40,Apdx_5_5_Opt_1_CumSavings!$C$7:$C$59,0),MATCH(CostData!$C$3,Apdx_5_5_Opt_1_CumSavings!$G$6:$Q$6,0))), (INDEX(Apdx_5_5_Opt_2_CumSavings!$S$7:$S$59,MATCH(B40,Apdx_5_5_Opt_2_CumSavings!$C$7:$C$59,0)) +INDEX(Apdx_5_5_Opt_2_CumSavings!$G$7:$Q$59,MATCH(B40,Apdx_5_5_Opt_2_CumSavings!$C$7:$C$59,0),MATCH(CostData!$C$3,Apdx_5_5_Opt_2_CumSavings!$G$6:$Q$6,0))))/1000 -> 76.90270146 | AM40: =AL40*INDEX(RefTables!$D$38:$F$39,StateData!$C$74,StateData!$C$73)*10^-3 -> 6.071921486 | AN40: 7.895589323 | AP40: =IF(CostData!$C$6="Proposed - Option 1", INDEX(Apdx_5_5_Opt_1_CumSavings!$S$7:$S$59,MATCH(B40,Apdx_5_5_Opt_1_CumSavings!$C$7:$C$59,0)), INDEX(Apdx_5_5_Opt_2_CumSavings!$S$7:$S$59,MATCH(B40,Apdx_5_5_Opt_2_CumSavings!$C$7:$C$59,0)))/1000 -> 69.57002122 | AR40: 6.08597423 | AS40: 6.391683969 | AT40: 6.071921486 | AU40: 6.071921486 | AV40: 6.071921486 | AW40: 5.95929532 | AX40: 5.813298997 | AZ40: 7.913862731 | BA40: 8.311390689 | BB40: 7.895589323 | BC40: 7.895589323 | BD40: 7.895589323 | BE40: 7.749136515 | BF40: 8.356040281 | BH40: 0.01827340835 | BI40: 0.4158013659 | BJ40: 0 | BK40: 0 | BL40: 0 | BM40: -0.1464528077 | BN40: 0.4604509576 | BP40: 0.7480729242
B41: Oregon | C41: -562.7611331 | D41: 14.80737266 | E41: =-'BB1'!H41 -> 149.3961019 | F41: =E41*INDEX(RefTables!$D$14:$F$14,1,StateData!$C$73)*1/1000 -> 1.150349984 | G41: =-BB2a!P41 -> 1319.637169 | H41: =G41*INDEX(RefTables!$D$15:$F$15,1,StateData!$C$73)*1/1000 -> 43.54802659 | I41: =-BB2b!N41*BB2b!O41 -> 0 | J41: =I41*INDEX(RefTables!$D$16:$F$16,1,StateData!$C$73)*1/1000 -> 0 | K41: =BB3ai!C41 -> 0 | L41: =K41*INDEX(RefTables!$D$17:$F$17,1,StateData!$C$73)*1/1000000 -> 0 | M41: =BB3aii!C41 -> 0 | N41: =M41*INDEX(RefTables!$D$18:$F$18,1,StateData!$C$73)*1/1000000 -> 0 | O41: =IF(GWh_Summary!Z41*1000<0,0,GWh_Summary!Z41*1000) -> 5360143.002 | P41: =O41*INDEX(RefTables!$D$22:$F$22,1,StateData!$C$73)*1/1000000 -> 337.6890091 | Q41: =-O41*INDEX(RefTables!$D$38:$F$39,StateData!$C$74,StateData!$C$73)*1/1000000 -> -423.2148786 | R41: =IF(CostData!$C$6="Proposed - Option 1", INDEX(Apdx_5_5_Opt_1_CumSavings!$G$7:$Q$59,MATCH(B41,Apdx_5_5_Opt_1_CumSavings!$C$7:$C$59,0),MATCH(CostData!$C$3,Apdx_5_5_Opt_1_CumSavings!$G$6:$Q$6,0)), INDEX(Apdx_5_5_Opt_2_CumSavings!$G$7:$Q$59,MATCH(B41,Apdx_5_5_Opt_2_CumSavings!$C$7:$C$59,0),MATCH(CostData!$C$3,Apdx_5_5_Opt_2_CumSavings!$G$6:$Q$6,0)))*1000 -> 6610445.64 | S41: 55.63486553 | T41: =-$R41*INDEX(RefTables!$D$38:$F$39,StateData!$C$74,StateData!$C$73)*1/1000000 -> -521.9336402 | U41: =$R41*INDEX(RefTables!$D$28:$F$28,1,StateData!$C$73)/2*1/1000000 -> 288.7842529 | V41: 288.7842529 | X41: 671.1716385 | Y41: -945.1485187 | Z41: 288.7842529 | AB41: 1.150349984 | AC41: 43.54802659 | AD41: 0 | AE41: 0 | AF41: 0 | AG41: 337.6890091 | AH41: 288.7842529 | AI41: -423.2148786 | AJ41: -521.9336402 | AL41: =IF(CostData!$C$6="Proposed - Option 1", (INDEX(Apdx_5_5_Opt_1_CumSavings!$S$7:$S$59,MATCH(B41,Apdx_5_5_Opt_1_CumSavings!$C$7:$C$59,0)) +INDEX(Apdx_5_5_Opt_1_CumSavings!$G$7:$Q$59,MATCH(B41,Apdx_5_5_Opt_1_CumSavings!$C$7:$C$59,0),MATCH(CostData!$C$3,Apdx_5_5_Opt_1_CumSavings!$G$6:$Q$6,0))), (INDEX(Apdx_5_5_Opt_2_CumSavings!$S$7:$S$59,MATCH(B41,Apdx_5_5_Opt_2_CumSavings!$C$7:$C$59,0)) +INDEX(Apdx_5_5_Opt_2_CumSavings!$G$7:$Q$59,MATCH(B41,Apdx_5_5_Opt_2_CumSavings!$C$7:$C$59,0),MATCH(CostData!$C$3,Apdx_5_5_Opt_2_CumSavings!$G$6:$Q$6,0))))/1000 -> 62.82171809 | AM41: =AL41*INDEX(RefTables!$D$38:$F$39,StateData!$C$74,StateData!$C$73)*10^-3 -> 4.960144866 | AN41: 7.895589323 | AP41: =IF(CostData!$C$6="Proposed - Option 1", INDEX(Apdx_5_5_Opt_1_CumSavings!$S$7:$S$59,MATCH(B41,Apdx_5_5_Opt_1_CumSavings!$C$7:$C$59,0)), INDEX(Apdx_5_5_Opt_2_CumSavings!$S$7:$S$59,MATCH(B41,Apdx_5_5_Opt_2_CumSavings!$C$7:$C$59,0)))/1000 -> 56.21127245 | AR41: 4.961295216 | AS41: 5.003692893 | AT41: 4.960144866 | AU41: 4.960144866 | AV41: 4.960144866 | AW41: 4.874618997 | AX41: 4.726995479 | AZ41: 7.897420457 | BA41: 7.964909342 | BB41: 7.895589323 | BC41: 7.895589323 | BD41: 7.895589323 | BE41: 7.759448714 | BF41: 8.409337261 | BH41: 0.001831134231 | BI41: 0.06932001848 | BJ41: 0 | BK41: 0 | BL41: 0 | BM41: -0.1361406088 | BN41: 0.5137479375 | BP41: 0.4487584814
B42: Pennsylvania | C42: -1804.684625 | D42: -115.8375246 | E42: =-'BB1'!H42 -> 4993.120963 | F42: =E42*INDEX(RefTables!$D$14:$F$14,1,StateData!$C$73)*1/1000 -> 38.44703142 | G42: =-BB2a!P42 -> 4507.252332 | H42: =G42*INDEX(RefTables!$D$15:$F$15,1,StateData!$C$73)*1/1000 -> 148.7393269 | I42: =-BB2b!N42*BB2b!O42 -> 0 | J42: =I42*INDEX(RefTables!$D$16:$F$16,1,StateData!$C$73)*1/1000 -> 0 | K42: =BB3ai!C42 -> 4480395.04 | L42: =K42*INDEX(RefTables!$D$17:$F$17,1,StateData!$C$73)*1/1000000 -> 26.88237024 | M42: =BB3aii!C42 -> 0 | N42: =M42*INDEX(RefTables!$D$18:$F$18,1,StateData!$C$73)*1/1000000 -> 0 | O42: =IF(GWh_Summary!Z42*1000<0,0,GWh_Summary!Z42*1000) -> 30871737.27 | P42: =O42*INDEX(RefTables!$D$22:$F$22,1,StateData!$C$73)*1/1000000 -> 1944.919448 | Q42: =-O42*INDEX(RefTables!$D$38:$F$39,StateData!$C$74,StateData!$C$73)*1/1000000 -> -2437.505592 | R42: =IF(CostData!$C$6="Proposed - Option 1", INDEX(Apdx_5_5_Opt_1_CumSavings!$G$7:$Q$59,MATCH(B42,Apdx_5_5_Opt_1_CumSavings!$C$7:$C$59,0),MATCH(CostData!$C$3,Apdx_5_5_Opt_1_CumSavings!$G$6:$Q$6,0)), INDEX(Apdx_5_5_Opt_2_CumSavings!$G$7:$Q$59,MATCH(B42,Apdx_5_5_Opt_2_CumSavings!$C$7:$C$59,0),MATCH(CostData!$C$3,Apdx_5_5_Opt_2_CumSavings!$G$6:$Q$6,0)))*1000 -> 19329364.12 | S42: 162.6798906 | T42: =-$R42*INDEX(RefTables!$D$38:$F$39,StateData!$C$74,StateData!$C$73)*1/1000000 -> -1526.16721 | U42: =$R42*INDEX(RefTables!$D$28:$F$28,1,StateData!$C$73)/2*1/1000000 -> 844.4235502 | V42: 844.4235502 | X42: 3003.411727 | Y42: -3963.672802 | Z42: 844.4235502 | AB42: 38.44703142 | AC42: 148.7393269 | AD42: 0 | AE42: 26.88237024 | AF42: 0 | AG42: 1944.919448 | AH42: 844.4235502 | AI42: -2437.505592 | AJ42: -1526.16721 | AL42: =IF(CostData!$C$6="Proposed - Option 1", (INDEX(Apdx_5_5_Opt_1_CumSavings!$S$7:$S$59,MATCH(B42,Apdx_5_5_Opt_1_CumSavings!$C$7:$C$59,0)) +INDEX(Apdx_5_5_Opt_1_CumSavings!$G$7:$Q$59,MATCH(B42,Apdx_5_5_Opt_1_CumSavings!$C$7:$C$59,0),MATCH(CostData!$C$3,Apdx_5_5_Opt_1_CumSavings!$G$6:$Q$6,0))), (INDEX(Apdx_5_5_Opt_2_CumSavings!$S$7:$S$59,MATCH(B42,Apdx_5_5_Opt_2_CumSavings!$C$7:$C$59,0)) +INDEX(Apdx_5_5_Opt_2_CumSavings!$G$7:$Q$59,MATCH(B42,Apdx_5_5_Opt_2_CumSavings!$C$7:$C$59,0),MATCH(CostData!$C$3,Apdx_5_5_Opt_2_CumSavings!$G$6:$Q$6,0))))/1000 -> 179.4732259 | AM42: =AL42*INDEX(RefTables!$D$38:$F$39,StateData!$C$74,StateData!$C$73)*10^-3 -> 14.17046886 | AN42: 7.895589323 | AP42: =IF(CostData!$C$6="Proposed - Option 1", INDEX(Apdx_5_5_Opt_1_CumSavings!$S$7:$S$59,MATCH(B42,Apdx_5_5_Opt_1_CumSavings!$C$7:$C$59,0)), INDEX(Apdx_5_5_Opt_2_CumSavings!$S$7:$S$59,MATCH(B42,Apdx_5_5_Opt_2_CumSavings!$C$7:$C$59,0)))/1000 -> 160.1438618 | AR42: 14.2089159 | AS42: 14.31920819 | AT42: 14.17046886 | AU42: 14.19735124 | AV42: 14.17046886 | AW42: 13.67788272 | AX42: 13.48872521 | AZ42: 7.917011477 | BA42: 7.97846482 | BB42: 7.895589323 | BC42: 7.910567808 | BD42: 7.895589323 | BE42: 7.621127135 | BF42: 8.422879936 | BH42: 0.02142215432 | BI42: 0.08287549642 | BJ42: 0 | BK42: 0.01497848501 | BL42: 0 | BM42: -0.2744621886 | BN42: 0.5272906127 | BP42: 0.3721045599
B43: Rhode Island | C43: -82.50400195 | D43: 2.187011657 | E43: =-'BB1'!H43 -> 0 | F43: =E43*INDEX(RefTables!$D$14:$F$14,1,StateData!$C$73)*1/1000 -> 0 | G43: =-BB2a!P43 -> 0 | H43: =G43*INDEX(RefTables!$D$15:$F$15,1,StateData!$C$73)*1/1000 -> 0 | I43: =-BB2b!N43*BB2b!O43 -> 0 | J43: =I43*INDEX(RefTables!$D$16:$F$16,1,StateData!$C$73)*1/1000 -> 0 | K43: =BB3ai!C43 -> 0 | L43: =K43*INDEX(RefTables!$D$17:$F$17,1,StateData!$C$73)*1/1000000 -> 0 | M43: =BB3aii!C43 -> 0 | N43: =M43*INDEX(RefTables!$D$18:$F$18,1,StateData!$C$73)*1/1000000 -> 0 | O43: =IF(GWh_Summary!Z43*1000<0,0,GWh_Summary!Z43*1000) -> 374215.0361 | P43: =O43*INDEX(RefTables!$D$22:$F$22,1,StateData!$C$73)*1/1000000 -> 23.57554727 | Q43: =-O43*INDEX(RefTables!$D$38:$F$39,StateData!$C$74,StateData!$C$73)*1/1000000 -> -29.54648243 | R43: =IF(CostData!$C$6="Proposed - Option 1", INDEX(Apdx_5_5_Opt_1_CumSavings!$G$7:$Q$59,MATCH(B43,Apdx_5_5_Opt_1_CumSavings!$C$7:$C$59,0),MATCH(CostData!$C$3,Apdx_5_5_Opt_1_CumSavings!$G$6:$Q$6,0)), INDEX(Apdx_5_5_Opt_2_CumSavings!$G$7:$Q$59,MATCH(B43,Apdx_5_5_Opt_2_CumSavings!$C$7:$C$59,0),MATCH(CostData!$C$3,Apdx_5_5_Opt_2_CumSavings!$G$6:$Q$6,0)))*1000 -> 969314.1785 | S43: 8.157946818 | T43: =-$R43*INDEX(RefTables!$D$38:$F$39,StateData!$C$74,StateData!$C$73)*1/1000000 -> -76.53306679 | U43: =$R43*INDEX(RefTables!$D$28:$F$28,1,StateData!$C$73)/2*1/1000000 -> 42.3455068 | V43: 42.3455068 | X43: 65.92105407 | Y43: -106.0795492 | Z43: 42.3455068 | AB43: 0 | AC43: 0 | AD43: 0 | AE43: 0 | AF43: 0 | AG43: 23.57554727 | AH43: 42.3455068 | AI43: -29.54648243 | AJ43: -76.53306679 | AL43: =IF(CostData!$C$6="Proposed - Option 1", (INDEX(Apdx_5_5_Opt_1_CumSavings!$S$7:$S$59,MATCH(B43,Apdx_5_5_Opt_1_CumSavings!$C$7:$C$59,0)) +INDEX(Apdx_5_5_Opt_1_CumSavings!$G$7:$Q$59,MATCH(B43,Apdx_5_5_Opt_1_CumSavings!$C$7:$C$59,0),MATCH(CostData!$C$3,Apdx_5_5_Opt_1_CumSavings!$G$6:$Q$6,0))), (INDEX(Apdx_5_5_Opt_2_CumSavings!$S$7:$S$59,MATCH(B43,Apdx_5_5_Opt_2_CumSavings!$C$7:$C$59,0)) +INDEX(Apdx_5_5_Opt_2_CumSavings!$G$7:$Q$59,MATCH(B43,Apdx_5_5_Opt_2_CumSavings!$C$7:$C$59,0),MATCH(CostData!$C$3,Apdx_5_5_Opt_2_CumSavings!$G$6:$Q$6,0))))/1000 -> 9.046932333 | AM43: =AL43*INDEX(RefTables!$D$38:$F$39,StateData!$C$74,StateData!$C$73)*10^-3 -> 0.7143086233 | AN43: 7.895589323 | AP43: =IF(CostData!$C$6="Proposed - Option 1", INDEX(Apdx_5_5_Opt_1_CumSavings!$S$7:$S$59,MATCH(B43,Apdx_5_5_Opt_1_CumSavings!$C$7:$C$59,0)), INDEX(Apdx_5_5_Opt_2_CumSavings!$S$7:$S$59,MATCH(B43,Apdx_5_5_Opt_2_CumSavings!$C$7:$C$59,0)))/1000 -> 8.077618154 | AR43: 0.7143086233 | AS43: 0.7143086233 | AT43: 0.7143086233 | AU43: 0.7143086233 | AV43: 0.7143086233 | AW43: 0.7083376882 | AX43: 0.6801210634 | AZ43: 7.895589323 | BA43: 7.895589323 | BB43: 7.895589323 | BC43: 7.895589323 | BD43: 7.895589323 | BE43: 7.829589767 | BF43: 8.419821912 | BH43: 0 | BI43: 0 | BJ43: 0 | BK43: 0 | BL43: 0 | BM43: -0.06599955589 | BN43: 0.5242325893 | BP43: 0.4582330334
B44: South Carolina | C44: -784.6811132 | D44: 106.9372742 | E44: =-'BB1'!H44 -> 1675.851867 | F44: =E44*INDEX(RefTables!$D$14:$F$14,1,StateData!$C$73)*1/1000 -> 12.90405938 | G44: =-BB2a!P44 -> 3352.680281 | H44: =G44*INDEX(RefTables!$D$15:$F$15,1,StateData!$C$73)*1/1000 -> 110.6384493 | I44: =-BB2b!N44*BB2b!O44 -> 0 | J44: =I44*INDEX(RefTables!$D$16:$F$16,1,StateData!$C$73)*1/1000 -> 0 | K44: =BB3ai!C44 -> 2948340.486 | L44: =K44*INDEX(RefTables!$D$17:$F$17,1,StateData!$C$73)*1/1000000 -> 17.69004291 | M44: =BB3aii!C44 -> 17392320 | N44: =M44*INDEX(RefTables!$D$18:$F$18,1,StateData!$C$73)*1/1000000 -> 0 | O44: =IF(GWh_Summary!Z44*1000<0,0,GWh_Summary!Z44*1000) -> 7532095.568 | P44: =O44*INDEX(RefTables!$D$22:$F$22,1,StateData!$C$73)*1/1000000 -> 474.5220208 | Q44: =-O44*INDEX(RefTables!$D$38:$F$39,StateData!$C$74,StateData!$C$73)*1/1000000 -> -594.7033335 | R44: =IF(CostData!$C$6="Proposed - Option 1", INDEX(Apdx_5_5_Opt_1_CumSavings!$G$7:$Q$59,MATCH(B44,Apdx_5_5_Opt_1_CumSavings!$C$7:$C$59,0),MATCH(CostData!$C$3,Apdx_5_5_Opt_1_CumSavings!$G$6:$Q$6,0)), INDEX(Apdx_5_5_Opt_2_CumSavings!$G$7:$Q$59,MATCH(B44,Apdx_5_5_Opt_2_CumSavings!$C$7:$C$59,0),MATCH(CostData!$C$3,Apdx_5_5_Opt_2_CumSavings!$G$6:$Q$6,0)))*1000 -> 10204841.2 | S44: 85.88603532 | T44: =-$R44*INDEX(RefTables!$D$38:$F$39,StateData!$C$74,StateData!$C$73)*1/1000000 -> -805.7323521 | U44: =$R44*INDEX(RefTables!$D$28:$F$28,1,StateData!$C$73)/2*1/1000000 -> 445.8091937 | V44: 445.8091937 | X44: 1061.563766 | Y44: -1400.435686 | Z44: 445.8091937 | AB44: 12.90405938 | AC44: 110.6384493 | AD44: 0 | AE44: 17.69004291 | AF44: 0 | AG44: 474.5220208 | AH44: 445.8091937 | AI44: -594.7033335 | AJ44: -805.7323521 | AL44: =IF(CostData!$C$6="Proposed - Option 1", (INDEX(Apdx_5_5_Opt_1_CumSavings!$S$7:$S$59,MATCH(B44,Apdx_5_5_Opt_1_CumSavings!$C$7:$C$59,0)) +INDEX(Apdx_5_5_Opt_1_CumSavings!$G$7:$Q$59,MATCH(B44,Apdx_5_5_Opt_1_CumSavings!$C$7:$C$59,0),MATCH(CostData!$C$3,Apdx_5_5_Opt_1_CumSavings!$G$6:$Q$6,0))), (INDEX(Apdx_5_5_Opt_2_CumSavings!$S$7:$S$59,MATCH(B44,Apdx_5_5_Opt_2_CumSavings!$C$7:$C$59,0)) +INDEX(Apdx_5_5_Opt_2_CumSavings!$G$7:$Q$59,MATCH(B44,Apdx_5_5_Opt_2_CumSavings!$C$7:$C$59,0),MATCH(CostData!$C$3,Apdx_5_5_Opt_2_CumSavings!$G$6:$Q$6,0))))/1000 -> 105.3105374 | AM44: =AL44*INDEX(RefTables!$D$38:$F$39,StateData!$C$74,StateData!$C$73)*10^-3 -> 8.314887544 | AN44: 7.895589323 | AP44: =IF(CostData!$C$6="Proposed - Option 1", INDEX(Apdx_5_5_Opt_1_CumSavings!$S$7:$S$59,MATCH(B44,Apdx_5_5_Opt_1_CumSavings!$C$7:$C$59,0)), INDEX(Apdx_5_5_Opt_2_CumSavings!$S$7:$S$59,MATCH(B44,Apdx_5_5_Opt_2_CumSavings!$C$7:$C$59,0)))/1000 -> 95.10569616 | AR44: 8.327791603 | AS44: 8.425525993 | AT44: 8.314887544 | AU44: 8.332577587 | AV44: 8.314887544 | AW44: 8.194706231 | AX44: 7.954964385 | AZ44: 7.907842664 | BA44: 8.000648562 | BB44: 7.895589323 | BC44: 7.912387303 | BD44: 7.895589323 | BE44: 7.781468442 | BF44: 8.36434063 | BH44: 0.01225334112 | BI44: 0.1050592391 | BJ44: 0 | BK44: 0.01679797992 | BL44: 0 | BM44: -0.1141208807 | BN44: 0.4687513069 | BP44: 0.4887409864
B45: South Dakota | C45: -76.79305756 | D45: 42.22639323 | E45: =-'BB1'!H45 -> 180.2360297 | F45: =E45*INDEX(RefTables!$D$14:$F$14,1,StateData!$C$73)*1/1000 -> 1.387817429 | G45: =-BB2a!P45 -> 890.1184197 | H45: =G45*INDEX(RefTables!$D$15:$F$15,1,StateData!$C$73)*1/1000 -> 29.37390785 | I45: =-BB2b!N45*BB2b!O45 -> 0 | J45: =I45*INDEX(RefTables!$D$16:$F$16,1,StateData!$C$73)*1/1000 -> 0 | K45: =BB3ai!C45 -> 0 | L45: =K45*INDEX(RefTables!$D$17:$F$17,1,StateData!$C$73)*1/1000000 -> 0 | M45: =BB3aii!C45 -> 0 | N45: =M45*INDEX(RefTables!$D$18:$F$18,1,StateData!$C$73)*1/1000000 -> 0 | O45: =IF(GWh_Summary!Z45*1000<0,0,GWh_Summary!Z45*1000) -> 0 | P45: =O45*INDEX(RefTables!$D$22:$F$22,1,StateData!$C$73)*1/1000000 -> 0 | Q45: =-O45*INDEX(RefTables!$D$38:$F$39,StateData!$C$74,StateData!$C$73)*1/1000000 -> 0 | R45: =IF(CostData!$C$6="Proposed - Option 1", INDEX(Apdx_5_5_Opt_1_CumSavings!$G$7:$Q$59,MATCH(B45,Apdx_5_5_Opt_1_CumSavings!$C$7:$C$59,0),MATCH(CostData!$C$3,Apdx_5_5_Opt_1_CumSavings!$G$6:$Q$6,0)), INDEX(Apdx_5_5_Opt_2_CumSavings!$G$7:$Q$59,MATCH(B45,Apdx_5_5_Opt_2_CumSavings!$C$7:$C$59,0),MATCH(CostData!$C$3,Apdx_5_5_Opt_2_CumSavings!$G$6:$Q$6,0)))*1000 -> 1362213.489 | S45: 11.46466796 | T45: =-$R45*INDEX(RefTables!$D$38:$F$39,StateData!$C$74,StateData!$C$73)*1/1000000 -> -107.5547828 | U45: =$R45*INDEX(RefTables!$D$28:$F$28,1,StateData!$C$73)/2*1/1000000 -> 59.5097254 | V45: 59.5097254 | X45: 90.27145067 | Y45: -107.5547828 | Z45: 59.5097254 | AB45: 1.387817429 | AC45: 29.37390785 | AD45: 0 | AE45: 0 | AF45: 0 | AG45: 0 | AH45: 59.5097254 | AI45: 0 | AJ45: -107.5547828 | AL45: =IF(CostData!$C$6="Proposed - Option 1", (INDEX(Apdx_5_5_Opt_1_CumSavings!$S$7:$S$59,MATCH(B45,Apdx_5_5_Opt_1_CumSavings!$C$7:$C$59,0)) +INDEX(Apdx_5_5_Opt_1_CumSavings!$G$7:$Q$59,MATCH(B45,Apdx_5_5_Opt_1_CumSavings!$C$7:$C$59,0),MATCH(CostData!$C$3,Apdx_5_5_Opt_1_CumSavings!$G$6:$Q$6,0))), (INDEX(Apdx_5_5_Opt_2_CumSavings!$S$7:$S$59,MATCH(B45,Apdx_5_5_Opt_2_CumSavings!$C$7:$C$59,0)) +INDEX(Apdx_5_5_Opt_2_CumSavings!$G$7:$Q$59,MATCH(B45,Apdx_5_5_Opt_2_CumSavings!$C$7:$C$59,0),MATCH(CostData!$C$3,Apdx_5_5_Opt_2_CumSavings!$G$6:$Q$6,0))))/1000 -> 14.31101092 | AM45: =AL45*INDEX(RefTables!$D$38:$F$39,StateData!$C$74,StateData!$C$73)*10^-3 -> 1.12993865 | AN45: 7.895589323 | AP45: =IF(CostData!$C$6="Proposed - Option 1", INDEX(Apdx_5_5_Opt_1_CumSavings!$S$7:$S$59,MATCH(B45,Apdx_5_5_Opt_1_CumSavings!$C$7:$C$59,0)), INDEX(Apdx_5_5_Opt_2_CumSavings!$S$7:$S$59,MATCH(B45,Apdx_5_5_Opt_2_CumSavings!$C$7:$C$59,0)))/1000 -> 12.94879743 | AR45: 1.131326468 | AS45: 1.159312558 | AT45: 1.12993865 | AU45: 1.12993865 | AV45: 1.12993865 | AW45: 1.12993865 | AX45: 1.081893593 | AZ45: 7.905286873 | BA45: 8.100843222 | BB45: 7.895589323 | BC45: 7.895589323 | BD45: 7.895589323 | BE45: 7.895589323 | BF45: 8.35516656 | BH45: 0.009697549926 | BI45: 0.2052538987 | BJ45: 0 | BK45: 0 | BL45: 0 | BM45: 0 | BN45: 0.4595772366 | BP45: 0.6745286852
B46: Tennessee | C46: -932.9643884 | D46: 134.1208632 | E46: =-'BB1'!H46 -> 2099.287226 | F46: =E46*INDEX(RefTables!$D$14:$F$14,1,StateData!$C$73)*1/1000 -> 16.16451164 | G46: =-BB2a!P46 -> 1939.300259 | H46: =G46*INDEX(RefTables!$D$15:$F$15,1,StateData!$C$73)*1/1000 -> 63.99690855 | I46: =-BB2b!N46*BB2b!O46 -> 0 | J46: =I46*INDEX(RefTables!$D$16:$F$16,1,StateData!$C$73)*1/1000 -> 0 | K46: =BB3ai!C46 -> 1088011.073 | L46: =K46*INDEX(RefTables!$D$17:$F$17,1,StateData!$C$73)*1/1000000 -> 6.528066441 | M46: =BB3aii!C46 -> 9328608 | N46: =M46*INDEX(RefTables!$D$18:$F$18,1,StateData!$C$73)*1/1000000 -> 0 | O46: =IF(GWh_Summary!Z46*1000<0,0,GWh_Summary!Z46*1000) -> 3469356.407 | P46: =O46*INDEX(RefTables!$D$22:$F$22,1,StateData!$C$73)*1/1000000 -> 218.5694536 | Q46: =-O46*INDEX(RefTables!$D$38:$F$39,StateData!$C$74,StateData!$C$73)*1/1000000 -> -273.926134 | R46: =IF(CostData!$C$6="Proposed - Option 1", INDEX(Apdx_5_5_Opt_1_CumSavings!$G$7:$Q$59,MATCH(B46,Apdx_5_5_Opt_1_CumSavings!$C$7:$C$59,0),MATCH(CostData!$C$3,Apdx_5_5_Opt_1_CumSavings!$G$6:$Q$6,0)), INDEX(Apdx_5_5_Opt_2_CumSavings!$G$7:$Q$59,MATCH(B46,Apdx_5_5_Opt_2_CumSavings!$C$7:$C$59,0),MATCH(CostData!$C$3,Apdx_5_5_Opt_2_CumSavings!$G$6:$Q$6,0)))*1000 -> 12213112.35 | S46: 102.788057 | T46: =-$R46*INDEX(RefTables!$D$38:$F$39,StateData!$C$74,StateData!$C$73)*1/1000000 -> -964.2971946 | U46: =$R46*INDEX(RefTables!$D$28:$F$28,1,StateData!$C$73)/2*1/1000000 -> 533.5426258 | V46: 533.5426258 | X46: 838.8015661 | Y46: -1238.223329 | Z46: 533.5426258 | AB46: 16.16451164 | AC46: 63.99690855 | AD46: 0 | AE46: 6.528066441 | AF46: 0 | AG46: 218.5694536 | AH46: 533.5426258 | AI46: -273.926134 | AJ46: -964.2971946 | AL46: =IF(CostData!$C$6="Proposed - Option 1", (INDEX(Apdx_5_5_Opt_1_CumSavings!$S$7:$S$59,MATCH(B46,Apdx_5_5_Opt_1_CumSavings!$C$7:$C$59,0)) +INDEX(Apdx_5_5_Opt_1_CumSavings!$G$7:$Q$59,MATCH(B46,Apdx_5_5_Opt_1_CumSavings!$C$7:$C$59,0),MATCH(CostData!$C$3,Apdx_5_5_Opt_1_CumSavings!$G$6:$Q$6,0))), (INDEX(Apdx_5_5_Opt_2_CumSavings!$S$7:$S$59,MATCH(B46,Apdx_5_5_Opt_2_CumSavings!$C$7:$C$59,0)) +INDEX(Apdx_5_5_Opt_2_CumSavings!$G$7:$Q$59,MATCH(B46,Apdx_5_5_Opt_2_CumSavings!$C$7:$C$59,0),MATCH(CostData!$C$3,Apdx_5_5_Opt_2_CumSavings!$G$6:$Q$6,0))))/1000 -> 125.4022907 | AM46: =AL46*INDEX(RefTables!$D$38:$F$39,StateData!$C$74,StateData!$C$73)*10^-3 -> 9.901249879 | AN46: 7.895589323 | AP46: =IF(CostData!$C$6="Proposed - Option 1", INDEX(Apdx_5_5_Opt_1_CumSavings!$S$7:$S$59,MATCH(B46,Apdx_5_5_Opt_1_CumSavings!$C$7:$C$59,0)), INDEX(Apdx_5_5_Opt_2_CumSavings!$S$7:$S$59,MATCH(B46,Apdx_5_5_Opt_2_CumSavings!$C$7:$C$59,0)))/1000 -> 113.1891784 | AR46: 9.91741439 | AS46: 9.965246787 | AT46: 9.901249879 | AU46: 9.907777945 | AV46: 9.901249879 | AW46: 9.845893198 | AX46: 9.47049531 | AZ46: 7.908479448 | BA46: 7.946622608 | BB46: 7.895589323 | BC46: 7.900795023 | BD46: 7.895589323 | BE46: 7.851446046 | BF46: 8.366961793 | BH46: 0.01289012469 | BI46: 0.0510332851 | BJ46: 0 | BK46: 0.005205699515 | BL46: 0 | BM46: -0.04414327687 | BN46: 0.4713724699 | BP46: 0.4963583023
B47: Texas | C47: -2849.98706 | D47: 1081.399399 | E47: =-'BB1'!H47 -> 8448.868922 | F47: =E47*INDEX(RefTables!$D$14:$F$14,1,StateData!$C$73)*1/1000 -> 65.0562907 | G47: =-BB2a!P47 -> 44022.54708 | H47: =G47*INDEX(RefTables!$D$15:$F$15,1,StateData!$C$73)*1/1000 -> 1452.744054 | I47: =-BB2b!N47*BB2b!O47 -> 0 | J47: =I47*INDEX(RefTables!$D$16:$F$16,1,StateData!$C$73)*1/1000 -> 0 | K47: =BB3ai!C47 -> 2291006.124 | L47: =K47*INDEX(RefTables!$D$17:$F$17,1,StateData!$C$73)*1/1000000 -> 13.74603674 | M47: =BB3aii!C47 -> 0 | N47: =M47*INDEX(RefTables!$D$18:$F$18,1,StateData!$C$73)*1/1000000 -> 0 | O47: =IF(GWh_Summary!Z47*1000<0,0,GWh_Summary!Z47*1000) -> 51945805.43 | P47: =O47*INDEX(RefTables!$D$22:$F$22,1,StateData!$C$73)*1/1000000 -> 3272.585742 | Q47: =-O47*INDEX(RefTables!$D$38:$F$39,StateData!$C$74,StateData!$C$73)*1/1000000 -> -4101.427467 | R47: =IF(CostData!$C$6="Proposed - Option 1", INDEX(Apdx_5_5_Opt_1_CumSavings!$G$7:$Q$59,MATCH(B47,Apdx_5_5_Opt_1_CumSavings!$C$7:$C$59,0),MATCH(CostData!$C$3,Apdx_5_5_Opt_1_CumSavings!$G$6:$Q$6,0)), INDEX(Apdx_5_5_Opt_2_CumSavings!$G$7:$Q$59,MATCH(B47,Apdx_5_5_Opt_2_CumSavings!$C$7:$C$59,0),MATCH(CostData!$C$3,Apdx_5_5_Opt_2_CumSavings!$G$6:$Q$6,0)))*1000 -> 44995903.04 | S47: 378.6947433 | T47: =-$R47*INDEX(RefTables!$D$38:$F$39,StateData!$C$74,StateData!$C$73)*1/1000000 -> -3552.691716 | U47: =$R47*INDEX(RefTables!$D$28:$F$28,1,StateData!$C$73)/2*1/1000000 -> 1965.69323 | V47: 1965.69323 | X47: 6769.825353 | Y47: -7654.119183 | Z47: 1965.69323 | AB47: 65.0562907 | AC47: 1452.744054 | AD47: 0 | AE47: 13.74603674 | AF47: 0 | AG47: 3272.585742 | AH47: 1965.69323 | AI47: -4101.427467 | AJ47: -3552.691716 | AL47: =IF(CostData!$C$6="Proposed - Option 1", (INDEX(Apdx_5_5_Opt_1_CumSavings!$S$7:$S$59,MATCH(B47,Apdx_5_5_Opt_1_CumSavings!$C$7:$C$59,0)) +INDEX(Apdx_5_5_Opt_1_CumSavings!$G$7:$Q$59,MATCH(B47,Apdx_5_5_Opt_1_CumSavings!$C$7:$C$59,0),MATCH(CostData!$C$3,Apdx_5_5_Opt_1_CumSavings!$G$6:$Q$6,0))), (INDEX(Apdx_5_5_Opt_2_CumSavings!$S$7:$S$59,MATCH(B47,Apdx_5_5_Opt_2_CumSavings!$C$7:$C$59,0)) +INDEX(Apdx_5_5_Opt_2_CumSavings!$G$7:$Q$59,MATCH(B47,Apdx_5_5_Opt_2_CumSavings!$C$7:$C$59,0),MATCH(CostData!$C$3,Apdx_5_5_Opt_2_CumSavings!$G$6:$Q$6,0))))/1000 -> 474.3461229 | AM47: =AL47*INDEX(RefTables!$D$38:$F$39,StateData!$C$74,StateData!$C$73)*10^-3 -> 37.45242183 | AN47: 7.895589323 | AP47: =IF(CostData!$C$6="Proposed - Option 1", INDEX(Apdx_5_5_Opt_1_CumSavings!$S$7:$S$59,MATCH(B47,Apdx_5_5_Opt_1_CumSavings!$C$7:$C$59,0)), INDEX(Apdx_5_5_Opt_2_CumSavings!$S$7:$S$59,MATCH(B47,Apdx_5_5_Opt_2_CumSavings!$C$7:$C$59,0)))/1000 -> 429.3502198 | AR47: 37.51747812 | AS47: 38.90516588 | AT47: 37.45242183 | AU47: 37.46616787 | AV47: 37.45242183 | AW47: 36.62358011 | AX47: 35.86542334 | AZ47: 7.909304264 | BA47: 8.201851772 | BB47: 7.895589323 | BC47: 7.898487215 | BD47: 7.895589323 | BE47: 7.720855793 | BF47: 8.353419118 | BH47: 0.01371494096 | BI47: 0.3062624492 | BJ47: 0 | BK47: 0.002897891662 | BL47: 0 | BM47: -0.1747335301 | BN47: 0.4578297946 | BP47: 0.6059715464
B48: Utah | C48: -226.1277972 | D48: 130.1597502 | E48: =-'BB1'!H48 -> 1540.125746 | F48: =E48*INDEX(RefTables!$D$14:$F$14,1,StateData!$C$73)*1/1000 -> 11.85896824 | G48: =-BB2a!P48 -> 3160.557117 | H48: =G48*INDEX(RefTables!$D$15:$F$15,1,StateData!$C$73)*1/1000 -> 104.2983849 | I48: =-BB2b!N48*BB2b!O48 -> 0 | J48: =I48*INDEX(RefTables!$D$16:$F$16,1,StateData!$C$73)*1/1000 -> 0 | K48: =BB3ai!C48 -> 0 | L48: =K48*INDEX(RefTables!$D$17:$F$17,1,StateData!$C$73)*1/1000000 -> 0 | M48: =BB3aii!C48 -> 0 | N48: =M48*INDEX(RefTables!$D$18:$F$18,1,StateData!$C$73)*1/1000000 -> 0 | O48: =IF(GWh_Summary!Z48*1000<0,0,GWh_Summary!Z48*1000) -> 1273345.086 | P48: =O48*INDEX(RefTables!$D$22:$F$22,1,StateData!$C$73)*1/1000000 -> 80.22074042 | Q48: =-O48*INDEX(RefTables!$D$38:$F$39,StateData!$C$74,StateData!$C$73)*1/1000000 -> -100.5380987 | R48: =IF(CostData!$C$6="Proposed - Option 1", INDEX(Apdx_5_5_Opt_1_CumSavings!$G$7:$Q$59,MATCH(B48,Apdx_5_5_Opt_1_CumSavings!$C$7:$C$59,0),MATCH(CostData!$C$3,Apdx_5_5_Opt_1_CumSavings!$G$6:$Q$6,0)), INDEX(Apdx_5_5_Opt_2_CumSavings!$G$7:$Q$59,MATCH(B48,Apdx_5_5_Opt_2_CumSavings!$C$7:$C$59,0),MATCH(CostData!$C$3,Apdx_5_5_Opt_2_CumSavings!$G$6:$Q$6,0)))*1000 -> 4077818.373 | S48: 34.31975531 | T48: =-$R48*INDEX(RefTables!$D$38:$F$39,StateData!$C$74,StateData!$C$73)*1/1000000 -> -321.9677921 | U48: =$R48*INDEX(RefTables!$D$28:$F$28,1,StateData!$C$73)/2*1/1000000 -> 178.1437737 | V48: 178.1437737 | X48: 374.5218672 | Y48: -422.5058908 | Z48: 178.1437737 | AB48: 11.85896824 | AC48: 104.2983849 | AD48: 0 | AE48: 0 | AF48: 0 | AG48: 80.22074042 | AH48: 178.1437737 | AI48: -100.5380987 | AJ48: -321.9677921 | AL48: =IF(CostData!$C$6="Proposed - Option 1", (INDEX(Apdx_5_5_Opt_1_CumSavings!$S$7:$S$59,MATCH(B48,Apdx_5_5_Opt_1_CumSavings!$C$7:$C$59,0)) +INDEX(Apdx_5_5_Opt_1_CumSavings!$G$7:$Q$59,MATCH(B48,Apdx_5_5_Opt_1_CumSavings!$C$7:$C$59,0),MATCH(CostData!$C$3,Apdx_5_5_Opt_1_CumSavings!$G$6:$Q$6,0))), (INDEX(Apdx_5_5_Opt_2_CumSavings!$S$7:$S$59,MATCH(B48,Apdx_5_5_Opt_2_CumSavings!$C$7:$C$59,0)) +INDEX(Apdx_5_5_Opt_2_CumSavings!$G$7:$Q$59,MATCH(B48,Apdx_5_5_Opt_2_CumSavings!$C$7:$C$59,0),MATCH(CostData!$C$3,Apdx_5_5_Opt_2_CumSavings!$G$6:$Q$6,0))))/1000 -> 39.72308387 | AM48: =AL48*INDEX(RefTables!$D$38:$F$39,StateData!$C$74,StateData!$C$73)*10^-3 -> 3.136371569 | AN48: 7.895589323 | AP48: =IF(CostData!$C$6="Proposed - Option 1", INDEX(Apdx_5_5_Opt_1_CumSavings!$S$7:$S$59,MATCH(B48,Apdx_5_5_Opt_1_CumSavings!$C$7:$C$59,0)), INDEX(Apdx_5_5_Opt_2_CumSavings!$S$7:$S$59,MATCH(B48,Apdx_5_5_Opt_2_CumSavings!$C$7:$C$59,0)))/1000 -> 35.6452655 | AR48: 3.148230537 | AS48: 3.240669954 | AT48: 3.136371569 | AU48: 3.136371569 | AV48: 3.136371569 | AW48: 3.116054211 | AX48: 2.992547551 | AZ48: 7.925443421 | BA48: 8.158152988 | BB48: 7.895589323 | BC48: 7.895589323 | BD48: 7.895589323 | BE48: 7.844441838 | BF48: 8.395357725 | BH48: 0.02985409764 | BI48: 0.262563665 | BJ48: 0 | BK48: 0 | BL48: 0 | BM48: -0.05114748468 | BN48: 0.4997684018 | BP48: 0.7410386797
B49: Virginia | C49: -1043.19218 | D49: 98.11643057 | E49: =-'BB1'!H49 -> 841.7926039 | F49: =E49*INDEX(RefTables!$D$14:$F$14,1,StateData!$C$73)*1/1000 -> 6.48180305 | G49: =-BB2a!P49 -> 3120.69883 | H49: =G49*INDEX(RefTables!$D$15:$F$15,1,StateData!$C$73)*1/1000 -> 102.9830614 | I49: =-BB2b!N49*BB2b!O49 -> 296.6554914 | J49: =I49*INDEX(RefTables!$D$16:$F$16,1,StateData!$C$73)*1/1000 -> 9.789631215 | K49: =BB3ai!C49 -> 1645274.962 | L49: =K49*INDEX(RefTables!$D$17:$F$17,1,StateData!$C$73)*1/1000000 -> 9.871649773 | M49: =BB3aii!C49 -> 0 | N49: =M49*INDEX(RefTables!$D$18:$F$18,1,StateData!$C$73)*1/1000000 -> 0 | O49: =IF(GWh_Summary!Z49*1000<0,0,GWh_Summary!Z49*1000) -> 8833564.456 | P49: =O49*INDEX(RefTables!$D$22:$F$22,1,StateData!$C$73)*1/1000000 -> 556.5145607 | Q49: =-O49*INDEX(RefTables!$D$38:$F$39,StateData!$C$74,StateData!$C$73)*1/1000000 -> -697.461972 | R49: =IF(CostData!$C$6="Proposed - Option 1", INDEX(Apdx_5_5_Opt_1_CumSavings!$G$7:$Q$59,MATCH(B49,Apdx_5_5_Opt_1_CumSavings!$C$7:$C$59,0),MATCH(CostData!$C$3,Apdx_5_5_Opt_1_CumSavings!$G$6:$Q$6,0)), INDEX(Apdx_5_5_Opt_2_CumSavings!$G$7:$Q$59,MATCH(B49,Apdx_5_5_Opt_2_CumSavings!$C$7:$C$59,0),MATCH(CostData!$C$3,Apdx_5_5_Opt_2_CumSavings!$G$6:$Q$6,0)))*1000 -> 13062621.06 | S49: 109.9376964 | T49: =-$R49*INDEX(RefTables!$D$38:$F$39,StateData!$C$74,StateData!$C$73)*1/1000000 -> -1031.370914 | U49: =$R49*INDEX(RefTables!$D$28:$F$28,1,StateData!$C$73)/2*1/1000000 -> 570.6543051 | V49: 570.6543051 | X49: 1256.295011 | Y49: -1728.832886 | Z49: 570.6543051 | AB49: 6.48180305 | AC49: 102.9830614 | AD49: 9.789631215 | AE49: 9.871649773 | AF49: 0 | AG49: 556.5145607 | AH49: 570.6543051 | AI49: -697.461972 | AJ49: -1031.370914 | AL49: =IF(CostData!$C$6="Proposed - Option 1", (INDEX(Apdx_5_5_Opt_1_CumSavings!$S$7:$S$59,MATCH(B49,Apdx_5_5_Opt_1_CumSavings!$C$7:$C$59,0)) +INDEX(Apdx_5_5_Opt_1_CumSavings!$G$7:$Q$59,MATCH(B49,Apdx_5_5_Opt_1_CumSavings!$C$7:$C$59,0),MATCH(CostData!$C$3,Apdx_5_5_Opt_1_CumSavings!$G$6:$Q$6,0))), (INDEX(Apdx_5_5_Opt_2_CumSavings!$S$7:$S$59,MATCH(B49,Apdx_5_5_Opt_2_CumSavings!$C$7:$C$59,0)) +INDEX(Apdx_5_5_Opt_2_CumSavings!$G$7:$Q$59,MATCH(B49,Apdx_5_5_Opt_2_CumSavings!$C$7:$C$59,0),MATCH(CostData!$C$3,Apdx_5_5_Opt_2_CumSavings!$G$6:$Q$6,0))))/1000 -> 144.3452448 | AM49: =AL49*INDEX(RefTables!$D$38:$F$39,StateData!$C$74,StateData!$C$73)*10^-3 -> 11.39690774 | AN49: 7.895589323 | AP49: =IF(CostData!$C$6="Proposed - Option 1", INDEX(Apdx_5_5_Opt_1_CumSavings!$S$7:$S$59,MATCH(B49,Apdx_5_5_Opt_1_CumSavings!$C$7:$C$59,0)), INDEX(Apdx_5_5_Opt_2_CumSavings!$S$7:$S$59,MATCH(B49,Apdx_5_5_Opt_2_CumSavings!$C$7:$C$59,0)))/1000 -> 131.2826237 | AR49: 11.40338954 | AS49: 11.4998908 | AT49: 11.40669737 | AU49: 11.40677939 | AV49: 11.39690774 | AW49: 11.25596032 | AX49: 10.93619113 | AZ49: 7.900079809 | BA49: 7.966934286 | BB49: 7.902371418 | BC49: 7.902428239 | BD49: 7.895589323 | BE49: 7.797943286 | BF49: 8.330265512 | BH49: 0.004490486029 | BI49: 0.07134496294 | BJ49: 0.006782094713 | BK49: 0.006838915814 | BL49: 0 | BM49: -0.09764603712 | BN49: 0.4346761886 | BP49: 0.426486611
B50: Washington | C50: -1084.872006 | D50: 43.67782461 | E50: =-'BB1'!H50 -> 247.1982445 | F50: =E50*INDEX(RefTables!$D$14:$F$14,1,StateData!$C$73)*1/1000 -> 1.903426483 | G50: =-BB2a!P50 -> 2478.342754 | H50: =G50*INDEX(RefTables!$D$15:$F$15,1,StateData!$C$73)*1/1000 -> 81.78531087 | I50: =-BB2b!N50*BB2b!O50 -> 0 | J50: =I50*INDEX(RefTables!$D$16:$F$16,1,StateData!$C$73)*1/1000 -> 0 | K50: =BB3ai!C50 -> 506700.3463 | L50: =K50*INDEX(RefTables!$D$17:$F$17,1,StateData!$C$73)*1/1000000 -> 3.040202078 | M50: =BB3aii!C50 -> 0 | N50: =M50*INDEX(RefTables!$D$18:$F$18,1,StateData!$C$73)*1/1000000 -> 0 | O50: =IF(GWh_Summary!Z50*1000<0,0,GWh_Summary!Z50*1000) -> 9511207.353 | P50: =O50*INDEX(RefTables!$D$22:$F$22,1,StateData!$C$73)*1/1000000 -> 599.2060632 | Q50: =-O50*INDEX(RefTables!$D$38:$F$39,StateData!$C$74,StateData!$C$73)*1/1000000 -> -750.9658723 | R50: =IF(CostData!$C$6="Proposed - Option 1", INDEX(Apdx_5_5_Opt_1_CumSavings!$G$7:$Q$59,MATCH(B50,Apdx_5_5_Opt_1_CumSavings!$C$7:$C$59,0),MATCH(CostData!$C$3,Apdx_5_5_Opt_1_CumSavings!$G$6:$Q$6,0)), INDEX(Apdx_5_5_Opt_2_CumSavings!$G$7:$Q$59,MATCH(B50,Apdx_5_5_Opt_2_CumSavings!$C$7:$C$59,0),MATCH(CostData!$C$3,Apdx_5_5_Opt_2_CumSavings!$G$6:$Q$6,0)))*1000 -> 12916592.98 | S50: 108.7086942 | T50: =-$R50*INDEX(RefTables!$D$38:$F$39,StateData!$C$74,StateData!$C$73)*1/1000000 -> -1019.841136 | U50: =$R50*INDEX(RefTables!$D$28:$F$28,1,StateData!$C$73)/2*1/1000000 -> 564.2749153 | V50: 564.2749153 | X50: 1250.209918 | Y50: -1770.807009 | Z50: 564.2749153 | AB50: 1.903426483 | AC50: 81.78531087 | AD50: 0 | AE50: 3.040202078 | AF50: 0 | AG50: 599.2060632 | AH50: 564.2749153 | AI50: -750.9658723 | AJ50: -1019.841136 | AL50: =IF(CostData!$C$6="Proposed - Option 1", (INDEX(Apdx_5_5_Opt_1_CumSavings!$S$7:$S$59,MATCH(B50,Apdx_5_5_Opt_1_CumSavings!$C$7:$C$59,0)) +INDEX(Apdx_5_5_Opt_1_CumSavings!$G$7:$Q$59,MATCH(B50,Apdx_5_5_Opt_1_CumSavings!$C$7:$C$59,0),MATCH(CostData!$C$3,Apdx_5_5_Opt_1_CumSavings!$G$6:$Q$6,0))), (INDEX(Apdx_5_5_Opt_2_CumSavings!$S$7:$S$59,MATCH(B50,Apdx_5_5_Opt_2_CumSavings!$C$7:$C$59,0)) +INDEX(Apdx_5_5_Opt_2_CumSavings!$G$7:$Q$59,MATCH(B50,Apdx_5_5_Opt_2_CumSavings!$C$7:$C$59,0),MATCH(CostData!$C$3,Apdx_5_5_Opt_2_CumSavings!$G$6:$Q$6,0))))/1000 -> 123.8838866 | AM50: =AL50*INDEX(RefTables!$D$38:$F$39,StateData!$C$74,StateData!$C$73)*10^-3 -> 9.781362927 | AN50: 7.895589323 | AP50: =IF(CostData!$C$6="Proposed - Option 1", INDEX(Apdx_5_5_Opt_1_CumSavings!$S$7:$S$59,MATCH(B50,Apdx_5_5_Opt_1_CumSavings!$C$7:$C$59,0)), INDEX(Apdx_5_5_Opt_2_CumSavings!$S$7:$S$59,MATCH(B50,Apdx_5_5_Opt_2_CumSavings!$C$7:$C$59,0)))/1000 -> 110.9672937 | AR50: 9.783266354 | AS50: 9.863148238 | AT50: 9.781362927 | AU50: 9.784403129 | AV50: 9.781362927 | AW50: 9.629603118 | AX50: 9.325796706 | AZ50: 7.897125783 | BA50: 7.961607038 | BB50: 7.895589323 | BC50: 7.898043397 | BD50: 7.895589323 | BE50: 7.77308767 | BF50: 8.404094935 | BH50: 0.001536460095 | BI50: 0.06601771472 | BJ50: 0 | BK50: 0.002454073859 | BL50: 0 | BM50: -0.1225016531 | BN50: 0.5085056116 | BP50: 0.4560122072
